Workbook

Sheet Instructions
M1: ü
A2: To Update
B3: ="Save file with Current Reporting Month Extension (probably "&TEXT(DATE(MID(CELL("filename",J3),SEARCH(".xls?]",CELL("filename",J3))-7,4),MID(CELL("filename",J3),SEARCH(".xls?]",CELL("filename",J3))-2,2)+1,1),"yyyy-mm")&")." -> Save file with Current Reporting Month Extension (probably 2018-04). | M3: ü
B5: Select "Lookups" sheet. | M5: ü
B6: Set $I$3 to Prior Month Date. | M6: ü
B7: Select | M7: ü
B9: Select "DataQual" sheet. | M9: ü
B10: "Copy" Columns H:Q. | M10: ü
B11: "Insert Copied cells" at Column R. | G11: OR Select | M11: ü
B12: "Paste Values" at Column R. | M12: ü
B14: To add an additional class, see "To Add A Class" below.
B16: Select "Kssk" sheet. | M16: ü
B17: Select | M17: ü
B18: Select SAP Transaction "SE16" | M18: ü
B19: Query Table "KSSK" for all "Internal Class no." for relavent Classes (Col L Row 11 to last row before [spare]). | M19: ü
B20: Export from SAP and paste list (excluding field Headings) at $A$11. | M20: ü
B22: Select | M22: ü
B24: USE DATA FROM THIS WORKBOOK TO UPDATE EACH CLASS "Data Standards Review - Curr" workbook. | M24: ü
B26: Select "PvtByClassCurr" sheet.
B27: Select "RefreshAll" (Ctrl+Alt+F5).
A29: To Add A Class
B30: Select ''Lookups'' sheet.
C31: ="Insert a row at Row (''"&ROW(Lookups!$A$22)&"'')." -> Insert a row at Row (''22'').
C32: Fill out Columns ("A:I").
C33: Copy formula in column J from row above to to new row.
D34: NOTE: Be vey careful on the "Sub Folder" and "File" fields as this drives the PivotTable
B36: Select "Data Quality" sheet.
C37: ="Insert Row at " &MID(CELL("address",DataQual!$A$22),SEARCH("!",CELL("address",DataQual!$A$22))+1,10)&"''." -> Insert Row at $A$22''.
C38: ="Fill in Col A:I on Row "&COUNTA(DataQual!$A$5:$A$22)+4 -> Fill in Col A:I on Row 21
C39: ="Copy Col J:O from Row "&COUNTA(DataQual!$A$5:$A$22)+3&" to Row "&COUNTA(DataQual!$A$5:$A$22)+4 -> Copy Col J:O from Row 20 to Row 21
C40: ="Select "&MID(CELL("address",DataQual!$A$100),SEARCH("!",CELL("address",DataQual!$A$100))+1,10) &":"& MID(CELL("address",DataQual!$O$104),SEARCH("!",CELL("address",DataQual!$O$104))+1,10) -> Select $A$100:$O$104
C41: Select "Copy"
C42: Select "Insert Copied Cells", "Shift Cell Down"
C43: ="Edit "&MID(CELL("address",DataQual!$H$101),SEARCH("!",CELL("address",DataQual!$H$101))+1,10)&" for class Name" -> Edit $H$101 for class Name
B45: Select "PvtByClass" sheet.
C46: ="Copy Rows (''" &COUNTA(PvtByClassCurr!$A$10:$A$10042)-10&":"&COUNTA(PvtByClassCurr!$A$10:$A$10042)+9& "'') to Row (''"&COUNTA(PvtByClassCurr!$A$10:$A$10042)+10&"'')." -> Copy Rows (''310:329'') to Row (''330'').
C47: Select anywhere within the newly pasted PivotTable
C48: Select the | G48: button at top of sheet.
C49: ="Select ''$N$" &COUNTA(PvtByClassCurr!$A$10:$A$10042)-6&"''." -> Select ''$N$314''.
C50: Select the | H50: button at top of sheet.
C51: REVIEW DATA FOR ACCURACY
B53: Select "Kssk" sheet.
C54: ="Enter Internal Class no. at ''" & ADDRESS(1,MATCH(TRUE,INDEX(ISBLANK(Kssk!A$1:BB$1),0,0),0))&"''." -> Enter Internal Class no. at ''$R$1''.
C55: ="Copy ("& LEFT(ADDRESS(1,MATCH(TRUE,INDEX(ISBLANK(Kssk!A$1:BB$1),0,0),0)-1),SEARCH("$",ADDRESS(1,MATCH(TRUE,INDEX(ISBLANK(Kssk!A$1:BB$1),0,0),0)),2)-1)&"2:5'') to Column (''" & LEFT(ADDRESS(1,MATCH(TRUE,INDEX(ISBLANK(Kssk!A$1:BB$1),0,0),0)),SEARCH("$",ADDRESS(1,MATCH(TRUE,INDEX(ISBLANK(Kssk!A$1:BB$1),0,0),0)),2)-1)&"2'')." -> Copy ($Q2:5'') to Column (''$R2'').

Sheet Lookups
H2: Main Folder | I2: \\hq\heidfs\data\control\Finance Process Governance and Projects\PM Data\Cleansing Analysis\Equipment\
H3: Archive Suffix | I3: 2018-02 | J3: =IF(newFileSuffix=TEXT(DATE(MID(CELL("filename",J3),SEARCH(".xls?]",CELL("filename",J3))-7,4),MID(CELL("filename",J3),SEARCH(".xls?]",CELL("filename",J3))-2,2)-1,1),"yyyy-mm"),"", "Check Date, probably should be "&TEXT(DATE(MID(CELL("filename",J3),SEARCH(".xls?]",CELL("filename",J3))-7,4),MID(CELL("filename",J3),SEARCH(".xls?]",CELL("filename",J3))-2,2)-1,1),"yyyy-mm")) -> 
A5: Int. class no. | B5: Class | C5: Class group | E5: Short Descr | F5: SheetName | H5: SubFolder | I5: FileName | J5: Full PivotTable Source
A6: 254 | B6: KNOCK_OUT_FW | C6: VESS_PRESS | E6: FWKO | F6: FWKO | G6: 1 | H6: 01) FWKO | I6: FWKO Data Quality Review - Curr | J6: =" '"&$I$2&H6&"\"&I6&".xlsb'!equipList" -> '\\hq\heidfs\data\control\Finance Process Governance and Projects\PM Data\Cleansing Analysis\Equipment\01) FWKO\FWKO Data Quality Review - Curr.xlsb'!equipList
A7: 385 | B7: STACK_FLARE | C7: FIRED EQ | E7: Flare | F7: Flare | G7: =MAX(G$6:G6)+1 -> 2 | H7: 02) Stack-Flare | I7: Stack-Flare Data Standards Review - Curr | J7: '\\hq\heidfs\data\control\Finance Process Governance and Projects\PM Data\Cleansing Analysis\Equipment\02) Stack-Flare\Stack-Flare Data Standards Review - Curr.xlsb'!equipList
A8: 395 | B8: INCINERATOR | C8: FURNACE | E8: Incin. | F8: Incin | G8: =MAX(G$6:G7)+1 -> 3 | H8: 03) Incinerator | I8: Incinerator Data Standards Review - Curr | J8: '\\hq\heidfs\data\control\Finance Process Governance and Projects\PM Data\Cleansing Analysis\Equipment\03) Incinerator\Incinerator Data Standards Review - Curr.xlsb'!equipList
A9: 14466 | B9: STACK_VENT | C9: PIPING | E9: Vent | F9: Vent | G9: =MAX(G$6:G8)+1 -> 4 | H9: 04) Stack-Vent | I9: Stack-Vent Data Standards Review - Curr | J9: '\\hq\heidfs\data\control\Finance Process Governance and Projects\PM Data\Cleansing Analysis\Equipment\04) Stack-Vent\Stack-Vent Data Standards Review - Curr.xlsb'!equipList
A10: 284 | B10: BURNER_SYSTEM | C10: BURNERS | E10: Burner Sys. | F10: BrnrSys | G10: =MAX(G$6:G9)+1 -> 5 | H10: 05) Burner System | I10: Burner System Data Standards Review - Curr | J10: '\\hq\heidfs\data\control\Finance Process Governance and Projects\PM Data\Cleansing Analysis\Equipment\05) Burner System\Burner System Data Standards Review - Curr.xlsb'!equipList
A11: 14995 | B11: BURNER | C11: BURNERS | E11: Burner | F11: Brnr | G11: =MAX(G$6:G10)+1 -> 6 | H11: 06) Burner | I11: Burner Data Standards Review - Curr | J11: '\\hq\heidfs\data\control\Finance Process Governance and Projects\PM Data\Cleansing Analysis\Equipment\06) Burner\Burner Data Standards Review - Curr.xlsb'!equipList
A12: 417 | B12: BOILER_POWER_FT | C12: BOILERS | E12: Boiler-PFT | F12: BlrPFT | G12: =MAX(G$6:G11)+1 -> 7 | H12: 07) Boiler-PFT | I12: Boiler-PFT Data Standards Review - Curr | J12: '\\hq\heidfs\data\control\Finance Process Governance and Projects\PM Data\Cleansing Analysis\Equipment\07) Boiler-PFT\Boiler-PFT Data Standards Review - Curr.xlsb'!equipList
A13: 47 | B13: HEATER_INDIR_FIRED | C13: HEATERS | E13: Heater-IDF | F13: HtrIDF | G13: =MAX(G$6:G12)+1 -> 8 | H13: 08) Heater-IDF | I13: Heater-IDF Data Standards Review - Curr | J13: '\\hq\heidfs\data\control\Finance Process Governance and Projects\PM Data\Cleansing Analysis\Equipment\08) Heater-IDF\Heater-IDF Data Standards Review - Curr.xlsb'!equipList
A14: 14997 | B14: FIRETUBE | C14: FIRED EQ | E14: Firetube | F14: Firetube | G14: =MAX(G$6:G13)+1 -> 9 | H14: 09) Firetube | I14: Firetube Data Standards Review - Curr | J14: '\\hq\heidfs\data\control\Finance Process Governance and Projects\PM Data\Cleansing Analysis\Equipment\09) Firetube\Firetube Data Standards Review - Curr.xlsb'!equipList
A15: 14996 | B15: PROCESS_COIL | C15: PIPING | E15: Proc. Coil | F15: ProcCoil | G15: =MAX(G$6:G14)+1 -> 10 | H15: 10) Process Coil | I15: Process Coil Data Standards Review - Curr | J15: '\\hq\heidfs\data\control\Finance Process Governance and Projects\PM Data\Cleansing Analysis\Equipment\10) Process Coil\Process Coil Data Standards Review - Curr.xlsb'!equipList
A16: 350 | B16: PM_RECIPROCATING | C16: ENGINES | E16: Recip. Eng | F16: RecipEng | G16: =MAX(G$6:G15)+1 -> 11 | H16: 11) Recip Eng | I16: Recip Eng Data Standards Review - Curr | J16: '\\hq\heidfs\data\control\Finance Process Governance and Projects\PM Data\Cleansing Analysis\Equipment\11) Recip Eng\Recip Eng Data Standards Review - Curr.xlsb'!equipList
A17: 195 | B17: BOILER_POWER_WT | C17: BOILERS | E17: Boiler-PWT | F17: BlrPWT | G17: =MAX(G$6:G16)+1 -> 12 | H17: 12) Boiler-PWT | I17: Boiler-PWT Data Standards Review - Curr | J17: '\\hq\heidfs\data\control\Finance Process Governance and Projects\PM Data\Cleansing Analysis\Equipment\12) Boiler-PWT\Boiler-PWT Data Standards Review - Curr.xlsb'!equipList
A18: 397 | B18: PM_GAS_TURBINE | C18: TURBINES | E18: Gas Turb. | F18: GasTurb | G18: =MAX(G$6:G17)+1 -> 13 | H18: 13) Gas Turbine | I18: Gas Turbine Data Standards Review - Curr | J18: '\\hq\heidfs\data\control\Finance Process Governance and Projects\PM Data\Cleansing Analysis\Equipment\13) Gas Turbine\Gas Turbine Data Standards Review - Curr.xlsb'!equipList
A19: 219 | B19: BOILER_HEATING | C19: BOILERS | E19: Boiler-Htng | F19: HtngBlr | G19: =MAX(G$6:G18)+1 -> 14 | H19: 14) Boiler-Htng | I19: Boiler-Htng Data Standards Review - Curr | J19: '\\hq\heidfs\data\control\Finance Process Governance and Projects\PM Data\Cleansing Analysis\Equipment\14) Boiler-Htng\Boiler-Htng Data Standards Review - Curr.xlsb'!equipList
A20: 121 | B20: HEATER_DIR_FIRED | C20: HEATERS | E20: Heater-DF | F20: HtrDF | G20: =MAX(G$6:G19)+1 -> 15 | H20: 15) Heater-DF | I20: Heater-DF Data Standards Review - Curr | J20: '\\hq\heidfs\data\control\Finance Process Governance and Projects\PM Data\Cleansing Analysis\Equipment\15) Heater-DF\Heater-DF Data Standards Review - Curr.xlsb'!equipList
A21: 256 | B21: HEAT_EX_SHELL_TUBE | C21: HEAT EXCH | E21: Exchanger-S&T | F21: ExchSt | G21: =MAX(G$6:G20)+1 -> 16 | H21: 16) Exchanger-S&T | I21: Exchnger-S&T Data Standards Review - Curr | J21: =" '"&$I$2&H21&"\"&I21&".xlsb'!equipList" -> '\\hq\heidfs\data\control\Finance Process Governance and Projects\PM Data\Cleansing Analysis\Equipment\16) Exchanger-S&T\Exchnger-S&T Data Standards Review - Curr.xlsb'!equipList
A22: z | B22: z | C22: z | D22: z | E22: z | F22: z | G22: z | H22: z | I22: z | J22: Some big long complex Path\File Name\Range Name string
A24: 282 | B24: COMP_RECIP | C24: COMPRESSOR | E24: Recip. Compr. | F24: RecipCom | H24: 17) Recip Compr | I24: Recip Compr Data Standards Review - Curr | J24: =" '"&$I$2&H24&"\"&I24&".xlsb'!equipList" -> '\\hq\heidfs\data\control\Finance Process Governance and Projects\PM Data\Cleansing Analysis\Equipment\17) Recip Compr\Recip Compr Data Standards Review - Curr.xlsb'!equipList

Sheet DataQual
A1: Copy Column H:Q, Insert Paste to Column R | H1: 2018-03 | R1: 2018-02 | AB1: 2018-01 | AL1: 2017-12 | AV1: 2017-11 | BF1: 2017-10 | BP1: 2017-09 | BZ1: 2017-08 | CJ1: 2017-07 | CT1: 2017-06 | DD1: 2017-05 | DN1: 2017-04 | DX1: 2017-03 | EH1: 2017-02
A2: ="Copy - Paste Values $U$" & ROW($A$26)&":$Y$..." -> Copy - Paste Values $U$26:$Y$...
I3: Data Quality | M3: Equip Count | S3: Data Quality | W3: Equip Count | AC3: Data Quality | AG3: Equip Count | AM3: Data Quality | AQ3: Equip Count | AW3: Data Quality | BA3: Equip Count | BG3: Data Quality | BK3: Equip Count | BQ3: Data Quality | BU3: Equip Count | CA3: Data Quality | CE3: Equip Count | CK3: Data Quality | CO3: Equip Count | CU3: Data Quality | CY3: Equip Count | DE3: Data Quality | DI3: Equip Count | DO3: Data Quality | DS3: Equip Count | DY3: Data Quality | EC3: Equip Count | EI3: Data Quality | EM3: Equip Count
I4: Initial | J4: Cleansed | K4: New | L4: Overall | M4: Cleansed | N4: New | O4: Overall | P4: Comment | S4: Initial | T4: Cleansed | U4: New | V4: Overall | W4: Cleansed | X4: New | Y4: Overall | Z4: Comment | AC4: Initial | AD4: Cleansed | AE4: New | AF4: Overall | AG4: Cleansed | AH4: New | AI4: Overall | AJ4: Comment | AM4: Initial | AN4: Cleansed | AO4: New | AP4: Overall | AQ4: Cleansed | AR4: New | AS4: Overall | AT4: Comment | AW4: Initial | AX4: Cleansed | AY4: New | AZ4: Overall | BA4: Cleansed | BB4: New | BC4: Overall | BD4: Comment | BG4: Initial | BH4: Cleansed | BI4: New | BJ4: Overall | BK4: Cleansed | BL4: New | BM4: Overall | BN4: Comment | BQ4: Initial | BR4: Cleansed | BS4: New | BT4: Overall | BU4: Cleansed | BV4: New | BW4: Overall | BX4: Comment | CA4: Initial | CB4: Cleansed | CC4: New | CD4: Overall | CE4: Cleansed | CF4: New | CG4: Overall | CH4: Comment | CK4: Initial | CL4: Cleansed | CM4: New | CN4: Overall | CO4: Cleansed | CP4: New | CQ4: Overall | CR4: Comment | CU4: Initial | CV4: Cleansed | CW4: New | CX4: Overall | CY4: Cleansed | CZ4: New | DA4: Overall | DB4: Comment | DE4: Initial | DF4: Cleansed | DG4: New | DH4: Overall | DI4: Cleansed | DJ4: New | DK4: Overall | DL4: Comment | DO4: Initial | DP4: Cleansed | DQ4: New | DR4: Overall | DS4: Cleansed | DT4: New | DU4: Overall | DV4: Comment | DY4: Initial | DZ4: Cleansed | EA4: New | EB4: Overall | EC4: Cleansed | ED4: New | EE4: Overall | EF4: Comment | EI4: Initial | EJ4: Cleansed | EK4: New | EL4: Overall | EM4: Cleansed | EN4: New | EO4: Overall | EP4: Comment
A5: FWKO | B5: KNOCK_OUT_FW | H5: FWKO | I5: 0.416 | J5: =SUMIFS(O$26:O$105, H$26:H$105,$B5, I$26:I$105,"Y") -> 0.9985961628 | K5: =SUMIFS(O$26:O$105, H$26:H$105,$B5, J$26:J$105,"Y") -> 0.8865671642 | L5: =SUMIFS(O$26:O$105, H$26:H$105,$B5, J$26:J$105,"All") -> 0.9834142395 | M5: =SUMIFS(N$26:N$105, H$26:H$105,$B5, I$26:I$105,"Y") -> 39 | N5: =SUMIFS(N$26:N$105, H$26:H$105,$B5, J$26:J$105,"Y") -> 6 | O5: =SUMIFS(N$26:N$105, H$26:H$105,$B5, J$26:J$105,"All") -> 45 | R5: FWKO | S5: 0.416 | T5: =SUMIFS(Y$26:Y$105, R$26:R$105,$B5, S$26:S$105,"Y") -> 0.9986933798 | U5: =SUMIFS(Y$26:Y$105, R$26:R$105,$B5, T$26:T$105,"Y") -> 0.8865671642 | V5: =SUMIFS(Y$26:Y$105, R$26:R$105,$B5, T$26:T$105,"All") -> 0.9844165716 | W5: =SUMIFS(X$26:X$105, R$26:R$105,$B5, S$26:S$105,"Y") -> 42 | X5: =SUMIFS(X$26:X$105, R$26:R$105,$B5, T$26:T$105,"Y") -> 6 | Y5: =SUMIFS(X$26:X$105, R$26:R$105,$B5, T$26:T$105,"All") -> 48 | AB5: FWKO | AC5: 0.416 | AD5: =SUMIFS(AI$26:AI$105, AB$26:AB$105,$B5, AC$26:AC$105,"Y") -> 0.9988527725 | AE5: =SUMIFS(AI$26:AI$105, AB$26:AB$105,$B5, AD$26:AD$105,"Y") -> 0.9866071429 | AF5: =SUMIFS(AI$26:AI$105, AB$26:AB$105,$B5, AD$26:AD$105,"All") -> 0.9978865798 | AG5: =SUMIFS(AH$26:AH$105, AB$26:AB$105,$B5, AC$26:AC$105,"Y") -> 48 | AH5: =SUMIFS(AH$26:AH$105, AB$26:AB$105,$B5, AD$26:AD$105,"Y") -> 4 | AI5: =SUMIFS(AH$26:AH$105, AB$26:AB$105,$B5, AD$26:AD$105,"All") -> 52 | AL5: FWKO | AM5: 0.416 | AN5: =SUMIFS(AS$26:AS$105, AL$26:AL$105,$B5, AM$26:AM$105,"Y") -> 0.9988527725 | AO5: =SUMIFS(AS$26:AS$105, AL$26:AL$105,$B5, AN$26:AN$105,"Y") -> 0.9866071429 | AP5: =SUMIFS(AS$26:AS$105, AL$26:AL$105,$B5, AN$26:AN$105,"All") -> 0.9978865798 | AQ5: =SUMIFS(AR$26:AR$105, AL$26:AL$105,$B5, AM$26:AM$105,"Y") -> 48 | AR5: =SUMIFS(AR$26:AR$105, AL$26:AL$105,$B5, AN$26:AN$105,"Y") -> 4 | AS5: =SUMIFS(AR$26:AR$105, AL$26:AL$105,$B5, AN$26:AN$105,"All") -> 52 | AV5: FWKO | AW5: 0.416 | AX5: 0.9988527725 | AY5: 1 | AZ5: 0.9989220266 | BA5: 48 | BB5: 4 | BC5: 52 | BF5: FWKO | BG5: 0.416 | BH5: 0.9988510149 | BI5: 0.9864864865 | BJ5: 0.9979245936 | BK5: 48 | BL5: 4 | BM5: 53 | BP5: FWKO | BQ5: 0.416 | BR5: 0.9988510149 | BS5: 0.9864864865 | BT5: 0.9979245936 | BU5: 48 | BV5: 4 | BW5: 53 | BZ5: FWKO | CA5: 0.416 | CB5: 0.9988510149 | CC5: 0.9864864865 | CD5: 0.9979245936 | CE5: 48 | CF5: 4 | CG5: 53 | CJ5: FWKO | CK5: 0.416 | CL5: 0.9986091794 | CM5: 0.9864864865 | CN5: 0.9977820025 | CO5: 53 | CP5: 4 | CQ5: 0 | CT5: FWKO | CU5: 0.416 | CV5: 0.9977412068 | CW5: 0.9136363636 | CX5: 0.9921663152 | CY5: 57 | CZ5: 4 | DA5: 0 | DB5: Incl Prince George FWKO @ 27.5% | DD5: FWKO | DE5: 0.416 | DF5: 0.998 | DG5: 0.817 | DH5: 0.98 | DI5: 56 | DJ5: 6 | DK5: 62 | DL5: Incl Prince George FWKO @ 27.5% | DN5: FWKO | DO5: 0.416 | DP5: 0.998 | DQ5: 0.855 | DR5: 0.986 | DS5: 59 | DT5: 5 | DU5: 64 | DV5: Incl Prince George FWKO | DX5: FWKO | DY5: 0.416 | DZ5: 0.9978131834 | EA5: 0.8550724638 | EB5: 0.9864825999 | EC5: 59 | ED5: 5 | EE5: 64 | EF5: Incl Prince George FWKO | EH5: FWKO | EI5: 0.416 | EJ5: 0.998 | EK5: 0.994 | EL5: 0.998 | EM5: 59 | EN5: 3 | EO5: 62
A6: Stack-Flare | B6: STACK_FLARE | H6: Flare | I6: 0.287 | J6: 0.5072765073 | K6: 0 | L6: 0.3741280353 | M6: 50 | N6: 1 | O6: 302 | R6: Flare | S6: 0.287 | T6: 0.5383464272 | U6: 0 | V6: 0.3542773016 | W6: 69 | X6: 1 | Y6: 507 | AB6: Flare | AC6: 0.287 | AD6: 0.6667657551 | AE6: 0.6097560976 | AF6: 0.3722857869 | AG6: 85 | AH6: 1 | AI6: 523 | AL6: Flare | AM6: 0.287 | AN6: 0.6667657551 | AO6: 0.6097560976 | AP6: 0.3722857869 | AQ6: 85 | AR6: 1 | AS6: 523 | AV6: Flare | AW6: 0.287 | AX6: 0.6664707611 | AY6: 0.6097560976 | AZ6: 0.3728598926 | BA6: 86 | BB6: 1 | BC6: 525 | BF6: Flare | BG6: 0.287 | BH6: 0.6664707611 | BI6: 0.6097560976 | BJ6: 0.3723781538 | BK6: 86 | BL6: 1 | BM6: 525 | BP6: Flare | BQ6: 0.287 | BR6: 0.6664707611 | BS6: 0.6097560976 | BT6: 0.3723781538 | BU6: 86 | BV6: 1 | BW6: 525 | BZ6: Flare | CA6: 0.287 | CB6: 0.6656644618 | CC6: 0.6097560976 | CD6: 0.3710899751 | CE6: 84 | CF6: 1 | CG6: 523 | CJ6: Flare | CK6: 0.287 | CL6: 0.6397849462 | CM6: 0 | CN6: 0.3707920792 | CO6: 99 | CP6: 0 | CQ6: 0 | CT6: Flare | CU6: 0.287 | CV6: 0.6377274963 | CW6: 0 | CX6: 0.3725442043 | CY6: 103 | CZ6: 0 | DA6: 0 | DD6: Flare | DE6: 0.287 | DF6: 0.647 | DG6: 0.476 | DH6: 0.372 | DI6: 97 | DJ6: 6 | DK6: 541 | DN6: Flare | DO6: 0.287 | DP6: 0.5675675676 | DQ6: 0.4192139738 | DR6: 0.350620287 | DS6: 101 | DT6: 6 | DU6: 546 | DX6: Flare | DY6: 0.287 | DZ6: 0.6451451451 | EA6: 0.4759825328 | EB6: 0.3742459622 | EC6: 101 | ED6: 6 | EE6: 546 | EH6: Flare | EI6: 0.287 | EJ6: 0.626 | EK6: 0.463 | EL6: 0.363 | EM6: 86 | EN6: 6 | EO6: 550
A7: Incinerator | B7: INCINERATOR | H7: Incin | I7: 0.18 | J7: 0 | K7: 0 | L7: 0.2030091121 | M7: 0 | N7: 0 | O7: 100 | R7: Incin | S7: 0.18 | T7: 0 | U7: 0 | V7: 0.2068694799 | W7: 0 | X7: 0 | Y7: 108 | AB7: Incin | AC7: 0.18 | AD7: 0 | AE7: 0 | AF7: 0.2087955626 | AG7: 0 | AH7: 0 | AI7: 107 | AL7: Incin | AM7: 0.18 | AN7: 0 | AO7: 0 | AP7: 0.2087955626 | AQ7: 0 | AR7: 0 | AS7: 107 | AV7: Incin | AW7: 0.18 | AX7: 0 | AY7: 0 | AZ7: 0.2087955626 | BA7: 0 | BB7: 0 | BC7: 107 | BF7: Incin | BG7: 0.18 | BH7: 0 | BI7: 0 | BJ7: 0.2092332078 | BK7: 0 | BL7: 0 | BM7: 107 | BP7: Incin | BQ7: 0.18 | BR7: 0 | BS7: 0 | BT7: 0.2092332078 | BU7: 0 | BV7: 0 | BW7: 107 | BZ7: Incin | CA7: 0.18 | CB7: 0 | CC7: 0 | CD7: 0.2092332078 | CE7: 0 | CF7: 0 | CG7: 107 | CJ7: Incin | CK7: 0.18 | CL7: 0 | CM7: 0 | CN7: 0.2086387953 | CO7: 0 | CP7: 0 | CQ7: 0 | CT7: Incin | CU7: 0.18 | CV7: 0 | CW7: 0 | CX7: 0.2086387953 | CY7: 0 | CZ7: 0 | DA7: 0 | DD7: Incin | DE7: 0.18 | DF7: 0 | DG7: 0 | DH7: 0.208 | DI7: 0 | DJ7: 0 | DK7: 107 | DN7: Incin | DO7: 0.18 | DP7: 0 | DQ7: 0 | DR7: 0.1798768757 | DS7: 0 | DT7: 0 | DU7: 108 | DX7: Incin | DY7: 0.18 | DZ7: 0 | EA7: 0 | EB7: 0.1841092728 | EC7: 0 | ED7: 0 | EE7: 108 | EH7: Incin | EI7: 0.18 | EJ7: 0 | EK7: 0 | EL7: 0.177 | EM7: 0 | EN7: 0 | EO7: 109
A8: Stack-Vent | B8: STACK_VENT | H8: Vent | I8: n/a | J8: 0.4444444444 | K8: 0 | L8: 0.5155279503 | M8: 1 | N8: 0 | O8: 12 | R8: Vent | S8: n/a | T8: 0.4444444444 | U8: 0 | V8: 0.5155279503 | W8: 1 | X8: 0 | Y8: 12 | AB8: Vent | AC8: n/a | AD8: 0.4444444444 | AE8: 0 | AF8: 0.5155279503 | AG8: 1 | AH8: 0 | AI8: 12 | AL8: Vent | AM8: n/a | AN8: 0.4444444444 | AO8: 0 | AP8: 0.5155279503 | AQ8: 1 | AR8: 0 | AS8: 12 | AV8: Vent | AW8: n/a | AX8: 0.5 | AY8: 0 | AZ8: 0.5186246418 | BA8: 2 | BB8: 0 | BC8: 13 | BF8: Vent | BG8: n/a | BH8: 0.5 | BI8: 0 | BJ8: 0.5488215488 | BK8: 2 | BL8: 0 | BM8: 11 | BP8: Vent | BQ8: n/a | BR8: 0.5 | BS8: 0 | BT8: 0.5488215488 | BU8: 2 | BV8: 0 | BW8: 11 | BZ8: Vent | CA8: n/a | CB8: 0.462962963 | CC8: 0 | CD8: 0.5117845118 | CE8: 2 | CF8: 0 | CG8: 11 | CJ8: Vent | CK8: n/a | CL8: 0.462962963 | CM8: 0 | CN8: 0.5050505051 | CO8: 2 | CP8: 0 | CQ8: 0 | CT8: Vent | CU8: n/a | CV8: 0.462962963 | CW8: 0 | CX8: 0.5117845118 | CY8: 2 | CZ8: 0 | DA8: 0 | DD8: Vent | DE8: n/a | DF8: 0.463 | DG8: 0 | DH8: 0.512 | DI8: 2 | DJ8: 0 | DK8: 11 | DN8: Vent | DO8: n/a | DP8: 0.4444444444 | DQ8: 0 | DR8: 0.5016835017 | DS8: 2 | DT8: 0 | DU8: 11 | DX8: Vent | DY8: n/a | DZ8: 0 | EA8: 0 | EB8: 0.5488215488 | EC8: 0 | ED8: 0 | EE8: 11 | EH8: Vent | EI8: New | EJ8: 0 | EK8: 0 | EL8: 0.549 | EM8: 0 | EN8: 0 | EO8: 11
A9: Burner System | B9: BURNER_SYSTEM | H9: Burner Sys | I9: 0.254 | J9: 0.8214967751 | K9: 0 | L9: 0.5061475041 | M9: 879 | N9: 0 | O9: 5274 | R9: Burner Sys | S9: 0.254 | T9: 0.8095373434 | U9: 0 | V9: 0.5055167166 | W9: 1549 | X9: 0 | Y9: 5324 | AB9: Burner Sys | AC9: 0.254 | AD9: 0.805832827 | AE9: 0 | AF9: 0.497729072 | AG9: 1450 | AH9: 0 | AI9: 5317 | AL9: Burner Sys | AM9: 0.254 | AN9: 0.8047501126 | AO9: 0 | AP9: 0.4938496447 | AQ9: 1397 | AR9: 0 | AS9: 5301 | AV9: Burner Sys | AW9: 0.254 | AX9: 0.7981607914 | AY9: 0 | AZ9: 0.471300653 | BA9: 1125 | BB9: 0 | BC9: 5274 | BF9: Burner Sys | BG9: 0.254 | BH9: 0.7620864718 | BI9: 0 | BJ9: 0.422299941 | BK9: 942 | BL9: 0 | BM9: 5272 | BP9: Burner Sys | BQ9: 0.254 | BR9: 0.7924097434 | BS9: 0 | BT9: 0.4215830372 | BU9: 860 | BV9: 0 | BW9: 5268 | BZ9: Burner Sys | CA9: 0.254 | CB9: 0.7617524102 | CC9: 0 | CD9: 0.3891144823 | CE9: 731 | CF9: 0 | CG9: 5267 | CH9: Mostly complete in SAP, Waiting on Fired Duty UoM | CJ9: Burner Sys | CK9: 0.254 | CL9: 0.7603172272 | CM9: 0 | CN9: 0.3816409972 | CO9: 637 | CP9: 0 | CQ9: 0 | CR9: Mostly complete in SAP, Waiting on Fired Duty UoM | CT9: Burner Sys | CU9: 0.254 | CV9: 0.7592577043 | CW9: 0 | CX9: 0.3589638208 | CY9: 372 | CZ9: 0 | DA9: 0 | DB9: Mostly complete in SAP, Waiting on Fired Duty UoM | DD9: Burner Sys | DE9: 0.254 | DF9: 0.764 | DG9: 0.389 | DH9: 0.35 | DI9: 283 | DJ9: 106 | DK9: 5226 | DL9: Mostly complete in SAP, Waiting on Fired Duty UoM | DN9: Burner Sys | DO9: 0.254 | DP9: 0.5789473684 | DQ9: 0.2169312169 | DR9: 0.2746753682 | DS9: 2 | DT9: 10 | DU9: 5146 | DV9: Mostly complete in SAP, Waiting on Fired Duty UoM | DX9: Burner Sys | DY9: 0.254 | DZ9: 0 | EA9: 0 | EB9: 0.2761703604 | EC9: 0 | ED9: 0 | EE9: 5124 | EF9: Mostly complete in SAP, Waiting on Fired Duty UoM | EH9: Burner Sys | EI9: 0.254 | EJ9: 0 | EK9: 0 | EL9: 0.266 | EM9: 0 | EN9: 0 | EO9: 5118 | EP9: Not Completed is SAP, Waiting on Fired Duty UoM
A10: Burner | B10: BURNER | H10: Burner | I10: n/a | J10: 0 | K10: 0 | L10: 0.5852272727 | M10: 0 | N10: 0 | O10: 22 | R10: Burner | S10: n/a | T10: 0 | U10: 0 | V10: 0.556640625 | W10: 0 | X10: 0 | Y10: 32 | AB10: Burner | AC10: n/a | AD10: 0 | AE10: 0 | AF10: 0.556640625 | AG10: 0 | AH10: 0 | AI10: 32 | AL10: Burner | AM10: n/a | AN10: 0 | AO10: 0 | AP10: 0.556640625 | AQ10: 0 | AR10: 0 | AS10: 32 | AV10: Burner | AW10: n/a | AX10: 0 | AY10: 0 | AZ10: 0.556640625 | BA10: 0 | BB10: 0 | BC10: 32 | BF10: Burner | BG10: n/a | BH10: 0 | BI10: 0 | BJ10: 0.556640625 | BK10: 0 | BL10: 0 | BM10: 32 | BP10: Burner | BQ10: n/a | BR10: 0 | BS10: 0 | BT10: 0.494140625 | BU10: 0 | BV10: 0 | BW10: 32 | BZ10: Burner | CA10: n/a | CB10: 0 | CC10: 0 | CD10: 0.494140625 | CE10: 0 | CF10: 0 | CG10: 32 | CJ10: Burner | CK10: n/a | CL10: 0 | CM10: 0 | CN10: 0.462890625 | CO10: 0 | CP10: 0 | CQ10: 0 | CT10: Burner | CU10: n/a | CV10: 0 | CW10: 0 | CX10: 0.462890625 | CY10: 0 | CZ10: 0 | DA10: 0 | DD10: Burner | DE10: n/a | DF10: 0 | DG10: 0.472 | DH10: 0.463 | DI10: 0 | DJ10: 29 | DK10: 32 | DN10: Burner | DO10: n/a | DP10: 0 | DQ10: 0.4375 | DR10: 0.4276315789 | DS10: 0 | DT10: 16 | DU10: 19 | DX10: Burner | DY10: n/a | DZ10: 0 | EA10: 0 | EB10: 0.375 | EC10: 0 | ED10: 0 | EE10: 3 | EH10: Burner | EI10: New | EJ10: 0 | EK10: 0 | EL10: 0.412 | EM10: 0 | EN10: 0 | EO10: 1
A11: Boiler-PFT | B11: BOILER_POWER_FT | H11: Boiler-PFT | I11: 0.256 | J11: 0 | K11: 0 | L11: 0.3359223301 | M11: 0 | N11: 0 | O11: 9 | R11: Boiler-PFT | S11: 0.256 | T11: 0 | U11: 0 | V11: 0.3633916555 | W11: 0 | X11: 0 | Y11: 13 | AB11: Boiler-PFT | AC11: 0.256 | AD11: 0 | AE11: 0 | AF11: 0.3633916555 | AG11: 0 | AH11: 0 | AI11: 13 | AL11: Boiler-PFT | AM11: 0.256 | AN11: 0 | AO11: 0 | AP11: 0.35 | AQ11: 0 | AR11: 0 | AS11: 14 | AV11: Boiler-PFT | AW11: 0.256 | AX11: 0 | AY11: 0 | AZ11: 0.3386327504 | BA11: 0 | BB11: 0 | BC11: 11 | BF11: Boiler-PFT | BG11: 0.256 | BH11: 0 | BI11: 0 | BJ11: 0.3386327504 | BK11: 0 | BL11: 0 | BM11: 11 | BP11: Boiler-PFT | BQ11: 0.256 | BR11: 0 | BS11: 0 | BT11: 0.3290937997 | BU11: 0 | BV11: 0 | BW11: 11 | BZ11: Boiler-PFT | CA11: 0.256 | CB11: 0 | CC11: 0 | CD11: 0.3275039746 | CE11: 0 | CF11: 0 | CG11: 11 | CH11: Mostly complete in SAP, Waiting on Fired Duty UoM | CJ11: Boiler-PFT | CK11: 0.256 | CL11: 0 | CM11: 0 | CN11: 0.3275039746 | CO11: 0 | CP11: 0 | CQ11: 0 | CR11: Mostly complete in SAP, Waiting on Fired Duty UoM | CT11: Boiler-PFT | CU11: 0.256 | CV11: 0 | CW11: 0 | CX11: 0.3275039746 | CY11: 0 | CZ11: 0 | DA11: 0 | DB11: Mostly complete in SAP, Waiting on Fired Duty UoM | DD11: Boiler-PFT | DE11: 0.256 | DF11: 0 | DG11: 0 | DH11: 0.32 | DI11: 0 | DJ11: 0 | DK11: 11 | DL11: Mostly complete in SAP, Waiting on Fired Duty UoM | DN11: Boiler-PFT | DO11: 0.256 | DP11: 0 | DQ11: 0 | DR11: 0.306836248 | DS11: 0 | DT11: 0 | DU11: 11 | DV11: Mostly complete in SAP, Waiting on Fired Duty UoM | DX11: Boiler-PFT | DY11: 0.256 | DZ11: 0 | EA11: 0 | EB11: 0.319554849 | EC11: 0 | ED11: 0 | EE11: 11 | EF11: Mostly complete in SAP, Waiting on Fired Duty UoM | EH11: Boiler-PFT | EI11: 0.256 | EJ11: 0 | EK11: 0 | EL11: 0.319 | EM11: 0 | EN11: 0 | EO11: 9 | EP11: Not Completed is SAP, Waiting on Fired Duty UoM
A12: Heater-IDF | B12: HEATER_INDIR_FIRED | H12: Heater-IDF | I12: 0.261 | J12: 0.5945945946 | K12: =SUMIFS(O$26:O$105, H$26:H$105,$B12, J$26:J$105,"Y") -> 0.3684210526 | L12: 0.357531881 | M12: 1 | N12: 1 | O12: 404 | R12: Heater-IDF | S12: 0.261 | T12: 0.5945945946 | U12: =SUMIFS(Y$26:Y$105, R$26:R$105,$B12, T$26:T$105,"Y") -> 0.3684210526 | V12: 0.3402924358 | W12: 1 | X12: 1 | Y12: 701 | AB12: Heater-IDF | AC12: 0.261 | AD12: 0.5945945946 | AE12: 0.3684210526 | AF12: 0.3415875689 | AG12: 1 | AH12: 1 | AI12: 703 | AL12: Heater-IDF | AM12: 0.261 | AN12: 0.5945945946 | AO12: 0.3684210526 | AP12: 0.3415171785 | AQ12: 1 | AR12: 1 | AS12: 708 | AV12: Heater-IDF | AW12: 0.261 | AX12: 0.5945945946 | AY12: 0 | AZ12: 0.3418855321 | BA12: 1 | BB12: 1 | BC12: 710 | BF12: Heater-IDF | BG12: 0.261 | BH12: 0.6216216216 | BI12: 0 | BJ12: 0.3492021377 | BK12: 1 | BL12: 0 | BM12: 710 | BP12: Heater-IDF | BQ12: 0.261 | BR12: 0.6216216216 | BS12: 0 | BT12: 0.3492021377 | BU12: 1 | BV12: 0 | BW12: 710 | BZ12: Heater-IDF | CA12: 0.261 | CB12: 0.6216216216 | CC12: 0 | CD12: 0.3498125937 | CE12: 1 | CF12: 0 | CG12: 718 | CH12: Mostly complete in SAP, Waiting on Fired Duty UoM | CJ12: Heater-IDF | CK12: 0.261 | CL12: 0.6216216216 | CM12: 0 | CN12: 0.348988006 | CO12: 1 | CP12: 0 | CQ12: 0 | CR12: Mostly complete in SAP, Waiting on Fired Duty UoM | CT12: Heater-IDF | CU12: 0.261 | CV12: 0.6216216216 | CW12: 0 | CX12: 0.3491141879 | CY12: 1 | CZ12: 0 | DA12: 0 | DB12: Mostly complete in SAP, Waiting on Fired Duty UoM | DD12: Heater-IDF | DE12: 0.261 | DF12: 0 | DG12: 0.351 | DH12: 0.306 | DI12: 0 | DJ12: 1 | DK12: 597 | DL12: Mostly complete in SAP, Waiting on Fired Duty UoM | DN12: Heater-IDF | DO12: 0.261 | DP12: 0 | DQ12: 0.3513513514 | DR12: 0.3031362007 | DS12: 0 | DT12: 1 | DU12: 601 | DV12: Mostly complete in SAP, Waiting on Fired Duty UoM | DX12: Heater-IDF | DY12: 0.261 | DZ12: 0 | EA12: 0 | EB12: 0.3123316703 | EC12: 0 | ED12: 0 | EE12: 610 | EF12: Mostly complete in SAP, Waiting on Fired Duty UoM | EH12: Heater-IDF | EI12: 0.261 | EJ12: 0 | EK12: 0 | EL12: 0.303 | EM12: 0 | EN12: 0 | EO12: 614 | EP12: Not Completed is SAP, Waiting on Fired Duty UoM
A13: Firetube | B13: FIRETUBE | H13: Firetube | I13: n/a | J13: 0.5925925926 | K13: 0 | L13: 0.3261538462 | M13: 2 | N13: 0 | O13: 12 | R13: Firetube | S13: n/a | T13: 0.5925925926 | U13: =SUMIFS(Y$26:Y$105, R$26:R$105,$B13, T$26:T$105,"Y") -> 0 | V13: 0.315270936 | W13: 2 | X13: 0 | Y13: 15 | AB13: Firetube | AC13: n/a | AD13: 0.5925925926 | AE13: 0 | AF13: 0.3193277311 | AG13: 2 | AH13: 0 | AI13: 22 | AL13: Firetube | AM13: n/a | AN13: 0.5925925926 | AO13: 0 | AP13: 0.3051519155 | AQ13: 2 | AR13: 0 | AS13: 28 | AV13: Firetube | AW13: n/a | AX13: 0.5925925926 | AY13: 0 | AZ13: 0.3051519155 | BA13: 2 | BB13: 0 | BC13: 28 | BF13: Firetube | BG13: n/a | BH13: 0.5925925926 | BI13: 0 | BJ13: 0.3051519155 | BK13: 2 | BL13: 0 | BM13: 28 | BP13: Firetube | BQ13: n/a | BR13: 0.5925925926 | BS13: 0 | BT13: 0.3051519155 | BU13: 2 | BV13: 0 | BW13: 28 | BZ13: Firetube | CA13: n/a | CB13: 0.5925925926 | CC13: 0 | CD13: 0.3051519155 | CE13: 2 | CF13: 0 | CG13: 28 | CJ13: Firetube | CK13: n/a | CL13: 0.5925925926 | CM13: 0 | CN13: 0.3001158749 | CO13: 2 | CP13: 0 | CQ13: 0 | CT13: Firetube | CU13: n/a | CV13: 0.5925925926 | CW13: 0 | CX13: 0.300204918 | CY13: 2 | CZ13: 0 | DA13: 0 | DD13: Firetube | DE13: n/a | DF13: 0.593 | DG13: 0.426 | DH13: 0.287 | DI13: 1 | DJ13: 2 | DK13: 32 | DN13: Firetube | DO13: n/a | DP13: 0.6071428571 | DQ13: 0.4363636364 | DR13: 0.2885624344 | DS13: 1 | DT13: 2 | DU13: 35 | DX13: Firetube | DY13: n/a | DZ13: 0 | EA13: 0 | EB13: 0.2758985201 | EC13: 0 | ED13: 0 | EE13: 35 | EH13: Firetube | EI13: New | EJ13: 0 | EK13: 0 | EL13: 0.261 | EM13: 0 | EN13: 0 | EO13: 34
A14: Process Coil | B14: PROCESS_COIL | H14: Proc Coil | I14: n/a | J14: 0.90625 | K14: 0.6666666667 | L14: 0.6582172033 | M14: 1 | N14: 1 | O14: 248 | R14: Proc Coil | S14: n/a | T14: 0.90625 | U14: 0.6666666667 | V14: 0.6670988487 | W14: 1 | X14: 1 | Y14: 574 | AB14: Proc Coil | AC14: n/a | AD14: 0.90625 | AE14: 0.6666666667 | AF14: 0.6672685066 | AG14: 1 | AH14: 1 | AI14: 577 | AL14: Proc Coil | AM14: n/a | AN14: 0.90625 | AO14: 0.6666666667 | AP14: 0.6672685066 | AQ14: 1 | AR14: 1 | AS14: 577 | AV14: Proc Coil | AW14: n/a | AX14: 0.90625 | AY14: 0.6666666667 | AZ14: 0.6676312526 | BA14: 1 | BB14: 1 | BC14: 577 | BF14: Proc Coil | BG14: n/a | BH14: 0.90625 | BI14: 0.5571428571 | BJ14: 0.6668557578 | BK14: 1 | BL14: 2 | BM14: 578 | BP14: Proc Coil | BQ14: n/a | BR14: 0.90625 | BS14: 0.5571428571 | BT14: 0.6668039539 | BU14: 1 | BV14: 2 | BW14: 579 | BZ14: Proc Coil | CA14: n/a | CB14: 0.90625 | CC14: 0.5428571429 | CD14: 0.6667009303 | CE14: 1 | CF14: 2 | CG14: 580 | CJ14: Proc Coil | CK14: n/a | CL14: 0.90625 | CM14: 0.5 | CN14: 0.641180105 | CO14: 1 | CP14: 2 | CQ14: 0 | CT14: Proc Coil | CU14: n/a | CV14: 0.90625 | CW14: 0 | CX14: 0.6415728015 | CY14: 1 | CZ14: 0 | DA14: 0 | DD14: Proc Coil | DE14: n/a | DF14: 0 | DG14: 0.648 | DH14: 0.648 | DI14: 0 | DJ14: 466 | DK14: 479 | DN14: Proc Coil | DO14: n/a | DP14: 0 | DQ14: 0.6053521127 | DR14: 0.6046197488 | DS14: 0 | DT14: 212 | DU14: 221 | DX14: Proc Coil | DY14: n/a | DZ14: 0 | EA14: 0 | EB14: 0.6205560236 | EC14: 0 | ED14: 0 | EE14: 177 | EH14: Proc Coil | EI14: New | EJ14: 0 | EK14: 0 | EL14: 0.565 | EM14: 0 | EN14: 0 | EO14: 48
A15: Recip Engine | B15: PM_RECIPROCATING | H15: Recip Eng | I15: 0.398 | J15: 0 | K15: 0.3888888889 | L15: 0.3520961819 | M15: 0 | N15: 3 | O15: 5893 | P15: Mostly complete in SAP, Waiting on Fuel Consump UoMs | R15: Recip Eng | S15: 0.398 | T15: 0 | U15: 0.3888888889 | V15: 0.3517235268 | W15: 0 | X15: 3 | Y15: 6105 | Z15: Mostly complete in SAP, Waiting on Fuel Consump UoMs | AB15: Recip Eng | AC15: 0.398 | AD15: 0 | AE15: 0.3888888889 | AF15: 0.349983716 | AG15: 0 | AH15: 3 | AI15: 6203 | AJ15: Mostly complete in SAP, Waiting on Fuel Consump UoMs | AL15: Recip Eng | AM15: 0.398 | AN15: 0 | AO15: 0.3888888889 | AP15: 0.3495479262 | AQ15: 0 | AR15: 3 | AS15: 6247 | AT15: Mostly complete in SAP, Waiting on Fuel Consump UoMs | AV15: Recip Eng | AW15: 0.398 | AX15: 0 | AY15: 0.4149659864 | AZ15: 0.3702322262 | BA15: 0 | BB15: 3 | BC15: 6268 | BD15: Mostly complete in SAP, Waiting on Fuel Consump UoMs | BF15: Recip Eng | BG15: 0.398 | BH15: 0 | BI15: 0.4217687075 | BJ15: 0.3763644223 | BK15: 0 | BL15: 3 | BM15: 6269 | BN15: Mostly complete in SAP, Waiting on Fuel Consump UoMs | BP15: Recip Eng | BQ15: 0.398 | BR15: 0 | BS15: 0.387755102 | BT15: 0.3567400273 | BU15: 0 | BV15: 1 | BW15: 6273 | BX15: Mostly complete in SAP, Waiting on Fuel Consump UoMs | BZ15: Recip Eng | CA15: 0.398 | CB15: 0 | CC15: 0.387755102 | CD15: 0.3567400273 | CE15: 0 | CF15: 1 | CG15: 6273 | CH15: Mostly complete in SAP, Waiting on Fuel Consump UoMs | CJ15: Recip Eng | CK15: 0.398 | CL15: 0 | CM15: 0.2857142857 | CN15: 0.2928069374 | CO15: 0 | CP15: 1 | CQ15: 0 | CR15: Mostly complete in SAP, Waiting on Fuel Consump UoMs | CT15: Recip Eng | CU15: 0.398 | CV15: 0 | CW15: 0.4166666667 | CX15: 0.3352614927 | CY15: 0 | CZ15: 1 | DA15: 0 | DB15: Mostly complete in SAP, Waiting on Fuel Consump UoMs | DD15: Recip Eng | DE15: 0.398 | DF15: 0 | DG15: 0.351 | DH15: 0.335 | DI15: 0 | DJ15: 11 | DK15: 6440 | DL15: Mostly complete in SAP, Waiting on Fuel Consump UoMs | DN15: Recip Eng | DO15: 0.398 | DP15: 0 | DQ15: 0.3949044586 | DR15: 0.4003492848 | DS15: 0 | DT15: 8 | DU15: 6446 | DV15: Mostly complete in SAP, Waiting on Fuel Consump UoMs | DX15: Recip Eng | DY15: 0.398 | DZ15: 0 | EA15: 0 | EB15: 0.3981738478 | EC15: 0 | ED15: 0 | EE15: 6457 | EF15: Mostly complete in SAP, Waiting on New UoM | EH15: Recip Eng | EI15: 0.398 | EJ15: 0 | EK15: 0 | EL15: 0.398 | EM15: 0 | EN15: 0 | EO15: 6462 | EP15: Not Completed is SAP
A16: Boiler-PWT | B16: BOILER_POWER_WT | H16: Boiler-PWT | I16: 0.242 | J16: 0 | K16: 0.5280373832 | L16: 0.5060655738 | M16: 0 | N16: 4 | O16: 108 | R16: Boiler-PWT | S16: 0.242 | T16: 0 | U16: 0 | V16: 0.5033878698 | W16: 0 | X16: 0 | Y16: 107 | AB16: Boiler-PWT | AC16: 0.242 | AD16: 0 | AE16: 0 | AF16: 0.4987605354 | AG16: 0 | AH16: 0 | AI16: 107 | AL16: Boiler-PWT | AM16: 0.242 | AN16: 0 | AO16: 0 | AP16: 0.4863658899 | AQ16: 0 | AR16: 0 | AS16: 107 | AV16: Boiler-PWT | AW16: 0.242 | AX16: 0 | AY16: 0 | AZ16: 0.4858701041 | BA16: 0 | BB16: 0 | BC16: 107 | BF16: Boiler-PWT | BG16: 0.242 | BH16: 0 | BI16: 0 | BJ16: 0.4778645833 | BK16: 0 | BL16: 0 | BM16: 107 | BP16: Boiler-PWT | BQ16: 0.242 | BR16: 0 | BS16: 0 | BT16: 0.4790039062 | BU16: 0 | BV16: 0 | BW16: 107 | BZ16: Boiler-PWT | CA16: 0.242 | CB16: 0 | CC16: 0 | CD16: 0.4783528646 | CE16: 0 | CF16: 0 | CG16: 107 | CH16: Mostly complete in SAP, Waiting on Fired Duty UoM | CJ16: Boiler-PWT | CK16: 0.242 | CL16: 0 | CM16: 0 | CN16: 0.4780273438 | CO16: 0 | CP16: 0 | CQ16: 0 | CR16: Mostly complete in SAP, Waiting on Fired Duty UoM | CT16: Boiler-PWT | CU16: 0.242 | CV16: 0 | CW16: 0 | CX16: 0.4792069632 | CY16: 0 | CZ16: 0 | DA16: 0 | DB16: Mostly complete in SAP, Waiting on Fired Duty UoM | DD16: Boiler-PWT | DE16: 0.242 | DF16: 0 | DG16: 0 | DH16: 0.479 | DI16: 0 | DJ16: 0 | DK16: 108 | DL16: Mostly complete in SAP, Waiting on Fired Duty UoM | DN16: Boiler-PWT | DO16: 0.242 | DP16: 0 | DQ16: 0 | DR16: 0.2917079617 | DS16: 0 | DT16: 0 | DU16: 106 | DV16: Mostly complete in SAP, Waiting on Fired Duty UoM | DX16: Boiler-PWT | DY16: 0.242 | DZ16: 0 | EA16: 0 | EB16: 0.2481874895 | EC16: 0 | ED16: 0 | EE16: 105 | EF16: Mostly complete in SAP, Waiting on Fired Duty UoM | EH16: Boiler-PWT | EI16: 0.242 | EJ16: 0 | EK16: 0 | EL16: 0.242 | EM16: 0 | EN16: 0 | EO16: 106 | EP16: Not Completed is SAP
A17: Gas Turbine | B17: PM_GAS_TURBINE | H17: Gas Turb | I17: 0.2459259259 | J17: 0 | K17: 0 | L17: 0.290237467 | M17: 0 | N17: 0 | O17: 13 | P17: Mostly complete in SAP, Waiting on Heat Rate UoM | R17: Gas Turb | S17: 0.2459259259 | T17: 0 | U17: 0 | V17: 0.3198804185 | W17: 0 | X17: 0 | Y17: 23 | Z17: Mostly complete in SAP, Waiting on Heat Rate UoM | AB17: Gas Turb | AC17: 0.2459259259 | AD17: 0 | AE17: 0 | AF17: 0.3198804185 | AG17: 0 | AH17: 0 | AI17: 23 | AJ17: Mostly complete in SAP, Waiting on Heat Rate UoM | AL17: Gas Turb | AM17: 0.2459259259 | AN17: 0 | AO17: 0 | AP17: 0.3198804185 | AQ17: 0 | AR17: 0 | AS17: 23 | AT17: Mostly complete in SAP, Waiting on Heat Rate UoM | AV17: Gas Turb | AW17: 0.2459259259 | AX17: 0 | AY17: 0 | AZ17: 0.3198804185 | BA17: 0 | BB17: 0 | BC17: 23 | BD17: Mostly complete in SAP, Waiting on Heat Rate UoM | BF17: Gas Turb | BG17: 0.2459259259 | BH17: 0 | BI17: 0 | BJ17: 0.3065902579 | BK17: 0 | BL17: 0 | BM17: 23 | BN17: Mostly complete in SAP, Waiting on Heat Rate UoM | BP17: Gas Turb | BQ17: 0.2459259259 | BR17: 0 | BS17: 0 | BT17: 0.3028571429 | BU17: 0 | BV17: 0 | BW17: 23 | BX17: Mostly complete in SAP, Waiting on Heat Rate UoM | BZ17: Gas Turb | CA17: 0.2459259259 | CB17: 0 | CC17: 0 | CD17: 0.3028571429 | CE17: 0 | CF17: 0 | CG17: 23 | CH17: Mostly complete in SAP, Waiting on Heat Rate UoM | CJ17: Gas Turb | CK17: 0.2459259259 | CL17: 0 | CM17: 0 | CN17: 0.3028571429 | CO17: 0 | CP17: 0 | CQ17: 0 | CR17: Mostly complete in SAP, Waiting on Heat Rate UoM | CT17: Gas Turb | CU17: 0.2459259259 | CV17: 0 | CW17: 0 | CX17: 0.3028571429 | CY17: 0 | CZ17: 0 | DA17: 0 | DB17: Mostly complete in SAP, Waiting on Heat Rate UoM | DD17: Gas Turb | DE17: 0.2459259259 | DF17: 0 | DG17: 0 | DH17: 0.303 | DI17: 0 | DJ17: 0 | DK17: 23 | DL17: Mostly complete in SAP, Waiting on Heat Rate UoM | DN17: Gas Turb | DO17: 0.2459259259 | DP17: 0 | DQ17: 0 | DR17: 0.2459259259 | DS17: 0 | DT17: 0 | DU17: 23 | DV17: Mostly complete in SAP, Waiting on Heat Rate UoM | DX17: Gas Turb | DY17: 0.2459259259 | DZ17: 0 | EA17: 0 | EB17: 0.2459259259 | EC17: 0 | ED17: 0 | EE17: 23 | EF17: SAP set up in Progress | EH17: Gas Turb | EJ17: 0 | EK17: 0 | EL17: 0 | EM17: 0 | EN17: 0 | EO17: 0
A18: Boiler-Htng | B18: BOILER_HEATING | H18: Boiler-Htng | I18: 0.3273601399 | J18: 0 | K18: 0 | L18: 0.3579978237 | M18: 0 | N18: 0 | O18: 72 | R18: Boiler-Htng | S18: 0.3273601399 | T18: 0 | U18: 0 | V18: 0.3700075358 | W18: 0 | X18: 0 | Y18: 69 | AB18: Boiler-Htng | AC18: 0.3273601399 | AD18: 0 | AE18: 0 | AF18: 0.3381607531 | AG18: 0 | AH18: 0 | AI18: 69 | AL18: Boiler-Htng | AM18: 0.3273601399 | AN18: 0 | AO18: 0 | AP18: 0.3795133438 | AQ18: 0 | AR18: 0 | AS18: 68 | AV18: Boiler-Htng | AW18: 0.3273601399 | AX18: 0 | AY18: 0 | AZ18: 0.3872466216 | BA18: 0 | BB18: 0 | BC18: 64 | BF18: Boiler-Htng | BG18: 0.3273601399 | BH18: 0 | BI18: 0 | BJ18: 0.3718512595 | BK18: 0 | BL18: 0 | BM18: 64 | BP18: Boiler-Htng | BQ18: 0.3273601399 | BR18: 0 | BS18: 0 | BT18: 0.3714514194 | BU18: 0 | BV18: 0 | BW18: 64 | BZ18: Boiler-Htng | CA18: 0.3273601399 | CB18: 0 | CC18: 0 | CD18: 0.3704 | CE18: 0 | CF18: 0 | CG18: 64 | CH18: Mostly complete in SAP, Waiting on Fired Duty UoM | CJ18: Boiler-Htng | CK18: 0.3273601399 | CL18: 0 | CM18: 0 | CN18: 0.3696 | CO18: 0 | CP18: 0 | CQ18: 0 | CR18: Mostly complete in SAP, Waiting on Fired Duty UoM | CT18: Boiler-Htng | CU18: 0.3273601399 | CV18: 0 | CW18: 0 | CX18: 0.3541322314 | CY18: 0 | CZ18: 0 | DA18: 0 | DB18: Mostly complete in SAP, Waiting on Fired Duty UoM | DD18: Boiler-Htng | DE18: 0.3273601399 | DF18: 0 | DG18: 0 | DH18: 0.355 | DI18: 0 | DJ18: 0 | DK18: 60 | DL18: Mostly complete in SAP, Waiting on Fired Duty UoM | DN18: Boiler-Htng | DO18: 0.3273601399 | DP18: 0 | DQ18: 0 | DR18: 0.3273601399 | DS18: 0 | DT18: 0 | DU18: 62 | DV18: SAP set up not started
A19: Heater-DF | B19: HEATER_DIR_FIRED | H19: Heater-DF | I19: 0.2656229443 | J19: 0 | K19: 0.4651162791 | L19: 0.2771411339 | M19: 0 | N19: 3 | O19: 162 | R19: Heater-DF | S19: 0.2656229443 | T19: 0 | U19: 0.4651162791 | V19: 0.2853750524 | W19: 0 | X19: 3 | Y19: 175 | AB19: Heater-DF | AC19: 0.2656229443 | AD19: 0 | AE19: 0.4651162791 | AF19: 0.2840672316 | AG19: 0 | AH19: 3 | AI19: 176 | AL19: Heater-DF | AM19: 0.2656229443 | AN19: 0 | AO19: 0.4651162791 | AP19: 0.2839283234 | AQ19: 0 | AR19: 3 | AS19: 176 | AV19: Heater-DF | AW19: 0.2656229443 | AX19: 0 | AY19: 0.4651162791 | AZ19: 0.2829188748 | BA19: 0 | BB19: 3 | BC19: 180 | BF19: Heater-DF | BG19: 0.2656229443 | BH19: 0 | BI19: 0.4444444444 | BJ19: 0.2668332457 | BK19: 0 | BL19: 1 | BM19: 178 | BP19: Heater-DF | BQ19: 0.2656229443 | BR19: 0 | BS19: 0.4444444444 | BT19: 0.2666753858 | BU19: 0 | BV19: 1 | BW19: 179 | BZ19: Heater-DF | CA19: 0.2656229443 | CB19: 0 | CC19: 0 | CD19: 0.2656229443 | CE19: 0 | CF19: 0 | CG19: 178 | CH19: Mostly complete in SAP, Waiting on Fired Duty UoM
A20: Exchanger, S&T | B20: HEAT_EX_SHELL_TUBE | H20: Exchanger, S&T | I20: 0.287579519 | J20: 0 | K20: 0.4509981851 | L20: 0.2701584256 | M20: 0 | N20: 19 | O20: 2397 | P20: Mostly complete in SAP, Waiting on new pressure UoM | R20: Exchanger, S&T | S20: 0.287579519 | T20: 0 | U20: 0.4423076923 | V20: 0.2883937495 | W20: 0 | X20: 17 | Y20: 2264 | Z20: Mostly complete in SAP, Waiting on new pressure UoM | AB20: Exchanger, S&T | AC20: 0.287579519 | AD20: 0 | AE20: 0.3418803419 | AF20: 0.2878719602 | AG20: 0 | AH20: 2 | AI20: 2258 | AJ20: Mostly complete in SAP, Waiting on new pressure UoM | AL20: Exchanger, S&T | AM20: 0.287579519 | AN20: 0 | AO20: 0.2586206897 | AP20: 0.2872738567 | AQ20: 0 | AR20: 1 | AS20: 2259 | AT20: Mostly complete in SAP, Waiting on new pressure UoM | AV20: Exchanger, S&T | AW20: 0.287579519 | AX20: 0 | AY20: 0.275862069 | AZ20: 0.287579519 | BA20: 0 | BB20: 1 | BC20: 2261 | BD20: Mostly complete in SAP, Waiting on new pressure UoM | BF20: Exchanger, S&T | BN20: Mostly complete in SAP, Waiting on new UoM
H21: Recip. Compr. | I21: 0.1493704738 | P21: SAP Setup Started | R21: Recip. Compr. | S21: 0.1493704738 | Z21: SAP Setup Started | AB21: Recip. Compr. | AC21: 0.1493704738 | AJ21: SAP Setup Started | AL21: Recip. Compr. | AM21: 0.1493704738
A22: Change from Prior
B23: Non | D23: Data | K23: Non | M23: Data | N23: # of | U23: Non | W23: Data | X23: # of | AE23: Non | AG23: Data | AH23: # of | AO23: Non | AQ23: Data | AR23: # of | AY23: Non | BA23: Data | BB23: # of | BI23: Non | BK23: Data | BL23: # of | BS23: Non | BU23: Data | BV23: # of | CC23: Non | CE23: Data | CF23: # of | CM23: Non | CO23: Data | CP23: # of | CW23: Non | CY23: Data | CZ23: # of | DI23: Data | DJ23: # of | DS23: Data | DT23: # of | EC23: Data | ED23: # of | EM23: Data | EN23: # of
B24: Comply | C24: Comply | D24: Points | E24: Equip | F24: Comply % | I24: Cleansed | J24: New | K24: Comply | L24: Comply | M24: Points | N24: Equip | O24: Comply % | S24: Cleansed | T24: New | U24: Comply | V24: Comply | W24: Points | X24: Equip | Y24: Comply % | AC24: Cleansed | AD24: New | AE24: Comply | AF24: Comply | AG24: Points | AH24: Equip | AI24: Comply % | AM24: Cleansed | AN24: New | AO24: Comply | AP24: Comply | AQ24: Points | AR24: Equip | AS24: Comply % | AW24: Cleansed | AX24: New | AY24: Comply | AZ24: Comply | BA24: Points | BB24: Equip | BC24: Comply % | BG24: Cleansed | BH24: New | BI24: Comply | BJ24: Comply | BK24: Points | BL24: Equip | BM24: Comply % | BQ24: Cleansed | BR24: New | BS24: Comply | BT24: Comply | BU24: Points | BV24: Equip | BW24: Comply % | CA24: Cleansed | CB24: New | CC24: Comply | CD24: Comply | CE24: Points | CF24: Equip | CG24: Comply % | CK24: Cleansed | CL24: New | CM24: Comply | CN24: Comply | CO24: Points | CP24: Equip | CQ24: Comply % | CU24: Cleansed | CV24: New | CW24: Comply | CX24: Comply | CY24: Points | CZ24: Equip | DA24: Comply % | DE24: Cleansed | DF24: New | DG24: Non Comply | DH24: Comply | DI24: Points | DJ24: Equip | DK24: Compl | DO24: Cleansed | DP24: New | DQ24: Non Comply | DR24: Comply | DS24: Points | DT24: Equip | DU24: Compl | DY24: Cleansed | DZ24: New | EA24: Non Comply | EB24: Comply | EC24: Points | ED24: Equip | EE24: Compl | EI24: Cleansed | EJ24: New | EK24: Non Comply | EL24: Comply | EM24: Points | EN24: Equip | EO24: Compl
A26: All | B26: =OFFSET(B26,0,9,1,1)-OFFSET(B26,0,19,1,1) -> 0 | C26: =OFFSET(C26,0,9,1,1)-OFFSET(C26,0,19,1,1) -> -159 | D26: -159 | E26: -3 | F26: =IFERROR(OFFSET(F26,0,9,1,1)-OFFSET(F26,0,19,1,1),"n/a") -> -0.001002332164 | H26: KNOCK_OUT_FW | I26: All | J26: All | K26: =SUMIFS(PvtByClassCurr!$O$9:$O$980, PvtByClassCurr!$L$9:$L$980,$H26, PvtByClassCurr!$M$9:$M$980,"Total") -> 41 | L26: =SUMIFS(PvtByClassCurr!$P$9:$P$980, PvtByClassCurr!$L$9:$L$980,$H26, PvtByClassCurr!$M$9:$M$980,"Total") -> 2431 | M26: =SUM(K26:L26) -> 2472 | N26: =SUMIFS(PvtByClassCurr!$N$9:$N$980, PvtByClassCurr!$L$9:$L$980,$H26, PvtByClassCurr!$M$9:$M$980,"Total") -> 45 | O26: =IF(M26=0,"n/a",L26/M26) -> 0.9834142395 | R26: KNOCK_OUT_FW | S26: All | T26: All | U26: 41 | V26: 2590 | W26: 2631 | X26: 48 | Y26: 0.9844165716 | AB26: KNOCK_OUT_FW | AC26: All | AD26: All | AE26: 6 | AF26: 2833 | AG26: 2839 | AH26: 52 | AI26: 0.9978865798 | AL26: KNOCK_OUT_FW | AM26: All | AN26: All | AO26: 6 | AP26: 2833 | AQ26: 2839 | AR26: 52 | AS26: 0.9978865798 | AV26: KNOCK_OUT_FW | AW26: All | AX26: All | AY26: 3 | AZ26: 2780 | BA26: 2783 | BB26: 52 | BC26: 0.9989220266 | BF26: KNOCK_OUT_FW | BG26: All | BH26: All | BI26: 6 | BJ26: 2885 | BK26: 2891 | BL26: 53 | BM26: 0.9979245936 | BP26: KNOCK_OUT_FW | BQ26: All | BR26: All | BS26: 6 | BT26: 2885 | BU26: 2891 | BV26: 53 | BW26: 0.9979245936 | BZ26: KNOCK_OUT_FW | CA26: All | CB26: All | CC26: 6 | CD26: 2885 | CE26: 2891 | CF26: 53 | CG26: 0.9979245936 | CJ26: KNOCK_OUT_FW | CK26: All | CL26: All | CM26: 7 | CN26: 3149 | CO26: 3156 | CP26: 58 | CQ26: 0.9977820025 | CT26: KNOCK_OUT_FW | CU26: All | CV26: All | CW26: 26 | CX26: 3293 | CY26: 3319 | CZ26: 61 | DA26: 0.9921663152 | DD26: FWKO | DE26: All | DF26: All | DG26: 67 | DH26: 3302 | DI26: 3369 | DJ26: 62 | DK26: 0.98 | DN26: FWKO | DO26: All | DP26: All | DQ26: 47 | DR26: 3430 | DS26: 3477 | DT26: 64 | DU26: 0.986 | DX26: FWKO | DY26: All | DZ26: All | EA26: 47 | EB26: 3430 | EC26: 3477 | ED26: 64 | EE26: 0.9864825999 | EH26: FWKO | EI26: All | EJ26: All | EK26: 7 | EL26: 3362 | EM26: 3369 | EN26: 62 | EO26: 0.998
A27: Cleansed | B27: =OFFSET(B27,0,9,1,1)-OFFSET(B27,0,19,1,1) -> 0 | C27: -159 | D27: -159 | E27: -3 | F27: =IFERROR(OFFSET(F27,0,9,1,1)-OFFSET(F27,0,19,1,1),"n/a") -> -9.721694583e-05 | H27: =+H26 -> KNOCK_OUT_FW | I27: Y | K27: =SUMIFS(PvtByClassCurr!$R$9:$R$980, PvtByClassCurr!$L$9:$L$980,$H27, PvtByClassCurr!$M$9:$M$980,"Total") -> 3 | L27: =SUMIFS(PvtByClassCurr!$S$9:$S$980, PvtByClassCurr!$L$9:$L$980,$H27, PvtByClassCurr!$M$9:$M$980,"Total") -> 2134 | M27: =SUM(K27:L27) -> 2137 | N27: =SUMIFS(PvtByClassCurr!$Q$9:$Q$980, PvtByClassCurr!$L$9:$L$980,$H27, PvtByClassCurr!$M$9:$M$980,"Total") -> 39 | O27: =IF(M27=0,"n/a",L27/M27) -> 0.9985961628 | R27: =+R26 -> KNOCK_OUT_FW | S27: Y | U27: 3 | V27: 2293 | W27: 2296 | X27: 42 | Y27: 0.9986933798 | AB27: =+AB26 -> KNOCK_OUT_FW | AC27: Y | AE27: 3 | AF27: 2612 | AG27: 2615 | AH27: 48 | AI27: 0.9988527725 | AL27: =+AL26 -> KNOCK_OUT_FW | AM27: Y | AO27: 3 | AP27: 2612 | AQ27: 2615 | AR27: 48 | AS27: 0.9988527725 | AV27: KNOCK_OUT_FW | AW27: Y | AY27: 3 | AZ27: 2612 | BA27: 2615 | BB27: 48 | BC27: 0.9988527725 | BF27: KNOCK_OUT_FW | BG27: Y | BI27: 3 | BJ27: 2608 | BK27: 2611 | BL27: 48 | BM27: 0.9988510149 | BP27: =+BP26 -> KNOCK_OUT_FW | BQ27: Y | BS27: 3 | BT27: 2608 | BU27: 2611 | BV27: 48 | BW27: 0.9988510149 | BZ27: =+BZ26 -> KNOCK_OUT_FW | CA27: Y | CC27: 3 | CD27: 2608 | CE27: 2611 | CF27: 48 | CG27: 0.9988510149 | CJ27: KNOCK_OUT_FW | CK27: Y | CM27: 4 | CN27: 2872 | CO27: 2876 | CP27: 53 | CQ27: 0.9986091794 | CT27: KNOCK_OUT_FW | CU27: Y | CW27: 7 | CX27: 3092 | CY27: 3099 | CZ27: 57 | DA27: 0.9977412068 | DD27: =+DD26 -> FWKO | DE27: Y | DG27: 7 | DH27: 3035 | DI27: 3042 | DJ27: 56 | DK27: 0.998 | DN27: =+DN26 -> FWKO | DO27: Y | DQ27: 7 | DR27: 3194 | DS27: 3201 | DT27: 59 | DU27: 0.998 | DX27: =+DX26 -> FWKO | DY27: Y | EA27: 7 | EB27: 3194 | EC27: 3201 | ED27: 59 | EE27: 0.9978131834 | EH27: =+EH26 -> FWKO | EI27: Y | EK27: 6 | EL27: 3195 | EM27: 3201 | EN27: 59 | EO27: 0.998
A28: New | B28: =OFFSET(B28,0,9,1,1)-OFFSET(B28,0,19,1,1) -> 0 | C28: 0 | D28: 0 | E28: 0 | F28: =IFERROR(OFFSET(F28,0,9,1,1)-OFFSET(F28,0,19,1,1),"n/a") -> 0 | H28: =+H27 -> KNOCK_OUT_FW | J28: Y | K28: =SUMIFS(PvtByClassCurr!$U$9:$U$980, PvtByClassCurr!$L$9:$L$980,$H28, PvtByClassCurr!$M$9:$M$980,"Total") -> 38 | L28: =SUMIFS(PvtByClassCurr!$V$9:$V$980, PvtByClassCurr!$L$9:$L$980,$H28, PvtByClassCurr!$M$9:$M$980,"Total") -> 297 | M28: =SUM(K28:L28) -> 335 | N28: =SUMIFS(PvtByClassCurr!$T$9:$T$980, PvtByClassCurr!$L$9:$L$980,$H28, PvtByClassCurr!$M$9:$M$980,"Total") -> 6 | O28: =IF(M28=0,"n/a",L28/M28) -> 0.8865671642 | R28: =+R27 -> KNOCK_OUT_FW | T28: Y | U28: 38 | V28: 297 | W28: 335 | X28: 6 | Y28: 0.8865671642 | AB28: =+AB27 -> KNOCK_OUT_FW | AD28: Y | AE28: 3 | AF28: 221 | AG28: 224 | AH28: 4 | AI28: 0.9866071429 | AL28: =+AL27 -> KNOCK_OUT_FW | AN28: Y | AO28: 3 | AP28: 221 | AQ28: 224 | AR28: 4 | AS28: 0.9866071429 | AV28: KNOCK_OUT_FW | AX28: Y | AY28: 0 | AZ28: 168 | BA28: 168 | BB28: 4 | BC28: 1 | BF28: KNOCK_OUT_FW | BH28: Y | BI28: 3 | BJ28: 219 | BK28: 222 | BL28: 4 | BM28: 0.9864864865 | BP28: =+BP27 -> KNOCK_OUT_FW | BR28: Y | BS28: 3 | BT28: 219 | BU28: 222 | BV28: 4 | BW28: 0.9864864865 | BZ28: =+BZ27 -> KNOCK_OUT_FW | CB28: Y | CC28: 3 | CD28: 219 | CE28: 222 | CF28: 4 | CG28: 0.9864864865 | CJ28: KNOCK_OUT_FW | CL28: Y | CM28: 3 | CN28: 219 | CO28: 222 | CP28: 4 | CQ28: 0.9864864865 | CT28: KNOCK_OUT_FW | CV28: Y | CW28: 19 | CX28: 201 | CY28: 220 | CZ28: 4 | DA28: 0.9136363636 | DD28: =+DD27 -> FWKO | DF28: Y | DG28: 60 | DH28: 267 | DI28: 327 | DJ28: 6 | DK28: 0.817 | DN28: =+DN27 -> FWKO | DP28: Y | DQ28: 40 | DR28: 236 | DS28: 276 | DT28: 5 | DU28: 0.855 | DV28: Incl Prince George FWKO | DX28: =+DX27 -> FWKO | DZ28: Y | EA28: 40 | EB28: 236 | EC28: 276 | ED28: 5 | EE28: 0.8550724638 | EH28: =+EH27 -> FWKO | EJ28: Y | EK28: 1 | EL28: 167 | EM28: 168 | EN28: 3 | EO28: 0.994
A29: All(proportional) | B29: =+B26/OFFSET(B26,0,19,1,1) -> 0 | C29: =+C26/OFFSET(C26,0,19,1,1) -> -0.06138996139 | D29: =+D26/OFFSET(D26,0,19,1,1) -> -0.06043329532 | E29: =+E26/OFFSET(E26,0,19,1,1) -> -0.0625 | H29: =TEXT(M26/N26,"0.0")&" pnts/equip" -> 54.9 pnts/equip | R29: =TEXT(W26/X26,"0.0")&" pnts/equip" -> 54.8 pnts/equip | AB29: =TEXT(AG26/AH26,"0.0")&" pnts/equip" -> 54.6 pnts/equip | AL29: =TEXT(AQ26/AR26,"0.0")&" pnts/equip" -> 54.6 pnts/equip | AV29: 53.5 pnts/equip | BF29: 54.5 pnts/equip | BP29: =TEXT(BU26/BV26,"0.0")&" pnts/equip" -> 54.5 pnts/equip | BZ29: =TEXT(CE26/CF26,"0.0")&" pnts/equip" -> 54.5 pnts/equip | CJ29: 54.4 pnts/equip | CT29: 54.4 pnts/equip | DD29: =TEXT(DI26/DJ26,"0.0")&" pnts/equip" -> 54.3 pnts/equip | DN29: =TEXT(DS26/DT26,"0.0")&" pnts/equip" -> 54.3 pnts/equip
A31: All | B31: =OFFSET(B31,0,9,1,1)-OFFSET(B31,0,19,1,1) -> -5193 | C31: -2501 | D31: -7694 | E31: -205 | F31: =IFERROR(OFFSET(F31,0,9,1,1)-OFFSET(F31,0,19,1,1),"n/a") -> 0.01985073367 | H31: STACK_FLARE | I31: All | J31: All | K31: =SUMIFS(PvtByClassCurr!$O$9:$O$980, PvtByClassCurr!$L$9:$L$980,$H31, PvtByClassCurr!$M$9:$M$980,"Total") -> 7088 | L31: =SUMIFS(PvtByClassCurr!$P$9:$P$980, PvtByClassCurr!$L$9:$L$980,$H31, PvtByClassCurr!$M$9:$M$980,"Total") -> 4237 | M31: =SUM(K31:L31) -> 11325 | N31: =SUMIFS(PvtByClassCurr!$N$9:$N$980, PvtByClassCurr!$L$9:$L$980,$H31, PvtByClassCurr!$M$9:$M$980,"Total") -> 302 | O31: =IF(M31=0,"n/a",L31/M31) -> 0.3741280353 | R31: STACK_FLARE | S31: All | T31: All | U31: 12281 | V31: 6738 | W31: 19019 | X31: 507 | Y31: 0.3542773016 | AB31: STACK_FLARE | AC31: All | AD31: All | AE31: 12344 | AF31: 7321 | AG31: 19665 | AH31: 523 | AI31: 0.3722857869 | AL31: STACK_FLARE | AM31: All | AN31: All | AO31: 12344 | AP31: 7321 | AQ31: 19665 | AR31: 523 | AS31: 0.3722857869 | AV31: STACK_FLARE | AW31: All | AX31: All | AY31: 12381 | AZ31: 7361 | BA31: 19742 | BB31: 525 | BC31: 0.3728598926 | BF31: STACK_FLARE | BG31: All | BH31: All | BI31: 12388 | BJ31: 7350 | BK31: 19738 | BL31: 525 | BM31: 0.3723781538 | BP31: STACK_FLARE | BQ31: All | BR31: All | BS31: 12388 | BT31: 7350 | BU31: 19738 | BV31: 525 | BW31: 0.3723781538 | BZ31: STACK_FLARE | CA31: All | CB31: All | CC31: 12365 | CD31: 7296 | CE31: 19661 | CF31: 523 | CG31: 0.3710899751 | CJ31: STACK_FLARE | CK31: All | CL31: All | CM31: 12710 | CN31: 7490 | CO31: 20200 | CP31: 537 | CQ31: 0.3707920792 | CT31: STACK_FLARE | CU31: All | CV31: All | CW31: 12775 | CX31: 7585 | CY31: 20360 | CZ31: 541 | DA31: 0.3725442043 | DD31: Flare | DE31: All | DF31: All | DG31: 12776 | DH31: 7584 | DI31: 20360 | DJ31: 541 | DK31: 0.372 | DN31: Flare | DO31: All | DP31: All | DQ31: 13348 | DR31: 7207 | DS31: 20555 | DT31: 546 | DU31: 0.350620287 | DX31: Flare | DY31: All | DZ31: All | EA31: 12863 | EB31: 7693 | EC31: 20556 | ED31: 546 | EE31: 0.3742459622 | EH31: Flare | EI31: All | EJ31: All | EK31: 13161 | EL31: 7496 | EM31: 20657 | EN31: 550 | EO31: 0.363
A32: Cleansed | B32: -286 | C32: -463 | D32: -749 | E32: -19 | F32: =IFERROR(OFFSET(F32,0,9,1,1)-OFFSET(F32,0,19,1,1),"n/a") -> -0.03106991996 | H32: =+H31 -> STACK_FLARE | I32: Y | K32: =SUMIFS(PvtByClassCurr!$R$9:$R$980, PvtByClassCurr!$L$9:$L$980,$H32, PvtByClassCurr!$M$9:$M$980,"Total") -> 948 | L32: =SUMIFS(PvtByClassCurr!$S$9:$S$980, PvtByClassCurr!$L$9:$L$980,$H32, PvtByClassCurr!$M$9:$M$980,"Total") -> 976 | M32: =SUM(K32:L32) -> 1924 | N32: =SUMIFS(PvtByClassCurr!$Q$9:$Q$980, PvtByClassCurr!$L$9:$L$980,$H32, PvtByClassCurr!$M$9:$M$980,"Total") -> 50 | O32: =IF(M32=0,"n/a",L32/M32) -> 0.5072765073 | R32: =+R31 -> STACK_FLARE | S32: Y | U32: 1234 | V32: 1439 | W32: 2673 | X32: 69 | Y32: 0.5383464272 | AB32: =+AB31 -> STACK_FLARE | AC32: Y | AE32: 1121 | AF32: 2243 | AG32: 3364 | AH32: 85 | AI32: 0.6667657551 | AL32: =+AL31 -> STACK_FLARE | AM32: Y | AO32: 1121 | AP32: 2243 | AQ32: 3364 | AR32: 85 | AS32: 0.6667657551 | AV32: STACK_FLARE | AW32: Y | AY32: 1135 | AZ32: 2268 | BA32: 3403 | BB32: 86 | BC32: 0.6664707611 | BF32: STACK_FLARE | BG32: Y | BI32: 1135 | BJ32: 2268 | BK32: 3403 | BL32: 86 | BM32: 0.6664707611 | BP32: =+BP31 -> STACK_FLARE | BQ32: Y | BS32: 1135 | BT32: 2268 | BU32: 3403 | BV32: 86 | BW32: 0.6664707611 | BZ32: =+BZ31 -> STACK_FLARE | CA32: Y | CC32: 1112 | CD32: 2214 | CE32: 3326 | CF32: 84 | CG32: 0.6656644618 | CJ32: STACK_FLARE | CK32: Y | CM32: 1407 | CN32: 2499 | CO32: 3906 | CP32: 99 | CQ32: 0.6397849462 | CT32: STACK_FLARE | CU32: Y | CW32: 1473 | CX32: 2593 | CY32: 4066 | CZ32: 103 | DA32: 0.6377274963 | DD32: =+DD31 -> Flare | DE32: Y | DG32: 1353 | DH32: 2484 | DI32: 3837 | DJ32: 97 | DK32: 0.647 | DN32: =+DN31 -> Flare | DO32: Y | DQ32: 1728 | DR32: 2268 | DS32: 3996 | DT32: 101 | DU32: 0.5675675676 | DX32: =+DX31 -> Flare | DY32: Y | EA32: 1418 | EB32: 2578 | EC32: 3996 | ED32: 101 | EE32: 0.6451451451 | EH32: =+EH31 -> Flare | EI32: Y | EK32: 1267 | EL32: 2123 | EM32: 3390 | EN32: 86 | EO32: 0.626
A33: New | B33: 0 | C33: 0 | D33: 0 | E33: 0 | F33: =IFERROR(OFFSET(F33,0,9,1,1)-OFFSET(F33,0,19,1,1),"n/a") -> 0 | H33: =+H32 -> STACK_FLARE | J33: Y | K33: =SUMIFS(PvtByClassCurr!$U$9:$U$980, PvtByClassCurr!$L$9:$L$980,$H33, PvtByClassCurr!$M$9:$M$980,"Total") -> 37 | L33: =SUMIFS(PvtByClassCurr!$V$9:$V$980, PvtByClassCurr!$L$9:$L$980,$H33, PvtByClassCurr!$M$9:$M$980,"Total") -> 0 | M33: =SUM(K33:L33) -> 37 | N33: =SUMIFS(PvtByClassCurr!$T$9:$T$980, PvtByClassCurr!$L$9:$L$980,$H33, PvtByClassCurr!$M$9:$M$980,"Total") -> 1 | O33: =IF(M33=0,"n/a",L33/M33) -> 0 | R33: =+R32 -> STACK_FLARE | T33: Y | U33: 37 | V33: 0 | W33: 37 | X33: 1 | Y33: 0 | AB33: =+AB32 -> STACK_FLARE | AD33: Y | AE33: 16 | AF33: 25 | AG33: 41 | AH33: 1 | AI33: 0.6097560976 | AL33: =+AL32 -> STACK_FLARE | AN33: Y | AO33: 16 | AP33: 25 | AQ33: 41 | AR33: 1 | AS33: 0.6097560976 | AV33: STACK_FLARE | AX33: Y | AY33: 16 | AZ33: 25 | BA33: 41 | BB33: 1 | BC33: 0.6097560976 | BF33: STACK_FLARE | BH33: Y | BI33: 16 | BJ33: 25 | BK33: 41 | BL33: 1 | BM33: 0.6097560976 | BP33: =+BP32 -> STACK_FLARE | BR33: Y | BS33: 16 | BT33: 25 | BU33: 41 | BV33: 1 | BW33: 0.6097560976 | BZ33: =+BZ32 -> STACK_FLARE | CB33: Y | CC33: 16 | CD33: 25 | CE33: 41 | CF33: 1 | CG33: 0.6097560976 | CJ33: STACK_FLARE | CL33: Y | CM33: 0 | CN33: 0 | CO33: 0 | CP33: 0 | CQ33: n/a | CT33: STACK_FLARE | CV33: Y | CW33: 0 | CX33: 0 | CY33: 0 | CZ33: 0 | DA33: n/a | DD33: =+DD32 -> Flare | DF33: Y | DG33: 120 | DH33: 109 | DI33: 229 | DJ33: 6 | DK33: 0.476 | DN33: =+DN32 -> Flare | DP33: Y | DQ33: 133 | DR33: 96 | DS33: 229 | DT33: 6 | DU33: 0.4192139738 | DX33: =+DX32 -> Flare | DZ33: Y | EA33: 120 | EB33: 109 | EC33: 229 | ED33: 6 | EE33: 0.4759825328 | EH33: =+EH32 -> Flare | EJ33: Y | EK33: 123 | EL33: 106 | EM33: 229 | EN33: 6 | EO33: 0.463
A34: All(proportional) | B34: =+B31/OFFSET(B31,0,19,1,1) -> -0.4228483023 | C34: =+C31/OFFSET(C31,0,19,1,1) -> -0.3711783912 | D34: =+D31/OFFSET(D31,0,19,1,1) -> -0.4045428256 | E34: =+E31/OFFSET(E31,0,19,1,1) -> -0.4043392505 | H34: =TEXT(M31/N31,"0.0")&" pnts/equip" -> 37.5 pnts/equip | R34: =TEXT(W31/X31,"0.0")&" pnts/equip" -> 37.5 pnts/equip | AB34: =TEXT(AG31/AH31,"0.0")&" pnts/equip" -> 37.6 pnts/equip | AL34: =TEXT(AQ31/AR31,"0.0")&" pnts/equip" -> 37.6 pnts/equip | AV34: 37.6 pnts/equip | BF34: 37.6 pnts/equip | BP34: =TEXT(BU31/BV31,"0.0")&" pnts/equip" -> 37.6 pnts/equip | BZ34: =TEXT(CE31/CF31,"0.0")&" pnts/equip" -> 37.6 pnts/equip | CJ34: 37.6 pnts/equip | CT34: 37.6 pnts/equip | DD34: =TEXT(DI31/DJ31,"0.0")&" pnts/equip" -> 37.6 pnts/equip | DN34: =TEXT(DS31/DT31,"0.0")&" pnts/equip" -> 37.6 pnts/equip
A36: All | B36: =OFFSET(B36,0,9,1,1)-OFFSET(B36,0,19,1,1) -> -280 | C36: -96 | D36: -376 | E36: -8 | F36: =IFERROR(OFFSET(F36,0,9,1,1)-OFFSET(F36,0,19,1,1),"n/a") -> -0.003860367782 | H36: INCINERATOR | I36: All | J36: All | K36: =SUMIFS(PvtByClassCurr!$O$9:$O$980, PvtByClassCurr!$L$9:$L$980,$H36, PvtByClassCurr!$M$9:$M$980,"Total") -> 3761 | L36: =SUMIFS(PvtByClassCurr!$P$9:$P$980, PvtByClassCurr!$L$9:$L$980,$H36, PvtByClassCurr!$M$9:$M$980,"Total") -> 958 | M36: =SUM(K36:L36) -> 4719 | N36: =SUMIFS(PvtByClassCurr!$N$9:$N$980, PvtByClassCurr!$L$9:$L$980,$H36, PvtByClassCurr!$M$9:$M$980,"Total") -> 100 | O36: =IF(M36=0,"n/a",L36/M36) -> 0.2030091121 | R36: INCINERATOR | S36: All | T36: All | U36: 4041 | V36: 1054 | W36: 5095 | X36: 108 | Y36: 0.2068694799 | AB36: INCINERATOR | AC36: All | AD36: All | AE36: 3994 | AF36: 1054 | AG36: 5048 | AH36: 107 | AI36: 0.2087955626 | AL36: INCINERATOR | AM36: All | AN36: All | AO36: 3994 | AP36: 1054 | AQ36: 5048 | AR36: 107 | AS36: 0.2087955626 | AV36: INCINERATOR | AW36: All | AX36: All | AY36: 3994 | AZ36: 1054 | BA36: 5048 | BB36: 107 | BC36: 0.2087955626 | BF36: INCINERATOR | BG36: All | BH36: All | BI36: 3991 | BJ36: 1056 | BK36: 5047 | BL36: 107 | BM36: 0.2092332078 | BP36: INCINERATOR | BQ36: All | BR36: All | BS36: 3991 | BT36: 1056 | BU36: 5047 | BV36: 107 | BW36: 0.2092332078 | BZ36: INCINERATOR | CA36: All | CB36: All | CC36: 3991 | CD36: 1056 | CE36: 5047 | CF36: 107 | CG36: 0.2092332078 | CJ36: INCINERATOR | CK36: All | CL36: All | CM36: 3994 | CN36: 1053 | CO36: 5047 | CP36: 107 | CQ36: 0.2086387953 | CT36: INCINERATOR | CU36: All | CV36: All | CW36: 3994 | CX36: 1053 | CY36: 5047 | CZ36: 107 | DA36: 0.2086387953 | DD36: Incin | DE36: All | DF36: All | DG36: 3994 | DH36: 1051 | DI36: 5045 | DJ36: 107 | DK36: 0.208 | DL36: Data Points reduced, switched Weight to Optional | DN36: Incin | DO36: All | DP36: All | DQ36: 4263 | DR36: 935 | DS36: 5198 | DT36: 108 | DU36: 0.1798768757 | DX36: Incin | DY36: All | DZ36: All | EA36: 4241 | EB36: 957 | EC36: 5198 | ED36: 108 | EE36: 0.1841092728 | EH36: Incin | EI36: All | EJ36: All | EK36: 4320 | EL36: 926 | EM36: 5246 | EN36: 109 | EO36: 0.177
A37: Cleansed | B37: 0 | C37: 0 | D37: 0 | E37: 0 | F37: =IFERROR(OFFSET(F37,0,9,1,1)-OFFSET(F37,0,19,1,1),"n/a") -> n/a | H37: =+H36 -> INCINERATOR | I37: Y | K37: =SUMIFS(PvtByClassCurr!$R$9:$R$980, PvtByClassCurr!$L$9:$L$980,$H37, PvtByClassCurr!$M$9:$M$980,"Total") -> 0 | L37: =SUMIFS(PvtByClassCurr!$S$9:$S$980, PvtByClassCurr!$L$9:$L$980,$H37, PvtByClassCurr!$M$9:$M$980,"Total") -> 0 | M37: =SUM(K37:L37) -> 0 | N37: =SUMIFS(PvtByClassCurr!$Q$9:$Q$980, PvtByClassCurr!$L$9:$L$980,$H37, PvtByClassCurr!$M$9:$M$980,"Total") -> 0 | O37: =IF(M37=0,"n/a",L37/M37) -> n/a | R37: =+R36 -> INCINERATOR | S37: Y | U37: 0 | V37: 0 | W37: 0 | X37: 0 | Y37: n/a | AB37: =+AB36 -> INCINERATOR | AC37: Y | AE37: 0 | AF37: 0 | AG37: 0 | AH37: 0 | AI37: n/a | AL37: =+AL36 -> INCINERATOR | AM37: Y | AO37: 0 | AP37: 0 | AQ37: 0 | AR37: 0 | AS37: n/a | AV37: INCINERATOR | AW37: Y | AY37: 0 | AZ37: 0 | BA37: 0 | BB37: 0 | BC37: n/a | BF37: INCINERATOR | BG37: Y | BI37: 0 | BJ37: 0 | BK37: 0 | BL37: 0 | BM37: n/a | BP37: =+BP36 -> INCINERATOR | BQ37: Y | BS37: 0 | BT37: 0 | BU37: 0 | BV37: 0 | BW37: n/a | BZ37: =+BZ36 -> INCINERATOR | CA37: Y | CC37: 0 | CD37: 0 | CE37: 0 | CF37: 0 | CG37: n/a | CJ37: INCINERATOR | CK37: Y | CM37: 0 | CN37: 0 | CO37: 0 | CP37: 0 | CQ37: n/a | CT37: INCINERATOR | CU37: Y | CW37: 0 | CX37: 0 | CY37: 0 | CZ37: 0 | DA37: n/a | DD37: =+DD36 -> Incin | DE37: Y | DG37: 0 | DH37: 0 | DI37: 0 | DJ37: 0 | DK37: n/a | DN37: =+DN36 -> Incin | DO37: Y | DQ37: 0 | DR37: 0 | DS37: 0 | DT37: 0 | DU37: n/a | DX37: =+DX36 -> Incin | DZ37: Y | EA37: 0 | EB37: 0 | EC37: 0 | ED37: 0 | EE37: n/a | EH37: =+EH36 -> Incin | EJ37: Y | EK37: 0 | EL37: 0 | EM37: 0 | EN37: 0 | EO37: n/a
A38: New | B38: 0 | C38: 0 | D38: 0 | E38: 0 | F38: =IFERROR(OFFSET(F38,0,9,1,1)-OFFSET(F38,0,19,1,1),"n/a") -> n/a | H38: =+H37 -> INCINERATOR | J38: Y | K38: =SUMIFS(PvtByClassCurr!$U$9:$U$980, PvtByClassCurr!$L$9:$L$980,$H38, PvtByClassCurr!$M$9:$M$980,"Total") -> 0 | L38: =SUMIFS(PvtByClassCurr!$V$9:$V$980, PvtByClassCurr!$L$9:$L$980,$H38, PvtByClassCurr!$M$9:$M$980,"Total") -> 0 | M38: =SUM(K38:L38) -> 0 | N38: =SUMIFS(PvtByClassCurr!$T$9:$T$980, PvtByClassCurr!$L$9:$L$980,$H38, PvtByClassCurr!$M$9:$M$980,"Total") -> 0 | O38: =IF(M38=0,"n/a",L38/M38) -> n/a | R38: =+R37 -> INCINERATOR | T38: Y | U38: 0 | V38: 0 | W38: 0 | X38: 0 | Y38: n/a | AB38: =+AB37 -> INCINERATOR | AD38: Y | AE38: 0 | AF38: 0 | AG38: 0 | AH38: 0 | AI38: n/a | AL38: =+AL37 -> INCINERATOR | AN38: Y | AO38: 0 | AP38: 0 | AQ38: 0 | AR38: 0 | AS38: n/a | AV38: INCINERATOR | AX38: Y | AY38: 0 | AZ38: 0 | BA38: 0 | BB38: 0 | BC38: n/a | BF38: INCINERATOR | BH38: Y | BI38: 0 | BJ38: 0 | BK38: 0 | BL38: 0 | BM38: n/a | BP38: =+BP37 -> INCINERATOR | BR38: Y | BS38: 0 | BT38: 0 | BU38: 0 | BV38: 0 | BW38: n/a | BZ38: =+BZ37 -> INCINERATOR | CB38: Y | CC38: 0 | CD38: 0 | CE38: 0 | CF38: 0 | CG38: n/a | CJ38: INCINERATOR | CL38: Y | CM38: 0 | CN38: 0 | CO38: 0 | CP38: 0 | CQ38: n/a | CT38: INCINERATOR | CV38: Y | CW38: 0 | CX38: 0 | CY38: 0 | CZ38: 0 | DA38: n/a | DD38: =+DD37 -> Incin | DF38: Y | DG38: 0 | DH38: 0 | DI38: 0 | DJ38: 0 | DK38: n/a | DN38: =+DN37 -> Incin | DP38: Y | DQ38: 0 | DR38: 0 | DS38: 0 | DT38: 0 | DU38: n/a | DX38: =+DX37 -> Incin | DZ38: N | EA38: 4241 | EB38: 957 | EC38: 5198 | ED38: 108 | EE38: 0.1841092728 | EH38: =+EH37 -> Incin | EJ38: N | EK38: 4320 | EL38: 926 | EM38: 5246 | EN38: 109 | EO38: 0.177
A39: All(proportional) | B39: =+B36/OFFSET(B36,0,19,1,1) -> -0.06928977976 | C39: =+C36/OFFSET(C36,0,19,1,1) -> -0.09108159393 | D39: =+D36/OFFSET(D36,0,19,1,1) -> -0.07379784102 | E39: =+E36/OFFSET(E36,0,19,1,1) -> -0.07407407407 | H39: =TEXT(M36/N36,"0.0")&" pnts/equip" -> 47.2 pnts/equip | R39: =TEXT(W36/X36,"0.0")&" pnts/equip" -> 47.2 pnts/equip | AB39: =TEXT(AG36/AH36,"0.0")&" pnts/equip" -> 47.2 pnts/equip | AL39: =TEXT(AQ36/AR36,"0.0")&" pnts/equip" -> 47.2 pnts/equip | AV39: 47.2 pnts/equip | BF39: 47.2 pnts/equip | BP39: =TEXT(BU36/BV36,"0.0")&" pnts/equip" -> 47.2 pnts/equip | BZ39: =TEXT(CE36/CF36,"0.0")&" pnts/equip" -> 47.2 pnts/equip | CJ39: 47.2 pnts/equip | CT39: 47.2 pnts/equip | DD39: =TEXT(DI36/DJ36,"0.0")&" pnts/equip" -> 47.1 pnts/equip | DN39: =TEXT(DS36/DT36,"0.0")&" pnts/equip" -> 48.1 pnts/equip
A41: All | B41: =OFFSET(B41,0,9,1,1)-OFFSET(B41,0,19,1,1) -> 0 | C41: 0 | D41: 0 | E41: 0 | F41: =IFERROR(OFFSET(F41,0,9,1,1)-OFFSET(F41,0,19,1,1),"n/a") -> 0 | H41: STACK_VENT | I41: All | J41: All | K41: =SUMIFS(PvtByClassCurr!$O$9:$O$980, PvtByClassCurr!$L$9:$L$980,$H41, PvtByClassCurr!$M$9:$M$980,"Total") -> 156 | L41: =SUMIFS(PvtByClassCurr!$P$9:$P$980, PvtByClassCurr!$L$9:$L$980,$H41, PvtByClassCurr!$M$9:$M$980,"Total") -> 166 | M41: =SUM(K41:L41) -> 322 | N41: =SUMIFS(PvtByClassCurr!$N$9:$N$980, PvtByClassCurr!$L$9:$L$980,$H41, PvtByClassCurr!$M$9:$M$980,"Total") -> 12 | O41: =IF(M41=0,"n/a",L41/M41) -> 0.5155279503 | R41: STACK_VENT | S41: All | T41: All | U41: 156 | V41: 166 | W41: 322 | X41: 12 | Y41: 0.5155279503 | AB41: STACK_VENT | AC41: All | AD41: All | AE41: 156 | AF41: 166 | AG41: 322 | AH41: 12 | AI41: 0.5155279503 | AL41: STACK_VENT | AM41: All | AN41: All | AO41: 156 | AP41: 166 | AQ41: 322 | AR41: 12 | AS41: 0.5155279503 | AV41: STACK_VENT | AW41: All | AX41: All | AY41: 168 | AZ41: 181 | BA41: 349 | BB41: 13 | BC41: 0.5186246418 | BF41: STACK_VENT | BG41: All | BH41: All | BI41: 134 | BJ41: 163 | BK41: 297 | BL41: 11 | BM41: 0.5488215488 | BP41: STACK_VENT | BQ41: All | BR41: All | BS41: 134 | BT41: 163 | BU41: 297 | BV41: 11 | BW41: 0.5488215488 | BZ41: STACK_VENT | CA41: All | CB41: All | CC41: 145 | CD41: 152 | CE41: 297 | CF41: 11 | CG41: 0.5117845118 | CJ41: STACK_VENT | CK41: All | CL41: All | CM41: 147 | CN41: 150 | CO41: 297 | CP41: 11 | CQ41: 0.5050505051 | CT41: STACK_VENT | CU41: All | CV41: All | CW41: 145 | CX41: 152 | CY41: 297 | CZ41: 11 | DA41: 0.5117845118 | DD41: Vent | DE41: All | DF41: All | DG41: 145 | DH41: 152 | DI41: 297 | DJ41: 11 | DK41: 0.512 | DN41: Vent | DO41: All | DP41: All | DQ41: 148 | DR41: 149 | DS41: 297 | DT41: 11 | DU41: 0.5016835017 | DX41: Vent | DY41: All | DZ41: All | EA41: 134 | EB41: 163 | EC41: 297 | ED41: 11 | EE41: 0.5488215488 | EF41: =EB41/SUM(EA41:EB41) -> 0.5488215488 | EH41: Vent | EI41: All | EJ41: All | EK41: 134 | EL41: 163 | EM41: 297 | EN41: 11 | EO41: 0.549
A42: Cleansed | B42: 0 | C42: 0 | D42: 0 | E42: 0 | F42: =IFERROR(OFFSET(F42,0,9,1,1)-OFFSET(F42,0,19,1,1),"n/a") -> 0 | H42: =+H41 -> STACK_VENT | I42: Y | K42: =SUMIFS(PvtByClassCurr!$R$9:$R$980, PvtByClassCurr!$L$9:$L$980,$H42, PvtByClassCurr!$M$9:$M$980,"Total") -> 15 | L42: =SUMIFS(PvtByClassCurr!$S$9:$S$980, PvtByClassCurr!$L$9:$L$980,$H42, PvtByClassCurr!$M$9:$M$980,"Total") -> 12 | M42: =SUM(K42:L42) -> 27 | N42: =SUMIFS(PvtByClassCurr!$Q$9:$Q$980, PvtByClassCurr!$L$9:$L$980,$H42, PvtByClassCurr!$M$9:$M$980,"Total") -> 1 | O42: =IF(M42=0,"n/a",L42/M42) -> 0.4444444444 | R42: =+R41 -> STACK_VENT | S42: Y | U42: 15 | V42: 12 | W42: 27 | X42: 1 | Y42: 0.4444444444 | AB42: =+AB41 -> STACK_VENT | AC42: Y | AE42: 15 | AF42: 12 | AG42: 27 | AH42: 1 | AI42: 0.4444444444 | AL42: =+AL41 -> STACK_VENT | AM42: Y | AO42: 15 | AP42: 12 | AQ42: 27 | AR42: 1 | AS42: 0.4444444444 | AV42: STACK_VENT | AW42: Y | AY42: 27 | AZ42: 27 | BA42: 54 | BB42: 2 | BC42: 0.5 | BF42: STACK_VENT | BG42: Y | BI42: 27 | BJ42: 27 | BK42: 54 | BL42: 2 | BM42: 0.5 | BP42: =+BP41 -> STACK_VENT | BQ42: Y | BS42: 27 | BT42: 27 | BU42: 54 | BV42: 2 | BW42: 0.5 | BZ42: =+BZ41 -> STACK_VENT | CA42: Y | CC42: 29 | CD42: 25 | CE42: 54 | CF42: 2 | CG42: 0.462962963 | CJ42: STACK_VENT | CK42: Y | CM42: 29 | CN42: 25 | CO42: 54 | CP42: 2 | CQ42: 0.462962963 | CT42: STACK_VENT | CU42: Y | CW42: 29 | CX42: 25 | CY42: 54 | CZ42: 2 | DA42: 0.462962963 | DD42: =+DD41 -> Vent | DE42: Y | DG42: 29 | DH42: 25 | DI42: 54 | DJ42: 2 | DK42: 0.463 | DN42: =+DN41 -> Vent | DO42: Y | DQ42: 30 | DR42: 24 | DS42: 54 | DT42: 2 | DU42: 0.4444444444 | DX42: =+DX41 -> Vent | DZ42: Y | EA42: 0 | EB42: 0 | EC42: 0 | ED42: 0 | EE42: n/a | EH42: =+EH41 -> Vent | EJ42: Y | EK42: 0 | EL42: 0 | EM42: 0 | EN42: 0 | EO42: n/a
A43: New | B43: 0 | C43: 0 | D43: 0 | E43: 0 | F43: =IFERROR(OFFSET(F43,0,9,1,1)-OFFSET(F43,0,19,1,1),"n/a") -> n/a | H43: =+H42 -> STACK_VENT | J43: Y | K43: =SUMIFS(PvtByClassCurr!$U$9:$U$980, PvtByClassCurr!$L$9:$L$980,$H43, PvtByClassCurr!$M$9:$M$980,"Total") -> 0 | L43: =SUMIFS(PvtByClassCurr!$V$9:$V$980, PvtByClassCurr!$L$9:$L$980,$H43, PvtByClassCurr!$M$9:$M$980,"Total") -> 0 | M43: =SUM(K43:L43) -> 0 | N43: =SUMIFS(PvtByClassCurr!$T$9:$T$980, PvtByClassCurr!$L$9:$L$980,$H43, PvtByClassCurr!$M$9:$M$980,"Total") -> 0 | O43: =IF(M43=0,"n/a",L43/M43) -> n/a | R43: =+R42 -> STACK_VENT | T43: Y | U43: 0 | V43: 0 | W43: 0 | X43: 0 | Y43: n/a | AB43: =+AB42 -> STACK_VENT | AD43: Y | AE43: 0 | AF43: 0 | AG43: 0 | AH43: 0 | AI43: n/a | AL43: =+AL42 -> STACK_VENT | AN43: Y | AO43: 0 | AP43: 0 | AQ43: 0 | AR43: 0 | AS43: n/a | AV43: STACK_VENT | AX43: Y | AY43: 0 | AZ43: 0 | BA43: 0 | BB43: 0 | BC43: n/a | BF43: STACK_VENT | BH43: Y | BI43: 0 | BJ43: 0 | BK43: 0 | BL43: 0 | BM43: n/a | BP43: =+BP42 -> STACK_VENT | BR43: Y | BS43: 0 | BT43: 0 | BU43: 0 | BV43: 0 | BW43: n/a | BZ43: =+BZ42 -> STACK_VENT | CB43: Y | CC43: 0 | CD43: 0 | CE43: 0 | CF43: 0 | CG43: n/a | CJ43: STACK_VENT | CL43: Y | CM43: 0 | CN43: 0 | CO43: 0 | CP43: 0 | CQ43: n/a | CT43: STACK_VENT | CV43: Y | CW43: 0 | CX43: 0 | CY43: 0 | CZ43: 0 | DA43: n/a | DD43: =+DD42 -> Vent | DF43: Y | DG43: 0 | DH43: 0 | DI43: 0 | DJ43: 0 | DK43: n/a | DN43: =+DN42 -> Vent | DP43: Y | DQ43: 0 | DR43: 0 | DS43: 0 | DT43: 0 | DU43: n/a | DX43: =+DX42 -> Vent | DZ43: N | EA43: 134 | EB43: 163 | EC43: 297 | ED43: 11 | EE43: 0.5488215488 | EH43: =+EH42 -> Vent | EJ43: N | EK43: 134 | EL43: 163 | EM43: 297 | EN43: 11 | EO43: 0.549
A44: All(proportional) | B44: =+B41/OFFSET(B41,0,19,1,1) -> 0 | C44: =+C41/OFFSET(C41,0,19,1,1) -> 0 | D44: =+D41/OFFSET(D41,0,19,1,1) -> 0 | E44: =+E41/OFFSET(E41,0,19,1,1) -> 0 | H44: =TEXT(M41/N41,"0.0")&" pnts/equip" -> 26.8 pnts/equip | R44: =TEXT(W41/X41,"0.0")&" pnts/equip" -> 26.8 pnts/equip | AB44: =TEXT(AG41/AH41,"0.0")&" pnts/equip" -> 26.8 pnts/equip | AL44: =TEXT(AQ41/AR41,"0.0")&" pnts/equip" -> 26.8 pnts/equip | AV44: 26.8 pnts/equip | BF44: 27.0 pnts/equip | BP44: =TEXT(BU41/BV41,"0.0")&" pnts/equip" -> 27.0 pnts/equip | BZ44: =TEXT(CE41/CF41,"0.0")&" pnts/equip" -> 27.0 pnts/equip | CJ44: 27.0 pnts/equip | CT44: 27.0 pnts/equip | DD44: =TEXT(DI41/DJ41,"0.0")&" pnts/equip" -> 27.0 pnts/equip | DN44: =TEXT(DS41/DT41,"0.0")&" pnts/equip" -> 27.0 pnts/equip
EC45: =+EC46/ED46 -> 37.69847775 | ED45: pnts/equip
A46: All | B46: =OFFSET(B46,0,9,1,1)-OFFSET(B46,0,19,1,1) -> -878 | C46: -685 | D46: -1563 | E46: -50 | F46: =IFERROR(OFFSET(F46,0,9,1,1)-OFFSET(F46,0,19,1,1),"n/a") -> 0.0006307874929 | H46: BURNER_SYSTEM | I46: All | J46: All | K46: =SUMIFS(PvtByClassCurr!$O$9:$O$980, PvtByClassCurr!$L$9:$L$980,$H46, PvtByClassCurr!$M$9:$M$980,"Total") -> 82302 | L46: =SUMIFS(PvtByClassCurr!$P$9:$P$980, PvtByClassCurr!$L$9:$L$980,$H46, PvtByClassCurr!$M$9:$M$980,"Total") -> 84351 | M46: =SUM(K46:L46) -> 166653 | N46: =SUMIFS(PvtByClassCurr!$N$9:$N$980, PvtByClassCurr!$L$9:$L$980,$H46, PvtByClassCurr!$M$9:$M$980,"Total") -> 5274 | O46: =IF(M46=0,"n/a",L46/M46) -> 0.5061475041 | R46: BURNER_SYSTEM | S46: All | T46: All | U46: 83180 | V46: 85036 | W46: 168216 | X46: 5324 | Y46: 0.5055167166 | AB46: BURNER_SYSTEM | AC46: All | AD46: All | AE46: 84378 | AF46: 83615 | AG46: 167993 | AH46: 5317 | AI46: 0.497729072 | AL46: BURNER_SYSTEM | AM46: All | AN46: All | AO46: 84765 | AP46: 82705 | AQ46: 167470 | AR46: 5301 | AS46: 0.4938496447 | AV46: BURNER_SYSTEM | AW46: All | AX46: All | AY46: 88094 | AZ46: 78530 | BA46: 166624 | BB46: 5274 | BC46: 0.471300653 | BF46: BURNER_SYSTEM | BG46: All | BH46: All | BI46: 95971 | BJ46: 70155 | BK46: 166126 | BL46: 5272 | BM46: 0.422299941 | BP46: BURNER_SYSTEM | BQ46: All | BR46: All | BS46: 96023 | BT46: 69987 | BU46: 166010 | BV46: 5268 | BW46: 0.4215830372 | BZ46: BURNER_SYSTEM | CA46: All | CB46: All | CC46: 101396 | CD46: 64586 | CE46: 165982 | CF46: 5267 | CG46: 0.3891144823 | CJ46: BURNER_SYSTEM | CK46: All | CL46: All | CM46: 102540 | CN46: 63286 | CO46: 165826 | CP46: 5262 | CQ46: 0.3816409972 | CT46: BURNER_SYSTEM | CU46: All | CV46: All | CW46: 106062 | CX46: 59392 | CY46: 165454 | CZ46: 5250 | DA46: 0.3589638208 | DD46: Burner Sys | DE46: All | DF46: All | DG46: 106963 | DH46: 57703 | DI46: 164666 | DJ46: 5226 | DK46: 0.35 | DL46: Change in # of fields for update tests on "Optional" char's | DN46: Burner Sys | DO46: All | DP46: All | DQ46: 140705 | DR46: 53284 | DS46: 193989 | DT46: 5146 | DU46: 0.2746753682 | DV46: Mostly complete in SAP, Waiting on Fired Duty UoM | DX46: Burner Sys | DY46: All | DZ46: All | EA46: 139820 | EB46: 53347 | EC46: 193167 | ED46: 5124 | EE46: 0.2761703604 | EF46: not compl | EH46: Burner Sys | EI46: All | EJ46: All | EK46: 141652 | EL46: 51288 | EM46: 192940 | EN46: 5118 | EO46: 0.266 | EP46: not compl
A47: Cleansed | B47: -4428 | C47: -17078 | D47: -21506 | E47: -670 | F47: =IFERROR(OFFSET(F47,0,9,1,1)-OFFSET(F47,0,19,1,1),"n/a") -> 0.01195943169 | H47: =+H46 -> BURNER_SYSTEM | I47: Y | K47: =SUMIFS(PvtByClassCurr!$R$9:$R$980, PvtByClassCurr!$L$9:$L$980,$H47, PvtByClassCurr!$M$9:$M$980,"Total") -> 4954 | L47: =SUMIFS(PvtByClassCurr!$S$9:$S$980, PvtByClassCurr!$L$9:$L$980,$H47, PvtByClassCurr!$M$9:$M$980,"Total") -> 22799 | M47: =SUM(K47:L47) -> 27753 | N47: =SUMIFS(PvtByClassCurr!$Q$9:$Q$980, PvtByClassCurr!$L$9:$L$980,$H47, PvtByClassCurr!$M$9:$M$980,"Total") -> 879 | O47: =IF(M47=0,"n/a",L47/M47) -> 0.8214967751 | R47: =+R46 -> BURNER_SYSTEM | S47: Y | U47: 9382 | V47: 39877 | W47: 49259 | X47: 1549 | Y47: 0.8095373434 | AB47: =+AB46 -> BURNER_SYSTEM | AC47: Y | AE47: 8948 | AF47: 37136 | AG47: 46084 | AH47: 1450 | AI47: 0.805832827 | AL47: =+AL46 -> BURNER_SYSTEM | AM47: Y | AO47: 8673 | AP47: 35747 | AQ47: 44420 | AR47: 1397 | AS47: 0.8047501126 | AV47: BURNER_SYSTEM | AW47: Y | AY47: 7243 | AZ47: 28642 | BA47: 35885 | BB47: 1125 | BC47: 0.7981607914 | BF47: BURNER_SYSTEM | BG47: Y | BI47: 7170 | BJ47: 22967 | BK47: 30137 | BL47: 942 | BM47: 0.7620864718 | BP47: =+BP46 -> BURNER_SYSTEM | BQ47: Y | BS47: 5727 | BT47: 21861 | BU47: 27588 | BV47: 860 | BW47: 0.7924097434 | BZ47: =+BZ46 -> BURNER_SYSTEM | CA47: Y | CC47: 5585 | CD47: 17857 | CE47: 23442 | CF47: 731 | CG47: 0.7617524102 | CJ47: BURNER_SYSTEM | CK47: Y | CM47: 4896 | CN47: 15531 | CO47: 20427 | CP47: 637 | CQ47: 0.7603172272 | CT47: BURNER_SYSTEM | CU47: Y | CW47: 2867 | CX47: 9042 | CY47: 11909 | CZ47: 372 | DA47: 0.7592577043 | DD47: =+DD46 -> Burner Sys | DE47: Y | DG47: 2140 | DH47: 6919 | DI47: 9059 | DJ47: 283 | DK47: 0.764 | DL47: -HOG&Atlantic Bu Req from Req to buReq -26K | DN47: =+DN46 -> Burner Sys | DO47: Y | DQ47: 32 | DR47: 44 | DS47: 76 | DT47: 2 | DU47: 0.5789473684 | DX47: =+DX46 -> Burner Sys | DZ47: Y | EA47: 0 | EB47: 0 | EC47: 0 | ED47: 0 | EE47: n/a | EH47: =+EH46 -> Burner Sys | EJ47: Y | EK47: 0 | EL47: 0 | EM47: 0 | EN47: 0 | EO47: n/a
A48: New | B48: 0 | C48: 0 | D48: 0 | E48: 0 | F48: =IFERROR(OFFSET(F48,0,9,1,1)-OFFSET(F48,0,19,1,1),"n/a") -> n/a | H48: =+H47 -> BURNER_SYSTEM | J48: Y | K48: =SUMIFS(PvtByClassCurr!$U$9:$U$980, PvtByClassCurr!$L$9:$L$980,$H48, PvtByClassCurr!$M$9:$M$980,"Total") -> 0 | L48: =SUMIFS(PvtByClassCurr!$V$9:$V$980, PvtByClassCurr!$L$9:$L$980,$H48, PvtByClassCurr!$M$9:$M$980,"Total") -> 0 | M48: =SUM(K48:L48) -> 0 | N48: =SUMIFS(PvtByClassCurr!$T$9:$T$980, PvtByClassCurr!$L$9:$L$980,$H48, PvtByClassCurr!$M$9:$M$980,"Total") -> 0 | O48: =IF(M48=0,"n/a",L48/M48) -> n/a | R48: =+R47 -> BURNER_SYSTEM | T48: Y | U48: 0 | V48: 0 | W48: 0 | X48: 0 | Y48: n/a | AB48: =+AB47 -> BURNER_SYSTEM | AD48: Y | AE48: 0 | AF48: 0 | AG48: 0 | AH48: 0 | AI48: n/a | AL48: =+AL47 -> BURNER_SYSTEM | AN48: Y | AO48: 0 | AP48: 0 | AQ48: 0 | AR48: 0 | AS48: n/a | AV48: BURNER_SYSTEM | AX48: Y | AY48: 0 | AZ48: 0 | BA48: 0 | BB48: 0 | BC48: n/a | BF48: BURNER_SYSTEM | BH48: Y | BI48: 0 | BJ48: 0 | BK48: 0 | BL48: 0 | BM48: n/a | BP48: =+BP47 -> BURNER_SYSTEM | BR48: Y | BS48: 0 | BT48: 0 | BU48: 0 | BV48: 0 | BW48: n/a | BZ48: =+BZ47 -> BURNER_SYSTEM | CB48: Y | CC48: 0 | CD48: 0 | CE48: 0 | CF48: 0 | CG48: n/a | CJ48: BURNER_SYSTEM | CL48: Y | CM48: 0 | CN48: 0 | CO48: 0 | CP48: 0 | CQ48: n/a | CT48: BURNER_SYSTEM | CV48: Y | CW48: 0 | CX48: 0 | CY48: 0 | CZ48: 0 | DA48: n/a | DD48: =+DD47 -> Burner Sys | DF48: Y | DG48: 2034 | DH48: 1297 | DI48: 3331 | DJ48: 106 | DK48: 0.389 | DL48: -remove Apprvl Sk, Apprvl Other -10K | DN48: =+DN47 -> Burner Sys | DP48: Y | DQ48: 296 | DR48: 82 | DS48: 378 | DT48: 10 | DU48: 0.2169312169 | DX48: =+DX47 -> Burner Sys | DZ48: N | EA48: 139820 | EB48: 53347 | EC48: 193167 | ED48: 5124 | EE48: 0.2761703604 | EH48: =+EH47 -> Burner Sys | EJ48: N | EK48: 141652 | EL48: 51288 | EM48: 192940 | EN48: 5118 | EO48: 0.266
A49: All(proportional) | B49: =+B46/OFFSET(B46,0,19,1,1) -> -0.01055542198 | C49: =+C46/OFFSET(C46,0,19,1,1) -> -0.008055411826 | D49: =+D46/OFFSET(D46,0,19,1,1) -> -0.009291625054 | E49: =+E46/OFFSET(E46,0,19,1,1) -> -0.009391435011 | H49: =TEXT(M46/N46,"0.0")&" pnts/equip" -> 31.6 pnts/equip | R49: =TEXT(W46/X46,"0.0")&" pnts/equip" -> 31.6 pnts/equip | AB49: =TEXT(AG46/AH46,"0.0")&" pnts/equip" -> 31.6 pnts/equip | AL49: =TEXT(AQ46/AR46,"0.0")&" pnts/equip" -> 31.6 pnts/equip | AV49: 31.6 pnts/equip | BF49: 31.5 pnts/equip | BP49: =TEXT(BU46/BV46,"0.0")&" pnts/equip" -> 31.5 pnts/equip | BZ49: =TEXT(CE46/CF46,"0.0")&" pnts/equip" -> 31.5 pnts/equip | CJ49: 31.5 pnts/equip | CT49: 31.5 pnts/equip | DD49: =TEXT(DI46/DJ46,"0.0")&" pnts/equip" -> 31.5 pnts/equip | DL49: -add BMS Manuf. +5K | DN49: =TEXT(DS46/DT46,"0.0")&" pnts/equip" -> 37.7 pnts/equip
A51: All | B51: =OFFSET(B51,0,9,1,1)-OFFSET(B51,0,19,1,1) -> -81 | C51: -79 | D51: -160 | E51: -10 | F51: =IFERROR(OFFSET(F51,0,9,1,1)-OFFSET(F51,0,19,1,1),"n/a") -> 0.02858664773 | H51: BURNER | I51: All | J51: All | K51: =SUMIFS(PvtByClassCurr!$O$9:$O$980, PvtByClassCurr!$L$9:$L$980,$H51, PvtByClassCurr!$M$9:$M$980,"Total") -> 146 | L51: =SUMIFS(PvtByClassCurr!$P$9:$P$980, PvtByClassCurr!$L$9:$L$980,$H51, PvtByClassCurr!$M$9:$M$980,"Total") -> 206 | M51: =SUM(K51:L51) -> 352 | N51: =SUMIFS(PvtByClassCurr!$N$9:$N$980, PvtByClassCurr!$L$9:$L$980,$H51, PvtByClassCurr!$M$9:$M$980,"Total") -> 22 | O51: =IF(M51=0,"n/a",L51/M51) -> 0.5852272727 | R51: BURNER | S51: All | T51: All | U51: 227 | V51: 285 | W51: 512 | X51: 32 | Y51: 0.556640625 | AB51: BURNER | AC51: All | AD51: All | AE51: 227 | AF51: 285 | AG51: 512 | AH51: 32 | AI51: 0.556640625 | AL51: BURNER | AM51: All | AN51: All | AO51: 227 | AP51: 285 | AQ51: 512 | AR51: 32 | AS51: 0.556640625 | AV51: BURNER | AW51: All | AX51: All | AY51: 227 | AZ51: 285 | BA51: 512 | BB51: 32 | BC51: 0.556640625 | BF51: BURNER | BG51: All | BH51: All | BI51: 227 | BJ51: 285 | BK51: 512 | BL51: 32 | BM51: 0.556640625 | BP51: BURNER | BQ51: All | BR51: All | BS51: 259 | BT51: 253 | BU51: 512 | BV51: 32 | BW51: 0.494140625 | BZ51: BURNER | CA51: All | CB51: All | CC51: 259 | CD51: 253 | CE51: 512 | CF51: 32 | CG51: 0.494140625 | CJ51: BURNER | CK51: All | CL51: All | CM51: 275 | CN51: 237 | CO51: 512 | CP51: 32 | CQ51: 0.462890625 | CT51: BURNER | CU51: All | CV51: All | CW51: 275 | CX51: 237 | CY51: 512 | CZ51: 32 | DA51: 0.462890625 | DD51: Burner | DE51: All | DF51: All | DG51: 275 | DH51: 237 | DI51: 512 | DJ51: 32 | DK51: 0.463 | DN51: Burner | DO51: All | DP51: All | DQ51: 174 | DR51: 130 | DS51: 304 | DT51: 19 | DU51: 0.4276315789 | DX51: Burner | DY51: All | DZ51: All | EA51: 30 | EB51: 18 | EC51: 48 | ED51: 3 | EE51: 0.375 | EH51: Burner | EI51: All | EJ51: All | EK51: 10 | EL51: 7 | EM51: 17 | EN51: 1 | EO51: 0.412
A52: Cleansed | B52: 0 | C52: 0 | D52: 0 | E52: 0 | F52: =IFERROR(OFFSET(F52,0,9,1,1)-OFFSET(F52,0,19,1,1),"n/a") -> n/a | H52: =+H51 -> BURNER | I52: Y | K52: =SUMIFS(PvtByClassCurr!$R$9:$R$980, PvtByClassCurr!$L$9:$L$980,$H52, PvtByClassCurr!$M$9:$M$980,"Total") -> 0 | L52: =SUMIFS(PvtByClassCurr!$S$9:$S$980, PvtByClassCurr!$L$9:$L$980,$H52, PvtByClassCurr!$M$9:$M$980,"Total") -> 0 | M52: =SUM(K52:L52) -> 0 | N52: =SUMIFS(PvtByClassCurr!$Q$9:$Q$980, PvtByClassCurr!$L$9:$L$980,$H52, PvtByClassCurr!$M$9:$M$980,"Total") -> 0 | O52: =IF(M52=0,"n/a",L52/M52) -> n/a | R52: =+R51 -> BURNER | S52: Y | U52: 0 | V52: 0 | W52: 0 | X52: 0 | Y52: n/a | AB52: =+AB51 -> BURNER | AC52: Y | AE52: 0 | AF52: 0 | AG52: 0 | AH52: 0 | AI52: n/a | AL52: =+AL51 -> BURNER | AM52: Y | AO52: 0 | AP52: 0 | AQ52: 0 | AR52: 0 | AS52: n/a | AV52: BURNER | AW52: Y | AY52: 0 | AZ52: 0 | BA52: 0 | BB52: 0 | BC52: n/a | BF52: BURNER | BG52: Y | BI52: 0 | BJ52: 0 | BK52: 0 | BL52: 0 | BM52: n/a | BP52: =+BP51 -> BURNER | BQ52: Y | BS52: 0 | BT52: 0 | BU52: 0 | BV52: 0 | BW52: n/a | BZ52: =+BZ51 -> BURNER | CA52: Y | CC52: 0 | CD52: 0 | CE52: 0 | CF52: 0 | CG52: n/a | CJ52: BURNER | CK52: Y | CM52: 0 | CN52: 0 | CO52: 0 | CP52: 0 | CQ52: n/a | CT52: BURNER | CU52: Y | CW52: 0 | CX52: 0 | CY52: 0 | CZ52: 0 | DA52: n/a | DD52: =+DD51 -> Burner | DE52: Y | DG52: 0 | DH52: 0 | DI52: 0 | DJ52: 0 | DK52: n/a | DN52: =+DN51 -> Burner | DO52: Y | DQ52: 0 | DR52: 0 | DS52: 0 | DT52: 0 | DU52: n/a | DX52: =+DX51 -> Burner | DZ52: Y | EA52: 0 | EB52: 0 | EC52: 0 | ED52: 0 | EE52: n/a | EH52: =+EH51 -> Burner | EJ52: Y | EK52: 0 | EL52: 0 | EM52: 0 | EN52: 0 | EO52: n/a
A53: New | B53: 0 | C53: 0 | D53: 0 | E53: 0 | F53: =IFERROR(OFFSET(F53,0,9,1,1)-OFFSET(F53,0,19,1,1),"n/a") -> n/a | H53: =+H52 -> BURNER | J53: Y | K53: =SUMIFS(PvtByClassCurr!$U$9:$U$980, PvtByClassCurr!$L$9:$L$980,$H53, PvtByClassCurr!$M$9:$M$980,"Total") -> 0 | L53: =SUMIFS(PvtByClassCurr!$V$9:$V$980, PvtByClassCurr!$L$9:$L$980,$H53, PvtByClassCurr!$M$9:$M$980,"Total") -> 0 | M53: =SUM(K53:L53) -> 0 | N53: =SUMIFS(PvtByClassCurr!$T$9:$T$980, PvtByClassCurr!$L$9:$L$980,$H53, PvtByClassCurr!$M$9:$M$980,"Total") -> 0 | O53: =IF(M53=0,"n/a",L53/M53) -> n/a | R53: =+R52 -> BURNER | T53: Y | U53: 0 | V53: 0 | W53: 0 | X53: 0 | Y53: n/a | AB53: =+AB52 -> BURNER | AD53: Y | AE53: 0 | AF53: 0 | AG53: 0 | AH53: 0 | AI53: n/a | AL53: =+AL52 -> BURNER | AN53: Y | AO53: 0 | AP53: 0 | AQ53: 0 | AR53: 0 | AS53: n/a | AV53: BURNER | AX53: Y | AY53: 0 | AZ53: 0 | BA53: 0 | BB53: 0 | BC53: n/a | BF53: BURNER | BH53: Y | BI53: 0 | BJ53: 0 | BK53: 0 | BL53: 0 | BM53: n/a | BP53: =+BP52 -> BURNER | BR53: Y | BS53: 0 | BT53: 0 | BU53: 0 | BV53: 0 | BW53: n/a | BZ53: =+BZ52 -> BURNER | CB53: Y | CC53: 0 | CD53: 0 | CE53: 0 | CF53: 0 | CG53: n/a | CJ53: BURNER | CL53: Y | CM53: 0 | CN53: 0 | CO53: 0 | CP53: 0 | CQ53: n/a | CT53: BURNER | CV53: Y | CW53: 0 | CX53: 0 | CY53: 0 | CZ53: 0 | DA53: n/a | DD53: =+DD52 -> Burner | DF53: Y | DG53: 245 | DH53: 219 | DI53: 464 | DJ53: 29 | DK53: 0.472 | DN53: =+DN52 -> Burner | DP53: Y | DQ53: 144 | DR53: 112 | DS53: 256 | DT53: 16 | DU53: 0.4375 | DX53: =+DX52 -> Burner | DZ53: N | EA53: 30 | EB53: 18 | EC53: 48 | ED53: 3 | EE53: 0.375 | EH53: =+EH52 -> Burner | EJ53: N | EK53: 10 | EL53: 7 | EM53: 17 | EN53: 1 | EO53: 0.412
A54: All(proportional) | B54: =+B51/OFFSET(B51,0,19,1,1) -> -0.3568281938 | C54: =+C51/OFFSET(C51,0,19,1,1) -> -0.2771929825 | D54: =+D51/OFFSET(D51,0,19,1,1) -> -0.3125 | E54: =+E51/OFFSET(E51,0,19,1,1) -> -0.3125 | H54: =TEXT(M51/N51,"0.0")&" pnts/equip" -> 16.0 pnts/equip | R54: =TEXT(W51/X51,"0.0")&" pnts/equip" -> 16.0 pnts/equip | AB54: =TEXT(AG51/AH51,"0.0")&" pnts/equip" -> 16.0 pnts/equip | AL54: =TEXT(AQ51/AR51,"0.0")&" pnts/equip" -> 16.0 pnts/equip | AV54: 16.0 pnts/equip | BF54: 16.0 pnts/equip | BP54: =TEXT(BU51/BV51,"0.0")&" pnts/equip" -> 16.0 pnts/equip | BZ54: =TEXT(CE51/CF51,"0.0")&" pnts/equip" -> 16.0 pnts/equip | CJ54: 16.0 pnts/equip | CT54: 16.0 pnts/equip | DD54: =TEXT(DI51/DJ51,"0.0")&" pnts/equip" -> 16.0 pnts/equip | DN54: =TEXT(DS51/DT51,"0.0")&" pnts/equip" -> 16.0 pnts/equip
A56: All | B56: =OFFSET(B56,0,9,1,1)-OFFSET(B56,0,19,1,1) -> -131 | C56: -97 | D56: -228 | E56: -4 | F56: =IFERROR(OFFSET(F56,0,9,1,1)-OFFSET(F56,0,19,1,1),"n/a") -> -0.02746932535 | H56: BOILER_POWER_FT | I56: All | J56: All | K56: =SUMIFS(PvtByClassCurr!$O$9:$O$980, PvtByClassCurr!$L$9:$L$980,$H56, PvtByClassCurr!$M$9:$M$980,"Total") -> 342 | L56: =SUMIFS(PvtByClassCurr!$P$9:$P$980, PvtByClassCurr!$L$9:$L$980,$H56, PvtByClassCurr!$M$9:$M$980,"Total") -> 173 | M56: =SUM(K56:L56) -> 515 | N56: =SUMIFS(PvtByClassCurr!$N$9:$N$980, PvtByClassCurr!$L$9:$L$980,$H56, PvtByClassCurr!$M$9:$M$980,"Total") -> 9 | O56: =IF(M56=0,"n/a",L56/M56) -> 0.3359223301 | R56: BOILER_POWER_FT | S56: All | T56: All | U56: 473 | V56: 270 | W56: 743 | X56: 13 | Y56: 0.3633916555 | AB56: BOILER_POWER_FT | AC56: All | AD56: All | AE56: 473 | AF56: 270 | AG56: 743 | AH56: 13 | AI56: 0.3633916555 | AL56: BOILER_POWER_FT | AM56: All | AN56: All | AO56: 520 | AP56: 280 | AQ56: 800 | AR56: 14 | AS56: 0.35 | AV56: BOILER_POWER_FT | AW56: All | AX56: All | AY56: 416 | AZ56: 213 | BA56: 629 | BB56: 11 | BC56: 0.3386327504 | BF56: BOILER_POWER_FT | BG56: All | BH56: All | BI56: 416 | BJ56: 213 | BK56: 629 | BL56: 11 | BM56: 0.3386327504 | BP56: BOILER_POWER_FT | BQ56: All | BR56: All | BS56: 422 | BT56: 207 | BU56: 629 | BV56: 11 | BW56: 0.3290937997 | BZ56: BOILER_POWER_FT | CA56: All | CB56: All | CC56: 423 | CD56: 206 | CE56: 629 | CF56: 11 | CG56: 0.3275039746 | CJ56: BOILER_POWER_FT | CK56: All | CL56: All | CM56: 423 | CN56: 206 | CO56: 629 | CP56: 11 | CQ56: 0.3275039746 | CT56: BOILER_POWER_FT | CU56: All | CV56: All | CW56: 423 | CX56: 206 | CY56: 629 | CZ56: 11 | DA56: 0.3275039746 | DD56: Boiler-PFT | DE56: All | DF56: All | DG56: 428 | DH56: 201 | DI56: 629 | DJ56: 11 | DK56: 0.32 | DN56: Boiler-PFT | DO56: All | DP56: All | DQ56: 436 | DR56: 193 | DS56: 629 | DT56: 11 | DU56: 0.306836248 | DV56: Mostly complete in SAP, Waiting on Fired Duty UoM | DX56: Boiler-PFT | DY56: All | DZ56: All | EA56: 428 | EB56: 201 | EC56: 629 | ED56: 11 | EE56: 0.319554849 | EF56: not comp | EH56: Boiler-PFT | EI56: All | EJ56: All | EK56: 357 | EL56: 167 | EM56: 524 | EN56: 9 | EO56: 0.319 | EP56: not comp
A57: Cleansed | B57: 0 | C57: 0 | D57: 0 | E57: 0 | F57: =IFERROR(OFFSET(F57,0,9,1,1)-OFFSET(F57,0,19,1,1),"n/a") -> n/a | H57: =+H56 -> BOILER_POWER_FT | I57: Y | K57: =SUMIFS(PvtByClassCurr!$R$9:$R$980, PvtByClassCurr!$L$9:$L$980,$H57, PvtByClassCurr!$M$9:$M$980,"Total") -> 0 | L57: =SUMIFS(PvtByClassCurr!$S$9:$S$980, PvtByClassCurr!$L$9:$L$980,$H57, PvtByClassCurr!$M$9:$M$980,"Total") -> 0 | M57: =SUM(K57:L57) -> 0 | N57: =SUMIFS(PvtByClassCurr!$Q$9:$Q$980, PvtByClassCurr!$L$9:$L$980,$H57, PvtByClassCurr!$M$9:$M$980,"Total") -> 0 | O57: =IF(M57=0,"n/a",L57/M57) -> n/a | R57: =+R56 -> BOILER_POWER_FT | S57: Y | U57: 0 | V57: 0 | W57: 0 | X57: 0 | Y57: n/a | AB57: =+AB56 -> BOILER_POWER_FT | AC57: Y | AE57: 0 | AF57: 0 | AG57: 0 | AH57: 0 | AI57: n/a | AL57: =+AL56 -> BOILER_POWER_FT | AM57: Y | AO57: 0 | AP57: 0 | AQ57: 0 | AR57: 0 | AS57: n/a | AV57: BOILER_POWER_FT | AW57: Y | AY57: 0 | AZ57: 0 | BA57: 0 | BB57: 0 | BC57: n/a | BF57: BOILER_POWER_FT | BG57: Y | BI57: 0 | BJ57: 0 | BK57: 0 | BL57: 0 | BM57: n/a | BP57: =+BP56 -> BOILER_POWER_FT | BQ57: Y | BS57: 0 | BT57: 0 | BU57: 0 | BV57: 0 | BW57: n/a | BZ57: =+BZ56 -> BOILER_POWER_FT | CA57: Y | CC57: 0 | CD57: 0 | CE57: 0 | CF57: 0 | CG57: n/a | CJ57: BOILER_POWER_FT | CK57: Y | CM57: 0 | CN57: 0 | CO57: 0 | CP57: 0 | CQ57: n/a | CT57: BOILER_POWER_FT | CU57: Y | CW57: 0 | CX57: 0 | CY57: 0 | CZ57: 0 | DA57: n/a | DD57: =+DD56 -> Boiler-PFT | DE57: Y | DG57: 0 | DH57: 0 | DI57: 0 | DJ57: 0 | DK57: n/a | DN57: =+DN56 -> Boiler-PFT | DO57: Y | DQ57: 0 | DR57: 0 | DS57: 0 | DT57: 0 | DU57: n/a | DX57: =+DX56 -> Boiler-PFT | DZ57: Y | EA57: 0 | EB57: 0 | EC57: 0 | ED57: 0 | EE57: n/a | EH57: =+EH56 -> Boiler-PFT | EJ57: Y | EK57: 0 | EL57: 0 | EM57: 0 | EN57: 0 | EO57: n/a
A58: New | B58: 0 | C58: 0 | D58: 0 | E58: 0 | F58: =IFERROR(OFFSET(F58,0,9,1,1)-OFFSET(F58,0,19,1,1),"n/a") -> n/a | H58: =+H57 -> BOILER_POWER_FT | J58: Y | K58: =SUMIFS(PvtByClassCurr!$U$9:$U$980, PvtByClassCurr!$L$9:$L$980,$H58, PvtByClassCurr!$M$9:$M$980,"Total") -> 0 | L58: =SUMIFS(PvtByClassCurr!$V$9:$V$980, PvtByClassCurr!$L$9:$L$980,$H58, PvtByClassCurr!$M$9:$M$980,"Total") -> 0 | M58: =SUM(K58:L58) -> 0 | N58: =SUMIFS(PvtByClassCurr!$T$9:$T$980, PvtByClassCurr!$L$9:$L$980,$H58, PvtByClassCurr!$M$9:$M$980,"Total") -> 0 | O58: =IF(M58=0,"n/a",L58/M58) -> n/a | R58: =+R57 -> BOILER_POWER_FT | T58: Y | U58: 0 | V58: 0 | W58: 0 | X58: 0 | Y58: n/a | AB58: =+AB57 -> BOILER_POWER_FT | AD58: Y | AE58: 0 | AF58: 0 | AG58: 0 | AH58: 0 | AI58: n/a | AL58: =+AL57 -> BOILER_POWER_FT | AN58: Y | AO58: 0 | AP58: 0 | AQ58: 0 | AR58: 0 | AS58: n/a | AV58: BOILER_POWER_FT | AX58: Y | AY58: 0 | AZ58: 0 | BA58: 0 | BB58: 0 | BC58: n/a | BF58: BOILER_POWER_FT | BH58: Y | BI58: 0 | BJ58: 0 | BK58: 0 | BL58: 0 | BM58: n/a | BP58: =+BP57 -> BOILER_POWER_FT | BR58: Y | BS58: 0 | BT58: 0 | BU58: 0 | BV58: 0 | BW58: n/a | BZ58: =+BZ57 -> BOILER_POWER_FT | CB58: Y | CC58: 0 | CD58: 0 | CE58: 0 | CF58: 0 | CG58: n/a | CJ58: BOILER_POWER_FT | CL58: Y | CM58: 0 | CN58: 0 | CO58: 0 | CP58: 0 | CQ58: n/a | CT58: BOILER_POWER_FT | CV58: Y | CW58: 0 | CX58: 0 | CY58: 0 | CZ58: 0 | DA58: n/a | DD58: =+DD57 -> Boiler-PFT | DF58: Y | DG58: 0 | DH58: 0 | DI58: 0 | DJ58: 0 | DK58: n/a | DN58: =+DN57 -> Boiler-PFT | DP58: Y | DQ58: 0 | DR58: 0 | DS58: 0 | DT58: 0 | DU58: n/a | DX58: =+DX57 -> Boiler-PFT | DZ58: N | EA58: 428 | EB58: 201 | EC58: 629 | ED58: 11 | EE58: 0.319554849 | EH58: =+EH57 -> Boiler-PFT | EJ58: N | EK58: 357 | EL58: 167 | EM58: 524 | EN58: 9 | EO58: 0.319
A59: All(proportional) | B59: =+B56/OFFSET(B56,0,19,1,1) -> -0.2769556025 | C59: =+C56/OFFSET(C56,0,19,1,1) -> -0.3592592593 | D59: =+D56/OFFSET(D56,0,19,1,1) -> -0.3068640646 | E59: =+E56/OFFSET(E56,0,19,1,1) -> -0.3076923077 | H59: =TEXT(M56/N56,"0.0")&" pnts/equip" -> 57.2 pnts/equip | R59: =TEXT(W56/X56,"0.0")&" pnts/equip" -> 57.2 pnts/equip | AB59: =TEXT(AG56/AH56,"0.0")&" pnts/equip" -> 57.2 pnts/equip | AL59: =TEXT(AQ56/AR56,"0.0")&" pnts/equip" -> 57.1 pnts/equip | AV59: 57.2 pnts/equip | BF59: 57.2 pnts/equip | BP59: =TEXT(BU56/BV56,"0.0")&" pnts/equip" -> 57.2 pnts/equip | BZ59: =TEXT(CE56/CF56,"0.0")&" pnts/equip" -> 57.2 pnts/equip | CJ59: 57.2 pnts/equip | CT59: 57.2 pnts/equip | DD59: =TEXT(DI56/DJ56,"0.0")&" pnts/equip" -> 57.2 pnts/equip | DN59: =TEXT(DS56/DT56,"0.0")&" pnts/equip" -> 57.2 pnts/equip
A61: All | B61: =OFFSET(B61,0,9,1,1)-OFFSET(B61,0,19,1,1) -> -7517 | C61: -3484 | D61: -11001 | E61: -297 | F61: =IFERROR(OFFSET(F61,0,9,1,1)-OFFSET(F61,0,19,1,1),"n/a") -> 0.01723944516 | H61: HEATER_INDIR_FIRED | I61: All | J61: All | K61: =SUMIFS(PvtByClassCurr!$O$9:$O$980, PvtByClassCurr!$L$9:$L$980,$H61, PvtByClassCurr!$M$9:$M$980,"Total") -> 9673 | L61: =SUMIFS(PvtByClassCurr!$P$9:$P$980, PvtByClassCurr!$L$9:$L$980,$H61, PvtByClassCurr!$M$9:$M$980,"Total") -> 5383 | M61: =SUM(K61:L61) -> 15056 | N61: =SUMIFS(PvtByClassCurr!$N$9:$N$980, PvtByClassCurr!$L$9:$L$980,$H61, PvtByClassCurr!$M$9:$M$980,"Total") -> 404 | O61: =IF(M61=0,"n/a",L61/M61) -> 0.357531881 | R61: HEATER_INDIR_FIRED | S61: All | T61: All | U61: 17190 | V61: 8867 | W61: 26057 | X61: 701 | Y61: 0.3402924358 | AB61: HEATER_INDIR_FIRED | AC61: All | AD61: All | AE61: 17203 | AF61: 8925 | AG61: 26128 | AH61: 703 | AI61: 0.3415875689 | AL61: HEATER_INDIR_FIRED | AM61: All | AN61: All | AO61: 17326 | AP61: 8986 | AQ61: 26312 | AR61: 708 | AS61: 0.3415171785 | AV61: HEATER_INDIR_FIRED | AW61: All | AX61: All | AY61: 17340 | AZ61: 9008 | BA61: 26348 | BB61: 710 | BC61: 0.3418855321 | BF61: HEATER_INDIR_FIRED | BG61: All | BH61: All | BI61: 17170 | BJ61: 9213 | BK61: 26383 | BL61: 710 | BM61: 0.3492021377 | BP61: HEATER_INDIR_FIRED | BQ61: All | BR61: All | BS61: 17170 | BT61: 9213 | BU61: 26383 | BV61: 710 | BW61: 0.3492021377 | BZ61: HEATER_INDIR_FIRED | CA61: All | CB61: All | CC61: 17347 | CD61: 9333 | CE61: 26680 | CF61: 718 | CG61: 0.3498125937 | CJ61: HEATER_INDIR_FIRED | CK61: All | CL61: All | CM61: 17369 | CN61: 9311 | CO61: 26680 | CP61: 718 | CQ61: 0.348988006 | CT61: HEATER_INDIR_FIRED | CU61: All | CV61: All | CW61: 17488 | CX61: 9380 | CY61: 26868 | CZ61: 723 | DA61: 0.3491141879 | DD61: Heater-IDF | DE61: All | DF61: All | DG61: 15380 | DH61: 6792 | DI61: 22172 | DJ61: 597 | DK61: 0.306 | DN61: Heater-IDF | DO61: All | DP61: All | DQ61: 15554 | DR61: 6766 | DS61: 22320 | DT61: 601 | DU61: 0.3031362007 | DV61: Mostly complete in SAP, Waiting on Fired Duty UoM | DX61: Heater-IDF | DY61: All | DZ61: All | EA61: 15575 | EB61: 7074 | EC61: 22649 | ED61: 610 | EE61: 0.3123316703 | EF61: not compl | EH61: Heater-IDF | EI61: All | EJ61: All | EK61: 15891 | EL61: 6908 | EM61: 22799 | EN61: 614 | EO61: 0.303 | EP61: not compl
A62: Cleansed | B62: 0 | C62: 0 | D62: 0 | E62: 0 | F62: =IFERROR(OFFSET(F62,0,9,1,1)-OFFSET(F62,0,19,1,1),"n/a") -> 0 | H62: =+H61 -> HEATER_INDIR_FIRED | I62: Y | K62: =SUMIFS(PvtByClassCurr!$R$9:$R$980, PvtByClassCurr!$L$9:$L$980,$H62, PvtByClassCurr!$M$9:$M$980,"Total") -> 15 | L62: =SUMIFS(PvtByClassCurr!$S$9:$S$980, PvtByClassCurr!$L$9:$L$980,$H62, PvtByClassCurr!$M$9:$M$980,"Total") -> 22 | M62: =SUM(K62:L62) -> 37 | N62: =SUMIFS(PvtByClassCurr!$Q$9:$Q$980, PvtByClassCurr!$L$9:$L$980,$H62, PvtByClassCurr!$M$9:$M$980,"Total") -> 1 | O62: =IF(M62=0,"n/a",L62/M62) -> 0.5945945946 | R62: =+R61 -> HEATER_INDIR_FIRED | S62: Y | U62: 15 | V62: 22 | W62: 37 | X62: 1 | Y62: 0.5945945946 | AB62: =+AB61 -> HEATER_INDIR_FIRED | AC62: Y | AE62: 15 | AF62: 22 | AG62: 37 | AH62: 1 | AI62: 0.5945945946 | AL62: =+AL61 -> HEATER_INDIR_FIRED | AM62: Y | AO62: 15 | AP62: 22 | AQ62: 37 | AR62: 1 | AS62: 0.5945945946 | AV62: HEATER_INDIR_FIRED | AW62: Y | AY62: 15 | AZ62: 22 | BA62: 37 | BB62: 1 | BC62: 0.5945945946 | BF62: HEATER_INDIR_FIRED | BG62: Y | BI62: 14 | BJ62: 23 | BK62: 37 | BL62: 1 | BM62: 0.6216216216 | BP62: =+BP61 -> HEATER_INDIR_FIRED | BQ62: Y | BS62: 14 | BT62: 23 | BU62: 37 | BV62: 1 | BW62: 0.6216216216 | BZ62: =+BZ61 -> HEATER_INDIR_FIRED | CA62: Y | CC62: 14 | CD62: 23 | CE62: 37 | CF62: 1 | CG62: 0.6216216216 | CJ62: HEATER_INDIR_FIRED | CK62: Y | CM62: 14 | CN62: 23 | CO62: 37 | CP62: 1 | CQ62: 0.6216216216 | CT62: HEATER_INDIR_FIRED | CU62: Y | CW62: 14 | CX62: 23 | CY62: 37 | CZ62: 1 | DA62: 0.6216216216 | DD62: =+DD61 -> Heater-IDF | DE62: Y | DG62: 0 | DH62: 0 | DI62: 0 | DJ62: 0 | DK62: n/a | DN62: =+DN61 -> Heater-IDF | DO62: Y | DQ62: 0 | DR62: 0 | DS62: 0 | DT62: 0 | DU62: n/a | DX62: =+DX61 -> Heater-IDF | DZ62: Y | EA62: 0 | EB62: 0 | EC62: 0 | ED62: 0 | EE62: n/a | EH62: =+EH61 -> Heater-IDF | EJ62: Y | EK62: 0 | EL62: 0 | EM62: 0 | EN62: 0 | EO62: n/a
A63: New | B63: =OFFSET(B63,0,9,1,1)-OFFSET(B63,0,19,1,1) -> 0 | C63: 0 | D63: 0 | E63: 0 | F63: =IFERROR(OFFSET(F63,0,9,1,1)-OFFSET(F63,0,19,1,1),"n/a") -> 0 | H63: =+H62 -> HEATER_INDIR_FIRED | J63: Y | K63: =SUMIFS(PvtByClassCurr!$U$9:$U$980, PvtByClassCurr!$L$9:$L$980,$H63, PvtByClassCurr!$M$9:$M$980,"Total") -> 24 | L63: =SUMIFS(PvtByClassCurr!$V$9:$V$980, PvtByClassCurr!$L$9:$L$980,$H63, PvtByClassCurr!$M$9:$M$980,"Total") -> 14 | M63: =SUM(K63:L63) -> 38 | N63: =SUMIFS(PvtByClassCurr!$T$9:$T$980, PvtByClassCurr!$L$9:$L$980,$H63, PvtByClassCurr!$M$9:$M$980,"Total") -> 1 | O63: =IF(M63=0,"n/a",L63/M63) -> 0.3684210526 | R63: =+R62 -> HEATER_INDIR_FIRED | T63: Y | U63: 24 | V63: 14 | W63: 38 | X63: 1 | Y63: 0.3684210526 | AB63: =+AB62 -> HEATER_INDIR_FIRED | AD63: Y | AE63: 24 | AF63: 14 | AG63: 38 | AH63: 1 | AI63: 0.3684210526 | AL63: =+AL62 -> HEATER_INDIR_FIRED | AN63: Y | AO63: 24 | AP63: 14 | AQ63: 38 | AR63: 1 | AS63: 0.3684210526 | AV63: HEATER_INDIR_FIRED | AX63: Y | AY63: 0 | AZ63: 0 | BA63: 0 | BB63: 1 | BC63: n/a | BF63: HEATER_INDIR_FIRED | BH63: Y | BI63: 0 | BJ63: 0 | BK63: 0 | BL63: 0 | BM63: n/a | BP63: =+BP62 -> HEATER_INDIR_FIRED | BR63: Y | BS63: 0 | BT63: 0 | BU63: 0 | BV63: 0 | BW63: n/a | BZ63: =+BZ62 -> HEATER_INDIR_FIRED | CB63: Y | CC63: 0 | CD63: 0 | CE63: 0 | CF63: 0 | CG63: n/a | CJ63: HEATER_INDIR_FIRED | CL63: Y | CM63: 0 | CN63: 0 | CO63: 0 | CP63: 0 | CQ63: n/a | CT63: HEATER_INDIR_FIRED | CV63: Y | CW63: 0 | CX63: 0 | CY63: 0 | CZ63: 0 | DA63: n/a | DD63: =+DD62 -> Heater-IDF | DF63: Y | DG63: 24 | DH63: 13 | DI63: 37 | DJ63: 1 | DK63: 0.351 | DN63: =+DN62 -> Heater-IDF | DP63: Y | DQ63: 24 | DR63: 13 | DS63: 37 | DT63: 1 | DU63: 0.3513513514 | DX63: =+DX62 -> Heater-IDF | DZ63: N | EA63: 15575 | EB63: 7074 | EC63: 22649 | ED63: 610 | EE63: 0.3123316703 | EH63: =+EH62 -> Heater-IDF | EJ63: N | EK63: 15891 | EL63: 6908 | EM63: 22799 | EN63: 614 | EO63: 0.303
A64: All(proportional) | B64: =+B61/OFFSET(B61,0,19,1,1) -> -0.4372891216 | C64: =+C61/OFFSET(C61,0,19,1,1) -> -0.3929175595 | D64: =+D61/OFFSET(D61,0,19,1,1) -> -0.4221898146 | E64: =+E61/OFFSET(E61,0,19,1,1) -> -0.4236804565 | H64: =TEXT(M61/N61,"0.0")&" pnts/equip" -> 37.3 pnts/equip | R64: =TEXT(W61/X61,"0.0")&" pnts/equip" -> 37.2 pnts/equip | AB64: =TEXT(AG61/AH61,"0.0")&" pnts/equip" -> 37.2 pnts/equip | AL64: =TEXT(AQ61/AR61,"0.0")&" pnts/equip" -> 37.2 pnts/equip | AV64: 37.1 pnts/equip | BF64: 37.2 pnts/equip | BP64: =TEXT(BU61/BV61,"0.0")&" pnts/equip" -> 37.2 pnts/equip | BZ64: =TEXT(CE61/CF61,"0.0")&" pnts/equip" -> 37.2 pnts/equip | CJ64: 37.2 pnts/equip | CT64: 37.2 pnts/equip | DD64: =TEXT(DI61/DJ61,"0.0")&" pnts/equip" -> 37.1 pnts/equip | DN64: =TEXT(DS61/DT61,"0.0")&" pnts/equip" -> 37.1 pnts/equip
A66: All | B66: =OFFSET(B66,0,9,1,1)-OFFSET(B66,0,19,1,1) -> -59 | C66: -22 | D66: -81 | E66: -3 | F66: =IFERROR(OFFSET(F66,0,9,1,1)-OFFSET(F66,0,19,1,1),"n/a") -> 0.01088291019 | H66: FIRETUBE | I66: All | J66: All | K66: =SUMIFS(PvtByClassCurr!$O$9:$O$980, PvtByClassCurr!$L$9:$L$980,$H66, PvtByClassCurr!$M$9:$M$980,"Total") -> 219 | L66: =SUMIFS(PvtByClassCurr!$P$9:$P$980, PvtByClassCurr!$L$9:$L$980,$H66, PvtByClassCurr!$M$9:$M$980,"Total") -> 106 | M66: =SUM(K66:L66) -> 325 | N66: =SUMIFS(PvtByClassCurr!$N$9:$N$980, PvtByClassCurr!$L$9:$L$980,$H66, PvtByClassCurr!$M$9:$M$980,"Total") -> 12 | O66: =IF(M66=0,"n/a",L66/M66) -> 0.3261538462 | R66: FIRETUBE | S66: All | T66: All | U66: 278 | V66: 128 | W66: 406 | X66: 15 | Y66: 0.315270936 | AB66: FIRETUBE | AC66: All | AD66: All | AE66: 405 | AF66: 190 | AG66: 595 | AH66: 22 | AI66: 0.3193277311 | AL66: FIRETUBE | AM66: All | AN66: All | AO66: 526 | AP66: 231 | AQ66: 757 | AR66: 28 | AS66: 0.3051519155 | AV66: FIRETUBE | AW66: All | AX66: All | AY66: 526 | AZ66: 231 | BA66: 757 | BB66: 28 | BC66: 0.3051519155 | BF66: FIRETUBE | BG66: All | BH66: All | BI66: 526 | BJ66: 231 | BK66: 757 | BL66: 28 | BM66: 0.3051519155 | BP66: FIRETUBE | BQ66: All | BR66: All | BS66: 526 | BT66: 231 | BU66: 757 | BV66: 28 | BW66: 0.3051519155 | BZ66: FIRETUBE | CA66: All | CB66: All | CC66: 526 | CD66: 231 | CE66: 757 | CF66: 28 | CG66: 0.3051519155 | CJ66: FIRETUBE | CK66: All | CL66: All | CM66: 604 | CN66: 259 | CO66: 863 | CP66: 32 | CQ66: 0.3001158749 | CT66: FIRETUBE | CU66: All | CV66: All | CW66: 683 | CX66: 293 | CY66: 976 | CZ66: 36 | DA66: 0.300204918 | DD66: Firetube | DE66: All | DF66: All | DG66: 619 | DH66: 249 | DI66: 868 | DJ66: 32 | DK66: 0.287 | DN66: Firetube | DO66: All | DP66: All | DQ66: 678 | DR66: 275 | DS66: 953 | DT66: 35 | DU66: 0.2885624344 | DX66: Firetube | DY66: All | DZ66: All | EA66: 685 | EB66: 261 | EC66: 946 | ED66: 35 | EE66: 0.2758985201 | EH66: Firetube | EI66: All | EJ66: All | EK66: 709 | EL66: 250 | EM66: 959 | EN66: 34 | EO66: 0.261
A67: Cleansed | B67: 0 | C67: 0 | D67: 0 | E67: 0 | F67: =IFERROR(OFFSET(F67,0,9,1,1)-OFFSET(F67,0,19,1,1),"n/a") -> 0 | H67: =+H66 -> FIRETUBE | I67: y | K67: =SUMIFS(PvtByClassCurr!$R$9:$R$980, PvtByClassCurr!$L$9:$L$980,$H67, PvtByClassCurr!$M$9:$M$980,"Total") -> 22 | L67: =SUMIFS(PvtByClassCurr!$S$9:$S$980, PvtByClassCurr!$L$9:$L$980,$H67, PvtByClassCurr!$M$9:$M$980,"Total") -> 32 | M67: =SUM(K67:L67) -> 54 | N67: =SUMIFS(PvtByClassCurr!$Q$9:$Q$980, PvtByClassCurr!$L$9:$L$980,$H67, PvtByClassCurr!$M$9:$M$980,"Total") -> 2 | O67: =IF(M67=0,"n/a",L67/M67) -> 0.5925925926 | R67: =+R66 -> FIRETUBE | S67: y | U67: 22 | V67: 32 | W67: 54 | X67: 2 | Y67: 0.5925925926 | AB67: =+AB66 -> FIRETUBE | AC67: y | AE67: 22 | AF67: 32 | AG67: 54 | AH67: 2 | AI67: 0.5925925926 | AL67: =+AL66 -> FIRETUBE | AM67: y | AO67: 22 | AP67: 32 | AQ67: 54 | AR67: 2 | AS67: 0.5925925926 | AV67: FIRETUBE | AW67: y | AY67: 22 | AZ67: 32 | BA67: 54 | BB67: 2 | BC67: 0.5925925926 | BF67: FIRETUBE | BG67: y | BI67: 22 | BJ67: 32 | BK67: 54 | BL67: 2 | BM67: 0.5925925926 | BP67: =+BP66 -> FIRETUBE | BQ67: y | BS67: 22 | BT67: 32 | BU67: 54 | BV67: 2 | BW67: 0.5925925926 | BZ67: =+BZ66 -> FIRETUBE | CA67: y | CC67: 22 | CD67: 32 | CE67: 54 | CF67: 2 | CG67: 0.5925925926 | CJ67: FIRETUBE | CK67: y | CM67: 22 | CN67: 32 | CO67: 54 | CP67: 2 | CQ67: 0.5925925926 | CT67: FIRETUBE | CU67: y | CW67: 22 | CX67: 32 | CY67: 54 | CZ67: 2 | DA67: 0.5925925926 | DD67: =+DD66 -> Firetube | DE67: Y | DG67: 11 | DH67: 16 | DI67: 27 | DJ67: 1 | DK67: 0.593 | DN67: =+DN66 -> Firetube | DO67: y | DQ67: 11 | DR67: 17 | DS67: 28 | DT67: 1 | DU67: 0.6071428571 | DX67: =+DX66 -> Firetube | DZ67: Y | EA67: 0 | EB67: 0 | EC67: 0 | ED67: 0 | EE67: n/a | EH67: =+EH66 -> Firetube | EJ67: Y | EK67: 0 | EL67: 0 | EM67: 0 | EN67: 0 | EO67: n/a
A68: New | B68: 0 | C68: 0 | D68: 0 | E68: 0 | F68: =IFERROR(OFFSET(F68,0,9,1,1)-OFFSET(F68,0,19,1,1),"n/a") -> n/a | H68: =+H67 -> FIRETUBE | J68: y | K68: =SUMIFS(PvtByClassCurr!$U$9:$U$980, PvtByClassCurr!$L$9:$L$980,$H68, PvtByClassCurr!$M$9:$M$980,"Total") -> 0 | L68: =SUMIFS(PvtByClassCurr!$V$9:$V$980, PvtByClassCurr!$L$9:$L$980,$H68, PvtByClassCurr!$M$9:$M$980,"Total") -> 0 | M68: =SUM(K68:L68) -> 0 | N68: =SUMIFS(PvtByClassCurr!$T$9:$T$980, PvtByClassCurr!$L$9:$L$980,$H68, PvtByClassCurr!$M$9:$M$980,"Total") -> 0 | O68: =IF(M68=0,"n/a",L68/M68) -> n/a | R68: =+R67 -> FIRETUBE | T68: y | U68: 0 | V68: 0 | W68: 0 | X68: 0 | Y68: n/a | AB68: =+AB67 -> FIRETUBE | AD68: y | AE68: 0 | AF68: 0 | AG68: 0 | AH68: 0 | AI68: n/a | AL68: =+AL67 -> FIRETUBE | AN68: y | AO68: 0 | AP68: 0 | AQ68: 0 | AR68: 0 | AS68: n/a | AV68: FIRETUBE | AX68: y | AY68: 0 | AZ68: 0 | BA68: 0 | BB68: 0 | BC68: n/a | BF68: FIRETUBE | BH68: y | BI68: 0 | BJ68: 0 | BK68: 0 | BL68: 0 | BM68: n/a | BP68: =+BP67 -> FIRETUBE | BR68: y | BS68: 0 | BT68: 0 | BU68: 0 | BV68: 0 | BW68: n/a | BZ68: =+BZ67 -> FIRETUBE | CB68: y | CC68: 0 | CD68: 0 | CE68: 0 | CF68: 0 | CG68: n/a | CJ68: FIRETUBE | CL68: y | CM68: 0 | CN68: 0 | CO68: 0 | CP68: 0 | CQ68: n/a | CT68: FIRETUBE | CV68: y | CW68: 0 | CX68: 0 | CY68: 0 | CZ68: 0 | DA68: n/a | DD68: =+DD67 -> Firetube | DF68: Y | DG68: 31 | DH68: 23 | DI68: 54 | DJ68: 2 | DK68: 0.426 | DN68: =+DN67 -> Firetube | DP68: y | DQ68: 31 | DR68: 24 | DS68: 55 | DT68: 2 | DU68: 0.4363636364 | DX68: =+DX67 -> Firetube | DZ68: N | EA68: 685 | EB68: 261 | EC68: 946 | ED68: 35 | EE68: 0.2758985201 | EH68: =+EH67 -> Firetube | EJ68: N | EK68: 709 | EL68: 250 | EM68: 959 | EN68: 34 | EO68: 0.261
A69: All(proportional) | B69: =+B66/OFFSET(B66,0,19,1,1) -> -0.2122302158 | C69: =+C66/OFFSET(C66,0,19,1,1) -> -0.171875 | D69: =+D66/OFFSET(D66,0,19,1,1) -> -0.1995073892 | E69: =+E66/OFFSET(E66,0,19,1,1) -> -0.2 | H69: =TEXT(M66/N66,"0.0")&" pnts/equip" -> 27.1 pnts/equip | R69: =TEXT(W66/X66,"0.0")&" pnts/equip" -> 27.1 pnts/equip | AB69: =TEXT(AG66/AH66,"0.0")&" pnts/equip" -> 27.0 pnts/equip | AL69: =TEXT(AQ66/AR66,"0.0")&" pnts/equip" -> 27.0 pnts/equip | AV69: 27.0 pnts/equip | BF69: 27.0 pnts/equip | BP69: =TEXT(BU66/BV66,"0.0")&" pnts/equip" -> 27.0 pnts/equip | BZ69: =TEXT(CE66/CF66,"0.0")&" pnts/equip" -> 27.0 pnts/equip | CJ69: 27.0 pnts/equip | CT69: 27.1 pnts/equip | DD69: =TEXT(DI66/DJ66,"0.0")&" pnts/equip" -> 27.1 pnts/equip | DN69: =TEXT(DS66/DT66,"0.0")&" pnts/equip" -> 27.2 pnts/equip
A71: All | B71: =OFFSET(B71,0,9,1,1)-OFFSET(B71,0,19,1,1) -> -3574 | C71: -7384 | D71: -10958 | E71: -326 | F71: =IFERROR(OFFSET(F71,0,9,1,1)-OFFSET(F71,0,19,1,1),"n/a") -> -0.008881645399 | H71: PROCESS_COIL | I71: All | J71: All | K71: =SUMIFS(PvtByClassCurr!$O$9:$O$980, PvtByClassCurr!$L$9:$L$980,$H71, PvtByClassCurr!$M$9:$M$980,"Total") -> 2845 | L71: =SUMIFS(PvtByClassCurr!$P$9:$P$980, PvtByClassCurr!$L$9:$L$980,$H71, PvtByClassCurr!$M$9:$M$980,"Total") -> 5479 | M71: =SUM(K71:L71) -> 8324 | N71: =SUMIFS(PvtByClassCurr!$N$9:$N$980, PvtByClassCurr!$L$9:$L$980,$H71, PvtByClassCurr!$M$9:$M$980,"Total") -> 248 | O71: =IF(M71=0,"n/a",L71/M71) -> 0.6582172033 | R71: PROCESS_COIL | S71: All | T71: All | U71: 6419 | V71: 12863 | W71: 19282 | X71: 574 | Y71: 0.6670988487 | AB71: PROCESS_COIL | AC71: All | AD71: All | AE71: 6450 | AF71: 12935 | AG71: 19385 | AH71: 577 | AI71: 0.6672685066 | AL71: PROCESS_COIL | AM71: All | AN71: All | AO71: 6450 | AP71: 12935 | AQ71: 19385 | AR71: 577 | AS71: 0.6672685066 | AV71: PROCESS_COIL | AW71: All | AX71: All | AY71: 6432 | AZ71: 12920 | BA71: 19352 | BB71: 577 | BC71: 0.6676312526 | BF71: PROCESS_COIL | BG71: All | BH71: All | BI71: 6460 | BJ71: 12931 | BK71: 19391 | BL71: 578 | BM71: 0.6668557578 | BP71: PROCESS_COIL | BQ71: All | BR71: All | BS71: 6472 | BT71: 12952 | BU71: 19424 | BV71: 579 | BW71: 0.6668039539 | BZ71: PROCESS_COIL | CA71: All | CB71: All | CC71: 6485 | CD71: 12972 | CE71: 19457 | CF71: 580 | CG71: 0.6667009303 | CJ71: PROCESS_COIL | CK71: All | CL71: All | CM71: 6969 | CN71: 12453 | CO71: 19422 | CP71: 579 | CQ71: 0.641180105 | CT71: PROCESS_COIL | CU71: All | CV71: All | CW71: 6937 | CX71: 12417 | CY71: 19354 | CZ71: 577 | DA71: 0.6415728015 | DD71: Proc Coil | DE71: All | DF71: All | DG71: 5665 | DH71: 10413 | DI71: 16078 | DJ71: 479 | DK71: 0.648 | DN71: Proc Coil | DO71: All | DP71: All | DQ71: 2927 | DR71: 4476 | DS71: 7403 | DT71: 221 | DU71: 0.6046197488 | DX71: Proc Coil | DY71: All | DZ71: All | EA71: 2252 | EB71: 3683 | EC71: 5935 | ED71: 177 | EE71: 0.6205560236 | EH71: Proc Coil | EI71: All | EJ71: All | EK71: 708 | EL71: 919 | EM71: 1627 | EN71: 48 | EO71: 0.565
A72: Cleansed | B72: 0 | C72: 0 | D72: 0 | E72: 0 | F72: =IFERROR(OFFSET(F72,0,9,1,1)-OFFSET(F72,0,19,1,1),"n/a") -> 0 | H72: =+H71 -> PROCESS_COIL | I72: Y | K72: =SUMIFS(PvtByClassCurr!$R$9:$R$980, PvtByClassCurr!$L$9:$L$980,$H72, PvtByClassCurr!$M$9:$M$980,"Total") -> 3 | L72: =SUMIFS(PvtByClassCurr!$S$9:$S$980, PvtByClassCurr!$L$9:$L$980,$H72, PvtByClassCurr!$M$9:$M$980,"Total") -> 29 | M72: =SUM(K72:L72) -> 32 | N72: =SUMIFS(PvtByClassCurr!$Q$9:$Q$980, PvtByClassCurr!$L$9:$L$980,$H72, PvtByClassCurr!$M$9:$M$980,"Total") -> 1 | O72: =IF(M72=0,"n/a",L72/M72) -> 0.90625 | R72: =+R71 -> PROCESS_COIL | S72: Y | U72: 3 | V72: 29 | W72: 32 | X72: 1 | Y72: 0.90625 | AB72: =+AB71 -> PROCESS_COIL | AC72: Y | AE72: 3 | AF72: 29 | AG72: 32 | AH72: 1 | AI72: 0.90625 | AL72: =+AL71 -> PROCESS_COIL | AM72: Y | AO72: 3 | AP72: 29 | AQ72: 32 | AR72: 1 | AS72: 0.90625 | AV72: PROCESS_COIL | AW72: Y | AY72: 3 | AZ72: 29 | BA72: 32 | BB72: 1 | BC72: 0.90625 | BF72: PROCESS_COIL | BG72: Y | BI72: 3 | BJ72: 29 | BK72: 32 | BL72: 1 | BM72: 0.90625 | BP72: =+BP71 -> PROCESS_COIL | BQ72: Y | BS72: 3 | BT72: 29 | BU72: 32 | BV72: 1 | BW72: 0.90625 | BZ72: =+BZ71 -> PROCESS_COIL | CA72: Y | CC72: 3 | CD72: 29 | CE72: 32 | CF72: 1 | CG72: 0.90625 | CJ72: PROCESS_COIL | CK72: Y | CM72: 3 | CN72: 29 | CO72: 32 | CP72: 1 | CQ72: 0.90625 | CT72: PROCESS_COIL | CU72: Y | CW72: 3 | CX72: 29 | CY72: 32 | CZ72: 1 | DA72: 0.90625 | DD72: =+DD71 -> Proc Coil | DE72: Y | DG72: 0 | DH72: 0 | DI72: 0 | DJ72: 0 | DK72: n/a | DN72: =+DN71 -> Proc Coil | DO72: Y | DQ72: 0 | DR72: 0 | DS72: 0 | DT72: 0 | DU72: n/a | DX72: =+DX71 -> Proc Coil | DZ72: Y | EA72: 0 | EB72: 0 | EC72: 0 | ED72: 0 | EE72: n/a | EH72: =+EH71 -> Proc Coil | EJ72: Y | EK72: 0 | EL72: 0 | EM72: 0 | EN72: 0 | EO72: n/a
A73: New | B73: 0 | C73: 0 | D73: 0 | E73: 0 | F73: =IFERROR(OFFSET(F73,0,9,1,1)-OFFSET(F73,0,19,1,1),"n/a") -> 0 | H73: =+H72 -> PROCESS_COIL | J73: Y | K73: =SUMIFS(PvtByClassCurr!$U$9:$U$980, PvtByClassCurr!$L$9:$L$980,$H73, PvtByClassCurr!$M$9:$M$980,"Total") -> 12 | L73: =SUMIFS(PvtByClassCurr!$V$9:$V$980, PvtByClassCurr!$L$9:$L$980,$H73, PvtByClassCurr!$M$9:$M$980,"Total") -> 24 | M73: =SUM(K73:L73) -> 36 | N73: =SUMIFS(PvtByClassCurr!$T$9:$T$980, PvtByClassCurr!$L$9:$L$980,$H73, PvtByClassCurr!$M$9:$M$980,"Total") -> 1 | O73: =IF(M73=0,"n/a",L73/M73) -> 0.6666666667 | R73: =+R72 -> PROCESS_COIL | T73: Y | U73: 12 | V73: 24 | W73: 36 | X73: 1 | Y73: 0.6666666667 | AB73: =+AB72 -> PROCESS_COIL | AD73: Y | AE73: 12 | AF73: 24 | AG73: 36 | AH73: 1 | AI73: 0.6666666667 | AL73: =+AL72 -> PROCESS_COIL | AN73: Y | AO73: 12 | AP73: 24 | AQ73: 36 | AR73: 1 | AS73: 0.6666666667 | AV73: PROCESS_COIL | AX73: Y | AY73: 12 | AZ73: 24 | BA73: 36 | BB73: 1 | BC73: 0.6666666667 | BF73: PROCESS_COIL | BH73: Y | BI73: 31 | BJ73: 39 | BK73: 70 | BL73: 2 | BM73: 0.5571428571 | BP73: =+BP72 -> PROCESS_COIL | BR73: Y | BS73: 31 | BT73: 39 | BU73: 70 | BV73: 2 | BW73: 0.5571428571 | BZ73: =+BZ72 -> PROCESS_COIL | CB73: Y | CC73: 32 | CD73: 38 | CE73: 70 | CF73: 2 | CG73: 0.5428571429 | CJ73: PROCESS_COIL | CL73: Y | CM73: 34 | CN73: 34 | CO73: 68 | CP73: 2 | CQ73: 0.5 | CT73: PROCESS_COIL | CV73: Y | CW73: 0 | CX73: 0 | CY73: 0 | CZ73: 0 | DA73: n/a | DD73: =+DD72 -> Proc Coil | DF73: Y | DG73: 5505 | DH73: 10140 | DI73: 15645 | DJ73: 466 | DK73: 0.648 | DN73: =+DN72 -> Proc Coil | DP73: Y | DQ73: 2802 | DR73: 4298 | DS73: 7100 | DT73: 212 | DU73: 0.6053521127 | DX73: =+DX72 -> Proc Coil | DZ73: N | EA73: 2252 | EB73: 3683 | EC73: 5935 | ED73: 177 | EE73: 0.6205560236 | EH73: =+EH72 -> Proc Coil | EJ73: N | EK73: 708 | EL73: 919 | EM73: 1627 | EN73: 48 | EO73: 0.565
A74: All(proportional) | B74: =+B71/OFFSET(B71,0,19,1,1) -> -0.5567845459 | C74: =+C71/OFFSET(C71,0,19,1,1) -> -0.5740495996 | D74: =+D71/OFFSET(D71,0,19,1,1) -> -0.5683020434 | E74: =+E71/OFFSET(E71,0,19,1,1) -> -0.5679442509 | H74: =TEXT(M71/N71,"0.0")&" pnts/equip" -> 33.6 pnts/equip | R74: =TEXT(W71/X71,"0.0")&" pnts/equip" -> 33.6 pnts/equip | AB74: =TEXT(AG71/AH71,"0.0")&" pnts/equip" -> 33.6 pnts/equip | AL74: =TEXT(AQ71/AR71,"0.0")&" pnts/equip" -> 33.6 pnts/equip | AV74: 33.5 pnts/equip | BF74: 33.5 pnts/equip | BP74: =TEXT(BU71/BV71,"0.0")&" pnts/equip" -> 33.5 pnts/equip | BZ74: =TEXT(CE71/CF71,"0.0")&" pnts/equip" -> 33.5 pnts/equip | CJ74: 33.5 pnts/equip | CT74: 33.5 pnts/equip | DD74: =TEXT(DI71/DJ71,"0.0")&" pnts/equip" -> 33.6 pnts/equip | DN74: =TEXT(DS71/DT71,"0.0")&" pnts/equip" -> 33.5 pnts/equip
A76: All | B76: =OFFSET(B76,0,9,1,1)-OFFSET(B76,0,19,1,1) -> -7579 | C76: -3924 | D76: -11503 | E76: -212 | F76: =IFERROR(OFFSET(F76,0,9,1,1)-OFFSET(F76,0,19,1,1),"n/a") -> 0.0003726550889 | H76: PM_RECIPROCATING | I76: All | J76: All | K76: =SUMIFS(PvtByClassCurr!$O$9:$O$980, PvtByClassCurr!$L$9:$L$980,$H76, PvtByClassCurr!$M$9:$M$980,"Total") -> 211895 | L76: =SUMIFS(PvtByClassCurr!$P$9:$P$980, PvtByClassCurr!$L$9:$L$980,$H76, PvtByClassCurr!$M$9:$M$980,"Total") -> 115152 | M76: =SUM(K76:L76) -> 327047 | N76: =SUMIFS(PvtByClassCurr!$N$9:$N$980, PvtByClassCurr!$L$9:$L$980,$H76, PvtByClassCurr!$M$9:$M$980,"Total") -> 5893 | O76: =IF(M76=0,"n/a",L76/M76) -> 0.3520961819 | R76: PM_RECIPROCATING | S76: All | T76: All | U76: 219474 | V76: 119076 | W76: 338550 | X76: 6105 | Y76: 0.3517235268 | AB76: PM_RECIPROCATING | AC76: All | AD76: All | AE76: 223538 | AF76: 120358 | AG76: 343896 | AH76: 6203 | AI76: 0.349983716 | AL76: PM_RECIPROCATING | AM76: All | AN76: All | AO76: 225247 | AP76: 121046 | AQ76: 346293 | AR76: 6247 | AS76: 0.3495479262 | AV76: PM_RECIPROCATING | AW76: All | AX76: All | AY76: 199404 | AZ76: 117227 | BA76: 316631 | BB76: 6268 | BC76: 0.3702322262 | BF76: PM_RECIPROCATING | BG76: All | BH76: All | BI76: 196197 | BJ76: 118405 | BK76: 314602 | BL76: 6269 | BM76: 0.3763644223 | BP76: PM_RECIPROCATING | BQ76: All | BR76: All | BS76: 202230 | BT76: 112153 | BU76: 314383 | BV76: 6273 | BW76: 0.3567400273 | BZ76: PM_RECIPROCATING | CA76: All | CB76: All | CC76: 202230 | CD76: 112153 | CE76: 314383 | CF76: 6273 | CG76: 0.3567400273 | CJ76: PM_RECIPROCATING | CK76: All | CL76: All | CM76: 222961 | CN76: 92315 | CO76: 315276 | CP76: 6294 | CQ76: 0.2928069374 | CT76: PM_RECIPROCATING | CU76: All | CV76: All | CW76: 209265 | CX76: 105543 | CY76: 314808 | CZ76: 6411 | DA76: 0.3352614927 | DD76: Recip Eng | DE76: All | DF76: All | DG76: 210125 | DH76: 105827 | DI76: 315952 | DJ76: 6440 | DK76: 0.335 | DL76: Add Data Val Compl +6.4K | DN76: Recip Eng | DO76: All | DP76: All | DQ76: 154855 | DR76: 103387 | DS76: 258242 | DT76: 6446 | DU76: 0.4003492848 | DV76: Mostly complete in SAP, Waiting on Fuel Consump UoMs | DX76: Recip Eng | DY76: All | DZ76: All | EA76: 155684 | EB76: 103002 | EC76: 258686 | ED76: 6457 | EE76: 0.3981738478 | EF76: not compl | EH76: Recip Eng | EI76: All | EJ76: All | EK76: 155782 | EL76: 103124 | EM76: 258906 | EN76: 6462 | EO76: 0.398
A77: Cleansed | B77: 0 | C77: 0 | D77: 0 | E77: 0 | F77: =IFERROR(OFFSET(F77,0,9,1,1)-OFFSET(F77,0,19,1,1),"n/a") -> n/a | H77: =+H76 -> PM_RECIPROCATING | I77: Y | K77: =SUMIFS(PvtByClassCurr!$R$9:$R$980, PvtByClassCurr!$L$9:$L$980,$H77, PvtByClassCurr!$M$9:$M$980,"Total") -> 0 | L77: =SUMIFS(PvtByClassCurr!$S$9:$S$980, PvtByClassCurr!$L$9:$L$980,$H77, PvtByClassCurr!$M$9:$M$980,"Total") -> 0 | M77: =SUM(K77:L77) -> 0 | N77: =SUMIFS(PvtByClassCurr!$Q$9:$Q$980, PvtByClassCurr!$L$9:$L$980,$H77, PvtByClassCurr!$M$9:$M$980,"Total") -> 0 | O77: =IF(M77=0,"n/a",L77/M77) -> n/a | R77: =+R76 -> PM_RECIPROCATING | S77: Y | U77: 0 | V77: 0 | W77: 0 | X77: 0 | Y77: n/a | AB77: =+AB76 -> PM_RECIPROCATING | AC77: Y | AE77: 0 | AF77: 0 | AG77: 0 | AH77: 0 | AI77: n/a | AL77: =+AL76 -> PM_RECIPROCATING | AM77: Y | AO77: 0 | AP77: 0 | AQ77: 0 | AR77: 0 | AS77: n/a | AV77: PM_RECIPROCATING | AW77: Y | AY77: 0 | AZ77: 0 | BA77: 0 | BB77: 0 | BC77: n/a | BF77: PM_RECIPROCATING | BG77: Y | BI77: 0 | BJ77: 0 | BK77: 0 | BL77: 0 | BM77: n/a | BP77: =+BP76 -> PM_RECIPROCATING | BQ77: Y | BS77: 0 | BT77: 0 | BU77: 0 | BV77: 0 | BW77: n/a | BZ77: =+BZ76 -> PM_RECIPROCATING | CA77: Y | CC77: 0 | CD77: 0 | CE77: 0 | CF77: 0 | CG77: n/a | CJ77: PM_RECIPROCATING | CK77: Y | CM77: 0 | CN77: 0 | CO77: 0 | CP77: 0 | CQ77: n/a | CT77: PM_RECIPROCATING | CU77: Y | CW77: 0 | CX77: 0 | CY77: 0 | CZ77: 0 | DA77: n/a | DD77: =+DD76 -> Recip Eng | DE77: Y | DG77: 0 | DH77: 0 | DI77: 0 | DJ77: 0 | DK77: n/a | DL77: Fields not registering as Req +51.5K | DN77: =+DN76 -> Recip Eng | DO77: Y | DQ77: 0 | DR77: 0 | DS77: 0 | DT77: 0 | DU77: n/a | DX77: =+DX76 -> Recip Eng | DZ77: Y | EA77: 0 | EB77: 0 | EC77: 0 | ED77: 0 | EE77: n/a | EH77: =+EH76 -> Recip Eng | EJ77: Y | EK77: 0 | EL77: 0 | EM77: 0 | EN77: 0 | EO77: n/a
A78: New | B78: 0 | C78: 0 | D78: 0 | E78: 0 | F78: =IFERROR(OFFSET(F78,0,9,1,1)-OFFSET(F78,0,19,1,1),"n/a") -> 0 | H78: =+H77 -> PM_RECIPROCATING | J78: Y | K78: =SUMIFS(PvtByClassCurr!$U$9:$U$980, PvtByClassCurr!$L$9:$L$980,$H78, PvtByClassCurr!$M$9:$M$980,"Total") -> 99 | L78: =SUMIFS(PvtByClassCurr!$V$9:$V$980, PvtByClassCurr!$L$9:$L$980,$H78, PvtByClassCurr!$M$9:$M$980,"Total") -> 63 | M78: =SUM(K78:L78) -> 162 | N78: =SUMIFS(PvtByClassCurr!$T$9:$T$980, PvtByClassCurr!$L$9:$L$980,$H78, PvtByClassCurr!$M$9:$M$980,"Total") -> 3 | O78: =IF(M78=0,"n/a",L78/M78) -> 0.3888888889 | R78: =+R77 -> PM_RECIPROCATING | T78: Y | U78: 99 | V78: 63 | W78: 162 | X78: 3 | Y78: 0.3888888889 | AB78: =+AB77 -> PM_RECIPROCATING | AD78: Y | AE78: 99 | AF78: 63 | AG78: 162 | AH78: 3 | AI78: 0.3888888889 | AL78: =+AL77 -> PM_RECIPROCATING | AN78: Y | AO78: 99 | AP78: 63 | AQ78: 162 | AR78: 3 | AS78: 0.3888888889 | AV78: PM_RECIPROCATING | AX78: Y | AY78: 86 | AZ78: 61 | BA78: 147 | BB78: 3 | BC78: 0.4149659864 | BF78: PM_RECIPROCATING | BH78: Y | BI78: 85 | BJ78: 62 | BK78: 147 | BL78: 3 | BM78: 0.4217687075 | BP78: =+BP77 -> PM_RECIPROCATING | BR78: Y | BS78: 30 | BT78: 19 | BU78: 49 | BV78: 1 | BW78: 0.387755102 | BZ78: =+BZ77 -> PM_RECIPROCATING | CB78: Y | CC78: 30 | CD78: 19 | CE78: 49 | CF78: 1 | CG78: 0.387755102 | CJ78: PM_RECIPROCATING | CL78: Y | CM78: 35 | CN78: 14 | CO78: 49 | CP78: 1 | CQ78: 0.2857142857 | CT78: PM_RECIPROCATING | CV78: Y | CW78: 28 | CX78: 20 | CY78: 48 | CZ78: 1 | DA78: 0.4166666667 | DD78: =+DD77 -> Recip Eng | DF78: Y | DG78: 344 | DH78: 186 | DI78: 530 | DJ78: 11 | DK78: 0.351 | DN78: =+DN77 -> Recip Eng | DP78: Y | DQ78: 190 | DR78: 124 | DS78: 314 | DT78: 8 | DU78: 0.3949044586 | DX78: =+DX77 -> Recip Eng | DZ78: N | EA78: 155684 | EB78: 103002 | EC78: 258686 | ED78: 6457 | EE78: 0.3981738478 | EH78: =+EH77 -> Recip Eng | EJ78: N | EK78: 155782 | EL78: 103124 | EM78: 258906 | EN78: 6462 | EO78: 0.398
A79: All(proportional) | B79: =+B76/OFFSET(B76,0,19,1,1) -> -0.03453256422 | C79: =+C76/OFFSET(C76,0,19,1,1) -> -0.03295374383 | D79: =+D76/OFFSET(D76,0,19,1,1) -> -0.03397725594 | E79: =+E76/OFFSET(E76,0,19,1,1) -> -0.03472563473 | H79: =TEXT(M76/N76,"0.0")&" pnts/equip" -> 55.5 pnts/equip | R79: =TEXT(W76/X76,"0.0")&" pnts/equip" -> 55.5 pnts/equip | AB79: =TEXT(AG76/AH76,"0.0")&" pnts/equip" -> 55.4 pnts/equip | AL79: =TEXT(AQ76/AR76,"0.0")&" pnts/equip" -> 55.4 pnts/equip | AV79: 50.5 pnts/equip | BF79: 50.2 pnts/equip | BP79: =TEXT(BU76/BV76,"0.0")&" pnts/equip" -> 50.1 pnts/equip | BZ79: =TEXT(CE76/CF76,"0.0")&" pnts/equip" -> 50.1 pnts/equip | CJ79: 50.1 pnts/equip | CT79: 49.1 pnts/equip | DD79: =TEXT(DI76/DJ76,"0.0")&" pnts/equip" -> 49.1 pnts/equip | DN79: =TEXT(DS76/DT76,"0.0")&" pnts/equip" -> 40.1 pnts/equip
A81: All | B81: =OFFSET(B81,0,9,1,1)-OFFSET(B81,0,19,1,1) -> 8 | C81: 41 | D81: 49 | E81: 1 | F81: =IFERROR(OFFSET(F81,0,9,1,1)-OFFSET(F81,0,19,1,1),"n/a") -> 0.002677703997 | H81: BOILER_POWER_WT | I81: All | J81: All | K81: =SUMIFS(PvtByClassCurr!$O$9:$O$980, PvtByClassCurr!$L$9:$L$980,$H81, PvtByClassCurr!$M$9:$M$980,"Total") -> 3013 | L81: =SUMIFS(PvtByClassCurr!$P$9:$P$980, PvtByClassCurr!$L$9:$L$980,$H81, PvtByClassCurr!$M$9:$M$980,"Total") -> 3087 | M81: =SUM(K81:L81) -> 6100 | N81: =SUMIFS(PvtByClassCurr!$N$9:$N$980, PvtByClassCurr!$L$9:$L$980,$H81, PvtByClassCurr!$M$9:$M$980,"Total") -> 108 | O81: =IF(M81=0,"n/a",L81/M81) -> 0.5060655738 | R81: BOILER_POWER_WT | S81: All | T81: All | U81: 3005 | V81: 3046 | W81: 6051 | X81: 107 | Y81: 0.5033878698 | AB81: BOILER_POWER_WT | AC81: All | AD81: All | AE81: 3033 | AF81: 3018 | AG81: 6051 | AH81: 107 | AI81: 0.4987605354 | AL81: BOILER_POWER_WT | AM81: All | AN81: All | AO81: 3108 | AP81: 2943 | AQ81: 6051 | AR81: 107 | AS81: 0.4863658899 | AV81: BOILER_POWER_WT | AW81: All | AX81: All | AY81: 3111 | AZ81: 2940 | BA81: 6051 | BB81: 107 | BC81: 0.4858701041 | BF81: BOILER_POWER_WT | BG81: All | BH81: All | BI81: 3208 | BJ81: 2936 | BK81: 6144 | BL81: 107 | BM81: 0.4778645833 | BP81: BOILER_POWER_WT | BQ81: All | BR81: All | BS81: 3201 | BT81: 2943 | BU81: 6144 | BV81: 107 | BW81: 0.4790039062 | BZ81: BOILER_POWER_WT | CA81: All | CB81: All | CC81: 3205 | CD81: 2939 | CE81: 6144 | CF81: 107 | CG81: 0.4783528646 | CJ81: BOILER_POWER_WT | CK81: All | CL81: All | CM81: 3207 | CN81: 2937 | CO81: 6144 | CP81: 107 | CQ81: 0.4780273438 | CT81: BOILER_POWER_WT | CU81: All | CV81: All | CW81: 3231 | CX81: 2973 | CY81: 6204 | CZ81: 108 | DA81: 0.4792069632 | DD81: Boiler-PWT | DE81: All | DF81: All | DG81: 3233 | DH81: 2971 | DI81: 6204 | DJ81: 108 | DK81: 0.479 | DN81: Boiler-PWT | DO81: All | DP81: All | DQ81: 4288 | DR81: 1766 | DS81: 6054 | DT81: 106 | DU81: 0.2917079617 | DV81: Mostly complete in SAP, Waiting on Fired Duty UoM | DX81: Boiler-PWT | DY81: All | DZ81: All | EA81: 4459 | EB81: 1472 | EC81: 5931 | ED81: 105 | EE81: 0.2481874895 | EF81: not compl | EH81: Boiler-PWT | EI81: All | EJ81: All | EK81: 4541 | EL81: 1447 | EM81: 5988 | EN81: 106 | EO81: 0.242 | EP81: not compl
A82: Cleansed | B82: 0 | C82: 0 | D82: 0 | E82: 0 | F82: =IFERROR(OFFSET(F82,0,9,1,1)-OFFSET(F82,0,19,1,1),"n/a") -> n/a | H82: =+H81 -> BOILER_POWER_WT | I82: Y | K82: =SUMIFS(PvtByClassCurr!$R$9:$R$980, PvtByClassCurr!$L$9:$L$980,$H82, PvtByClassCurr!$M$9:$M$980,"Total") -> 0 | L82: =SUMIFS(PvtByClassCurr!$S$9:$S$980, PvtByClassCurr!$L$9:$L$980,$H82, PvtByClassCurr!$M$9:$M$980,"Total") -> 0 | M82: =SUM(K82:L82) -> 0 | N82: =SUMIFS(PvtByClassCurr!$Q$9:$Q$980, PvtByClassCurr!$L$9:$L$980,$H82, PvtByClassCurr!$M$9:$M$980,"Total") -> 0 | O82: =IF(M82=0,"n/a",L82/M82) -> n/a | R82: =+R81 -> BOILER_POWER_WT | S82: Y | U82: 0 | V82: 0 | W82: 0 | X82: 0 | Y82: n/a | AB82: =+AB81 -> BOILER_POWER_WT | AC82: Y | AE82: 0 | AF82: 0 | AG82: 0 | AH82: 0 | AI82: n/a | AL82: =+AL81 -> BOILER_POWER_WT | AM82: Y | AO82: 0 | AP82: 0 | AQ82: 0 | AR82: 0 | AS82: n/a | AV82: BOILER_POWER_WT | AW82: Y | AY82: 0 | AZ82: 0 | BA82: 0 | BB82: 0 | BC82: n/a | BF82: BOILER_POWER_WT | BG82: Y | BI82: 0 | BJ82: 0 | BK82: 0 | BL82: 0 | BM82: n/a | BP82: =+BP81 -> BOILER_POWER_WT | BQ82: Y | BS82: 0 | BT82: 0 | BU82: 0 | BV82: 0 | BW82: n/a | BZ82: =+BZ81 -> BOILER_POWER_WT | CA82: Y | CC82: 0 | CD82: 0 | CE82: 0 | CF82: 0 | CG82: n/a | CJ82: BOILER_POWER_WT | CK82: Y | CM82: 0 | CN82: 0 | CO82: 0 | CP82: 0 | CQ82: n/a | CT82: BOILER_POWER_WT | CU82: Y | CW82: 0 | CX82: 0 | CY82: 0 | CZ82: 0 | DA82: n/a | DD82: =+DD81 -> Boiler-PWT | DE82: Y | DG82: 0 | DH82: 0 | DI82: 0 | DJ82: 0 | DK82: n/a | DN82: =+DN81 -> Boiler-PWT | DO82: Y | DQ82: 0 | DR82: 0 | DS82: 0 | DT82: 0 | DU82: n/a | DX82: =+DX81 -> Boiler-PWT | DZ82: Y | EA82: 0 | EB82: 0 | EC82: 0 | ED82: 0 | EE82: n/a | EH82: =+EH81 -> Boiler-PWT | EJ82: Y | EK82: 0 | EL82: 0 | EM82: 0 | EN82: 0 | EO82: n/a
A83: New | B83: 101 | C83: 113 | D83: 214 | E83: 4 | F83: =IFERROR(OFFSET(F83,0,9,1,1)-OFFSET(F83,0,19,1,1),"n/a") -> n/a | H83: =+H82 -> BOILER_POWER_WT | J83: Y | K83: =SUMIFS(PvtByClassCurr!$U$9:$U$980, PvtByClassCurr!$L$9:$L$980,$H83, PvtByClassCurr!$M$9:$M$980,"Total") -> 101 | L83: =SUMIFS(PvtByClassCurr!$V$9:$V$980, PvtByClassCurr!$L$9:$L$980,$H83, PvtByClassCurr!$M$9:$M$980,"Total") -> 113 | M83: =SUM(K83:L83) -> 214 | N83: =SUMIFS(PvtByClassCurr!$T$9:$T$980, PvtByClassCurr!$L$9:$L$980,$H83, PvtByClassCurr!$M$9:$M$980,"Total") -> 4 | O83: =IF(M83=0,"n/a",L83/M83) -> 0.5280373832 | R83: =+R82 -> BOILER_POWER_WT | T83: Y | U83: 0 | V83: 0 | W83: 0 | X83: 0 | Y83: n/a | AB83: =+AB82 -> BOILER_POWER_WT | AD83: Y | AE83: 0 | AF83: 0 | AG83: 0 | AH83: 0 | AI83: n/a | AL83: =+AL82 -> BOILER_POWER_WT | AN83: Y | AO83: 0 | AP83: 0 | AQ83: 0 | AR83: 0 | AS83: n/a | AV83: BOILER_POWER_WT | AX83: Y | AY83: 0 | AZ83: 0 | BA83: 0 | BB83: 0 | BC83: n/a | BF83: BOILER_POWER_WT | BH83: Y | BI83: 0 | BJ83: 0 | BK83: 0 | BL83: 0 | BM83: n/a | BP83: =+BP82 -> BOILER_POWER_WT | BR83: Y | BS83: 0 | BT83: 0 | BU83: 0 | BV83: 0 | BW83: n/a | BZ83: =+BZ82 -> BOILER_POWER_WT | CB83: Y | CC83: 0 | CD83: 0 | CE83: 0 | CF83: 0 | CG83: n/a | CJ83: BOILER_POWER_WT | CL83: Y | CM83: 0 | CN83: 0 | CO83: 0 | CP83: 0 | CQ83: n/a | CT83: BOILER_POWER_WT | CV83: Y | CW83: 0 | CX83: 0 | CY83: 0 | CZ83: 0 | DA83: n/a | DD83: =+DD82 -> Boiler-PWT | DF83: Y | DG83: 0 | DH83: 0 | DI83: 0 | DJ83: 0 | DK83: n/a | DN83: =+DN82 -> Boiler-PWT | DP83: Y | DQ83: 0 | DR83: 0 | DS83: 0 | DT83: 0 | DU83: n/a | DX83: =+DX82 -> Boiler-PWT | DZ83: N | EA83: 4459 | EB83: 1472 | EC83: 5931 | ED83: 105 | EE83: 0.2481874895 | EH83: =+EH82 -> Boiler-PWT | EJ83: N | EK83: 4541 | EL83: 1447 | EM83: 5988 | EN83: 106 | EO83: 0.242
A84: All(proportional) | B84: =+B81/OFFSET(B81,0,19,1,1) -> 0.002662229617 | C84: =+C81/OFFSET(C81,0,19,1,1) -> 0.01346027577 | D84: =+D81/OFFSET(D81,0,19,1,1) -> 0.008097835069 | E84: =+E81/OFFSET(E81,0,19,1,1) -> 0.009345794393 | H84: =TEXT(M81/N81,"0.0")&" pnts/equip" -> 56.5 pnts/equip | R84: =TEXT(W81/X81,"0.0")&" pnts/equip" -> 56.6 pnts/equip | AB84: =TEXT(AG81/AH81,"0.0")&" pnts/equip" -> 56.6 pnts/equip | AL84: =TEXT(AQ81/AR81,"0.0")&" pnts/equip" -> 56.6 pnts/equip | AV84: 56.6 pnts/equip | BF84: 57.4 pnts/equip | BP84: =TEXT(BU81/BV81,"0.0")&" pnts/equip" -> 57.4 pnts/equip | BZ84: =TEXT(CE81/CF81,"0.0")&" pnts/equip" -> 57.4 pnts/equip | CJ84: 57.4 pnts/equip | CT84: 57.4 pnts/equip | DD84: =TEXT(DI81/DJ81,"0.0")&" pnts/equip" -> 57.4 pnts/equip | DN84: =TEXT(DS81/DT81,"0.0")&" pnts/equip" -> 57.1 pnts/equip
A86: All | B86: =OFFSET(B86,0,9,1,1)-OFFSET(B86,0,19,1,1) -> -186 | C86: -104 | D86: -290 | E86: -10 | F86: =IFERROR(OFFSET(F86,0,9,1,1)-OFFSET(F86,0,19,1,1),"n/a") -> -0.02964295152 | H86: PM_GAS_TURBINE | I86: All | J86: All | K86: =SUMIFS(PvtByClassCurr!$O$9:$O$980, PvtByClassCurr!$L$9:$L$980,$H86, PvtByClassCurr!$M$9:$M$980,"Total") -> 269 | L86: =SUMIFS(PvtByClassCurr!$P$9:$P$980, PvtByClassCurr!$L$9:$L$980,$H86, PvtByClassCurr!$M$9:$M$980,"Total") -> 110 | M86: =SUM(K86:L86) -> 379 | N86: =SUMIFS(PvtByClassCurr!$N$9:$N$980, PvtByClassCurr!$L$9:$L$980,$H86, PvtByClassCurr!$M$9:$M$980,"Total") -> 13 | O86: =IF(M86=0,"n/a",L86/M86) -> 0.290237467 | R86: PM_GAS_TURBINE | S86: All | T86: All | U86: 455 | V86: 214 | W86: 669 | X86: 23 | Y86: 0.3198804185 | AB86: PM_GAS_TURBINE | AC86: All | AD86: All | AE86: 455 | AF86: 214 | AG86: 669 | AH86: 23 | AI86: 0.3198804185 | AL86: PM_GAS_TURBINE | AM86: All | AN86: All | AO86: 455 | AP86: 214 | AQ86: 669 | AR86: 23 | AS86: 0.3198804185 | AV86: PM_GAS_TURBINE | AW86: All | AX86: All | AY86: 455 | AZ86: 214 | BA86: 669 | BB86: 23 | BC86: 0.3198804185 | BF86: PM_GAS_TURBINE | BG86: All | BH86: All | BI86: 484 | BJ86: 214 | BK86: 698 | BL86: 23 | BM86: 0.3065902579 | BP86: PM_GAS_TURBINE | BQ86: All | BR86: All | BS86: 488 | BT86: 212 | BU86: 700 | BV86: 23 | BW86: 0.3028571429 | BZ86: PM_GAS_TURBINE | CA86: All | CB86: All | CC86: 488 | CD86: 212 | CE86: 700 | CF86: 23 | CG86: 0.3028571429 | CJ86: PM_GAS_TURBINE | CK86: All | CL86: All | CM86: 488 | CN86: 212 | CO86: 700 | CP86: 23 | CQ86: 0.3028571429 | CT86: PM_GAS_TURBINE | CU86: All | CV86: All | CW86: 488 | CX86: 212 | CY86: 700 | CZ86: 23 | DA86: 0.3028571429 | DD86: Gas Turb | DE86: All | DF86: All | DG86: 488 | DH86: 212 | DI86: 700 | DJ86: 23 | DK86: 0.303 | DN86: Gas Turb | DO86: All | DP86: All | DQ86: 509 | DR86: 166 | DS86: 675 | DT86: 23 | DU86: 0.2459259259 | DV86: Mostly complete in SAP, Waiting on Heat Rate UoM | DX86: Gas Turb | DY86: All | DZ86: All | EA86: 509 | EB86: 166 | EC86: 675 | ED86: 23 | EE86: 0.2459259259 | EF86: in progress
A87: Cleansed | B87: 0 | C87: 0 | D87: 0 | E87: 0 | F87: =IFERROR(OFFSET(F87,0,9,1,1)-OFFSET(F87,0,19,1,1),"n/a") -> n/a | H87: =+H86 -> PM_GAS_TURBINE | I87: Y | K87: =SUMIFS(PvtByClassCurr!$R$9:$R$980, PvtByClassCurr!$L$9:$L$980,$H87, PvtByClassCurr!$M$9:$M$980,"Total") -> 0 | L87: =SUMIFS(PvtByClassCurr!$S$9:$S$980, PvtByClassCurr!$L$9:$L$980,$H87, PvtByClassCurr!$M$9:$M$980,"Total") -> 0 | M87: =SUM(K87:L87) -> 0 | N87: =SUMIFS(PvtByClassCurr!$Q$9:$Q$980, PvtByClassCurr!$L$9:$L$980,$H87, PvtByClassCurr!$M$9:$M$980,"Total") -> 0 | O87: =IF(M87=0,"n/a",L87/M87) -> n/a | R87: =+R86 -> PM_GAS_TURBINE | S87: Y | U87: 0 | V87: 0 | W87: 0 | X87: 0 | Y87: n/a | AB87: =+AB86 -> PM_GAS_TURBINE | AC87: Y | AE87: 0 | AF87: 0 | AG87: 0 | AH87: 0 | AI87: n/a | AL87: =+AL86 -> PM_GAS_TURBINE | AM87: Y | AO87: 0 | AP87: 0 | AQ87: 0 | AR87: 0 | AS87: n/a | AV87: PM_GAS_TURBINE | AW87: Y | AY87: 0 | AZ87: 0 | BA87: 0 | BB87: 0 | BC87: n/a | BF87: PM_GAS_TURBINE | BG87: Y | BI87: 0 | BJ87: 0 | BK87: 0 | BL87: 0 | BM87: n/a | BP87: =+BP86 -> PM_GAS_TURBINE | BQ87: Y | BS87: 0 | BT87: 0 | BU87: 0 | BV87: 0 | BW87: n/a | BZ87: =+BZ86 -> PM_GAS_TURBINE | CA87: Y | CC87: 0 | CD87: 0 | CE87: 0 | CF87: 0 | CG87: n/a | CJ87: PM_GAS_TURBINE | CK87: Y | CM87: 0 | CN87: 0 | CO87: 0 | CP87: 0 | CQ87: n/a | CT87: PM_GAS_TURBINE | CU87: Y | CW87: 0 | CX87: 0 | CY87: 0 | CZ87: 0 | DA87: n/a | DD87: =+DD86 -> Gas Turb | DE87: Y | DG87: 0 | DH87: 0 | DI87: 0 | DJ87: 0 | DK87: n/a | DN87: =+DN86 -> Gas Turb | DO87: Y | DQ87: 0 | DR87: 0 | DS87: 0 | DT87: 0 | DU87: n/a | DX87: =+DX86 -> Gas Turb | DZ87: Y | EA87: 0 | EB87: 0 | EC87: 0 | ED87: 0 | EE87: n/a
A88: New | B88: 0 | C88: 0 | D88: 0 | E88: 0 | F88: =IFERROR(OFFSET(F88,0,9,1,1)-OFFSET(F88,0,19,1,1),"n/a") -> n/a | H88: =+H87 -> PM_GAS_TURBINE | J88: Y | K88: =SUMIFS(PvtByClassCurr!$U$9:$U$980, PvtByClassCurr!$L$9:$L$980,$H88, PvtByClassCurr!$M$9:$M$980,"Total") -> 0 | L88: =SUMIFS(PvtByClassCurr!$V$9:$V$980, PvtByClassCurr!$L$9:$L$980,$H88, PvtByClassCurr!$M$9:$M$980,"Total") -> 0 | M88: =SUM(K88:L88) -> 0 | N88: =SUMIFS(PvtByClassCurr!$T$9:$T$980, PvtByClassCurr!$L$9:$L$980,$H88, PvtByClassCurr!$M$9:$M$980,"Total") -> 0 | O88: =IF(M88=0,"n/a",L88/M88) -> n/a | R88: =+R87 -> PM_GAS_TURBINE | T88: Y | U88: 0 | V88: 0 | W88: 0 | X88: 0 | Y88: n/a | AB88: =+AB87 -> PM_GAS_TURBINE | AD88: Y | AE88: 0 | AF88: 0 | AG88: 0 | AH88: 0 | AI88: n/a | AL88: =+AL87 -> PM_GAS_TURBINE | AN88: Y | AO88: 0 | AP88: 0 | AQ88: 0 | AR88: 0 | AS88: n/a | AV88: PM_GAS_TURBINE | AX88: Y | AY88: 0 | AZ88: 0 | BA88: 0 | BB88: 0 | BC88: n/a | BF88: PM_GAS_TURBINE | BH88: Y | BI88: 0 | BJ88: 0 | BK88: 0 | BL88: 0 | BM88: n/a | BP88: =+BP87 -> PM_GAS_TURBINE | BR88: Y | BS88: 0 | BT88: 0 | BU88: 0 | BV88: 0 | BW88: n/a | BZ88: =+BZ87 -> PM_GAS_TURBINE | CB88: Y | CC88: 0 | CD88: 0 | CE88: 0 | CF88: 0 | CG88: n/a | CJ88: PM_GAS_TURBINE | CL88: Y | CM88: 0 | CN88: 0 | CO88: 0 | CP88: 0 | CQ88: n/a | CT88: PM_GAS_TURBINE | CV88: Y | CW88: 0 | CX88: 0 | CY88: 0 | CZ88: 0 | DA88: n/a | DD88: =+DD87 -> Gas Turb | DF88: Y | DG88: 0 | DH88: 0 | DI88: 0 | DJ88: 0 | DK88: n/a | DN88: =+DN87 -> Gas Turb | DP88: Y | DQ88: 0 | DR88: 0 | DS88: 0 | DT88: 0 | DU88: n/a | DX88: =+DX87 -> Gas Turb | DZ88: N | EA88: 509 | EB88: 166 | EC88: 675 | ED88: 23 | EE88: 0.2459259259
A89: All(proportional) | B89: =+B86/OFFSET(B86,0,19,1,1) -> -0.4087912088 | C89: =+C86/OFFSET(C86,0,19,1,1) -> -0.4859813084 | D89: =+D86/OFFSET(D86,0,19,1,1) -> -0.4334828102 | E89: =+E86/OFFSET(E86,0,19,1,1) -> -0.4347826087 | H89: =TEXT(M86/N86,"0.0")&" pnts/equip" -> 29.2 pnts/equip | R89: =TEXT(W86/X86,"0.0")&" pnts/equip" -> 29.1 pnts/equip | AB89: =TEXT(AG86/AH86,"0.0")&" pnts/equip" -> 29.1 pnts/equip | AL89: =TEXT(AQ86/AR86,"0.0")&" pnts/equip" -> 29.1 pnts/equip | AV89: 29.1 pnts/equip | BF89: 30.3 pnts/equip | BP89: =TEXT(BU86/BV86,"0.0")&" pnts/equip" -> 30.4 pnts/equip | BZ89: =TEXT(CE86/CF86,"0.0")&" pnts/equip" -> 30.4 pnts/equip | CJ89: 30.4 pnts/equip | CT89: 30.4 pnts/equip | DD89: =TEXT(DI86/DJ86,"0.0")&" pnts/equip" -> 30.4 pnts/equip | DN89: =TEXT(DS86/DT86,"0.0")&" pnts/equip" -> 29.3 pnts/equip
A91: All | B91: =OFFSET(B91,0,9,1,1)-OFFSET(B91,0,19,1,1) -> 98 | C91: 5 | D91: 103 | E91: 3 | F91: =IFERROR(OFFSET(F91,0,9,1,1)-OFFSET(F91,0,19,1,1),"n/a") -> -0.01200971207 | H91: BOILER_HEATING | I91: All | J91: All | K91: =SUMIFS(PvtByClassCurr!$O$9:$O$980, PvtByClassCurr!$L$9:$L$980,$H91, PvtByClassCurr!$M$9:$M$980,"Total") -> 1770 | L91: =SUMIFS(PvtByClassCurr!$P$9:$P$980, PvtByClassCurr!$L$9:$L$980,$H91, PvtByClassCurr!$M$9:$M$980,"Total") -> 987 | M91: =SUM(K91:L91) -> 2757 | N91: =SUMIFS(PvtByClassCurr!$N$9:$N$980, PvtByClassCurr!$L$9:$L$980,$H91, PvtByClassCurr!$M$9:$M$980,"Total") -> 72 | O91: =IF(M91=0,"n/a",L91/M91) -> 0.3579978237 | R91: BOILER_HEATING | S91: All | T91: All | U91: 1672 | V91: 982 | W91: 2654 | X91: 69 | Y91: 0.3700075358 | AB91: BOILER_HEATING | AC91: All | AD91: All | AE91: 1828 | AF91: 934 | AG91: 2762 | AH91: 69 | AI91: 0.3381607531 | AL91: BOILER_HEATING | AM91: All | AN91: All | AO91: 1581 | AP91: 967 | AQ91: 2548 | AR91: 68 | AS91: 0.3795133438 | AV91: BOILER_HEATING | AW91: All | AX91: All | AY91: 1451 | AZ91: 917 | BA91: 2368 | BB91: 64 | BC91: 0.3872466216 | BF91: BOILER_HEATING | BG91: All | BH91: All | BI91: 1571 | BJ91: 930 | BK91: 2501 | BL91: 64 | BM91: 0.3718512595 | BP91: BOILER_HEATING | BQ91: All | BR91: All | BS91: 1572 | BT91: 929 | BU91: 2501 | BV91: 64 | BW91: 0.3714514194 | BZ91: BOILER_HEATING | CA91: All | CB91: All | CC91: 1574 | CD91: 926 | CE91: 2500 | CF91: 64 | CG91: 0.3704 | CJ91: BOILER_HEATING | CK91: All | CL91: All | CM91: 1576 | CN91: 924 | CO91: 2500 | CP91: 64 | CQ91: 0.3696 | CT91: BOILER_HEATING | CU91: All | CV91: All | CW91: 1563 | CX91: 857 | CY91: 2420 | CZ91: 62 | DA91: 0.3541322314 | DD91: Boiler-Htng | DE91: All | DF91: All | DG91: 1470 | DH91: 809 | DI91: 2279 | DJ91: 60 | DK91: 0.355 | DN91: Boiler-Htng | DO91: All | DP91: All | DQ91: 1539 | DR91: 749 | DS91: 2288 | DT91: 62 | DU91: 0.3273601399 | DV91: Not Started
A92: Cleansed | B92: 0 | C92: 0 | D92: 0 | E92: 0 | F92: =IFERROR(OFFSET(F92,0,9,1,1)-OFFSET(F92,0,19,1,1),"n/a") -> n/a | H92: =+H91 -> BOILER_HEATING | I92: Y | K92: =SUMIFS(PvtByClassCurr!$R$9:$R$980, PvtByClassCurr!$L$9:$L$980,$H92, PvtByClassCurr!$M$9:$M$980,"Total") -> 0 | L92: =SUMIFS(PvtByClassCurr!$S$9:$S$980, PvtByClassCurr!$L$9:$L$980,$H92, PvtByClassCurr!$M$9:$M$980,"Total") -> 0 | M92: =SUM(K92:L92) -> 0 | N92: =SUMIFS(PvtByClassCurr!$Q$9:$Q$980, PvtByClassCurr!$L$9:$L$980,$H92, PvtByClassCurr!$M$9:$M$980,"Total") -> 0 | O92: =IF(M92=0,"n/a",L92/M92) -> n/a | R92: =+R91 -> BOILER_HEATING | S92: Y | U92: 0 | V92: 0 | W92: 0 | X92: 0 | Y92: n/a | AB92: =+AB91 -> BOILER_HEATING | AC92: Y | AE92: 0 | AF92: 0 | AG92: 0 | AH92: 0 | AI92: n/a | AL92: =+AL91 -> BOILER_HEATING | AM92: Y | AO92: 0 | AP92: 0 | AQ92: 0 | AR92: 0 | AS92: n/a | AV92: BOILER_HEATING | AW92: Y | AY92: 0 | AZ92: 0 | BA92: 0 | BB92: 0 | BC92: n/a | BF92: BOILER_HEATING | BG92: Y | BI92: 0 | BJ92: 0 | BK92: 0 | BL92: 0 | BM92: n/a | BP92: =+BP91 -> BOILER_HEATING | BQ92: Y | BS92: 0 | BT92: 0 | BU92: 0 | BV92: 0 | BW92: n/a | BZ92: =+BZ91 -> BOILER_HEATING | CA92: Y | CC92: 0 | CD92: 0 | CE92: 0 | CF92: 0 | CG92: n/a | CJ92: BOILER_HEATING | CK92: Y | CM92: 0 | CN92: 0 | CO92: 0 | CP92: 0 | CQ92: n/a | CT92: BOILER_HEATING | CU92: Y | CW92: 0 | CX92: 0 | CY92: 0 | CZ92: 0 | DA92: n/a | DD92: =+DD91 -> Boiler-Htng | DE92: Y | DG92: 0 | DH92: 0 | DI92: 0 | DJ92: 0 | DK92: n/a | DN92: =+DN91 -> Boiler-Htng | DO92: Y | DQ92: 0 | DR92: 0 | DS92: 0 | DT92: 0 | DU92: n/a
A93: New | B93: 0 | C93: 0 | D93: 0 | E93: 0 | F93: =IFERROR(OFFSET(F93,0,9,1,1)-OFFSET(F93,0,19,1,1),"n/a") -> n/a | H93: =+H92 -> BOILER_HEATING | J93: Y | K93: =SUMIFS(PvtByClassCurr!$U$9:$U$980, PvtByClassCurr!$L$9:$L$980,$H93, PvtByClassCurr!$M$9:$M$980,"Total") -> 0 | L93: =SUMIFS(PvtByClassCurr!$V$9:$V$980, PvtByClassCurr!$L$9:$L$980,$H93, PvtByClassCurr!$M$9:$M$980,"Total") -> 0 | M93: =SUM(K93:L93) -> 0 | N93: =SUMIFS(PvtByClassCurr!$T$9:$T$980, PvtByClassCurr!$L$9:$L$980,$H93, PvtByClassCurr!$M$9:$M$980,"Total") -> 0 | O93: =IF(M93=0,"n/a",L93/M93) -> n/a | R93: =+R92 -> BOILER_HEATING | T93: Y | U93: 0 | V93: 0 | W93: 0 | X93: 0 | Y93: n/a | AB93: =+AB92 -> BOILER_HEATING | AD93: Y | AE93: 0 | AF93: 0 | AG93: 0 | AH93: 0 | AI93: n/a | AL93: =+AL92 -> BOILER_HEATING | AN93: Y | AO93: 0 | AP93: 0 | AQ93: 0 | AR93: 0 | AS93: n/a | AV93: BOILER_HEATING | AX93: Y | AY93: 0 | AZ93: 0 | BA93: 0 | BB93: 0 | BC93: n/a | BF93: BOILER_HEATING | BH93: Y | BI93: 0 | BJ93: 0 | BK93: 0 | BL93: 0 | BM93: n/a | BP93: =+BP92 -> BOILER_HEATING | BR93: Y | BS93: 0 | BT93: 0 | BU93: 0 | BV93: 0 | BW93: n/a | BZ93: =+BZ92 -> BOILER_HEATING | CB93: Y | CC93: 0 | CD93: 0 | CE93: 0 | CF93: 0 | CG93: n/a | CJ93: BOILER_HEATING | CL93: Y | CM93: 0 | CN93: 0 | CO93: 0 | CP93: 0 | CQ93: n/a | CT93: BOILER_HEATING | CV93: Y | CW93: 0 | CX93: 0 | CY93: 0 | CZ93: 0 | DA93: n/a | DD93: =+DD92 -> Boiler-Htng | DF93: Y | DG93: 0 | DH93: 0 | DI93: 0 | DJ93: 0 | DK93: n/a | DN93: =+DN92 -> Boiler-Htng | DP93: Y | DQ93: 0 | DR93: 0 | DS93: 0 | DT93: 0 | DU93: n/a
A94: All(proportional) | B94: =+B91/OFFSET(B91,0,19,1,1) -> 0.05861244019 | C94: =+C91/OFFSET(C91,0,19,1,1) -> 0.005091649695 | D94: =+D91/OFFSET(D91,0,19,1,1) -> 0.03880934439 | E94: =+E91/OFFSET(E91,0,19,1,1) -> 0.04347826087 | H94: =TEXT(M91/N91,"0.0")&" pnts/equip" -> 38.3 pnts/equip | R94: =TEXT(W91/X91,"0.0")&" pnts/equip" -> 38.5 pnts/equip | AB94: =TEXT(AG91/AH91,"0.0")&" pnts/equip" -> 40.0 pnts/equip | AL94: =TEXT(AQ91/AR91,"0.0")&" pnts/equip" -> 37.5 pnts/equip | AV94: 37.0 pnts/equip | BF94: 39.1 pnts/equip | BP94: =TEXT(BU91/BV91,"0.0")&" pnts/equip" -> 39.1 pnts/equip | BZ94: =TEXT(CE91/CF91,"0.0")&" pnts/equip" -> 39.1 pnts/equip | CJ94: 39.1 pnts/equip | CT94: 39.0 pnts/equip | DD94: =TEXT(DI91/DJ91,"0.0")&" pnts/equip" -> 38.0 pnts/equip | DN94: =TEXT(DS91/DT91,"0.0")&" pnts/equip" -> 36.9 pnts/equip
A96: All | B96: =OFFSET(B96,0,9,1,1)-OFFSET(B96,0,19,1,1) -> -322 | C96: =OFFSET(C96,0,9,1,1)-OFFSET(C96,0,19,1,1) -> -205 | D96: -527 | E96: -13 | F96: =IFERROR(OFFSET(F96,0,9,1,1)-OFFSET(F96,0,19,1,1),"n/a") -> -0.008233918485 | H96: HEATER_DIR_FIRED | I96: All | J96: All | K96: =SUMIFS(PvtByClassCurr!$O$9:$O$980, PvtByClassCurr!$L$9:$L$980,$H96, PvtByClassCurr!$M$9:$M$980,"Total") -> 4794 | L96: =SUMIFS(PvtByClassCurr!$P$9:$P$980, PvtByClassCurr!$L$9:$L$980,$H96, PvtByClassCurr!$M$9:$M$980,"Total") -> 1838 | M96: =SUM(K96:L96) -> 6632 | N96: =SUMIFS(PvtByClassCurr!$N$9:$N$980, PvtByClassCurr!$L$9:$L$980,$H96, PvtByClassCurr!$M$9:$M$980,"Total") -> 162 | O96: =IF(M96=0,"n/a",L96/M96) -> 0.2771411339 | R96: HEATER_DIR_FIRED | S96: All | T96: All | U96: 5116 | V96: 2043 | W96: 7159 | X96: 175 | Y96: 0.2853750524 | AB96: HEATER_DIR_FIRED | AC96: All | AD96: All | AE96: 5154 | AF96: 2045 | AG96: 7199 | AH96: 176 | AI96: 0.2840672316 | AL96: HEATER_DIR_FIRED | AM96: All | AN96: All | AO96: 5155 | AP96: 2044 | AQ96: 7199 | AR96: 176 | AS96: 0.2839283234 | AV96: HEATER_DIR_FIRED | AW96: All | AX96: All | AY96: 5277 | AZ96: 2082 | BA96: 7359 | BB96: 180 | BC96: 0.2829188748 | BF96: HEATER_DIR_FIRED | BG96: All | BH96: All | BI96: 5575 | BJ96: 2029 | BK96: 7604 | BL96: 178 | BM96: 0.2668332457 | BP96: HEATER_DIR_FIRED | BQ96: All | BR96: All | BS96: 5607 | BT96: 2039 | BU96: 7646 | BV96: 179 | BW96: 0.2666753858 | BZ96: HEATER_DIR_FIRED | CA96: All | CB96: All | CC96: 5582 | CD96: 2019 | CE96: 7601 | CF96: 178 | CG96: 0.2656229443
A97: Cleansed | B97: 0 | C97: 0 | D97: 0 | E97: 0 | F97: =IFERROR(OFFSET(F97,0,9,1,1)-OFFSET(F97,0,19,1,1),"n/a") -> n/a | H97: =+H96 -> HEATER_DIR_FIRED | I97: Y | K97: =SUMIFS(PvtByClassCurr!$R$9:$R$980, PvtByClassCurr!$L$9:$L$980,$H97, PvtByClassCurr!$M$9:$M$980,"Total") -> 0 | L97: =SUMIFS(PvtByClassCurr!$S$9:$S$980, PvtByClassCurr!$L$9:$L$980,$H97, PvtByClassCurr!$M$9:$M$980,"Total") -> 0 | M97: =SUM(K97:L97) -> 0 | N97: =SUMIFS(PvtByClassCurr!$Q$9:$Q$980, PvtByClassCurr!$L$9:$L$980,$H97, PvtByClassCurr!$M$9:$M$980,"Total") -> 0 | O97: =IF(M97=0,"n/a",L97/M97) -> n/a | R97: =+R96 -> HEATER_DIR_FIRED | S97: Y | U97: 0 | V97: 0 | W97: 0 | X97: 0 | Y97: n/a | AB97: =+AB96 -> HEATER_DIR_FIRED | AC97: Y | AE97: 0 | AF97: 0 | AG97: 0 | AH97: 0 | AI97: n/a | AL97: =+AL96 -> HEATER_DIR_FIRED | AM97: Y | AO97: 0 | AP97: 0 | AQ97: 0 | AR97: 0 | AS97: n/a | AV97: HEATER_DIR_FIRED | AW97: Y | AY97: 0 | AZ97: 0 | BA97: 0 | BB97: 0 | BC97: n/a | BF97: HEATER_DIR_FIRED | BG97: Y | BI97: 0 | BJ97: 0 | BK97: 0 | BL97: 0 | BM97: n/a | BP97: =+BP96 -> HEATER_DIR_FIRED | BQ97: Y | BS97: 0 | BT97: 0 | BU97: 0 | BV97: 0 | BW97: n/a | BZ97: =+BZ96 -> HEATER_DIR_FIRED | CA97: Y | CC97: 0 | CD97: 0 | CE97: 0 | CF97: 0 | CG97: n/a
A98: New | B98: 0 | C98: 0 | D98: 0 | E98: 0 | F98: =IFERROR(OFFSET(F98,0,9,1,1)-OFFSET(F98,0,19,1,1),"n/a") -> 0 | H98: =+H97 -> HEATER_DIR_FIRED | J98: Y | K98: =SUMIFS(PvtByClassCurr!$U$9:$U$980, PvtByClassCurr!$L$9:$L$980,$H98, PvtByClassCurr!$M$9:$M$980,"Total") -> 69 | L98: =SUMIFS(PvtByClassCurr!$V$9:$V$980, PvtByClassCurr!$L$9:$L$980,$H98, PvtByClassCurr!$M$9:$M$980,"Total") -> 60 | M98: =SUM(K98:L98) -> 129 | N98: =SUMIFS(PvtByClassCurr!$T$9:$T$980, PvtByClassCurr!$L$9:$L$980,$H98, PvtByClassCurr!$M$9:$M$980,"Total") -> 3 | O98: =IF(M98=0,"n/a",L98/M98) -> 0.4651162791 | R98: =+R97 -> HEATER_DIR_FIRED | T98: Y | U98: 69 | V98: 60 | W98: 129 | X98: 3 | Y98: 0.4651162791 | AB98: =+AB97 -> HEATER_DIR_FIRED | AD98: Y | AE98: 69 | AF98: 60 | AG98: 129 | AH98: 3 | AI98: 0.4651162791 | AL98: =+AL97 -> HEATER_DIR_FIRED | AN98: Y | AO98: 69 | AP98: 60 | AQ98: 129 | AR98: 3 | AS98: 0.4651162791 | AV98: HEATER_DIR_FIRED | AX98: Y | AY98: 69 | AZ98: 60 | BA98: 129 | BB98: 3 | BC98: 0.4651162791 | BF98: HEATER_DIR_FIRED | BH98: Y | BI98: 25 | BJ98: 20 | BK98: 45 | BL98: 1 | BM98: 0.4444444444 | BP98: =+BP97 -> HEATER_DIR_FIRED | BR98: Y | BS98: 25 | BT98: 20 | BU98: 45 | BV98: 1 | BW98: 0.4444444444 | BZ98: =+BZ97 -> HEATER_DIR_FIRED | CB98: Y | CC98: 0 | CD98: 0 | CE98: 0 | CF98: 0 | CG98: n/a
A99: All(proportional) | B99: =+B96/OFFSET(B96,0,19,1,1) -> -0.06293979672 | C99: =+C96/OFFSET(C96,0,19,1,1) -> -0.1003426334 | D99: =+D96/OFFSET(D96,0,19,1,1) -> -0.07361363319 | E99: =+E96/OFFSET(E96,0,19,1,1) -> -0.07428571429 | H99: =TEXT(M96/N96,"0.0")&" pnts/equip" -> 40.9 pnts/equip | R99: =TEXT(W96/X96,"0.0")&" pnts/equip" -> 40.9 pnts/equip | AB99: =TEXT(AG96/AH96,"0.0")&" pnts/equip" -> 40.9 pnts/equip | AL99: =TEXT(AQ96/AR96,"0.0")&" pnts/equip" -> 40.9 pnts/equip | AV99: 40.9 pnts/equip | BF99: 42.7 pnts/equip | BP99: =TEXT(BU96/BV96,"0.0")&" pnts/equip" -> 42.7 pnts/equip | BZ99: =TEXT(CE96/CF96,"0.0")&" pnts/equip" -> 42.7 pnts/equip
A101: All | B101: =OFFSET(B101,0,9,1,1)-OFFSET(B101,0,19,1,1) -> 7794 | C101: =OFFSET(C101,0,9,1,1)-OFFSET(C101,0,19,1,1) -> -340 | D101: 7454 | E101: 133 | F101: =IFERROR(OFFSET(F101,0,9,1,1)-OFFSET(F101,0,19,1,1),"n/a") -> -0.01823532391 | H101: HEAT_EX_SHELL_TUBE | I101: All | J101: All | K101: =SUMIFS(PvtByClassCurr!$O$9:$O$980, PvtByClassCurr!$L$9:$L$980,$H101, PvtByClassCurr!$M$9:$M$980,"Total") -> 99646 | L101: =SUMIFS(PvtByClassCurr!$P$9:$P$980, PvtByClassCurr!$L$9:$L$980,$H101, PvtByClassCurr!$M$9:$M$980,"Total") -> 36885 | M101: =SUM(K101:L101) -> 136531 | N101: =SUMIFS(PvtByClassCurr!$N$9:$N$980, PvtByClassCurr!$L$9:$L$980,$H101, PvtByClassCurr!$M$9:$M$980,"Total") -> 2397 | O101: =IF(M101=0,"n/a",L101/M101) -> 0.2701584256 | R101: HEAT_EX_SHELL_TUBE | S101: All | T101: All | U101: 91852 | V101: 37225 | W101: 129077 | X101: 2264 | Y101: 0.2883937495 | AB101: HEAT_EX_SHELL_TUBE | AC101: All | AD101: All | AE101: 91658 | AF101: 37052 | AG101: 128710 | AH101: 2258 | AI101: 0.2878719602 | AL101: HEAT_EX_SHELL_TUBE | AM101: All | AN101: All | AO101: 91792 | AP101: 36998 | AQ101: 128790 | AR101: 2259 | AS101: 0.2872738567
A102: Cleansed | B102: 0 | C102: 0 | D102: 0 | E102: 0 | F102: =IFERROR(OFFSET(F102,0,9,1,1)-OFFSET(F102,0,19,1,1),"n/a") -> n/a | H102: =+H101 -> HEAT_EX_SHELL_TUBE | I102: Y | K102: =SUMIFS(PvtByClassCurr!$R$9:$R$980, PvtByClassCurr!$L$9:$L$980,$H102, PvtByClassCurr!$M$9:$M$980,"Total") -> 0 | L102: =SUMIFS(PvtByClassCurr!$S$9:$S$980, PvtByClassCurr!$L$9:$L$980,$H102, PvtByClassCurr!$M$9:$M$980,"Total") -> 0 | M102: =SUM(K102:L102) -> 0 | N102: =SUMIFS(PvtByClassCurr!$Q$9:$Q$980, PvtByClassCurr!$L$9:$L$980,$H102, PvtByClassCurr!$M$9:$M$980,"Total") -> 0 | O102: =IF(M102=0,"n/a",L102/M102) -> n/a | R102: =+R101 -> HEAT_EX_SHELL_TUBE | S102: Y | U102: 0 | V102: 0 | W102: 0 | X102: 0 | Y102: n/a | AB102: =+AB101 -> HEAT_EX_SHELL_TUBE | AC102: Y | AE102: 0 | AF102: 0 | AG102: 0 | AH102: 0 | AI102: n/a | AL102: =+AL101 -> HEAT_EX_SHELL_TUBE | AM102: Y | AO102: 0 | AP102: 0 | AQ102: 0 | AR102: 0 | AS102: n/a
A103: New | B103: 54 | C103: 60 | D103: 114 | E103: 2 | F103: =IFERROR(OFFSET(F103,0,9,1,1)-OFFSET(F103,0,19,1,1),"n/a") -> 0.00869049281 | H103: =+H102 -> HEAT_EX_SHELL_TUBE | J103: Y | K103: =SUMIFS(PvtByClassCurr!$U$9:$U$980, PvtByClassCurr!$L$9:$L$980,$H103, PvtByClassCurr!$M$9:$M$980,"Total") -> 605 | L103: =SUMIFS(PvtByClassCurr!$V$9:$V$980, PvtByClassCurr!$L$9:$L$980,$H103, PvtByClassCurr!$M$9:$M$980,"Total") -> 497 | M103: =SUM(K103:L103) -> 1102 | N103: =SUMIFS(PvtByClassCurr!$T$9:$T$980, PvtByClassCurr!$L$9:$L$980,$H103, PvtByClassCurr!$M$9:$M$980,"Total") -> 19 | O103: =IF(M103=0,"n/a",L103/M103) -> 0.4509981851 | R103: =+R102 -> HEAT_EX_SHELL_TUBE | T103: Y | U103: 551 | V103: 437 | W103: 988 | X103: 17 | Y103: 0.4423076923 | AB103: =+AB102 -> HEAT_EX_SHELL_TUBE | AD103: Y | AE103: 77 | AF103: 40 | AG103: 117 | AH103: 2 | AI103: 0.3418803419 | AL103: =+AL102 -> HEAT_EX_SHELL_TUBE | AN103: Y | AO103: 43 | AP103: 15 | AQ103: 58 | AR103: 1 | AS103: 0.2586206897
A104: All(proportional) | B104: =+B101/OFFSET(B101,0,19,1,1) -> 0.0848538954 | C104: =+C101/OFFSET(C101,0,19,1,1) -> -0.009133646743 | D104: =+D101/OFFSET(D101,0,19,1,1) -> 0.05774847572 | E104: =+E101/OFFSET(E101,0,19,1,1) -> 0.05874558304 | H104: =TEXT(M101/N101,"0.0")&" pnts/equip" -> 57.0 pnts/equip | R104: =TEXT(W101/X101,"0.0")&" pnts/equip" -> 57.0 pnts/equip | AB104: =TEXT(AG101/AH101,"0.0")&" pnts/equip" -> 57.0 pnts/equip | AL104: =TEXT(AQ101/AR101,"0.0")&" pnts/equip" -> 57.0 pnts/equip

Sheet PvtByClassCurr
L1: sum (total)-sum(Check Total) | N1: =SUMIF($M$1:$M$980,"Total",N$1:N$980)-SUMIF($M$1:$M$980,"Check Total",N$1:N$980) -> 0 | O1: =SUMIF($M$1:$M$980,"Total",O$1:O$980)-SUMIF($M$1:$M$980,"Check Total",O$1:O$980) -> 0 | P1: 0 | Q1: 0 | R1: 0 | S1: 0 | T1: 0 | U1: 0 | V1: 0
J6: =+OFFSET(DataQual!$G$1,0,1,1,1) -> 2018-03
A8: Copy last Class block down 20 rows. | N8: Equip | Q8: Cleansed | T8: New
B9: Class | C9: Cleansed | D9: New | E9: Area | F9: Equip Count | G9: Fields Comply | H9: Fields Non Comply | J9: Month | K9: Order | L9: Class | M9: Area | N9: Equip Count | O9: Fields Non Comply | P9: Fields Comply | Q9: Equip Count | R9: Fields Non Comply | S9: Fields Comply | T9: Equip Count | U9: Fields Non Comply | V9: Fields Comply
A10: file | B10: =TRIM(VLOOKUP(B11,Lookups!$B$6:$J$23,9,FALSE)) -> '\\hq\heidfs\data\control\Finance Process Governance and Projects\PM Data\Cleansing Analysis\Equipment\01) FWKO\FWKO Data Quality Review - Curr.xlsb'!equipList | J10: =PvtByClassCurr!$J$6 -> 2018-03
A11: class | B11: =INDEX(Class,COUNTIF(A$10:A11,"class")) -> KNOCK_OUT_FW | J11: =PvtByClassCurr!$J$6 -> 2018-03
A12: | | F12: Values | J12: =PvtByClassCurr!$J$6 -> 2018-03 | N12: Equip | Q12: Cleansed | T12: New
A13: | | | B13: Class | C13: Cleansed | D13: New | E13: Area | F13: Equip Count | G13: Fields Comply | H13: Fields Non Comply | J13: =PvtByClassCurr!$J$6 -> 2018-03 | N13: Equip Count | O13: Fields Non Comply | P13: Fields Comply | Q13: Equip Count | R13: Fields Non Comply | S13: Fields Comply | T13: Equip Count | U13: Fields Non Comply | V13: Fields Comply
A14: | | B14: KNOCK_OUT_FW | C14: Y | D14: N | E14: Sunrise | F14: 2 | G14: 111 | H14: 1 | J14: =PvtByClassCurr!$J$6 -> 2018-03 | K14: 1 | L14: =+$B16 -> KNOCK_OUT_FW | M14: Atlantic | N14: =SUMPRODUCT(--($F$14:$H$28)*($E$14:$E$28=$M14)*($F$13:$H$13="Equip Count")) -> 0 | O14: =SUMPRODUCT(--($F$14:$H$28)*($E$14:$E$28=$M14)*($F$13:$H$13="Fields Non Comply")) -> 0 | P14: =SUMPRODUCT(--($F$14:$H$28)*($E$14:$E$28=$M14)*($F$13:$H$13="Fields Comply")) -> 0 | Q14: =SUMPRODUCT(--($F$14:$H$28)*($E$14:$E$28=$M14)*($C$14:$C$28="Y")*($F$13:$H$13="Equip Count")) -> 0 | R14: =SUMPRODUCT(--($F$14:$H$28)*($E$14:$E$28=$M14)*($C$14:$C$28="Y")*($F$13:$H$13="Fields Non Comply")) -> 0 | S14: =SUMPRODUCT(--($F$14:$H$28)*($E$14:$E$28=$M14)*($C$14:$C$28="Y")*($F$13:$H$13="Fields Comply")) -> 0 | T14: =SUMPRODUCT(--($F$14:$H$28)*($E$14:$E$28=$M14)*($D$14:$D$28="Y")*($F$13:$H$13="Equip Count")) -> 0 | U14: =SUMPRODUCT(--($F$14:$H$28)*($E$14:$E$28=$M14)*($D$14:$D$28="Y")*($F$13:$H$13="Fields Non Comply")) -> 0 | V14: =SUMPRODUCT(--($F$14:$H$28)*($E$14:$E$28=$M14)*($D$14:$D$28="Y")*($F$13:$H$13="Fields Comply")) -> 0
A15: | | B15: KNOCK_OUT_FW | C15: Y | D15: N | E15: HOG | F15: 36 | G15: 1970 | H15: 2 | J15: =PvtByClassCurr!$J$6 -> 2018-03 | K15: =+K14+1 -> 2 | L15: =+L14 -> KNOCK_OUT_FW | M15: Can. D/S | N15: 0 | O15: 0 | P15: 0 | Q15: 0 | R15: 0 | S15: 0 | T15: 0 | U15: 0 | V15: 0
A16: | | B16: KNOCK_OUT_FW | C16: Y | D16: N | E16: WCP | F16: 1 | G16: 53 | H16: 0 | J16: =PvtByClassCurr!$J$6 -> 2018-03 | K16: 3 | L16: KNOCK_OUT_FW | M16: HOG | N16: 42 | O16: 40 | P16: 2267 | Q16: 36 | R16: 2 | S16: 1970 | T16: 6 | U16: 38 | V16: 297
A17: | | B17: KNOCK_OUT_FW | C17: N | D17: Y | E17: HOG | F17: 6 | G17: 297 | H17: 38 | J17: =PvtByClassCurr!$J$6 -> 2018-03 | K17: 4 | L17: KNOCK_OUT_FW | M17: Lima | N17: 0 | O17: 0 | P17: 0 | Q17: 0 | R17: 0 | S17: 0 | T17: 0 | U17: 0 | V17: 0
A18: | | B18: Grand Total | F18: 45 | G18: 2431 | H18: 41 | J18: =PvtByClassCurr!$J$6 -> 2018-03 | K18: 5 | L18: KNOCK_OUT_FW | M18: SEIM/Corp | N18: 0 | O18: 0 | P18: 0 | Q18: 0 | R18: 0 | S18: 0 | T18: 0 | U18: 0 | V18: 0
A19: | | J19: =PvtByClassCurr!$J$6 -> 2018-03 | K19: 6 | L19: KNOCK_OUT_FW | M19: Sunrise | N19: 2 | O19: 1 | P19: 111 | Q19: 2 | R19: 1 | S19: 111 | T19: 0 | U19: 0 | V19: 0
A20: | | J20: =PvtByClassCurr!$J$6 -> 2018-03 | K20: 7 | L20: KNOCK_OUT_FW | M20: WCP | N20: 1 | O20: 0 | P20: 53 | Q20: 1 | R20: 0 | S20: 53 | T20: 0 | U20: 0 | V20: 0
A21: | | J21: =PvtByClassCurr!$J$6 -> 2018-03 | K21: 8 | L21: KNOCK_OUT_FW | M21: Total | N21: =SUM(N14:N20) -> 45 | O21: 41 | P21: 2431 | Q21: 39 | R21: 3 | S21: 2134 | T21: 6 | U21: 38 | V21: 297
A22: | | J22: =PvtByClassCurr!$J$6 -> 2018-03 | M22: Check Total | N22: =SUMPRODUCT(--($F$14:$H$28)*($B$14:$B$28="Grand Total")*($F$13:$H$13="Equip Count")) -> 45 | O22: =SUMPRODUCT(--($F$14:$H$28)*($B$14:$B$28="Grand Total")*($F$13:$H$13="Fields Non Comply")) -> 41 | P22: =SUMPRODUCT(--($F$14:$H$28)*($B$14:$B$28="Grand Total")*($F$13:$H$13="Fields Comply")) -> 2431 | Q22: =SUMPRODUCT(--($F$14:$H$28)*($C$14:$C$28="Y")*($F$13:$H$13="Equip Count")) -> 39 | R22: =SUMPRODUCT(--($F$14:$H$28)*($C$14:$C$28="Y")*($F$13:$H$13="Fields Non Comply")) -> 3 | S22: =SUMPRODUCT(--($F$14:$H$28)*($C$14:$C$28="Y")*($F$13:$H$13="Fields Comply")) -> 2134 | T22: =SUMPRODUCT(--($F$14:$H$28)*($D$14:$D$28="Y")*($F$13:$H$13="Equip Count")) -> 6 | U22: =SUMPRODUCT(--($F$14:$H$28)*($D$14:$D$28="Y")*($F$13:$H$13="Fields Non Comply")) -> 38 | V22: =SUMPRODUCT(--($F$14:$H$28)*($D$14:$D$28="Y")*($F$13:$H$13="Fields Comply")) -> 297
A23: | | J23: =PvtByClassCurr!$J$6 -> 2018-03
A24: | | J24: =PvtByClassCurr!$J$6 -> 2018-03
A25: | | J25: =PvtByClassCurr!$J$6 -> 2018-03
A26: | | J26: =PvtByClassCurr!$J$6 -> 2018-03
A27: | | J27: =PvtByClassCurr!$J$6 -> 2018-03
A28: | | J28: =PvtByClassCurr!$J$6 -> 2018-03
A29: V | J29: =PvtByClassCurr!$J$6 -> 2018-03
A30: file | B30: =TRIM(VLOOKUP(B31,Lookups!$B$6:$J$23,9,FALSE)) -> '\\hq\heidfs\data\control\Finance Process Governance and Projects\PM Data\Cleansing Analysis\Equipment\02) Stack-Flare\Stack-Flare Data Standards Review - Curr.xlsb'!equipList | J30: =PvtByClassCurr!$J$6 -> 2018-03
A31: class | B31: =INDEX(Class,COUNTIF(A$10:A31,"class")) -> STACK_FLARE | J31: =PvtByClassCurr!$J$6 -> 2018-03
A32: | | F32: Values | J32: =PvtByClassCurr!$J$6 -> 2018-03 | N32: Equip | Q32: Cleansed | T32: New
A33: | | | B33: Class | C33: Cleansed | D33: New | E33: Area | F33: Equip Count | G33: Fields Comply | H33: Fields Non Comply | J33: =PvtByClassCurr!$J$6 -> 2018-03 | N33: Equip Count | O33: Fields Non Comply | P33: Fields Comply | Q33: Equip Count | R33: Fields Non Comply | S33: Fields Comply | T33: Equip Count | U33: Fields Non Comply | V33: Fields Comply
A34: | | B34: STACK_FLARE | C34: Y | D34: N | E34: HOG | F34: 11 | G34: 126 | H34: 281 | J34: =PvtByClassCurr!$J$6 -> 2018-03 | K34: 1 | L34: =+$B34 -> STACK_FLARE | M34: Atlantic | N34: =SUMPRODUCT(--($F$34:$H$48)*($E$34:$E$48=$M34)*($F$33:$H$33="Equip Count")) -> 1 | O34: =SUMPRODUCT(--($F$34:$H$48)*($E$34:$E$48=$M34)*($F$33:$H$33="Fields Non Comply")) -> 27 | P34: =SUMPRODUCT(--($F$34:$H$48)*($E$34:$E$48=$M34)*($F$33:$H$33="Fields Comply")) -> 10 | Q34: =SUMPRODUCT(--($F$34:$H$48)*($E$34:$E$48=$M34)*($C$34:$C$48="Y")*($F$33:$H$33="Equip Count")) -> 0 | R34: =SUMPRODUCT(--($F$34:$H$48)*($E$34:$E$48=$M34)*($C$34:$C$48="Y")*($F$33:$H$33="Fields Non Comply")) -> 0 | S34: =SUMPRODUCT(--($F$34:$H$48)*($E$34:$E$48=$M34)*($C$34:$C$48="Y")*($F$33:$H$33="Fields Comply")) -> 0 | T34: =SUMPRODUCT(--($F$34:$H$48)*($E$34:$E$48=$M34)*($D$34:$D$48="Y")*($F$33:$H$33="Equip Count")) -> 0 | U34: =SUMPRODUCT(--($F$34:$H$48)*($E$34:$E$48=$M34)*($D$34:$D$48="Y")*($F$33:$H$33="Fields Non Comply")) -> 0 | V34: =SUMPRODUCT(--($F$34:$H$48)*($E$34:$E$48=$M34)*($D$34:$D$48="Y")*($F$33:$H$33="Fields Comply")) -> 0
A35: | | B35: STACK_FLARE | C35: Y | D35: N | E35: WCP | F35: 39 | G35: 850 | H35: 667 | J35: =PvtByClassCurr!$J$6 -> 2018-03 | K35: =+K34+1 -> 2 | L35: =+L34 -> STACK_FLARE | M35: Can. D/S | N35: 13 | O35: 356 | P35: 120 | Q35: 0 | R35: 0 | S35: 0 | T35: 0 | U35: 0 | V35: 0
A36: | | B36: STACK_FLARE | C36: N | D36: N | E36: HOG | F36: 27 | G36: 442 | H36: 580 | J36: =PvtByClassCurr!$J$6 -> 2018-03 | K36: 3 | L36: STACK_FLARE | M36: HOG | N36: 38 | O36: 861 | P36: 568 | Q36: 11 | R36: 281 | S36: 126 | T36: 0 | U36: 0 | V36: 0
A37: | | B37: STACK_FLARE | C37: N | D37: N | E37: Sunrise | F37: 17 | G37: 309 | H37: 334 | J37: =PvtByClassCurr!$J$6 -> 2018-03 | K37: 4 | L37: STACK_FLARE | M37: Lima | N37: 11 | O37: 266 | P37: 109 | Q37: 0 | R37: 0 | S37: 0 | T37: 0 | U37: 0 | V37: 0
A38: | | B38: STACK_FLARE | C38: N | D38: N | E38: WCP | F38: 180 | G38: 2246 | H38: 4491 | J38: =PvtByClassCurr!$J$6 -> 2018-03 | K38: 5 | L38: STACK_FLARE | M38: SEIM/Corp | N38: 2 | O38: 49 | P38: 25 | Q38: 0 | R38: 0 | S38: 0 | T38: 0 | U38: 0 | V38: 0
A39: | | B39: STACK_FLARE | C39: N | D39: N | E39: Can. D/S | F39: 13 | G39: 120 | H39: 356 | J39: =PvtByClassCurr!$J$6 -> 2018-03 | K39: 6 | L39: STACK_FLARE | M39: Sunrise | N39: 17 | O39: 334 | P39: 309 | Q39: 0 | R39: 0 | S39: 0 | T39: 0 | U39: 0 | V39: 0
A40: | | B40: STACK_FLARE | C40: N | D40: N | E40: SEIM/Corp | F40: 2 | G40: 25 | H40: 49 | J40: =PvtByClassCurr!$J$6 -> 2018-03 | K40: 7 | L40: STACK_FLARE | M40: WCP | N40: 220 | O40: 5195 | P40: 3096 | Q40: 39 | R40: 667 | S40: 850 | T40: 1 | U40: 37 | V40: 0
A41: | | B41: STACK_FLARE | C41: N | D41: N | E41: Atlantic | F41: 1 | G41: 10 | H41: 27 | J41: =PvtByClassCurr!$J$6 -> 2018-03 | K41: 8 | L41: STACK_FLARE | M41: Total | N41: =SUM(N34:N40) -> 302 | O41: 7088 | P41: 4237 | Q41: 50 | R41: 948 | S41: 976 | T41: 1 | U41: 37 | V41: 0
A42: | | B42: STACK_FLARE | C42: N | D42: N | E42: Lima | F42: 11 | G42: 109 | H42: 266 | J42: =PvtByClassCurr!$J$6 -> 2018-03 | M42: Check Total | N42: =SUMPRODUCT(--($F$34:$H$48)*($B$34:$B$48="Grand Total")*($F$33:$H$33="Equip Count")) -> 302 | O42: =SUMPRODUCT(--($F$34:$H$48)*($B$34:$B$48="Grand Total")*($F$33:$H$33="Fields Non Comply")) -> 7088 | P42: =SUMPRODUCT(--($F$34:$H$48)*($B$34:$B$48="Grand Total")*($F$33:$H$33="Fields Comply")) -> 4237 | Q42: =SUMPRODUCT(--($F$34:$H$48)*($C$34:$C$48="Y")*($F$33:$H$33="Equip Count")) -> 50 | R42: =SUMPRODUCT(--($F$34:$H$48)*($C$34:$C$48="Y")*($F$33:$H$33="Fields Non Comply")) -> 948 | S42: =SUMPRODUCT(--($F$34:$H$48)*($C$34:$C$48="Y")*($F$33:$H$33="Fields Comply")) -> 976 | T42: =SUMPRODUCT(--($F$34:$H$48)*($D$34:$D$48="Y")*($F$33:$H$33="Equip Count")) -> 1 | U42: =SUMPRODUCT(--($F$34:$H$48)*($D$34:$D$48="Y")*($F$33:$H$33="Fields Non Comply")) -> 37 | V42: =SUMPRODUCT(--($F$34:$H$48)*($D$34:$D$48="Y")*($F$33:$H$33="Fields Comply")) -> 0
A43: | | B43: STACK_FLARE | C43: N | D43: Y | E43: WCP | F43: 1 | G43: 0 | H43: 37 | J43: =PvtByClassCurr!$J$6 -> 2018-03
A44: | | B44: Grand Total | F44: 302 | G44: 4237 | H44: 7088 | J44: =PvtByClassCurr!$J$6 -> 2018-03
A45: | | J45: =PvtByClassCurr!$J$6 -> 2018-03
A46: | | J46: =PvtByClassCurr!$J$6 -> 2018-03
A47: | | J47: =PvtByClassCurr!$J$6 -> 2018-03 | L47: Y:\
A48: | | J48: =PvtByClassCurr!$J$6 -> 2018-03
A49: V | J49: =PvtByClassCurr!$J$6 -> 2018-03
A50: file | B50: =TRIM(VLOOKUP(B51,Lookups!$B$6:$J$23,9,FALSE)) -> '\\hq\heidfs\data\control\Finance Process Governance and Projects\PM Data\Cleansing Analysis\Equipment\03) Incinerator\Incinerator Data Standards Review - Curr.xlsb'!equipList | C50: '\\hq\heidfs\data\control\Finance Process Governance and Projects\PM Data\Cleansing Analysis\Equipment\03) Incinerator\Incinerator Data Standards Review - Curr.xlsb'!equipList | J50: =PvtByClassCurr!$J$6 -> 2018-03
A51: class | B51: =INDEX(Class,COUNTIF(A$10:A51,"class")) -> INCINERATOR | J51: =PvtByClassCurr!$J$6 -> 2018-03
A52: | | F52: Values | J52: =PvtByClassCurr!$J$6 -> 2018-03 | N52: Equip | Q52: Cleansed | T52: New
A53: | | | B53: Class | C53: Cleansed | D53: New | E53: Area | F53: Equip Count | G53: Fields Comply | H53: Fields Non Comply | J53: =PvtByClassCurr!$J$6 -> 2018-03 | N53: Equip Count | O53: Fields Non Comply | P53: Fields Comply | Q53: Equip Count | R53: Fields Non Comply | S53: Fields Comply | T53: Equip Count | U53: Fields Non Comply | V53: Fields Comply
A54: | | B54: INCINERATOR | C54: N | D54: N | E54: Can. D/S | F54: 8 | G54: 84 | H54: 297 | J54: =PvtByClassCurr!$J$6 -> 2018-03 | K54: 1 | L54: =+$B54 -> INCINERATOR | M54: Atlantic | N54: =SUMPRODUCT(--($F$54:$H$68)*($E$54:$E$68=$M54)*($F$53:$H$53="Equip Count")) -> 0 | O54: =SUMPRODUCT(--($F$54:$H$68)*($E$54:$E$68=$M54)*($F$53:$H$53="Fields Non Comply")) -> 0 | P54: =SUMPRODUCT(--($F$54:$H$68)*($E$54:$E$68=$M54)*($F$53:$H$53="Fields Comply")) -> 0 | Q54: =SUMPRODUCT(--($F$54:$H$68)*($E$54:$E$68=$M54)*($C$54:$C$68="Y")*($F$53:$H$53="Equip Count")) -> 0 | R54: =SUMPRODUCT(--($F$54:$H$68)*($E$54:$E$68=$M54)*($C$54:$C$68="Y")*($F$53:$H$53="Fields Non Comply")) -> 0 | S54: =SUMPRODUCT(--($F$54:$H$68)*($E$54:$E$68=$M54)*($C$54:$C$68="Y")*($F$53:$H$53="Fields Comply")) -> 0 | T54: =SUMPRODUCT(--($F$54:$H$68)*($E$54:$E$68=$M54)*($D$54:$D$68="Y")*($F$53:$H$53="Equip Count")) -> 0 | U54: =SUMPRODUCT(--($F$54:$H$68)*($E$54:$E$68=$M54)*($D$54:$D$68="Y")*($F$53:$H$53="Fields Non Comply")) -> 0 | V54: =SUMPRODUCT(--($F$54:$H$68)*($E$54:$E$68=$M54)*($D$54:$D$68="Y")*($F$53:$H$53="Fields Comply")) -> 0
A55: | | B55: INCINERATOR | C55: N | D55: N | E55: HOG | F55: 8 | G55: 109 | H55: 281 | J55: =PvtByClassCurr!$J$6 -> 2018-03 | K55: =+K54+1 -> 2 | L55: =+L54 -> INCINERATOR | M55: Can. D/S | N55: 8 | O55: 297 | P55: 84 | Q55: 0 | R55: 0 | S55: 0 | T55: 0 | U55: 0 | V55: 0
A56: | | B56: INCINERATOR | C56: N | D56: N | E56: Lima | F56: 46 | G56: 363 | H56: 1799 | J56: =PvtByClassCurr!$J$6 -> 2018-03 | K56: 3 | L56: INCINERATOR | M56: HOG | N56: 8 | O56: 281 | P56: 109 | Q56: 0 | R56: 0 | S56: 0 | T56: 0 | U56: 0 | V56: 0
A57: | | B57: INCINERATOR | C57: N | D57: N | E57: SEIM/Corp | F57: 3 | G57: 31 | H57: 110 | J57: =PvtByClassCurr!$J$6 -> 2018-03 | K57: 4 | L57: INCINERATOR | M57: Lima | N57: 46 | O57: 1799 | P57: 363 | Q57: 0 | R57: 0 | S57: 0 | T57: 0 | U57: 0 | V57: 0
A58: | | B58: INCINERATOR | C58: N | D58: N | E58: Sunrise | F58: 22 | G58: 190 | H58: 844 | J58: =PvtByClassCurr!$J$6 -> 2018-03 | K58: 5 | L58: INCINERATOR | M58: SEIM/Corp | N58: 3 | O58: 110 | P58: 31 | Q58: 0 | R58: 0 | S58: 0 | T58: 0 | U58: 0 | V58: 0
A59: | | B59: INCINERATOR | C59: N | D59: N | E59: WCP | F59: 13 | G59: 181 | H59: 430 | J59: =PvtByClassCurr!$J$6 -> 2018-03 | K59: 6 | L59: INCINERATOR | M59: Sunrise | N59: 22 | O59: 844 | P59: 190 | Q59: 0 | R59: 0 | S59: 0 | T59: 0 | U59: 0 | V59: 0
A60: | | B60: Grand Total | F60: 100 | G60: 958 | H60: 3761 | J60: =PvtByClassCurr!$J$6 -> 2018-03 | K60: 7 | L60: INCINERATOR | M60: WCP | N60: 13 | O60: 430 | P60: 181 | Q60: 0 | R60: 0 | S60: 0 | T60: 0 | U60: 0 | V60: 0
A61: | | J61: =PvtByClassCurr!$J$6 -> 2018-03 | K61: 8 | L61: INCINERATOR | M61: Total | N61: =SUM(N54:N60) -> 100 | O61: 3761 | P61: 958 | Q61: 0 | R61: 0 | S61: 0 | T61: 0 | U61: 0 | V61: 0
A62: | | J62: =PvtByClassCurr!$J$6 -> 2018-03 | M62: Check Total | N62: =SUMPRODUCT(--($F$54:$H$68)*($B$54:$B$68="Grand Total")*($F$53:$H$53="Equip Count")) -> 100 | O62: =SUMPRODUCT(--($F$54:$H$68)*($B$54:$B$68="Grand Total")*($F$53:$H$53="Fields Non Comply")) -> 3761 | P62: =SUMPRODUCT(--($F$54:$H$68)*($B$54:$B$68="Grand Total")*($F$53:$H$53="Fields Comply")) -> 958 | Q62: =SUMPRODUCT(--($F$54:$H$68)*($C$54:$C$68="Y")*($F$53:$H$53="Equip Count")) -> 0 | R62: =SUMPRODUCT(--($F$54:$H$68)*($C$54:$C$68="Y")*($F$53:$H$53="Fields Non Comply")) -> 0 | S62: =SUMPRODUCT(--($F$54:$H$68)*($C$54:$C$68="Y")*($F$53:$H$53="Fields Comply")) -> 0 | T62: =SUMPRODUCT(--($F$54:$H$68)*($D$54:$D$68="Y")*($F$53:$H$53="Equip Count")) -> 0 | U62: =SUMPRODUCT(--($F$54:$H$68)*($D$54:$D$68="Y")*($F$53:$H$53="Fields Non Comply")) -> 0 | V62: =SUMPRODUCT(--($F$54:$H$68)*($D$54:$D$68="Y")*($F$53:$H$53="Fields Comply")) -> 0
A63: | | J63: =PvtByClassCurr!$J$6 -> 2018-03
A64: | | J64: =PvtByClassCurr!$J$6 -> 2018-03
A65: | | J65: =PvtByClassCurr!$J$6 -> 2018-03
A66: | | J66: =PvtByClassCurr!$J$6 -> 2018-03
A67: | | J67: =PvtByClassCurr!$J$6 -> 2018-03
A68: | | J68: =PvtByClassCurr!$J$6 -> 2018-03
A69: V | J69: =PvtByClassCurr!$J$6 -> 2018-03
A70: file | B70: =TRIM(VLOOKUP(B71,Lookups!$B$6:$J$23,9,FALSE)) -> '\\hq\heidfs\data\control\Finance Process Governance and Projects\PM Data\Cleansing Analysis\Equipment\04) Stack-Vent\Stack-Vent Data Standards Review - Curr.xlsb'!equipList | J70: =PvtByClassCurr!$J$6 -> 2018-03
A71: class | B71: =INDEX(Class,COUNTIF(A$10:A71,"class")) -> STACK_VENT | J71: =PvtByClassCurr!$J$6 -> 2018-03
A72: | | F72: Values | J72: =PvtByClassCurr!$J$6 -> 2018-03 | N72: Equip | Q72: Cleansed | T72: New
A73: | | | B73: Class | C73: Cleansed | D73: New | E73: Area | F73: Equip Count | G73: Fields Comply | H73: Fields Non Comply | J73: =PvtByClassCurr!$J$6 -> 2018-03 | N73: Equip Count | O73: Fields Non Comply | P73: Fields Comply | Q73: Equip Count | R73: Fields Non Comply | S73: Fields Comply | T73: Equip Count | U73: Fields Non Comply | V73: Fields Comply
A74: | | B74: STACK_VENT | C74: Y | D74: N | E74: WCP | F74: 1 | G74: 12 | H74: 15 | J74: =PvtByClassCurr!$J$6 -> 2018-03 | K74: 1 | L74: =+$B74 -> STACK_VENT | M74: Atlantic | N74: =SUMPRODUCT(--($F$74:$H$88)*($E$74:$E$88=$M74)*($F$73:$H$73="Equip Count")) -> 0 | O74: =SUMPRODUCT(--($F$74:$H$88)*($E$74:$E$88=$M74)*($F$73:$H$73="Fields Non Comply")) -> 0 | P74: =SUMPRODUCT(--($F$74:$H$88)*($E$74:$E$88=$M74)*($F$73:$H$73="Fields Comply")) -> 0 | Q74: =SUMPRODUCT(--($F$74:$H$88)*($E$74:$E$88=$M74)*($C$74:$C$88="Y")*($F$73:$H$73="Equip Count")) -> 0 | R74: =SUMPRODUCT(--($F$74:$H$88)*($E$74:$E$88=$M74)*($C$74:$C$88="Y")*($F$73:$H$73="Fields Non Comply")) -> 0 | S74: =SUMPRODUCT(--($F$74:$H$88)*($E$74:$E$88=$M74)*($C$74:$C$88="Y")*($F$73:$H$73="Fields Comply")) -> 0 | T74: =SUMPRODUCT(--($F$74:$H$88)*($E$74:$E$88=$M74)*($D$74:$D$88="Y")*($F$73:$H$73="Equip Count")) -> 0 | U74: =SUMPRODUCT(--($F$74:$H$88)*($E$74:$E$88=$M74)*($D$74:$D$88="Y")*($F$73:$H$73="Fields Non Comply")) -> 0 | V74: =SUMPRODUCT(--($F$74:$H$88)*($E$74:$E$88=$M74)*($D$74:$D$88="Y")*($F$73:$H$73="Fields Comply")) -> 0
A75: | | B75: STACK_VENT | C75: N | D75: N | E75: Can. D/S | F75: 1 | G75: 10 | H75: 17 | J75: =PvtByClassCurr!$J$6 -> 2018-03 | K75: =+K74+1 -> 2 | L75: =+L74 -> STACK_VENT | M75: Can. D/S | N75: 1 | O75: 17 | P75: 10 | Q75: 0 | R75: 0 | S75: 0 | T75: 0 | U75: 0 | V75: 0
A76: | | B76: STACK_VENT | C76: N | D76: N | E76: HOG | F76: 8 | G76: 127 | H76: 88 | J76: =PvtByClassCurr!$J$6 -> 2018-03 | K76: 3 | L76: STACK_VENT | M76: HOG | N76: 8 | O76: 88 | P76: 127 | Q76: 0 | R76: 0 | S76: 0 | T76: 0 | U76: 0 | V76: 0
A77: | | B77: STACK_VENT | C77: N | D77: N | E77: WCP | F77: 2 | G77: 17 | H77: 36 | J77: =PvtByClassCurr!$J$6 -> 2018-03 | K77: 4 | L77: STACK_VENT | M77: Lima | N77: 0 | O77: 0 | P77: 0 | Q77: 0 | R77: 0 | S77: 0 | T77: 0 | U77: 0 | V77: 0
A78: | | B78: Grand Total | F78: 12 | G78: 166 | H78: 156 | J78: =PvtByClassCurr!$J$6 -> 2018-03 | K78: 5 | L78: STACK_VENT | M78: SEIM/Corp | N78: 0 | O78: 0 | P78: 0 | Q78: 0 | R78: 0 | S78: 0 | T78: 0 | U78: 0 | V78: 0
A79: | | J79: =PvtByClassCurr!$J$6 -> 2018-03 | K79: 6 | L79: STACK_VENT | M79: Sunrise | N79: 0 | O79: 0 | P79: 0 | Q79: 0 | R79: 0 | S79: 0 | T79: 0 | U79: 0 | V79: 0
A80: | | J80: =PvtByClassCurr!$J$6 -> 2018-03 | K80: 7 | L80: STACK_VENT | M80: WCP | N80: 3 | O80: 51 | P80: 29 | Q80: 1 | R80: 15 | S80: 12 | T80: 0 | U80: 0 | V80: 0
A81: | | J81: =PvtByClassCurr!$J$6 -> 2018-03 | K81: 8 | L81: STACK_VENT | M81: Total | N81: =SUM(N74:N80) -> 12 | O81: 156 | P81: 166 | Q81: 1 | R81: 15 | S81: 12 | T81: 0 | U81: 0 | V81: 0
A82: | | J82: =PvtByClassCurr!$J$6 -> 2018-03 | M82: Check Total | N82: =SUMPRODUCT(--($F$74:$H$88)*($B$74:$B$88="Grand Total")*($F$73:$H$73="Equip Count")) -> 12 | O82: =SUMPRODUCT(--($F$74:$H$88)*($B$74:$B$88="Grand Total")*($F$73:$H$73="Fields Non Comply")) -> 156 | P82: =SUMPRODUCT(--($F$74:$H$88)*($B$74:$B$88="Grand Total")*($F$73:$H$73="Fields Comply")) -> 166 | Q82: =SUMPRODUCT(--($F$74:$H$88)*($C$74:$C$88="Y")*($F$73:$H$73="Equip Count")) -> 1 | R82: =SUMPRODUCT(--($F$74:$H$88)*($C$74:$C$88="Y")*($F$73:$H$73="Fields Non Comply")) -> 15 | S82: =SUMPRODUCT(--($F$74:$H$88)*($C$74:$C$88="Y")*($F$73:$H$73="Fields Comply")) -> 12 | T82: =SUMPRODUCT(--($F$74:$H$88)*($D$74:$D$88="Y")*($F$73:$H$73="Equip Count")) -> 0 | U82: =SUMPRODUCT(--($F$74:$H$88)*($D$74:$D$88="Y")*($F$73:$H$73="Fields Non Comply")) -> 0 | V82: =SUMPRODUCT(--($F$74:$H$88)*($D$74:$D$88="Y")*($F$73:$H$73="Fields Comply")) -> 0
A83: | | J83: =PvtByClassCurr!$J$6 -> 2018-03
A84: | | J84: =PvtByClassCurr!$J$6 -> 2018-03
A85: | | J85: =PvtByClassCurr!$J$6 -> 2018-03
A86: | | J86: =PvtByClassCurr!$J$6 -> 2018-03
A87: | | J87: =PvtByClassCurr!$J$6 -> 2018-03
A88: | | J88: =PvtByClassCurr!$J$6 -> 2018-03
A89: V | J89: =PvtByClassCurr!$J$6 -> 2018-03
A90: file | B90: =TRIM(VLOOKUP(B91,Lookups!$B$6:$J$23,9,FALSE)) -> '\\hq\heidfs\data\control\Finance Process Governance and Projects\PM Data\Cleansing Analysis\Equipment\05) Burner System\Burner System Data Standards Review - Curr.xlsb'!equipList | J90: =PvtByClassCurr!$J$6 -> 2018-03
A91: class | B91: =INDEX(Class,COUNTIF(A$10:A91,"class")) -> BURNER_SYSTEM | J91: =PvtByClassCurr!$J$6 -> 2018-03
A92: | | F92: Values | J92: =PvtByClassCurr!$J$6 -> 2018-03 | N92: Equip | Q92: Cleansed | T92: New
A93: | | | B93: Class | C93: Cleansed | D93: New | E93: Area | F93: Equip Count | G93: Fields Comply | H93: Fields Non Comply | J93: =PvtByClassCurr!$J$6 -> 2018-03 | N93: Equip Count | O93: Fields Non Comply | P93: Fields Comply | Q93: Equip Count | R93: Fields Non Comply | S93: Fields Comply | T93: Equip Count | U93: Fields Non Comply | V93: Fields Comply
A94: | | B94: BURNER_SYSTEM | C94: Y | D94: N | E94: HOG | F94: 879 | G94: 22799 | H94: 4954 | J94: =PvtByClassCurr!$J$6 -> 2018-03 | K94: 1 | L94: =+$B94 -> BURNER_SYSTEM | M94: Atlantic | N94: =SUMPRODUCT(--($F$94:$H$108)*($E$94:$E$108=$M94)*($F$93:$H$93="Equip Count")) -> 0 | O94: =SUMPRODUCT(--($F$94:$H$108)*($E$94:$E$108=$M94)*($F$93:$H$93="Fields Non Comply")) -> 0 | P94: =SUMPRODUCT(--($F$94:$H$108)*($E$94:$E$108=$M94)*($F$93:$H$93="Fields Comply")) -> 0 | Q94: =SUMPRODUCT(--($F$94:$H$108)*($E$94:$E$108=$M94)*($C$94:$C$108="Y")*($F$93:$H$93="Equip Count")) -> 0 | R94: =SUMPRODUCT(--($F$94:$H$108)*($E$94:$E$108=$M94)*($C$94:$C$108="Y")*($F$93:$H$93="Fields Non Comply")) -> 0 | S94: =SUMPRODUCT(--($F$94:$H$108)*($E$94:$E$108=$M94)*($C$94:$C$108="Y")*($F$93:$H$93="Fields Comply")) -> 0 | T94: =SUMPRODUCT(--($F$94:$H$108)*($E$94:$E$108=$M94)*($D$94:$D$108="Y")*($F$93:$H$93="Equip Count")) -> 0 | U94: =SUMPRODUCT(--($F$94:$H$108)*($E$94:$E$108=$M94)*($D$94:$D$108="Y")*($F$93:$H$93="Fields Non Comply")) -> 0 | V94: =SUMPRODUCT(--($F$94:$H$108)*($E$94:$E$108=$M94)*($D$94:$D$108="Y")*($F$93:$H$93="Fields Comply")) -> 0
A95: | | B95: BURNER_SYSTEM | C95: N | D95: N | E95: Can. D/S | F95: 348 | G95: 2699 | H95: 7678 | J95: =PvtByClassCurr!$J$6 -> 2018-03 | K95: =+K94+1 -> 2 | L95: =+L94 -> BURNER_SYSTEM | M95: Can. D/S | N95: 348 | O95: 7678 | P95: 2699 | Q95: 0 | R95: 0 | S95: 0 | T95: 0 | U95: 0 | V95: 0
A96: | | B96: BURNER_SYSTEM | C96: N | D96: N | E96: HOG | F96: 3929 | G96: 57826 | H96: 67213 | J96: =PvtByClassCurr!$J$6 -> 2018-03 | K96: 3 | L96: BURNER_SYSTEM | M96: HOG | N96: 4808 | O96: 72167 | P96: 80625 | Q96: 879 | R96: 4954 | S96: 22799 | T96: 0 | U96: 0 | V96: 0
A97: | | B97: BURNER_SYSTEM | C97: N | D97: N | E97: Sunrise | F97: 4 | G97: 30 | H97: 86 | J97: =PvtByClassCurr!$J$6 -> 2018-03 | K97: 4 | L97: BURNER_SYSTEM | M97: Lima | N97: 7 | O97: 168 | P97: 35 | Q97: 0 | R97: 0 | S97: 0 | T97: 0 | U97: 0 | V97: 0
A98: | | B98: BURNER_SYSTEM | C98: N | D98: N | E98: WCP | F98: 107 | G98: 962 | H98: 2203 | J98: =PvtByClassCurr!$J$6 -> 2018-03 | K98: 5 | L98: BURNER_SYSTEM | M98: SEIM/Corp | N98: 0 | O98: 0 | P98: 0 | Q98: 0 | R98: 0 | S98: 0 | T98: 0 | U98: 0 | V98: 0
A99: | | B99: BURNER_SYSTEM | C99: N | D99: N | E99: Lima | F99: 7 | G99: 35 | H99: 168 | J99: =PvtByClassCurr!$J$6 -> 2018-03 | K99: 6 | L99: BURNER_SYSTEM | M99: Sunrise | N99: 4 | O99: 86 | P99: 30 | Q99: 0 | R99: 0 | S99: 0 | T99: 0 | U99: 0 | V99: 0
A100: | | B100: Grand Total | F100: 5274 | G100: 84351 | H100: 82302 | J100: =PvtByClassCurr!$J$6 -> 2018-03 | K100: 7 | L100: BURNER_SYSTEM | M100: WCP | N100: 107 | O100: 2203 | P100: 962 | Q100: 0 | R100: 0 | S100: 0 | T100: 0 | U100: 0 | V100: 0
A101: | | J101: =PvtByClassCurr!$J$6 -> 2018-03 | K101: 8 | L101: BURNER_SYSTEM | M101: Total | N101: =SUM(N94:N100) -> 5274 | O101: 82302 | P101: 84351 | Q101: 879 | R101: 4954 | S101: 22799 | T101: 0 | U101: 0 | V101: 0
A102: | | J102: =PvtByClassCurr!$J$6 -> 2018-03 | M102: Check Total | N102: =SUMPRODUCT(--($F$94:$H$108)*($B$94:$B$108="Grand Total")*($F$93:$H$93="Equip Count")) -> 5274 | O102: =SUMPRODUCT(--($F$94:$H$108)*($B$94:$B$108="Grand Total")*($F$93:$H$93="Fields Non Comply")) -> 82302 | P102: =SUMPRODUCT(--($F$94:$H$108)*($B$94:$B$108="Grand Total")*($F$93:$H$93="Fields Comply")) -> 84351 | Q102: =SUMPRODUCT(--($F$94:$H$108)*($C$94:$C$108="Y")*($F$93:$H$93="Equip Count")) -> 879 | R102: =SUMPRODUCT(--($F$94:$H$108)*($C$94:$C$108="Y")*($F$93:$H$93="Fields Non Comply")) -> 4954 | S102: =SUMPRODUCT(--($F$94:$H$108)*($C$94:$C$108="Y")*($F$93:$H$93="Fields Comply")) -> 22799 | T102: =SUMPRODUCT(--($F$94:$H$108)*($D$94:$D$108="Y")*($F$93:$H$93="Equip Count")) -> 0 | U102: =SUMPRODUCT(--($F$94:$H$108)*($D$94:$D$108="Y")*($F$93:$H$93="Fields Non Comply")) -> 0 | V102: =SUMPRODUCT(--($F$94:$H$108)*($D$94:$D$108="Y")*($F$93:$H$93="Fields Comply")) -> 0
A103: | | J103: =PvtByClassCurr!$J$6 -> 2018-03
A104: | | J104: =PvtByClassCurr!$J$6 -> 2018-03
A105: | | J105: =PvtByClassCurr!$J$6 -> 2018-03
A106: | | J106: =PvtByClassCurr!$J$6 -> 2018-03
A107: | | J107: =PvtByClassCurr!$J$6 -> 2018-03
A108: | | J108: =PvtByClassCurr!$J$6 -> 2018-03
A109: V | J109: =PvtByClassCurr!$J$6 -> 2018-03
A110: file | B110: =TRIM(VLOOKUP(B111,Lookups!$B$6:$J$23,9,FALSE)) -> '\\hq\heidfs\data\control\Finance Process Governance and Projects\PM Data\Cleansing Analysis\Equipment\06) Burner\Burner Data Standards Review - Curr.xlsb'!equipList | J110: =PvtByClassCurr!$J$6 -> 2018-03
A111: class | B111: =INDEX(Class,COUNTIF(A$10:A111,"class")) -> BURNER | J111: =PvtByClassCurr!$J$6 -> 2018-03
A112: | | F112: Values | J112: =PvtByClassCurr!$J$6 -> 2018-03 | N112: Equip | Q112: Cleansed | T112: New
A113: | | | B113: Class | C113: Cleansed | D113: New | E113: Area | F113: Equip Count | G113: Fields Comply | H113: Fields Non Comply | J113: =PvtByClassCurr!$J$6 -> 2018-03 | N113: Equip Count | O113: Fields Non Comply | P113: Fields Comply | Q113: Equip Count | R113: Fields Non Comply | S113: Fields Comply | T113: Equip Count | U113: Fields Non Comply | V113: Fields Comply
A114: | | B114: BURNER | C114: N | D114: N | E114: Atlantic | F114: 2 | G114: 14 | H114: 18 | J114: =PvtByClassCurr!$J$6 -> 2018-03 | K114: 1 | L114: =+$B114 -> BURNER | M114: Atlantic | N114: =SUMPRODUCT(--($F$114:$H$128)*($E$114:$E$128=$M114)*($F$113:$H$113="Equip Count")) -> 2 | O114: =SUMPRODUCT(--($F$114:$H$128)*($E$114:$E$128=$M114)*($F$113:$H$113="Fields Non Comply")) -> 18 | P114: =SUMPRODUCT(--($F$114:$H$128)*($E$114:$E$128=$M114)*($F$113:$H$113="Fields Comply")) -> 14 | Q114: =SUMPRODUCT(--($F$114:$H$128)*($E$114:$E$128=$M114)*($C$114:$C$128="Y")*($F$113:$H$113="Equip Count")) -> 0 | R114: =SUMPRODUCT(--($F$114:$H$128)*($E$114:$E$128=$M114)*($C$114:$C$128="Y")*($F$113:$H$113="Fields Non Comply")) -> 0 | S114: =SUMPRODUCT(--($F$114:$H$128)*($E$114:$E$128=$M114)*($C$114:$C$128="Y")*($F$113:$H$113="Fields Comply")) -> 0 | T114: =SUMPRODUCT(--($F$114:$H$128)*($E$114:$E$128=$M114)*($D$114:$D$128="Y")*($F$113:$H$113="Equip Count")) -> 0 | U114: =SUMPRODUCT(--($F$114:$H$128)*($E$114:$E$128=$M114)*($D$114:$D$128="Y")*($F$113:$H$113="Fields Non Comply")) -> 0 | V114: =SUMPRODUCT(--($F$114:$H$128)*($E$114:$E$128=$M114)*($D$114:$D$128="Y")*($F$113:$H$113="Fields Comply")) -> 0
A115: | | B115: BURNER | C115: N | D115: N | E115: WCP | F115: 20 | G115: 192 | H115: 128 | J115: =PvtByClassCurr!$J$6 -> 2018-03 | K115: =+K114+1 -> 2 | L115: =+L114 -> BURNER | M115: Can. D/S | N115: 0 | O115: 0 | P115: 0 | Q115: 0 | R115: 0 | S115: 0 | T115: 0 | U115: 0 | V115: 0
A116: | | B116: Grand Total | F116: 22 | G116: 206 | H116: 146 | J116: =PvtByClassCurr!$J$6 -> 2018-03 | K116: 3 | L116: BURNER | M116: HOG | N116: 0 | O116: 0 | P116: 0 | Q116: 0 | R116: 0 | S116: 0 | T116: 0 | U116: 0 | V116: 0
A117: | | J117: =PvtByClassCurr!$J$6 -> 2018-03 | K117: 4 | L117: BURNER | M117: Lima | N117: 0 | O117: 0 | P117: 0 | Q117: 0 | R117: 0 | S117: 0 | T117: 0 | U117: 0 | V117: 0
A118: | | J118: =PvtByClassCurr!$J$6 -> 2018-03 | K118: 5 | L118: BURNER | M118: SEIM/Corp | N118: 0 | O118: 0 | P118: 0 | Q118: 0 | R118: 0 | S118: 0 | T118: 0 | U118: 0 | V118: 0
A119: | | J119: =PvtByClassCurr!$J$6 -> 2018-03 | K119: 6 | L119: BURNER | M119: Sunrise | N119: 0 | O119: 0 | P119: 0 | Q119: 0 | R119: 0 | S119: 0 | T119: 0 | U119: 0 | V119: 0
A120: | | J120: =PvtByClassCurr!$J$6 -> 2018-03 | K120: 7 | L120: BURNER | M120: WCP | N120: 20 | O120: 128 | P120: 192 | Q120: 0 | R120: 0 | S120: 0 | T120: 0 | U120: 0 | V120: 0
A121: | | J121: =PvtByClassCurr!$J$6 -> 2018-03 | K121: 8 | L121: BURNER | M121: Total | N121: =SUM(N114:N120) -> 22 | O121: 146 | P121: 206 | Q121: 0 | R121: 0 | S121: 0 | T121: 0 | U121: 0 | V121: 0
A122: | | J122: =PvtByClassCurr!$J$6 -> 2018-03 | M122: Check Total | N122: =SUMPRODUCT(--($F$114:$H$128)*($B$114:$B$128="Grand Total")*($F$113:$H$113="Equip Count")) -> 22 | O122: =SUMPRODUCT(--($F$114:$H$128)*($B$114:$B$128="Grand Total")*($F$113:$H$113="Fields Non Comply")) -> 146 | P122: =SUMPRODUCT(--($F$114:$H$128)*($B$114:$B$128="Grand Total")*($F$113:$H$113="Fields Comply")) -> 206 | Q122: =SUMPRODUCT(--($F$114:$H$128)*($C$114:$C$128="Y")*($F$113:$H$113="Equip Count")) -> 0 | R122: =SUMPRODUCT(--($F$114:$H$128)*($C$114:$C$128="Y")*($F$113:$H$113="Fields Non Comply")) -> 0 | S122: =SUMPRODUCT(--($F$114:$H$128)*($C$114:$C$128="Y")*($F$113:$H$113="Fields Comply")) -> 0 | T122: =SUMPRODUCT(--($F$114:$H$128)*($D$114:$D$128="Y")*($F$113:$H$113="Equip Count")) -> 0 | U122: =SUMPRODUCT(--($F$114:$H$128)*($D$114:$D$128="Y")*($F$113:$H$113="Fields Non Comply")) -> 0 | V122: =SUMPRODUCT(--($F$114:$H$128)*($D$114:$D$128="Y")*($F$113:$H$113="Fields Comply")) -> 0
A123: | | J123: =PvtByClassCurr!$J$6 -> 2018-03
A124: | | J124: =PvtByClassCurr!$J$6 -> 2018-03
A125: | | J125: =PvtByClassCurr!$J$6 -> 2018-03
A126: | | J126: =PvtByClassCurr!$J$6 -> 2018-03
A127: | | J127: =PvtByClassCurr!$J$6 -> 2018-03
A128: | | J128: =PvtByClassCurr!$J$6 -> 2018-03
A129: V | J129: =PvtByClassCurr!$J$6 -> 2018-03
A130: file | B130: =TRIM(VLOOKUP(B131,Lookups!$B$6:$J$23,9,FALSE)) -> '\\hq\heidfs\data\control\Finance Process Governance and Projects\PM Data\Cleansing Analysis\Equipment\07) Boiler-PFT\Boiler-PFT Data Standards Review - Curr.xlsb'!equipList | J130: =PvtByClassCurr!$J$6 -> 2018-03
A131: class | B131: =INDEX(Class,COUNTIF(A$10:A131,"class")) -> BOILER_POWER_FT | J131: =PvtByClassCurr!$J$6 -> 2018-03
A132: | | F132: Values | J132: =PvtByClassCurr!$J$6 -> 2018-03 | N132: Equip | Q132: Cleansed | T132: New
A133: | | | B133: Class | C133: Cleansed | D133: New | E133: Area | F133: Equip Count | G133: Fields Comply | H133: Fields Non Comply | J133: =PvtByClassCurr!$J$6 -> 2018-03 | N133: Equip Count | O133: Fields Non Comply | P133: Fields Comply | Q133: Equip Count | R133: Fields Non Comply | S133: Fields Comply | T133: Equip Count | U133: Fields Non Comply | V133: Fields Comply
A134: | | B134: BOILER_POWER_FT | C134: N | D134: N | E134: Can. D/S | F134: 6 | G134: 122 | H134: 220 | J134: =PvtByClassCurr!$J$6 -> 2018-03 | K134: 1 | L134: =+$B134 -> BOILER_POWER_FT | M134: Atlantic | N134: =SUMPRODUCT(--($F$134:$H$148)*($E$134:$E$148=$M134)*($F$133:$H$133="Equip Count")) -> 0 | O134: =SUMPRODUCT(--($F$134:$H$148)*($E$134:$E$148=$M134)*($F$133:$H$133="Fields Non Comply")) -> 0 | P134: =SUMPRODUCT(--($F$134:$H$148)*($E$134:$E$148=$M134)*($F$133:$H$133="Fields Comply")) -> 0 | Q134: =SUMPRODUCT(--($F$134:$H$148)*($E$134:$E$148=$M134)*($C$134:$C$148="Y")*($F$133:$H$133="Equip Count")) -> 0 | R134: =SUMPRODUCT(--($F$134:$H$148)*($E$134:$E$148=$M134)*($C$134:$C$148="Y")*($F$133:$H$133="Fields Non Comply")) -> 0 | S134: =SUMPRODUCT(--($F$134:$H$148)*($E$134:$E$148=$M134)*($C$134:$C$148="Y")*($F$133:$H$133="Fields Comply")) -> 0 | T134: =SUMPRODUCT(--($F$134:$H$148)*($E$134:$E$148=$M134)*($D$134:$D$148="Y")*($F$133:$H$133="Equip Count")) -> 0 | U134: =SUMPRODUCT(--($F$134:$H$148)*($E$134:$E$148=$M134)*($D$134:$D$148="Y")*($F$133:$H$133="Fields Non Comply")) -> 0 | V134: =SUMPRODUCT(--($F$134:$H$148)*($E$134:$E$148=$M134)*($D$134:$D$148="Y")*($F$133:$H$133="Fields Comply")) -> 0
A135: | | B135: BOILER_POWER_FT | C135: N | D135: N | E135: HOG | F135: 1 | G135: 14 | H135: 45 | J135: =PvtByClassCurr!$J$6 -> 2018-03 | K135: =+K134+1 -> 2 | L135: =+L134 -> BOILER_POWER_FT | M135: Can. D/S | N135: 6 | O135: 220 | P135: 122 | Q135: 0 | R135: 0 | S135: 0 | T135: 0 | U135: 0 | V135: 0
A136: | | B136: BOILER_POWER_FT | C136: N | D136: N | E136: WCP | F136: 2 | G136: 37 | H136: 77 | J136: =PvtByClassCurr!$J$6 -> 2018-03 | K136: 3 | L136: BOILER_POWER_FT | M136: HOG | N136: 1 | O136: 45 | P136: 14 | Q136: 0 | R136: 0 | S136: 0 | T136: 0 | U136: 0 | V136: 0
A137: | | B137: Grand Total | F137: 9 | G137: 173 | H137: 342 | J137: =PvtByClassCurr!$J$6 -> 2018-03 | K137: 4 | L137: BOILER_POWER_FT | M137: Lima | N137: 0 | O137: 0 | P137: 0 | Q137: 0 | R137: 0 | S137: 0 | T137: 0 | U137: 0 | V137: 0
A138: | | J138: =PvtByClassCurr!$J$6 -> 2018-03 | K138: 5 | L138: BOILER_POWER_FT | M138: SEIM/Corp | N138: 0 | O138: 0 | P138: 0 | Q138: 0 | R138: 0 | S138: 0 | T138: 0 | U138: 0 | V138: 0
A139: | | J139: =PvtByClassCurr!$J$6 -> 2018-03 | K139: 6 | L139: BOILER_POWER_FT | M139: Sunrise | N139: 0 | O139: 0 | P139: 0 | Q139: 0 | R139: 0 | S139: 0 | T139: 0 | U139: 0 | V139: 0
A140: | | J140: =PvtByClassCurr!$J$6 -> 2018-03 | K140: 7 | L140: BOILER_POWER_FT | M140: WCP | N140: 2 | O140: 77 | P140: 37 | Q140: 0 | R140: 0 | S140: 0 | T140: 0 | U140: 0 | V140: 0
A141: | | J141: =PvtByClassCurr!$J$6 -> 2018-03 | K141: 8 | L141: BOILER_POWER_FT | M141: Total | N141: =SUM(N134:N140) -> 9 | O141: 342 | P141: 173 | Q141: 0 | R141: 0 | S141: 0 | T141: 0 | U141: 0 | V141: 0
A142: | | J142: =PvtByClassCurr!$J$6 -> 2018-03 | M142: Check Total | N142: =SUMPRODUCT(--($F$134:$H$148)*($B$134:$B$148="Grand Total")*($F$133:$H$133="Equip Count")) -> 9 | O142: =SUMPRODUCT(--($F$134:$H$148)*($B$134:$B$148="Grand Total")*($F$133:$H$133="Fields Non Comply")) -> 342 | P142: =SUMPRODUCT(--($F$134:$H$148)*($B$134:$B$148="Grand Total")*($F$133:$H$133="Fields Comply")) -> 173 | Q142: =SUMPRODUCT(--($F$134:$H$148)*($C$134:$C$148="Y")*($F$133:$H$133="Equip Count")) -> 0 | R142: =SUMPRODUCT(--($F$134:$H$148)*($C$134:$C$148="Y")*($F$133:$H$133="Fields Non Comply")) -> 0 | S142: =SUMPRODUCT(--($F$134:$H$148)*($C$134:$C$148="Y")*($F$133:$H$133="Fields Comply")) -> 0 | T142: =SUMPRODUCT(--($F$134:$H$148)*($D$134:$D$148="Y")*($F$133:$H$133="Equip Count")) -> 0 | U142: =SUMPRODUCT(--($F$134:$H$148)*($D$134:$D$148="Y")*($F$133:$H$133="Fields Non Comply")) -> 0 | V142: =SUMPRODUCT(--($F$134:$H$148)*($D$134:$D$148="Y")*($F$133:$H$133="Fields Comply")) -> 0
A143: | | J143: =PvtByClassCurr!$J$6 -> 2018-03
A144: | | J144: =PvtByClassCurr!$J$6 -> 2018-03
A145: | | J145: =PvtByClassCurr!$J$6 -> 2018-03
A146: | | J146: =PvtByClassCurr!$J$6 -> 2018-03
A147: | | J147: =PvtByClassCurr!$J$6 -> 2018-03
A148: | | J148: =PvtByClassCurr!$J$6 -> 2018-03
A149: V | J149: =PvtByClassCurr!$J$6 -> 2018-03
A150: file | B150: =TRIM(VLOOKUP(B151,Lookups!$B$6:$J$23,9,FALSE)) -> '\\hq\heidfs\data\control\Finance Process Governance and Projects\PM Data\Cleansing Analysis\Equipment\08) Heater-IDF\Heater-IDF Data Standards Review - Curr.xlsb'!equipList | J150: =PvtByClassCurr!$J$6 -> 2018-03
A151: class | B151: =INDEX(Class,COUNTIF(A$10:A151,"class")) -> HEATER_INDIR_FIRED | J151: =PvtByClassCurr!$J$6 -> 2018-03
A152: | | F152: Values | J152: =PvtByClassCurr!$J$6 -> 2018-03 | N152: Equip | Q152: Cleansed | T152: New
A153: | | | B153: Class | C153: Cleansed | D153: New | E153: Area | F153: Equip Count | G153: Fields Comply | H153: Fields Non Comply | J153: =PvtByClassCurr!$J$6 -> 2018-03 | N153: Equip Count | O153: Fields Non Comply | P153: Fields Comply | Q153: Equip Count | R153: Fields Non Comply | S153: Fields Comply | T153: Equip Count | U153: Fields Non Comply | V153: Fields Comply
A154: | | B154: HEATER_INDIR_FIRED | C154: Y | D154: N | E154: WCP | F154: 1 | G154: 22 | H154: 15 | J154: =PvtByClassCurr!$J$6 -> 2018-03 | K154: 1 | L154: =+$B154 -> HEATER_INDIR_FIRED | M154: Atlantic | N154: =SUMPRODUCT(--($F$154:$H$168)*($E$154:$E$168=$M154)*($F$153:$H$153="Equip Count")) -> 0 | O154: =SUMPRODUCT(--($F$154:$H$168)*($E$154:$E$168=$M154)*($F$153:$H$153="Fields Non Comply")) -> 0 | P154: =SUMPRODUCT(--($F$154:$H$168)*($E$154:$E$168=$M154)*($F$153:$H$153="Fields Comply")) -> 0 | Q154: =SUMPRODUCT(--($F$154:$H$168)*($E$154:$E$168=$M154)*($C$154:$C$168="Y")*($F$153:$H$153="Equip Count")) -> 0 | R154: =SUMPRODUCT(--($F$154:$H$168)*($E$154:$E$168=$M154)*($C$154:$C$168="Y")*($F$153:$H$153="Fields Non Comply")) -> 0 | S154: =SUMPRODUCT(--($F$154:$H$168)*($E$154:$E$168=$M154)*($C$154:$C$168="Y")*($F$153:$H$153="Fields Comply")) -> 0 | T154: =SUMPRODUCT(--($F$154:$H$168)*($E$154:$E$168=$M154)*($D$154:$D$168="Y")*($F$153:$H$153="Equip Count")) -> 0 | U154: =SUMPRODUCT(--($F$154:$H$168)*($E$154:$E$168=$M154)*($D$154:$D$168="Y")*($F$153:$H$153="Fields Non Comply")) -> 0 | V154: =SUMPRODUCT(--($F$154:$H$168)*($E$154:$E$168=$M154)*($D$154:$D$168="Y")*($F$153:$H$153="Fields Comply")) -> 0
A155: | | B155: HEATER_INDIR_FIRED | C155: N | D155: N | E155: Can. D/S | F155: 28 | G155: 308 | H155: 743 | J155: =PvtByClassCurr!$J$6 -> 2018-03 | K155: =+K154+1 -> 2 | L155: =+L154 -> HEATER_INDIR_FIRED | M155: Can. D/S | N155: 28 | O155: 743 | P155: 308 | Q155: 0 | R155: 0 | S155: 0 | T155: 0 | U155: 0 | V155: 0
A156: | | B156: HEATER_INDIR_FIRED | C156: N | D156: N | E156: HOG | F156: 93 | G156: 1386 | H156: 2132 | J156: =PvtByClassCurr!$J$6 -> 2018-03 | K156: 3 | L156: HEATER_INDIR_FIRED | M156: HOG | N156: 94 | O156: 2156 | P156: 1400 | Q156: 0 | R156: 0 | S156: 0 | T156: 1 | U156: 24 | V156: 14
A157: | | B157: HEATER_INDIR_FIRED | C157: N | D157: N | E157: Lima | F157: 3 | G157: 23 | H157: 88 | J157: =PvtByClassCurr!$J$6 -> 2018-03 | K157: 4 | L157: HEATER_INDIR_FIRED | M157: Lima | N157: 3 | O157: 88 | P157: 23 | Q157: 0 | R157: 0 | S157: 0 | T157: 0 | U157: 0 | V157: 0
A158: | | B158: HEATER_INDIR_FIRED | C158: N | D158: N | E158: SEIM/Corp | F158: 2 | G158: 35 | H158: 39 | J158: =PvtByClassCurr!$J$6 -> 2018-03 | K158: 5 | L158: HEATER_INDIR_FIRED | M158: SEIM/Corp | N158: 2 | O158: 39 | P158: 35 | Q158: 0 | R158: 0 | S158: 0 | T158: 0 | U158: 0 | V158: 0
A159: | | B159: HEATER_INDIR_FIRED | C159: N | D159: N | E159: WCP | F159: 276 | G159: 3595 | H159: 6632 | J159: =PvtByClassCurr!$J$6 -> 2018-03 | K159: 6 | L159: HEATER_INDIR_FIRED | M159: Sunrise | N159: 0 | O159: 0 | P159: 0 | Q159: 0 | R159: 0 | S159: 0 | T159: 0 | U159: 0 | V159: 0
A160: | | B160: HEATER_INDIR_FIRED | C160: N | D160: Y | E160: HOG | F160: 1 | G160: 14 | H160: 24 | J160: =PvtByClassCurr!$J$6 -> 2018-03 | K160: 7 | L160: HEATER_INDIR_FIRED | M160: WCP | N160: 277 | O160: 6647 | P160: 3617 | Q160: 1 | R160: 15 | S160: 22 | T160: 0 | U160: 0 | V160: 0
A161: | | B161: Grand Total | F161: 404 | G161: 5383 | H161: 9673 | J161: =PvtByClassCurr!$J$6 -> 2018-03 | K161: 8 | L161: HEATER_INDIR_FIRED | M161: Total | N161: =SUM(N154:N160) -> 404 | O161: 9673 | P161: 5383 | Q161: 1 | R161: 15 | S161: 22 | T161: 1 | U161: 24 | V161: 14
A162: | | J162: =PvtByClassCurr!$J$6 -> 2018-03 | M162: Check Total | N162: =SUMPRODUCT(--($F$154:$H$168)*($B$154:$B$168="Grand Total")*($F$153:$H$153="Equip Count")) -> 404 | O162: =SUMPRODUCT(--($F$154:$H$168)*($B$154:$B$168="Grand Total")*($F$153:$H$153="Fields Non Comply")) -> 9673 | P162: =SUMPRODUCT(--($F$154:$H$168)*($B$154:$B$168="Grand Total")*($F$153:$H$153="Fields Comply")) -> 5383 | Q162: =SUMPRODUCT(--($F$154:$H$168)*($C$154:$C$168="Y")*($F$153:$H$153="Equip Count")) -> 1 | R162: =SUMPRODUCT(--($F$154:$H$168)*($C$154:$C$168="Y")*($F$153:$H$153="Fields Non Comply")) -> 15 | S162: =SUMPRODUCT(--($F$154:$H$168)*($C$154:$C$168="Y")*($F$153:$H$153="Fields Comply")) -> 22 | T162: =SUMPRODUCT(--($F$154:$H$168)*($D$154:$D$168="Y")*($F$153:$H$153="Equip Count")) -> 1 | U162: =SUMPRODUCT(--($F$154:$H$168)*($D$154:$D$168="Y")*($F$153:$H$153="Fields Non Comply")) -> 24 | V162: =SUMPRODUCT(--($F$154:$H$168)*($D$154:$D$168="Y")*($F$153:$H$153="Fields Comply")) -> 14
A163: | | J163: =PvtByClassCurr!$J$6 -> 2018-03
A164: | | J164: =PvtByClassCurr!$J$6 -> 2018-03
A165: | | J165: =PvtByClassCurr!$J$6 -> 2018-03
A166: | | J166: =PvtByClassCurr!$J$6 -> 2018-03
A167: | | J167: =PvtByClassCurr!$J$6 -> 2018-03
A168: | | J168: =PvtByClassCurr!$J$6 -> 2018-03
A169: V | J169: =PvtByClassCurr!$J$6 -> 2018-03
A170: file | B170: =TRIM(VLOOKUP(B171,Lookups!$B$6:$J$23,9,FALSE)) -> '\\hq\heidfs\data\control\Finance Process Governance and Projects\PM Data\Cleansing Analysis\Equipment\09) Firetube\Firetube Data Standards Review - Curr.xlsb'!equipList | J170: =PvtByClassCurr!$J$6 -> 2018-03
A171: class | B171: =INDEX(Class,COUNTIF(A$10:A171,"class")) -> FIRETUBE | J171: =PvtByClassCurr!$J$6 -> 2018-03
A172: | | F172: Values | J172: =PvtByClassCurr!$J$6 -> 2018-03 | N172: Equip | Q172: Cleansed | T172: New
A173: | | | B173: Class | C173: Cleansed | D173: New | E173: Area | F173: Equip Count | G173: Fields Comply | H173: Fields Non Comply | J173: =PvtByClassCurr!$J$6 -> 2018-03 | N173: Equip Count | O173: Fields Non Comply | P173: Fields Comply | Q173: Equip Count | R173: Fields Non Comply | S173: Fields Comply | T173: Equip Count | U173: Fields Non Comply | V173: Fields Comply
A174: | | B174: FIRETUBE | C174: Y | D174: N | E174: HOG | F174: 2 | G174: 32 | H174: 22 | J174: =PvtByClassCurr!$J$6 -> 2018-03 | K174: 1 | L174: =+$B174 -> FIRETUBE | M174: Atlantic | N174: =SUMPRODUCT(--($F$174:$H$188)*($E$174:$E$188=$M174)*($F$173:$H$173="Equip Count")) -> 0 | O174: =SUMPRODUCT(--($F$174:$H$188)*($E$174:$E$188=$M174)*($F$173:$H$173="Fields Non Comply")) -> 0 | P174: =SUMPRODUCT(--($F$174:$H$188)*($E$174:$E$188=$M174)*($F$173:$H$173="Fields Comply")) -> 0 | Q174: =SUMPRODUCT(--($F$174:$H$188)*($E$174:$E$188=$M174)*($C$174:$C$188="Y")*($F$173:$H$173="Equip Count")) -> 0 | R174: =SUMPRODUCT(--($F$174:$H$188)*($E$174:$E$188=$M174)*($C$174:$C$188="Y")*($F$173:$H$173="Fields Non Comply")) -> 0 | S174: =SUMPRODUCT(--($F$174:$H$188)*($E$174:$E$188=$M174)*($C$174:$C$188="Y")*($F$173:$H$173="Fields Comply")) -> 0 | T174: =SUMPRODUCT(--($F$174:$H$188)*($E$174:$E$188=$M174)*($D$174:$D$188="Y")*($F$173:$H$173="Equip Count")) -> 0 | U174: =SUMPRODUCT(--($F$174:$H$188)*($E$174:$E$188=$M174)*($D$174:$D$188="Y")*($F$173:$H$173="Fields Non Comply")) -> 0 | V174: =SUMPRODUCT(--($F$174:$H$188)*($E$174:$E$188=$M174)*($D$174:$D$188="Y")*($F$173:$H$173="Fields Comply")) -> 0
A175: | | B175: FIRETUBE | C175: N | D175: N | E175: HOG | F175: 2 | G175: 16 | H175: 38 | J175: =PvtByClassCurr!$J$6 -> 2018-03 | K175: =+K174+1 -> 2 | L175: =+L174 -> FIRETUBE | M175: Can. D/S | N175: 0 | O175: 0 | P175: 0 | Q175: 0 | R175: 0 | S175: 0 | T175: 0 | U175: 0 | V175: 0
A176: | | B176: FIRETUBE | C176: N | D176: N | E176: WCP | F176: 8 | G176: 58 | H176: 159 | J176: =PvtByClassCurr!$J$6 -> 2018-03 | K176: 3 | L176: FIRETUBE | M176: HOG | N176: 4 | O176: 60 | P176: 48 | Q176: 2 | R176: 22 | S176: 32 | T176: 0 | U176: 0 | V176: 0
A177: | | B177: Grand Total | F177: 12 | G177: 106 | H177: 219 | J177: =PvtByClassCurr!$J$6 -> 2018-03 | K177: 4 | L177: FIRETUBE | M177: Lima | N177: 0 | O177: 0 | P177: 0 | Q177: 0 | R177: 0 | S177: 0 | T177: 0 | U177: 0 | V177: 0
A178: | | J178: =PvtByClassCurr!$J$6 -> 2018-03 | K178: 5 | L178: FIRETUBE | M178: SEIM/Corp | N178: 0 | O178: 0 | P178: 0 | Q178: 0 | R178: 0 | S178: 0 | T178: 0 | U178: 0 | V178: 0
A179: | | J179: =PvtByClassCurr!$J$6 -> 2018-03 | K179: 6 | L179: FIRETUBE | M179: Sunrise | N179: 0 | O179: 0 | P179: 0 | Q179: 0 | R179: 0 | S179: 0 | T179: 0 | U179: 0 | V179: 0
A180: | | J180: =PvtByClassCurr!$J$6 -> 2018-03 | K180: 7 | L180: FIRETUBE | M180: WCP | N180: 8 | O180: 159 | P180: 58 | Q180: 0 | R180: 0 | S180: 0 | T180: 0 | U180: 0 | V180: 0
A181: | | J181: =PvtByClassCurr!$J$6 -> 2018-03 | K181: 8 | L181: FIRETUBE | M181: Total | N181: =SUM(N174:N180) -> 12 | O181: 219 | P181: 106 | Q181: 2 | R181: 22 | S181: 32 | T181: 0 | U181: 0 | V181: 0
A182: | | J182: =PvtByClassCurr!$J$6 -> 2018-03 | M182: Check Total | N182: =SUMPRODUCT(--($F$174:$H$188)*($B$174:$B$188="Grand Total")*($F$173:$H$173="Equip Count")) -> 12 | O182: =SUMPRODUCT(--($F$174:$H$188)*($B$174:$B$188="Grand Total")*($F$173:$H$173="Fields Non Comply")) -> 219 | P182: =SUMPRODUCT(--($F$174:$H$188)*($B$174:$B$188="Grand Total")*($F$173:$H$173="Fields Comply")) -> 106 | Q182: =SUMPRODUCT(--($F$174:$H$188)*($C$174:$C$188="Y")*($F$173:$H$173="Equip Count")) -> 2 | R182: =SUMPRODUCT(--($F$174:$H$188)*($C$174:$C$188="Y")*($F$173:$H$173="Fields Non Comply")) -> 22 | S182: =SUMPRODUCT(--($F$174:$H$188)*($C$174:$C$188="Y")*($F$173:$H$173="Fields Comply")) -> 32 | T182: =SUMPRODUCT(--($F$174:$H$188)*($D$174:$D$188="Y")*($F$173:$H$173="Equip Count")) -> 0 | U182: =SUMPRODUCT(--($F$174:$H$188)*($D$174:$D$188="Y")*($F$173:$H$173="Fields Non Comply")) -> 0 | V182: =SUMPRODUCT(--($F$174:$H$188)*($D$174:$D$188="Y")*($F$173:$H$173="Fields Comply")) -> 0
A183: | | J183: =PvtByClassCurr!$J$6 -> 2018-03
A184: | | J184: =PvtByClassCurr!$J$6 -> 2018-03
A185: | | J185: =PvtByClassCurr!$J$6 -> 2018-03
A186: | | J186: =PvtByClassCurr!$J$6 -> 2018-03
A187: | | J187: =PvtByClassCurr!$J$6 -> 2018-03
A188: | | J188: =PvtByClassCurr!$J$6 -> 2018-03
A189: V | J189: =PvtByClassCurr!$J$6 -> 2018-03
A190: file | B190: =TRIM(VLOOKUP(B191,Lookups!$B$6:$J$23,9,FALSE)) -> '\\hq\heidfs\data\control\Finance Process Governance and Projects\PM Data\Cleansing Analysis\Equipment\10) Process Coil\Process Coil Data Standards Review - Curr.xlsb'!equipList | J190: =PvtByClassCurr!$J$6 -> 2018-03
A191: class | B191: =INDEX(Class,COUNTIF(A$10:A191,"class")) -> PROCESS_COIL | J191: =PvtByClassCurr!$J$6 -> 2018-03
A192: | | F192: Values | J192: =PvtByClassCurr!$J$6 -> 2018-03 | N192: Equip | Q192: Cleansed | T192: New
A193: | | | B193: Class | C193: Cleansed | D193: New | E193: Area | F193: Equip Count | G193: Fields Comply | H193: Fields Non Comply | J193: =PvtByClassCurr!$J$6 -> 2018-03 | N193: Equip Count | O193: Fields Non Comply | P193: Fields Comply | Q193: Equip Count | R193: Fields Non Comply | S193: Fields Comply | T193: Equip Count | U193: Fields Non Comply | V193: Fields Comply
A194: | | B194: PROCESS_COIL | C194: Y | D194: N | E194: WCP | F194: 1 | G194: 29 | H194: 3 | J194: =PvtByClassCurr!$J$6 -> 2018-03 | K194: 1 | L194: =+$B194 -> PROCESS_COIL | M194: Atlantic | N194: =SUMPRODUCT(--($F$194:$H$208)*($E$194:$E$208=$M194)*($F$193:$H$193="Equip Count")) -> 0 | O194: =SUMPRODUCT(--($F$194:$H$208)*($E$194:$E$208=$M194)*($F$193:$H$193="Fields Non Comply")) -> 0 | P194: =SUMPRODUCT(--($F$194:$H$208)*($E$194:$E$208=$M194)*($F$193:$H$193="Fields Comply")) -> 0 | Q194: =SUMPRODUCT(--($F$194:$H$208)*($E$194:$E$208=$M194)*($C$194:$C$208="Y")*($F$193:$H$193="Equip Count")) -> 0 | R194: =SUMPRODUCT(--($F$194:$H$208)*($E$194:$E$208=$M194)*($C$194:$C$208="Y")*($F$193:$H$193="Fields Non Comply")) -> 0 | S194: =SUMPRODUCT(--($F$194:$H$208)*($E$194:$E$208=$M194)*($C$194:$C$208="Y")*($F$193:$H$193="Fields Comply")) -> 0 | T194: =SUMPRODUCT(--($F$194:$H$208)*($E$194:$E$208=$M194)*($D$194:$D$208="Y")*($F$193:$H$193="Equip Count")) -> 0 | U194: =SUMPRODUCT(--($F$194:$H$208)*($E$194:$E$208=$M194)*($D$194:$D$208="Y")*($F$193:$H$193="Fields Non Comply")) -> 0 | V194: =SUMPRODUCT(--($F$194:$H$208)*($E$194:$E$208=$M194)*($D$194:$D$208="Y")*($F$193:$H$193="Fields Comply")) -> 0
A195: | | B195: PROCESS_COIL | C195: N | D195: N | E195: WCP | F195: 230 | G195: 5102 | H195: 2612 | J195: =PvtByClassCurr!$J$6 -> 2018-03 | K195: =+K194+1 -> 2 | L195: =+L194 -> PROCESS_COIL | M195: Can. D/S | N195: 0 | O195: 0 | P195: 0 | Q195: 0 | R195: 0 | S195: 0 | T195: 0 | U195: 0 | V195: 0
A196: | | B196: PROCESS_COIL | C196: N | D196: N | E196: HOG | F196: 14 | G196: 279 | H196: 197 | J196: =PvtByClassCurr!$J$6 -> 2018-03 | K196: 3 | L196: PROCESS_COIL | M196: HOG | N196: 15 | O196: 209 | P196: 303 | Q196: 0 | R196: 0 | S196: 0 | T196: 1 | U196: 12 | V196: 24
A197: | | B197: PROCESS_COIL | C197: N | D197: N | E197: SEIM/Corp | F197: 2 | G197: 45 | H197: 21 | J197: =PvtByClassCurr!$J$6 -> 2018-03 | K197: 4 | L197: PROCESS_COIL | M197: Lima | N197: 0 | O197: 0 | P197: 0 | Q197: 0 | R197: 0 | S197: 0 | T197: 0 | U197: 0 | V197: 0
A198: | | B198: PROCESS_COIL | C198: N | D198: Y | E198: HOG | F198: 1 | G198: 24 | H198: 12 | J198: =PvtByClassCurr!$J$6 -> 2018-03 | K198: 5 | L198: PROCESS_COIL | M198: SEIM/Corp | N198: 2 | O198: 21 | P198: 45 | Q198: 0 | R198: 0 | S198: 0 | T198: 0 | U198: 0 | V198: 0
A199: | | B199: Grand Total | F199: 248 | G199: 5479 | H199: 2845 | J199: =PvtByClassCurr!$J$6 -> 2018-03 | K199: 6 | L199: PROCESS_COIL | M199: Sunrise | N199: 0 | O199: 0 | P199: 0 | Q199: 0 | R199: 0 | S199: 0 | T199: 0 | U199: 0 | V199: 0
A200: | | J200: =PvtByClassCurr!$J$6 -> 2018-03 | K200: 7 | L200: PROCESS_COIL | M200: WCP | N200: 231 | O200: 2615 | P200: 5131 | Q200: 1 | R200: 3 | S200: 29 | T200: 0 | U200: 0 | V200: 0
A201: | | J201: =PvtByClassCurr!$J$6 -> 2018-03 | K201: 8 | L201: PROCESS_COIL | M201: Total | N201: =SUM(N194:N200) -> 248 | O201: 2845 | P201: 5479 | Q201: 1 | R201: 3 | S201: 29 | T201: 1 | U201: 12 | V201: 24
A202: | | J202: =PvtByClassCurr!$J$6 -> 2018-03 | M202: Check Total | N202: =SUMPRODUCT(--($F$194:$H$208)*($B$194:$B$208="Grand Total")*($F$193:$H$193="Equip Count")) -> 248 | O202: =SUMPRODUCT(--($F$194:$H$208)*($B$194:$B$208="Grand Total")*($F$193:$H$193="Fields Non Comply")) -> 2845 | P202: =SUMPRODUCT(--($F$194:$H$208)*($B$194:$B$208="Grand Total")*($F$193:$H$193="Fields Comply")) -> 5479 | Q202: =SUMPRODUCT(--($F$194:$H$208)*($C$194:$C$208="Y")*($F$193:$H$193="Equip Count")) -> 1 | R202: =SUMPRODUCT(--($F$194:$H$208)*($C$194:$C$208="Y")*($F$193:$H$193="Fields Non Comply")) -> 3 | S202: =SUMPRODUCT(--($F$194:$H$208)*($C$194:$C$208="Y")*($F$193:$H$193="Fields Comply")) -> 29 | T202: =SUMPRODUCT(--($F$194:$H$208)*($D$194:$D$208="Y")*($F$193:$H$193="Equip Count")) -> 1 | U202: =SUMPRODUCT(--($F$194:$H$208)*($D$194:$D$208="Y")*($F$193:$H$193="Fields Non Comply")) -> 12 | V202: =SUMPRODUCT(--($F$194:$H$208)*($D$194:$D$208="Y")*($F$193:$H$193="Fields Comply")) -> 24
A203: | | J203: =PvtByClassCurr!$J$6 -> 2018-03
A204: | | J204: =PvtByClassCurr!$J$6 -> 2018-03
A205: | | J205: =PvtByClassCurr!$J$6 -> 2018-03
... 124 more rows

Sheet Kssk
A1: In. class no. | B1: 254 | C1: 385 | D1: 395 | E1: 14466 | F1: 284 | G1: 14995 | H1: 417 | I1: 47 | J1: 14997 | K1: 14996 | L1: 350 | M1: 195 | N1: 397 | O1: 219 | P1: 121 | Q1: 256
A2: Class | B2: =VLOOKUP(B$1,lkupClass,2,FALSE) -> KNOCK_OUT_FW | C2: STACK_FLARE | D2: INCINERATOR | E2: STACK_VENT | F2: BURNER_SYSTEM | G2: BURNER | H2: BOILER_POWER_FT | I2: =VLOOKUP(I$1,lkupClass,2,FALSE) -> HEATER_INDIR_FIRED | J2: FIRETUBE | K2: PROCESS_COIL | L2: PM_RECIPROCATING | M2: BOILER_POWER_WT | N2: PM_GAS_TURBINE | O2: BOILER_HEATING | P2: HEATER_DIR_FIRED | Q2: HEAT_EX_SHELL_TUBE
A3: sheet | B3: =VLOOKUP(B$1,lkupClass,6,FALSE) -> FWKO | C3: Flare | D3: Incin | E3: Vent | F3: BrnrSys | G3: Brnr | H3: BlrPFT | I3: =VLOOKUP(I$1,lkupClass,6,FALSE) -> HtrIDF | J3: Firetube | K3: ProcCoil | L3: RecipEng | M3: BlrPWT | N3: GasTurb | O3: HtngBlr | P3: HtrDF | Q3: ExchSt
A4: Descr | B4: =VLOOKUP(B$1,lkupClass,5,FALSE) -> FWKO | C4: Flare | D4: Incin. | E4: Vent | F4: Burner Sys. | G4: Burner | H4: Boiler-PFT | I4: =VLOOKUP(I$1,lkupClass,5,FALSE) -> Heater-IDF | J4: Firetube | K4: Proc. Coil | L4: Recip. Eng | M4: Boiler-PWT | N4: Gas Turb. | O4: Boiler-Htng | P4: Heater-DF | Q4: Exchanger-S&T
A5: Col not Match | B5: =COUNTIF(INDIRECT(B3&"!$A$2:$DL$2"),FALSE)-1 -> 0 | C5: 0 | D5: 0 | E5: 0 | F5: 10 | G5: 0 | H5: 0 | I5: =COUNTIF(INDIRECT(I3&"!$A$2:$DL$2"),FALSE)-1 -> 0 | J5: 0 | K5: 0 | L5: 0 | M5: 0 | N5: 0 | O5: =COUNTIF(INDIRECT(O3&"!$A$2:$DL$2"),FALSE)-1 -> 0 | P5: 0 | Q5: 0
A6: Class Numb | B6: 16 | C6: =TEXT(INDEX($B$1:$AA$1,classNumb),"00000")&"-"&INDEX($B$2:$AA$2,classNumb) -> 00256-HEAT_EX_SHELL_TUBE
A7: John's Report | B7: KNOCK_OUT_FW | C7: FLARE STACKS | D7: INCINERATOR | E7: VENTS (new Class) | F7: BURNER SYSTEMS | G7: BURNERS (new Class) | H7: BOILER_POWER_FT | I7: HEATER_INDIR_FIRED | J7: FIRETUBE (new Class) | K7: PROCESS COIL (new Class) | L7: ENGINES (PM-Reciprocating) | M7: BOILER_POWER_WT | N7: GAS TURBINES | O7: BOILER_HEATING | P7: HEATER_DIR_FIRED | Q7: HEATER_DIR_FIRED
A10: Internal class no. | B10: Object | C10: Class | D10: Descr | L10: Internal class no.
A11: 47 | B11: 000000000060086884 | C11: =IF($A11=$A10,C10,HLOOKUP($A11,$A$1:$S$4,2,FALSE)) -> HEATER_INDIR_FIRED | D11: =IF($A11=$A10,D10,HLOOKUP($A11,$A$1:$S$4,4,FALSE)) -> Heater-IDF | L11: 254 | M11: x | N11: FWKO
A12: 47 | B12: 000000000060094564 | C12: HEATER_INDIR_FIRED | D12: Heater-IDF | L12: 385 | M12: x | N12: Flare
A13: 47 | B13: 000000000060094565 | C13: HEATER_INDIR_FIRED | D13: Heater-IDF | L13: 395 | M13: x | N13: Incin
A14: 47 | B14: 000000000060094566 | C14: HEATER_INDIR_FIRED | D14: Heater-IDF | L14: 14466 | M14: x | N14: Vent
A15: 47 | B15: 000000000060096913 | C15: HEATER_INDIR_FIRED | D15: Heater-IDF | L15: 284 | M15: x | N15: BrnrSys
A16: 47 | B16: 000000000060097285 | C16: HEATER_INDIR_FIRED | D16: Heater-IDF | L16: 14995 | M16: x | N16: Brnr
A17: 47 | B17: 000000000060098563 | C17: HEATER_INDIR_FIRED | D17: Heater-IDF | L17: 417 | M17: x | N17: BlrPFT
A18: 47 | B18: 000000000061000140 | C18: HEATER_INDIR_FIRED | D18: Heater-IDF | L18: 47 | M18: 4 | N18: HtrIDF
A19: 47 | B19: 000000000061000645 | C19: HEATER_INDIR_FIRED | D19: Heater-IDF | L19: 14997 | M19: x | N19: Firetube
A20: 47 | B20: 000000000061000860 | C20: HEATER_INDIR_FIRED | D20: Heater-IDF | L20: 14996 | M20: x | N20: ProcCoil
A21: 47 | B21: 000000000061001587 | C21: HEATER_INDIR_FIRED | D21: Heater-IDF | L21: 350 | M21: x | N21: RecipEng
A22: 47 | B22: 000000000061001588 | C22: HEATER_INDIR_FIRED | D22: Heater-IDF | L22: 195 | M22: x | N22: BlrPWT
A23: 47 | B23: 000000000061001635 | C23: HEATER_INDIR_FIRED | D23: Heater-IDF | L23: 397 | M23: xx | N23: GasTurb
A24: 47 | B24: 000000000061001636 | C24: HEATER_INDIR_FIRED | D24: Heater-IDF | L24: 219 | M24: 4 | N24: HtngBlr
A25: 47 | B25: 000000000061001637 | C25: HEATER_INDIR_FIRED | D25: Heater-IDF | L25: 121 | M25: 4 | N25: HtrDF
A26: 47 | B26: 000000000061002665 | C26: HEATER_INDIR_FIRED | D26: Heater-IDF | L26: 256 | M26: x | N26: ExchSt
A27: 47 | B27: 000000000061002753 | C27: HEATER_INDIR_FIRED | D27: Heater-IDF
A28: 47 | B28: 000000000061003309 | C28: HEATER_INDIR_FIRED | D28: Heater-IDF
A29: 47 | B29: 000000000061003310 | C29: HEATER_INDIR_FIRED | D29: Heater-IDF
A30: 47 | B30: 000000000062015849 | C30: HEATER_INDIR_FIRED | D30: Heater-IDF
A31: 47 | B31: 000000000062015857 | C31: HEATER_INDIR_FIRED | D31: Heater-IDF
A32: 47 | B32: 000000000062015861 | C32: HEATER_INDIR_FIRED | D32: Heater-IDF
A33: 47 | B33: 000000000062015865 | C33: HEATER_INDIR_FIRED | D33: Heater-IDF
A34: 47 | B34: 000000000062015867 | C34: HEATER_INDIR_FIRED | D34: Heater-IDF
A35: 47 | B35: 000000000062015869 | C35: HEATER_INDIR_FIRED | D35: Heater-IDF
A36: 47 | B36: 000000000062015870 | C36: HEATER_INDIR_FIRED | D36: Heater-IDF
A37: 47 | B37: 000000000062015871 | C37: HEATER_INDIR_FIRED | D37: Heater-IDF
A38: 47 | B38: 000000000062015873 | C38: HEATER_INDIR_FIRED | D38: Heater-IDF
A39: 47 | B39: 000000000062015874 | C39: HEATER_INDIR_FIRED | D39: Heater-IDF
A40: 47 | B40: 000000000062015878 | C40: HEATER_INDIR_FIRED | D40: Heater-IDF
A41: 47 | B41: 000000000062015879 | C41: HEATER_INDIR_FIRED | D41: Heater-IDF
A42: 47 | B42: 000000000062019825 | C42: HEATER_INDIR_FIRED | D42: Heater-IDF
A43: 47 | B43: 000000000062026744 | C43: HEATER_INDIR_FIRED | D43: Heater-IDF
A44: 47 | B44: 000000000062027342 | C44: HEATER_INDIR_FIRED | D44: Heater-IDF
A45: 47 | B45: 000000000062043285 | C45: HEATER_INDIR_FIRED | D45: Heater-IDF
A46: 47 | B46: 000000000062045158 | C46: HEATER_INDIR_FIRED | D46: Heater-IDF
A47: 47 | B47: 000000000062045183 | C47: HEATER_INDIR_FIRED | D47: Heater-IDF
A48: 47 | B48: 000000000062045202 | C48: HEATER_INDIR_FIRED | D48: Heater-IDF
A49: 47 | B49: 000000000062045433 | C49: HEATER_INDIR_FIRED | D49: Heater-IDF
A50: 47 | B50: 000000000062045443 | C50: HEATER_INDIR_FIRED | D50: Heater-IDF
A51: 47 | B51: 000000000062045458 | C51: HEATER_INDIR_FIRED | D51: Heater-IDF
A52: 47 | B52: 000000000062045753 | C52: HEATER_INDIR_FIRED | D52: Heater-IDF
A53: 47 | B53: 000000000062045762 | C53: HEATER_INDIR_FIRED | D53: Heater-IDF
A54: 47 | B54: 000000000062045967 | C54: HEATER_INDIR_FIRED | D54: Heater-IDF
A55: 47 | B55: 000000000062046027 | C55: HEATER_INDIR_FIRED | D55: Heater-IDF
A56: 47 | B56: 000000000062046249 | C56: HEATER_INDIR_FIRED | D56: Heater-IDF
A57: 47 | B57: 000000000062046369 | C57: HEATER_INDIR_FIRED | D57: Heater-IDF
A58: 47 | B58: 000000000062046417 | C58: HEATER_INDIR_FIRED | D58: Heater-IDF
A59: 47 | B59: 000000000062046801 | C59: HEATER_INDIR_FIRED | D59: Heater-IDF
A60: 47 | B60: 000000000062046833 | C60: HEATER_INDIR_FIRED | D60: Heater-IDF
A61: 47 | B61: 000000000062047268 | C61: HEATER_INDIR_FIRED | D61: Heater-IDF
A62: 47 | B62: 000000000062047757 | C62: HEATER_INDIR_FIRED | D62: Heater-IDF
A63: 47 | B63: 000000000062047839 | C63: HEATER_INDIR_FIRED | D63: Heater-IDF
A64: 47 | B64: 000000000062048646 | C64: HEATER_INDIR_FIRED | D64: Heater-IDF
A65: 47 | B65: 000000000062049407 | C65: HEATER_INDIR_FIRED | D65: Heater-IDF
A66: 47 | B66: 000000000062049534 | C66: HEATER_INDIR_FIRED | D66: Heater-IDF
A67: 47 | B67: 000000000062049658 | C67: HEATER_INDIR_FIRED | D67: Heater-IDF
A68: 47 | B68: 000000000062049944 | C68: HEATER_INDIR_FIRED | D68: Heater-IDF
A69: 47 | B69: 000000000062050517 | C69: HEATER_INDIR_FIRED | D69: Heater-IDF
A70: 47 | B70: 000000000062050699 | C70: HEATER_INDIR_FIRED | D70: Heater-IDF
A71: 47 | B71: 000000000062050753 | C71: HEATER_INDIR_FIRED | D71: Heater-IDF
A72: 47 | B72: 000000000062053277 | C72: HEATER_INDIR_FIRED | D72: Heater-IDF
A73: 47 | B73: 000000000062058578 | C73: HEATER_INDIR_FIRED | D73: Heater-IDF
A74: 47 | B74: 000000000062060743 | C74: HEATER_INDIR_FIRED | D74: Heater-IDF
A75: 47 | B75: 000000000062066812 | C75: =IF($A75=$A74,C74,HLOOKUP($A75,$A$1:$S$4,2,FALSE)) -> HEATER_INDIR_FIRED | D75: =IF($A75=$A74,D74,HLOOKUP($A75,$A$1:$S$4,4,FALSE)) -> Heater-IDF
A76: 47 | B76: 000000000062068157 | C76: HEATER_INDIR_FIRED | D76: Heater-IDF
A77: 47 | B77: 000000000063000267 | C77: HEATER_INDIR_FIRED | D77: Heater-IDF
A78: 47 | B78: 000000000063000740 | C78: HEATER_INDIR_FIRED | D78: Heater-IDF
A79: 47 | B79: 000000000063000937 | C79: HEATER_INDIR_FIRED | D79: Heater-IDF
A80: 47 | B80: 000000000063001146 | C80: HEATER_INDIR_FIRED | D80: Heater-IDF
A81: 47 | B81: 000000000063200050 | C81: HEATER_INDIR_FIRED | D81: Heater-IDF
A82: 47 | B82: 000000000063200054 | C82: HEATER_INDIR_FIRED | D82: Heater-IDF
A83: 47 | B83: 000000000063200835 | C83: HEATER_INDIR_FIRED | D83: Heater-IDF
A84: 47 | B84: 000000000063201985 | C84: HEATER_INDIR_FIRED | D84: Heater-IDF
A85: 47 | B85: 000000000063202314 | C85: HEATER_INDIR_FIRED | D85: Heater-IDF
A86: 47 | B86: 000000000063202453 | C86: HEATER_INDIR_FIRED | D86: Heater-IDF
A87: 47 | B87: 000000000063202869 | C87: HEATER_INDIR_FIRED | D87: Heater-IDF
A88: 47 | B88: 000000000063202875 | C88: HEATER_INDIR_FIRED | D88: Heater-IDF
A89: 47 | B89: 000000000063203991 | C89: HEATER_INDIR_FIRED | D89: Heater-IDF
A90: 47 | B90: 000000000063204296 | C90: HEATER_INDIR_FIRED | D90: Heater-IDF
A91: 47 | B91: 000000000063204298 | C91: HEATER_INDIR_FIRED | D91: Heater-IDF
A92: 47 | B92: 000000000063204303 | C92: HEATER_INDIR_FIRED | D92: Heater-IDF
A93: 47 | B93: 000000000063204308 | C93: HEATER_INDIR_FIRED | D93: Heater-IDF
A94: 47 | B94: 000000000063204312 | C94: HEATER_INDIR_FIRED | D94: Heater-IDF
A95: 47 | B95: 000000000063204315 | C95: HEATER_INDIR_FIRED | D95: Heater-IDF
A96: 47 | B96: 000000000063204317 | C96: HEATER_INDIR_FIRED | D96: Heater-IDF
A97: 47 | B97: 000000000063204320 | C97: HEATER_INDIR_FIRED | D97: Heater-IDF
A98: 47 | B98: 000000000063204324 | C98: HEATER_INDIR_FIRED | D98: Heater-IDF
A99: 47 | B99: 000000000063204337 | C99: HEATER_INDIR_FIRED | D99: Heater-IDF
A100: 47 | B100: 000000000063205998 | C100: HEATER_INDIR_FIRED | D100: Heater-IDF
A101: 47 | B101: 000000000063205999 | C101: HEATER_INDIR_FIRED | D101: Heater-IDF
A102: 47 | B102: 000000000063206000 | C102: HEATER_INDIR_FIRED | D102: Heater-IDF
A103: 47 | B103: 000000000063206277 | C103: HEATER_INDIR_FIRED | D103: Heater-IDF
A104: 47 | B104: 000000000063206282 | C104: HEATER_INDIR_FIRED | D104: Heater-IDF
A105: 47 | B105: 000000000063206301 | C105: HEATER_INDIR_FIRED | D105: Heater-IDF
A106: 47 | B106: 000000000063206309 | C106: HEATER_INDIR_FIRED | D106: Heater-IDF
A107: 47 | B107: 000000000063206311 | C107: HEATER_INDIR_FIRED | D107: Heater-IDF
A108: 47 | B108: 000000000063206318 | C108: HEATER_INDIR_FIRED | D108: Heater-IDF
A109: 47 | B109: 000000000063206325 | C109: HEATER_INDIR_FIRED | D109: Heater-IDF
A110: 47 | B110: 000000000063206336 | C110: HEATER_INDIR_FIRED | D110: Heater-IDF
A111: 47 | B111: 000000000063206356 | C111: HEATER_INDIR_FIRED | D111: Heater-IDF
A112: 47 | B112: 000000000063206369 | C112: HEATER_INDIR_FIRED | D112: Heater-IDF
A113: 47 | B113: 000000000063206388 | C113: HEATER_INDIR_FIRED | D113: Heater-IDF
A114: 47 | B114: 000000000063206406 | C114: HEATER_INDIR_FIRED | D114: Heater-IDF
A115: 47 | B115: 000000000063206410 | C115: HEATER_INDIR_FIRED | D115: Heater-IDF
A116: 47 | B116: 000000000063206510 | C116: HEATER_INDIR_FIRED | D116: Heater-IDF
A117: 47 | B117: 000000000063206533 | C117: HEATER_INDIR_FIRED | D117: Heater-IDF
A118: 47 | B118: 000000000063206535 | C118: HEATER_INDIR_FIRED | D118: Heater-IDF
A119: 47 | B119: 000000000063206548 | C119: HEATER_INDIR_FIRED | D119: Heater-IDF
A120: 47 | B120: 000000000063206570 | C120: HEATER_INDIR_FIRED | D120: Heater-IDF
A121: 47 | B121: 000000000063206576 | C121: HEATER_INDIR_FIRED | D121: Heater-IDF
A122: 47 | B122: 000000000063206592 | C122: HEATER_INDIR_FIRED | D122: Heater-IDF
A123: 47 | B123: 000000000063206606 | C123: HEATER_INDIR_FIRED | D123: Heater-IDF
A124: 47 | B124: 000000000063206626 | C124: HEATER_INDIR_FIRED | D124: Heater-IDF
A125: 47 | B125: 000000000063206645 | C125: HEATER_INDIR_FIRED | D125: Heater-IDF
A126: 47 | B126: 000000000063206666 | C126: HEATER_INDIR_FIRED | D126: Heater-IDF
A127: 47 | B127: 000000000063206675 | C127: HEATER_INDIR_FIRED | D127: Heater-IDF
A128: 47 | B128: 000000000063206690 | C128: HEATER_INDIR_FIRED | D128: Heater-IDF
A129: 47 | B129: 000000000063206738 | C129: HEATER_INDIR_FIRED | D129: Heater-IDF
A130: 47 | B130: 000000000063206750 | C130: HEATER_INDIR_FIRED | D130: Heater-IDF
A131: 47 | B131: 000000000063206762 | C131: HEATER_INDIR_FIRED | D131: Heater-IDF
A132: 47 | B132: 000000000063206775 | C132: HEATER_INDIR_FIRED | D132: Heater-IDF
A133: 47 | B133: 000000000063206796 | C133: HEATER_INDIR_FIRED | D133: Heater-IDF
A134: 47 | B134: 000000000063206808 | C134: HEATER_INDIR_FIRED | D134: Heater-IDF
A135: 47 | B135: 000000000063206809 | C135: HEATER_INDIR_FIRED | D135: Heater-IDF
A136: 47 | B136: 000000000063206810 | C136: HEATER_INDIR_FIRED | D136: Heater-IDF
A137: 47 | B137: 000000000063206844 | C137: HEATER_INDIR_FIRED | D137: Heater-IDF
A138: 47 | B138: 000000000063206858 | C138: HEATER_INDIR_FIRED | D138: Heater-IDF
A139: 47 | B139: 000000000063206921 | C139: =IF($A139=$A138,C138,HLOOKUP($A139,$A$1:$S$4,2,FALSE)) -> HEATER_INDIR_FIRED | D139: =IF($A139=$A138,D138,HLOOKUP($A139,$A$1:$S$4,4,FALSE)) -> Heater-IDF
A140: 47 | B140: 000000000063206936 | C140: HEATER_INDIR_FIRED | D140: Heater-IDF
A141: 47 | B141: 000000000063206952 | C141: HEATER_INDIR_FIRED | D141: Heater-IDF
A142: 47 | B142: 000000000063206965 | C142: HEATER_INDIR_FIRED | D142: Heater-IDF
A143: 47 | B143: 000000000063206989 | C143: HEATER_INDIR_FIRED | D143: Heater-IDF
A144: 47 | B144: 000000000063207006 | C144: HEATER_INDIR_FIRED | D144: Heater-IDF
A145: 47 | B145: 000000000063207014 | C145: HEATER_INDIR_FIRED | D145: Heater-IDF
A146: 47 | B146: 000000000063207034 | C146: HEATER_INDIR_FIRED | D146: Heater-IDF
A147: 47 | B147: 000000000063207035 | C147: HEATER_INDIR_FIRED | D147: Heater-IDF
A148: 47 | B148: 000000000063207039 | C148: HEATER_INDIR_FIRED | D148: Heater-IDF
A149: 47 | B149: 000000000063207071 | C149: HEATER_INDIR_FIRED | D149: Heater-IDF
A150: 47 | B150: 000000000063207120 | C150: HEATER_INDIR_FIRED | D150: Heater-IDF
A151: 47 | B151: 000000000063207133 | C151: HEATER_INDIR_FIRED | D151: Heater-IDF
A152: 47 | B152: 000000000063207208 | C152: HEATER_INDIR_FIRED | D152: Heater-IDF
A153: 47 | B153: 000000000063207209 | C153: HEATER_INDIR_FIRED | D153: Heater-IDF
A154: 47 | B154: 000000000063207214 | C154: HEATER_INDIR_FIRED | D154: Heater-IDF
A155: 47 | B155: 000000000063207230 | C155: HEATER_INDIR_FIRED | D155: Heater-IDF
A156: 47 | B156: 000000000063207246 | C156: HEATER_INDIR_FIRED | D156: Heater-IDF
A157: 47 | B157: 000000000063207261 | C157: HEATER_INDIR_FIRED | D157: Heater-IDF
A158: 47 | B158: 000000000063207272 | C158: HEATER_INDIR_FIRED | D158: Heater-IDF
A159: 47 | B159: 000000000063207279 | C159: HEATER_INDIR_FIRED | D159: Heater-IDF
A160: 47 | B160: 000000000063207284 | C160: HEATER_INDIR_FIRED | D160: Heater-IDF
A161: 47 | B161: 000000000063207295 | C161: HEATER_INDIR_FIRED | D161: Heater-IDF
A162: 47 | B162: 000000000063207310 | C162: HEATER_INDIR_FIRED | D162: Heater-IDF
A163: 47 | B163: 000000000063207348 | C163: HEATER_INDIR_FIRED | D163: Heater-IDF
A164: 47 | B164: 000000000063207422 | C164: HEATER_INDIR_FIRED | D164: Heater-IDF
A165: 47 | B165: 000000000063207429 | C165: HEATER_INDIR_FIRED | D165: Heater-IDF
A166: 47 | B166: 000000000063207436 | C166: HEATER_INDIR_FIRED | D166: Heater-IDF
A167: 47 | B167: 000000000063207443 | C167: HEATER_INDIR_FIRED | D167: Heater-IDF
A168: 47 | B168: 000000000063207451 | C168: HEATER_INDIR_FIRED | D168: Heater-IDF
A169: 47 | B169: 000000000063207497 | C169: HEATER_INDIR_FIRED | D169: Heater-IDF
A170: 47 | B170: 000000000063207511 | C170: HEATER_INDIR_FIRED | D170: Heater-IDF
A171: 47 | B171: 000000000063207524 | C171: HEATER_INDIR_FIRED | D171: Heater-IDF
A172: 47 | B172: 000000000063207548 | C172: HEATER_INDIR_FIRED | D172: Heater-IDF
A173: 47 | B173: 000000000063207586 | C173: HEATER_INDIR_FIRED | D173: Heater-IDF
A174: 47 | B174: 000000000063207820 | C174: HEATER_INDIR_FIRED | D174: Heater-IDF
A175: 47 | B175: 000000000063207839 | C175: HEATER_INDIR_FIRED | D175: Heater-IDF
A176: 47 | B176: 000000000063210200 | C176: HEATER_INDIR_FIRED | D176: Heater-IDF
A177: 47 | B177: 000000000063210591 | C177: HEATER_INDIR_FIRED | D177: Heater-IDF
A178: 47 | B178: 000000000063210662 | C178: HEATER_INDIR_FIRED | D178: Heater-IDF
A179: 47 | B179: 000000000063210723 | C179: HEATER_INDIR_FIRED | D179: Heater-IDF
A180: 47 | B180: 000000000063210781 | C180: HEATER_INDIR_FIRED | D180: Heater-IDF
A181: 47 | B181: 000000000063210842 | C181: HEATER_INDIR_FIRED | D181: Heater-IDF
A182: 47 | B182: 000000000063210901 | C182: HEATER_INDIR_FIRED | D182: Heater-IDF
A183: 47 | B183: 000000000063210962 | C183: HEATER_INDIR_FIRED | D183: Heater-IDF
A184: 47 | B184: 000000000063211030 | C184: HEATER_INDIR_FIRED | D184: Heater-IDF
A185: 47 | B185: 000000000063211103 | C185: HEATER_INDIR_FIRED | D185: Heater-IDF
A186: 47 | B186: 000000000063211153 | C186: HEATER_INDIR_FIRED | D186: Heater-IDF
A187: 47 | B187: 000000000063211267 | C187: HEATER_INDIR_FIRED | D187: Heater-IDF
A188: 47 | B188: 000000000063211446 | C188: HEATER_INDIR_FIRED | D188: Heater-IDF
A189: 47 | B189: 000000000063211869 | C189: HEATER_INDIR_FIRED | D189: Heater-IDF
A190: 47 | B190: 000000000063212276 | C190: HEATER_INDIR_FIRED | D190: Heater-IDF
A191: 47 | B191: 000000000063212577 | C191: HEATER_INDIR_FIRED | D191: Heater-IDF
A192: 47 | B192: 000000000063212791 | C192: HEATER_INDIR_FIRED | D192: Heater-IDF
A193: 47 | B193: 000000000063212916 | C193: HEATER_INDIR_FIRED | D193: Heater-IDF
A194: 47 | B194: 000000000063213101 | C194: HEATER_INDIR_FIRED | D194: Heater-IDF
A195: 47 | B195: 000000000063213221 | C195: HEATER_INDIR_FIRED | D195: Heater-IDF
A196: 47 | B196: 000000000063213294 | C196: HEATER_INDIR_FIRED | D196: Heater-IDF
A197: 47 | B197: 000000000063213650 | C197: HEATER_INDIR_FIRED | D197: Heater-IDF
A198: 47 | B198: 000000000063214188 | C198: HEATER_INDIR_FIRED | D198: Heater-IDF
A199: 47 | B199: 000000000063214263 | C199: HEATER_INDIR_FIRED | D199: Heater-IDF
A200: 47 | B200: 000000000063214277 | C200: HEATER_INDIR_FIRED | D200: Heater-IDF
A201: 47 | B201: 000000000063214278 | C201: HEATER_INDIR_FIRED | D201: Heater-IDF
A202: 47 | B202: 000000000063214294 | C202: HEATER_INDIR_FIRED | D202: Heater-IDF
... 19557 more rows

Sheet FWKO
A1: Equipment | B1: Equipment category | C1: Description of technical object | D1: Technical obj. type | E1: Gross Weight | F1: Weight unit | G1: Size/dimension | H1: Inventory number | I1: Start-up date | J1: Manufacturer of asset | K1: Country of manufact. | L1: Model number | M1: Manufacturer part number | N1: ManufactSerialNumber | O1: Construction year | P1: Construction month | Q1: Maintenance plant | R1: Location | S1: Room | T1: Plant section | U1: ABC indicator | V1: Tag Number | W1: Planner group | X1: Catalog profile | Y1: Technical identification no. | Z1: Functional Location | AA1: Superord. Equipment | AB1: Condition Code | AC1: Equipment replacement value | AD1: Owning Cost Center | AE1: Alberta Provincial Registration Number | AF1: AB Regulatory Fee | AG1: British Columbia Provincial Registration | AH1: BC Regulatory Fee | AI1: B.C. PST Indicator | AJ1: Saskatchewan Provincial Registration Nu | AK1: SK Regulatory Fee | AL1: Saskatchewan PST Indicator | AM1: Manitoba Provincial Registration Number | AN1: MB Regulatory Fee | AO1: Manitoba PST Indicator | AP1: Ontario Provincial Registration Number | AQ1: ON Regulatory Fee | AR1: NL REG NO | AS1: NL Regulatory Fee | AT1: CRN | AU1: National Board No. | AV1: CSA Cat. H Fitting | AW1: ASME UM Vessel | AX1: MDR Attached | AY1: Cust. Warranty Start | AZ1: Cust. warranty end | BA1: Cus. master warranty | BB1: Customer | BC1: Customer | BD1: Vendor Wrty Start | BE1: Vendor warranty end | BF1: Ven. master warranty | BG1: Vendor | BH1: Vendor | BI1: Class | BJ1: Orientation | BK1: Manufacturer Drawing Number | BL1: ASME Rule | BM1: Shell Material | BN1: Shell Nominal Thickness | BO1: Shell Corr Allowance | BP1: Vessel Diameter | BQ1: Length | BR1: Head Material 1 | BS1: Head Thickness 1 | BT1: Head Shape 1 | BU1: Head Material 2 | BV1: Head Thickness 2 | BW1: Head Shape 2 | BX1: Head Corr Allowance | BY1: Shell MAWP | BZ1: Design Max Temp | CA1: Min. Design Metal Temp - MDMT | CB1: Support Type | CC1: Nozzle Corr Allowance | CD1: Fluid Description | CE1: Design Fluid Service | CF1: Current Fluid Service | CG1: Firetube Exists | CH1: Housed Flag | CI1: Insulation Exists | CJ1: Internal Coating Exists | CK1: Internal coatingCladding Type | CL1: Nozzle ANSI Rating | CM1: Total Number of Nozzles | CN1: Number of Manways | CO1: Number of phases | CP1: Part of a Package | CQ1: Painted or Primed | CR1: Last Inspection Date | CS1: Stress Relief | CT1: Volume | CU1: X-Ray | CV1: P&ID Drawing Number | DG1: Region | DH1: Planning plant | DI1: System status | DJ1: User Status | DK1: Description of functional location | DL1: Created on
A2: =OFFSET(A2,-1,0,1,1)=OFFSET(A2,3,0,1,1) -> TRUE | B2: TRUE | C2: TRUE | D2: TRUE | E2: TRUE | F2: TRUE | G2: TRUE | H2: TRUE | I2: TRUE | J2: TRUE | K2: TRUE | L2: TRUE | M2: TRUE | N2: TRUE | O2: TRUE | P2: TRUE | Q2: TRUE | R2: TRUE | S2: TRUE | T2: TRUE | U2: TRUE | V2: TRUE | W2: TRUE | X2: TRUE | Y2: TRUE | Z2: TRUE | AA2: TRUE | AB2: TRUE | AC2: TRUE | AD2: TRUE | AE2: TRUE | AF2: TRUE | AG2: =OFFSET(AG2,-1,0,1,1)=OFFSET(AG2,3,0,1,1) -> TRUE | AH2: TRUE | AI2: TRUE | AJ2: TRUE | AK2: TRUE | AL2: TRUE | AM2: TRUE | AN2: TRUE | AO2: TRUE | AP2: TRUE | AQ2: TRUE | AR2: TRUE | AS2: TRUE | AT2: TRUE | AU2: TRUE | AV2: TRUE | AW2: TRUE | AX2: TRUE | AY2: TRUE | AZ2: TRUE | BA2: TRUE | BB2: TRUE | BC2: TRUE | BD2: TRUE | BE2: TRUE | BF2: TRUE | BG2: TRUE | BH2: TRUE | BI2: FALSE | BJ2: TRUE | BK2: TRUE | BL2: TRUE | BM2: =OFFSET(BM2,-1,0,1,1)=OFFSET(BM2,3,0,1,1) -> TRUE | BN2: TRUE | BO2: TRUE | BP2: TRUE | BQ2: TRUE | BR2: TRUE | BS2: TRUE | BT2: TRUE | BU2: TRUE | BV2: TRUE | BW2: TRUE | BX2: TRUE | BY2: TRUE | BZ2: TRUE | CA2: TRUE | CB2: TRUE | CC2: TRUE | CD2: TRUE | CE2: TRUE | CF2: TRUE | CG2: =OFFSET(CG2,-1,0,1,1)=OFFSET(CG2,3,0,1,1) -> TRUE | CH2: TRUE | CI2: TRUE | CJ2: TRUE | CK2: TRUE | CL2: TRUE | CM2: TRUE | CN2: TRUE | CO2: TRUE | CP2: TRUE | CQ2: TRUE | CR2: TRUE | CS2: =OFFSET(CS2,-1,0,1,1)=OFFSET(CS2,3,0,1,1) -> TRUE | CT2: TRUE | CU2: TRUE | CV2: TRUE | CW2: TRUE | CX2: TRUE | CY2: TRUE | CZ2: TRUE | DA2: TRUE | DB2: TRUE | DC2: TRUE | DD2: TRUE | DE2: TRUE | DF2: TRUE | DG2: TRUE | DH2: TRUE | DI2: TRUE | DJ2: TRUE | DK2: TRUE | DL2: TRUE
BJ3: =MATCH(BJ5,$BJ$1:$DG$1,0) -> 1 | BK3: 2 | BL3: 3 | BM3: 4 | BN3: 5 | BO3: 6 | BP3: 7 | BQ3: 8 | BR3: 9 | BS3: 10 | BT3: 11 | BU3: 12 | BV3: 13 | BW3: 14 | BX3: 15 | BY3: 16 | BZ3: 17 | CA3: 18 | CB3: 19 | CC3: 20 | CD3: 21 | CE3: 22 | CF3: 23 | CG3: 24 | CH3: 25 | CI3: 26 | CJ3: 27 | CK3: 28 | CL3: 29 | CM3: 30 | CN3: 31 | CO3: 32 | CP3: 33 | CQ3: 34 | CR3: 35 | CS3: 36 | CT3: 37 | CU3: 38 | CV3: 39
A5: Equipment | B5: Equipment category | C5: Description of Technical Object | D5: Technical obj. type | E5: Gross Weight | F5: Weight unit | G5: Size/dimension | H5: Inventory number | I5: Start-up date | J5: Manufacturer of asset | K5: Country of manufact. | L5: Model number | M5: Manufacturer part number | N5: ManufactSerialNumber | O5: Construction year | P5: Construction month | Q5: Maintenance plant | R5: Location | S5: Room | T5: Plant section | U5: ABC indicator | V5: Tag Number | W5: Planner group | X5: Catalog profile | Y5: Technical identification no. | Z5: Functional Location | AA5: Superord. Equipment | AB5: Condition Code | AC5: Equipment replacement value | AD5: Owning Cost Center | AE5: Alberta Provincial Registration Number | AF5: AB Regulatory Fee | AG5: British Columbia Provincial Registration | AH5: BC Regulatory Fee | AI5: B.C. PST Indicator | AJ5: Saskatchewan Provincial Registration Nu | AK5: SK Regulatory Fee | AL5: Saskatchewan PST Indicator | AM5: Manitoba Provincial Registration Number | AN5: MB Regulatory Fee | AO5: Manitoba PST Indicator | AP5: Ontario Provincial Registration Number | AQ5: ON Regulatory Fee | AR5: NL REG NO | AS5: NL Regulatory Fee | AT5: CRN | AU5: National Board No. | AV5: CSA Cat. H Fitting | AW5: ASME UM Vessel | AX5: MDR Attached | AY5: Cust. Warranty Start | AZ5: Cust. warranty end | BA5: Cus. master warranty | BB5: Customer | BC5: Customer | BD5: Vendor Wrty Start | BE5: Vendor warranty end | BF5: Ven. master warranty | BG5: Vendor | BH5: Vendor | BI5: 30 Characters | BJ5: Orientation | BK5: Manufacturer Drawing Number | BL5: ASME Rule | BM5: Shell Material | BN5: Shell Nominal Thickness | BO5: Shell Corr Allowance | BP5: Vessel Diameter | BQ5: Length | BR5: Head Material 1 | BS5: Head Thickness 1 | BT5: Head Shape 1 | BU5: Head Material 2 | BV5: Head Thickness 2 | BW5: Head Shape 2 | BX5: Head Corr Allowance | BY5: Shell MAWP | BZ5: Design Max Temp | CA5: Min. Design Metal Temp - MDMT | CB5: Support type | CC5: Nozzle Corr Allowance | CD5: Fluid Description | CE5: Design Fluid Service | CF5: Current Fluid Service | CG5: Firetube Exists | CH5: Housed Flag | CI5: Insulation Exists | CJ5: Internal Coating Exists | CK5: Internal CoatingCladding Type | CL5: Nozzle ANSI Rating | CM5: Total Number of Nozzles | CN5: Number of Manways | CO5: Number of Phases | CP5: Part of a Package | CQ5: Painted or Primed | CR5: Last Inspection Date | CS5: Stress Relief | CT5: Volume | CU5: X-Ray | CV5: P&ID Drawing Number | DG5: Region | DH5: Planning plant | DI5: System status | DJ5: User Status | DK5: Description of functional location | DL5: Created on
A6: 62047052 | B6: D | C6: FWKO | D6: VESS_PRESS | H6: 162559 | J6: MOSHER STEEL | K6: CA | N6: 27019 | O6: 1946 | Q6: 2010 | T6: 202 | U6: Z | W6: 200 | X6: D-020-20 | Z6: H1-02-001-00007 | AA6: 62047049 | AB6: B | AC6: 0.99 | AE6: 9906 | AT6: 1486.2 | AX6: X | BJ6: Vertical | BK6: 31129-27019 | BL6: Unfired Pressure Vessels | BM6: A 70 | BN6: 9.5300 MM | BO6: 0.0000 IN | BP6: 120.000 IN | BQ6: 211.0000 IN | BR6: A 70 | BS6: 12.7000 MM | BT6: Ellipsoidal | BU6: A 70 | BV6: 12.7000 MM | BW6: Ellipsoidal | BX6: 0.0000 IN | BY6: 62 PSI | BZ6: 210 DEGF | CA6: -20 DEGF | CB6: Skirt | CC6: 0.0000 IN | CD6: EMULSION | CE6: SWEET | CF6: Sweet | CG6: NO | CH6: Partial | CI6: Partial | CJ6: Unknown | CK6: UNKNOWN | CL6: 150 | CM6: 10 | CN6: 2 EA | CO6: 3 EA | CP6: Portable | CQ6: YES | CR6: 2015.05.12 | CS6: None | CT6: 31.800 M3 | CU6: None | CV6: NO HUSKY DRAWING AVAILABLE | DG6: AB | DH6: 2010 | DI6: ASEQ | DJ6: ISF | DK6: WAINWRIGHT NORTH 13-29 UNIT 5 BATTERY | DL6: 2014-06-06
A7: 62047378 | B7: D | C7: FWKO, V-102 | D7: VESS_PRESS | H7: 162621 | J7: UNIVERSAL INDUSTRIES | K7: CA | N7: 84-08-17 | O7: 1984 | Q7: 2010 | T7: 205 | U7: Z | V7: V-102 | W7: 200 | X7: D-020-20 | Z7: H1-02-003-00013 | AA7: 62047373 | AB7: B | AC7: 0.99 | AE7: 205781 | AT7: F1321.23 | AX7: X | BJ7: Horizontal | BK7: TR11 REV.0 | BL7: Unfired Pressure Vessels | BM7: SA-516-70 | BN7: 6.8200 MM | BO7: 1.6000 MM | BP7: 2,590.000 MM | BQ7: 4,877.0000 MM | BR7: SA-516-70 | BS7: 6.8200 MM | BT7: Ellipsoidal | BU7: SA-516-70 | BV7: 6.8200 MM | BW7: Ellipsoidal | BX7: 1.6000 MM | BY7: 60 PSI | BZ7: 200 DEGF | CA7: -20 DEGF | CB7: Saddles | CC7: 1.6000 MM | CD7: EMULSION | CE7: SWEET | CF7: Sweet | CG7: YES | CH7: Partial | CI7: Partial | CJ7: Unknown | CK7: UNKNOWN | CL7: 150 | CM7: 20 | CN7: 1 EA | CO7: 3 EA | CP7: Portable | CQ7: YES | CR7: 2014.06.23 | CS7: None | CT7: 30.300 M3 | CU7: RT3 | CV7: 16-09-045-06W4-VV-0002-02 | DG7: AB | DH7: 2010 | DI7: ASEQ | DJ7: ISF | DK7: WAINWRIGHT S 16-09 BATTERY 13 | DL7: 2014-06-06
A8: 62047441 | B8: D | C8: FWKO, V102 | D8: VESS_PRESS | G8: 8 X 25 FOOT | H8: 162468 | J8: BLACK SIVALLS & BRYSON | K8: CA | N8: C17309 | O8: 1965 | Q8: 2010 | T8: 206 | U8: Z | V8: V-102 | W8: 200 | X8: D-020-20 | Z8: H1-02-003-00006 | AB8: B | AC8: 200000 | AE8: 39403 | AT8: A4348.2 | AX8: X | BJ8: Horizontal | BK8: 31-S-CL-5059 | BL8: Unfired Pressure Vessels | BM8: A285-C | BN8: 7.9400 MM | BO8: 0.0625 IN | BP8: 2.400 M | BQ8: 7.3200 M | BR8: A285C | BS8: 0.7500 IN | BT8: Ellipsoidal | BU8: A285C | BV8: 0.7500 IN | BW8: Ellipsoidal | BX8: 0.0625 IN | BY8: 50 PSI | BZ8: 250 DEGF | CA8: -20 DEGF | CB8: Saddles | CC8: 0.0625 IN | CD8: EMULSION | CE8: SWEET | CF8: Sweet | CG8: NO | CH8: Yes | CI8: No | CJ8: Partial | CK8: EPOXY COATING | CL8: 150 | CM8: 8 | CN8: 1 EA | CO8: 3 EA | CP8: No | CQ8: YES | CR8: 2014.08.12 | CS8: None | CT8: 37.100 M3 | CU8: RT3 | CV8: 08-28-045-06W4-PF-0003-01 | DG8: AB | DH8: 2010 | DI8: INST | DJ8: ISF | DK8: WAINWRIGHT S 08-28 BATTERY 28 | DL8: 2014-06-06
A9: 62047451 | B9: D | C9: FWKO | D9: VESS_PRESS | H9: 162478 | J9: MOSHER STEEL | K9: US | N9: 27024 | O9: 1946 | Q9: 2010 | T9: 206 | U9: Z | W9: 200 | X9: D-020-20 | Z9: H1-02-003-00006 | AA9: 62047425 | AB9: B | AC9: 0.99 | AE9: 9917 | AT9: 1486.2 | AX9: X | BJ9: Vertical | BK9: 31129-27024 | BL9: Unfired Pressure Vessels | BM9: A96C | BN9: 0.3750 IN | BO9: 0.0000 IN | BP9: 10.000 Foot | BQ9: 211.0000 IN | BR9: A96C | BS9: 0.5000 IN | BT9: Torispherical | BU9: A96C | BV9: 0.5000 IN | BW9: Torispherical | BX9: 0.0000 IN | BY9: 62 PSI | BZ9: 650 DEGF | CA9: -20 DEGF | CB9: Skirt | CC9: 0.0000 IN | CD9: EMULSION | CE9: SWEET | CF9: Sweet | CG9: YES | CH9: Partial | CI9: Partial | CJ9: Partial | CK9: EPOXY COATING | CL9: 150 | CM9: 22 | CN9: 1 EA | CO9: 3 EA | CP9: Portable | CQ9: YES | CR9: 2014.07.29 | CS9: None | CT9: 45.000 M3 | CU9: None | CV9: 08-28-045-06W4-PF-0003-01 | DG9: AB | DH9: 2010 | DI9: ASEQ | DJ9: ISF | DK9: WAINWRIGHT S 08-28 BATTERY 28 | DL9: 2014-06-06
A10: 62047473 | B10: D | C10: FWKO, V-102 | D10: VESS_PRESS | H10: 162669 | J10: BLACK SIVALLS & BRYSON | K10: CA | N10: C17308 | O10: 1965 | Q10: 2010 | T10: 205 | U10: Z | V10: V-102 | W10: 200 | X10: D-020-20 | Z10: H1-02-003-00004 | AA10: 62047467 | AB10: B | AC10: 0.99 | AE10: 39405 | AT10: A4339.2 | AX10: X | BJ10: Horizontal | BK10: 31-S-CL-5080 | BL10: Unfired Pressure Vessels | BM10: A285-C | BN10: 7.9400 MM | BO10: 0.0625 IN | BP10: 2.400 M | BQ10: 4.6000 M | BR10: A285-C | BS10: 0.7500 IN | BT10: Ellipsoidal | BU10: A285-C | BV10: 0.7500 IN | BW10: Ellipsoidal | BX10: 0.0630 IN | BY10: 50 PSI | BZ10: 250 DEGF | CA10: -20 DEGF | CB10: Saddles | CC10: 0.0630 IN | CD10: EMULSION | CE10: SWEET | CF10: Sweet | CG10: NO | CH10: Partial | CI10: Partial | CJ10: Unknown | CK10: UNKNOWN | CL10: 150 | CM10: 8 | CN10: 1 EA | CO10: 3 EA | CP10: Portable | CQ10: YES | CR10: 2013.06.19 | CS10: None | CT10: 27.040 M3 | CU10: RT3 | CV10: 16-20-045-06W4-PI-0006-01 | DG10: AB | DH10: 2010 | DI10: ASEQ | DJ10: ISF | DK10: WAINWRIGHT S 16-20 BATTERY 20 | DL10: 2014-06-06
A11: 62047476 | B11: D | C11: FWKO | D11: VESS_PRESS | H11: 162673 | J11: GRAVER TANK & MFG | K11: US | N11: 27275-13 | O11: 1945 | Q11: 2010 | T11: 205 | U11: Z | V11: V-101 | W11: 200 | X11: D-020-20 | Z11: H1-02-003-00004 | AA11: 62047467 | AB11: B | AC11: 0.99 | AE11: 9994 | AT11: 2801.2 | AX11: X | BJ11: Vertical | BK11: GA7-27275 | BL11: Unfired Pressure Vessels | BM11: A96C | BN11: 0.3750 IN | BO11: 0.0000 IN | BP11: 10.000 Foot | BQ11: 211.0000 IN | BR11: A96C | BS11: 0.5000 IN | BT11: Torispherical | BU11: A96C | BV11: 0.5000 IN | BW11: Torispherical | BX11: 0.0000 IN | BY11: 50 PSI | BZ11: 200 DEGF | CA11: -20 DEGF | CB11: Skirt | CC11: 0.0000 IN | CD11: EMULSION | CE11: SWEET | CF11: Sweet | CG11: YES | CH11: Partial | CI11: Partial | CJ11: Partial | CK11: EPOXY COATING | CL11: 150 | CM11: 10 | CN11: 1 EA | CO11: 3 EA | CP11: Portable | CQ11: YES | CR11: 2011.07.11 | CS11: None | CT11: 39.100 M3 | CU11: None | CV11: 16-20-045-06W4-PI-0006-01 | DG11: AB | DH11: 2010 | DI11: ASEQ | DJ11: FIDL | DK11: WAINWRIGHT S 16-20 BATTERY 20 | DL11: 2014-06-06
A12: 62047569 | B12: D | C12: FWKO, V-02A | D12: VESS_PRESS | G12: 12 X 70 FOOT | H12: 150382 | J12: DACRO INDUSTRIES | K12: CA | N12: 97-965-1 | O12: 1997 | P12: 08 | Q12: 2010 | T12: 5B1 | U12: Z | V12: V-02A | W12: 510 | X12: D-020-20 | Z12: H1-05-004-00001-000020-000003-000001 | AB12: B | AC12: 150000 | AE12: 414424 | AJ12: 7011729 | AK12: A | AL12: X | AT12: N-6966.23 | AX12: X | BJ12: Horizontal | BK12: A1-97-652-1-1 REV.1 | BL12: Unfired Pressure Vessels | BM12: SA-516-70N | BN12: 0.6250 IN | BO12: 0.1250 IN | BP12: 12.000 Foot | BQ12: 70.0000 Foot | BR12: SA-516-70N | BS12: 1.0350 IN | BT12: Ellipsoidal | BU12: SA-516-70N | BV12: 0.5800 IN | BW12: Ellipsoidal | BX12: 0.1250 IN | BY12: 90 PSI | BZ12: 351 DEGF | CA12: -20 DEGF | CB12: Saddles | CC12: 0.1250 IN | CD12: EMULSION | CE12: SWEET | CF12: Sweet | CG12: NO | CH12: Partial | CI12: Partial | CJ12: Unknown | CK12: UNKNOWN | CL12: 150 | CM12: 30 | CN12: 1 EA | CO12: 3 EA | CP12: No | CQ12: NO | CR12: 2010.07.09 | CS12: None | CT12: 235.000 M3 | CU12: RT3 | CV12: 01-32-052-23W3-MF-0010-01 | DG12: SK | DH12: 2010 | DI12: INST | DJ12: ISF | DK12: FWKO, | DL12: 2014-06-06
A13: 62047570 | B13: D | C13: FWKO, V-02B | D13: VESS_PRESS | G13: 12 X 70 FOOT | H13: 150383 | J13: MELLOY & ASSOCIATES | K13: CA | N13: S97-2143 | O13: 1998 | Q13: 2010 | T13: 5B1 | U13: Z | V13: V-02B | W13: 510 | X13: D-020-20 | Z13: H1-05-004-00001-000020-000005-000001 | AB13: B | AC13: 150000 | AJ13: 7019313 | AK13: A | AL13: X | AT13: L0687.23 | AX13: X | BJ13: Horizontal | BK13: 97-2143-1 | BL13: Unfired Pressure Vessels | BM13: SA-516-70N | BN13: 0.6250 IN | BO13: 0.1250 IN | BP13: 3,658.000 MM | BQ13: 21,336.0000 MM | BR13: SA-516-70N | BS13: 1.0700 IN | BT13: Ellipsoidal | BU13: SA-516-70N | BV13: 0.6900 IN | BW13: Ellipsoidal | BX13: 0.1250 IN | BY13: 90 PSI | BZ13: 400 DEGF | CA13: -20 DEGF | CB13: Saddles | CC13: 0.1250 IN | CD13: EMULSION | CE13: SWEET | CF13: Sweet | CG13: NO | CH13: Partial | CI13: Partial | CJ13: Unknown | CK13: UNKNOWN | CL13: 150 | CM13: 81 | CN13: 2 EA | CO13: 3 EA | CP13: No | CQ13: NO | CR13: 2010.03.06 | CS13: None | CT13: 238.000 M3 | CU13: RT3 | CV13: 01-32-052-23W3-VV-0108-01 | DG13: SK | DH13: 2010 | DI13: INST | DJ13: ISF | DK13: FWKO, B | DL13: 2014-06-06
A14: 62047585 | B14: D | C14: FWKO | D14: VESS_PRESS | H14: 162752 | J14: MOSHER STEEL | K14: CA | N14: 27023 | O14: 1946 | Q14: 2010 | T14: 201 | U14: Z | W14: 200 | X14: D-020-20 | Z14: H1-02-001-00004 | AA14: 62047582 | AB14: B | AC14: 0.99 | AE14: 36221 | AT14: 1486.2 | AX14: X | BJ14: Vertical | BK14: 31129-27023 | BL14: Unfired Pressure Vessels | BM14: A96C | BN14: 0.3750 IN | BO14: 0.0000 IN | BP14: 10.000 Foot | BQ14: 211.0000 IN | BR14: A96C | BS14: 0.5000 IN | BT14: Torispherical | BU14: A96C | BV14: 0.5000 IN | BW14: Torispherical | BX14: 0.0000 IN | BY14: 62 PSI | BZ14: 650 DEGF | CA14: -20 DEGF | CB14: Skirt | CC14: 0.0000 IN | CD14: EMULSION | CE14: SWEET | CF14: Sweet | CG14: NO | CH14: Partial | CI14: Partial | CJ14: YES | CK14: EPOXY COATING | CL14: 150 | CM14: 10 | CN14: 1 EA | CO14: 3 EA | CP14: Portable | CQ14: YES | CR14: 2015.06.22 | CS14: None | CT14: 31.800 M3 | CU14: None | CV14: 09-32-045-06W4-PF-0002-01 | DG14: AB | DH14: 2010 | DI14: ASEQ | DJ14: ISF | DK14: WAINWRIGHT NORTH 09-32 UNIT 1 BATTERY | DL14: 2014-06-06
A15: 62047586 | B15: D | C15: FWKO | D15: VESS_PRESS | H15: 162753 | J15: MOSHER STEEL | K15: US | N15: 12857 | O15: 1941 | Q15: 2010 | T15: 201 | U15: Z | W15: 200 | X15: D-020-20 | Z15: H1-02-001-00004 | AA15: 62047582 | AB15: B | AC15: 0.99 | AE15: 35682 | AT15: 1486.2 | AX15: X | BJ15: Vertical | BK15: 39839-12857 | BL15: Unfired Pressure Vessels | BM15: A96C | BN15: 0.3700 IN | BO15: 0.0000 IN | BP15: 10.000 Foot | BQ15: 211.0000 IN | BR15: A96C | BS15: 0.5000 IN | BT15: Torispherical | BU15: A96C | BV15: 0.5000 IN | BW15: Torispherical | BX15: 0.0000 IN | BY15: 68 PSI | BZ15: 200 DEGF | CA15: -20 DEGF | CB15: Skirt | CC15: 0.0000 IN | CD15: EMULSION | CE15: SWEET | CF15: Sweet | CG15: NO | CH15: Partial | CI15: No | CJ15: Unknown | CK15: NONE | CL15: 150 | CM15: 10 | CN15: 1 EA | CO15: 3 EA | CP15: Portable | CQ15: YES | CR15: 2015.06.24 | CS15: None | CT15: 31.000 M3 | CU15: None | CV15: 09-32-045-06W4-PF-0002-01 | DG15: AB | DH15: 2010 | DI15: ASEQ | DJ15: ISF | DK15: WAINWRIGHT NORTH 09-32 UNIT 1 BATTERY | DL15: 2014-06-06
A16: 62047613 | B16: D | C16: FWKO, | D16: VESS_PRESS | H16: 162824 | J16: C. E. NATCO | K16: CA | L16: HFHP | N16: L-8-201 | O16: 1984 | Q16: 2010 | T16: 201 | U16: Z | W16: 200 | X16: D-020-20 | Z16: H1-02-001-00020 | AA16: 62047610 | AB16: B | AC16: 0.99 | AE16: 212057 | AT16: 9566.32 | AX16: X | BJ16: Horizontal | BK16: AA-4185-03 | BL16: Unfired Pressure Vessels | BM16: SA51670 | BN16: 12.7000 MM | BO16: 3.1000 MM | BP16: 2,438.000 MM | BQ16: 6,096.0000 MM | BR16: SA-516-70 | BS16: 14.3000 MM | BT16: Ellipsoidal | BU16: SA-516-70 | BV16: 0.5625 IN | BW16: Ellipsoidal | BX16: 3.1000 MM | BY16: 517 KPA | BZ16: 120 CEL | CA16: -20 DEGF | CB16: Saddles | CC16: 3.1000 MM | CD16: EMULSION | CE16: SWEET | CF16: Sweet | CG16: YES | CH16: Partial | CI16: Partial | CJ16: Unknown | CK16: UNKNOWN | CL16: 150 | CM16: 5 | CN16: 2 EA | CO16: 3 EA | CP16: Portable | CQ16: YES | CR16: 2013.05.23 | CS16: None | CT16: 31.000 M3 | CU16: RT4 | CV16: 02-17-046-06W4-MF-0001-01 | DG16: AB | DH16: 2010 | DI16: ASEQ | DJ16: FIDL | DK16: WAINWRIGHT NORTH 02-17-046-06 BATTERY | DL16: 2014-06-06
A17: 62052810 | B17: D | C17: FWKO, V-101 | D17: VESS_PRESS | J17: HTI HYDROTEK | K17: CA | N17: S-0322 | O17: 1982 | Q17: 2010 | T17: 6P1 | U17: Z | V17: V-101 | W17: 610 | X17: D-020-20 | Z17: H1-06-004-00001-000020-000301-000001 | AB17: B | AC17: 0.99 | AJ17: 420000 | AK17: A | AL17: X | AT17: 9025.3 | AX17: X | BJ17: Horizontal | BK17: HT-D-2074 | BL17: Unfired Pressure Vessels | BM17: SA-516-70 | BN17: 0.3750 IN | BO17: 0.0625 IN | BP17: 10.000 Foot | BQ17: 60.0000 Foot | BR17: SA-516-70 | BS17: 0.7100 IN | BT17: Torispherical | BU17: SA-516-70 | BV17: 0.5800 IN | BW17: Torispherical | BX17: 0.0625 IN | BY17: 517 KPA | BZ17: 320 DEGF | CA17: -20 DEGF | CB17: Saddles | CC17: 0.0625 IN | CD17: EMULSION | CE17: SOUR | CF17: Sour | CG17: YES | CH17: Partial | CI17: Partial | CJ17: Unknown | CK17: UNKNOWN | CL17: 150 | CM17: 69 | CN17: 5 EA | CO17: 3 EA | CP17: Portable | CQ17: NO | CR17: 2013.06.21 | CS17: None | CT17: 120.050 M3 | CU17: RT3 | CV17: PI-2103-01 | DG17: SK | DH17: 2010 | DI17: INST | DJ17: ISF | DK17: FWKO, #1 | DL17: 2014-06-06
A18: 62065562 | B18: D | C18: FWKO, V-102 | D18: VESS_PRESS | J18: UNIVERSAL INDUSTRIES | K18: CA | N18: 95-10-35 | O18: 1995 | Q18: 2010 | T18: 409 | U18: E | V18: V-102 | W18: 400 | X18: D-020-20 | Z18: H1-04-004-00002 | AB18: B | AC18: 150000 | AE18: 3137190 | AJ18: 7016644 | AK18: A | AL18: X | AT18: A3077.32 | AX18: X | BJ18: Horizontal | BK18: V-6154-D101-R1 | BL18: Unfired Pressure Vessels | BM18: SA-516-70N | BN18: 0.5000 IN | BO18: 0.0620 IN | BP18: 10.000 Foot | BQ18: 46.0000 Foot | BR18: SA-516-70N | BS18: 0.7500 IN | BT18: Ellipsoidal | BU18: SA-516-70N | BV18: 0.5200 IN | BW18: Ellipsoidal | BX18: 0.0630 IN | BY18: 100 PSI | BZ18: 200 DEGF | CA18: -20 DEGF | CB18: Saddles | CC18: 0.0630 IN | CD18: EMULSION | CE18: SWEET | CF18: Sweet | CG18: YES | CH18: Partial | CI18: Yes | CJ18: Partial | CK18: UNKNOWN | CL18: 150 | CM18: 54 | CN18: 1 EA | CO18: 3 EA | CP18: No | CQ18: YES | CR18: 2015.05.26 | CS18: None | CT18: 95.000 M3 | CU18: RT3 | CV18: 13-16-044-26W3-PI-0002-01 | DG18: SK | DH18: 2010 | DI18: INST | DJ18: ISF | DK18: MANITOU 13-16-044-26W3 BATTERY | DL18: 2014-06-06
A19: 62065567 | B19: D | C19: FWKO, V101 | D19: VESS_PRESS | J19: ALCO GAS & OIL PRODUCTION EQU> | K19: CA | L19: 8X30 | N19: 85C-3384-01 | O19: 1985 | Q19: 2010 | T19: 409 | U19: E | V19: V-101 | W19: 400 | X19: D-020-20 | Z19: H1-04-004-00002 | AB19: B | AC19: 150000 | AE19: 225252 | AJ19: 469874 | AK19: A | AL19: X | AT19: F-5008-23 | AX19: X | BJ19: Horizontal | BK19: A-9190 | BL19: Unfired Pressure Vessels | BM19: SA-516-70 | BN19: 12.7000 MM | BO19: 1.5800 MM | BP19: 3,048.000 MM | BQ19: 9.3470 M | BR19: SA-516-70 | BS19: 14.3000 MM | BT19: Ellipsoidal | BU19: SA-516-70 | BV19: 14.3000 MM | BW19: Ellipsoidal | BX19: 1.5800 MM | BY19: 125 PSI | BZ19: 150 DEGF | CA19: -20 DEGF | CB19: Legs | CC19: 1.5800 MM | CD19: EMULSION | CE19: SWEET | CF19: Sweet | CG19: YES | CH19: Partial | CI19: Partial | CJ19: Partial | CK19: UNKNOWN | CL19: 150 | CM19: 30 | CN19: 1 EA | CO19: 3 EA | CP19: No | CQ19: YES | CR19: 2015.05.26 | CS19: None | CT19: 59.000 M3 | CU19: RT2 | CV19: 13-16-044-26W3-PI-0003-01 | DG19: SK | DH19: 2010 | DI19: INST | DJ19: ISF | DK19: MANITOU 13-16-044-26W3 BATTERY | DL19: 2014-06-06
A20: 62065570 | B20: D | C20: FWKO, V-101 | D20: VESS_PRESS | J20: IP CONSTRUCTORS | K20: CA | L20: 1067032 | N20: 91-1275 | O20: 1991 | Q20: 2010 | T20: 410 | U20: E | V20: V-101 | W20: 400 | X20: D-020-20 | Z20: H1-04-004-00001 | AB20: B | AC20: 150000 | AE20: 2733863 | AJ20: 1067032 | AK20: A | AL20: X | AT20: A-1952.3 | AX20: X | BJ20: Horizontal | BK20: D-1275-09-01 | BL20: Unfired Pressure Vessels | BM20: SA516-70 | BN20: 0.3750 IN | BO20: 0.0625 IN | BP20: 119.250 IN | BQ20: 40.0000 Foot | BR20: SA516-70 | BS20: 0.6320 IN | BT20: Ellipsoidal | BU20: SA516-70 | BV20: 0.4170 IN | BW20: Ellipsoidal | BX20: 0.0625 IN | BY20: 75 PSI | BZ20: 121 DEGF | CA20: -20 DEGF | CB20: Saddles | CC20: 0.0625 IN | CD20: EMULSION | CE20: SWEET | CF20: Sweet | CG20: YES | CH20: Partial | CI20: Partial | CJ20: Unknown | CK20: UNKNOWN | CL20: 150 | CM20: 34 | CN20: 2 EA | CO20: 3 EA | CP20: No | CQ20: NO | CR20: 2014.07.09 | CS20: None | CT20: 97.000 M3 | CU20: RT2 | CV20: 01-30-044-26W3-PI-0005-01 | DG20: SK | DH20: 2010 | DI20: INST | DJ20: ISF | DK20: MANITOU 01-30-044-26W3 BATTERY | DL20: 2014-06-06
A21: 62065571 | B21: D | C21: FWKO, V-203 | D21: VESS_PRESS | J21: LARSEN & D'AMICO MFG | K21: CA | L21: H8291-23 | N21: T-6180 | O21: 1989 | Q21: 2010 | T21: 410 | U21: E | V21: V-203 | W21: 400 | X21: D-020-20 | Z21: H1-04-004-00003 | AB21: B | AC21: 150000 | AE21: 2578925 | AJ21: 1038074 | AK21: A | AL21: X | AT21: H8291.23 | AX21: X | BJ21: Horizontal | BK21: LD2414-A | BL21: Unfired Pressure Vessels | BM21: SA-516-70 | BN21: 0.2500 IN | BO21: 0.0000 IN | BP21: 96.000 IN | BQ21: 30.0000 Foot | BR21: SA-516-70 | BS21: 0.4375 IN | BT21: Ellipsoidal | BU21: SA-516-70 | BV21: 0.3125 IN | BW21: Ellipsoidal | BX21: 0.0000 IN | BY21: 64 PSI | BZ21: 200 DEGF | CA21: -20 DEGF | CB21: Saddles | CC21: 0.0000 IN | CD21: EMULSION | CE21: SWEET | CF21: Sweet | CG21: YES | CH21: Yes | CI21: Partial | CJ21: Partial | CK21: UNKNOWN | CL21: 150 | CM21: 53 | CN21: 2 EA | CO21: 3 EA | CP21: No | CQ21: YES | CR21: 2015.06.23 | CS21: None | CT21: 46.900 M3 | CU21: RT4 | CV21: 11-19-044-26W3-PI-0003-01 | DG21: SK | DH21: 2010 | DI21: INST | DJ21: ISF | DK21: MANITOU 19-044-26W3 BATTERY | DL21: 2014-06-06
A22: 66019774 | B22: D | C22: FWKO, V-101 | D22: VESS_PRESS | H22: 158100 | J22: UNIVERSAL INDUSTRIES | K22: CA | N22: 96-01-02 | O22: 1996 | Q22: 2010 | T22: 220 | U22: Z | V22: V-101 | W22: 200 | X22: D-020-20 | Z22: H1-02-005-00001 | AA22: 62046715 | AB22: B | AC22: 0.99 | AE22: 3137499 | AT22: N1054.23 | AX22: X | BJ22: Horizontal | BK22: EDS-8007-REV 3 | BL22: Unfired Pressure Vessels | BM22: SA 516 70 | BN22: 0.5000 IN | BO22: 0.0625 IN | BP22: 3.660 M | BQ22: 21.8000 M | BR22: SA 516 70 | BS22: 0.7500 IN | BT22: Ellipsoidal | BU22: SA 516 70 | BV22: 0.5200 IN | BW22: Ellipsoidal | BX22: 0.0630 IN | BY22: 75 PSI | BZ22: 300 DEGF | CA22: -20 DEGF | CB22: Saddles | CC22: 0.0630 IN | CD22: EMULSION | CE22: SWEET | CF22: Sweet | CG22: YES | CH22: Partial | CI22: Partial | CJ22: Partial | CK22: UNKNOWN | CL22: 150 | CM22: 26 | CN22: 3 EA | CO22: 3 EA | CP22: Stationary | CQ22: NO | CR22: 2013.06.05 | CS22: None | CT22: 192.000 M3 | CU22: RT3 | CV22: 10-19-047-04W4-VV-0015-11 | DG22: AB | DH22: 2010 | DI22: ASEQ | DJ22: ISF | DK22: WILDMERE 10-19 BATTERY | DL22: 2014-06-06
A23: 66043952 | B23: D | C23: FWKO, COLD | D23: VESS_PRESS | H23: 61125 | J23: MALONEY STEEL | K23: CA | N23: 94-C2732-3000 | O23: 1994 | Q23: 2010 | T23: 413 | U23: B | W23: 400 | X23: D-020-20 | Z23: H1-04-007-00001 | AA23: 66026525 | AB23: B | AC23: 0.99 | AE23: 2984511 | AJ23: 7029406 | AL23: X | AT23: M4229.23 | AX23: X | BJ23: Horizontal | BK23: C2732-3000 REV. 1 | BL23: Unfired Pressure Vessels | BM23: SA 516-70 | BN23: 0.3750 IN | BO23: 0.0000 IN | BP23: 120.000 IN | BQ23: 40.0000 Foot | BR23: SA 516-70 | BS23: 0.4650 IN | BT23: Ellipsoidal | BU23: SA 516-70 | BV23: 0.4650 IN | BW23: Ellipsoidal | BX23: 0.0000 IN | BY23: 100 PSI | BZ23: 140 DEGF | CA23: -20 DEGF | CB23: Saddles | CC23: 0.0000 IN | CD23: EMULSION | CE23: SOUR | CF23: Sour | CG23: NO | CH23: Partial | CI23: Yes | CJ23: YES | CK23: EPOXY COATING | CL23: 300 | CM23: 36 | CN23: 3 EA | CO23: 3 EA | CP23: Portable | CQ23: YES | CR23: 2014.06.17 | CS23: None | CT23: 96.000 M3 | CU23: RT1 | CV23: 16-20-040-28W3-PI-0001-19/20 | DG23: SK | DH23: 2010 | DI23: ASEQ | DJ23: ISF | DK23: NORTHEND 16-20-040-28W3 OIL BATTERY | DL23: 2014-06-06
A24: 66044022 | B24: D | C24: FWKO, | D24: VESS_PRESS | G24: 12 FT X 50 FT | H24: 61003 | J24: NATCO CANADA | K24: CA | N24: 6919-03 | O24: 1997 | Q24: 2010 | T24: 412 | U24: B | W24: 400 | X24: D-020-20 | Z24: H1-04-007-00002 | AA24: 66027021 | AB24: B | AC24: 0.99 | AJ24: 7011926 | AL24: X | AT24: N-6654.23 | AX24: X | BJ24: Horizontal | BK24: RD-6918-03 REV4 | BL24: Unfired Pressure Vessels | BM24: SA 516-70N | BN24: 0.5000 IN | BO24: 0.0000 IN | BP24: 12.000 Foot | BQ24: 50.0000 Foot | BR24: SA 516-70N | BS24: 0.7500 IN | BT24: Ellipsoidal | BU24: SA 516-70N | BV24: 0.6250 IN | BW24: Ellipsoidal | BX24: 0.0000 IN | BY24: 100 PSI | BZ24: 200 DEGF | CA24: 5 DEGF | CB24: Saddles | CC24: 0.0000 IN | CD24: EMULSION | CE24: SOUR | CF24: Sour | CG24: NO | CH24: Partial | CI24: No | CJ24: YES | CK24: EPOXY COATING | CL24: 150 | CM24: 46 | CN24: 2 EA | CO24: 3 EA | CP24: Portable | CQ24: YES | CR24: 2013.03.19 | CS24: Partial Heat Treated | CT24: 171.000 M3 | CU24: RT2 | CV24: 14-03-040-28W3-MF-0001-01 | DG24: SK | DH24: 2010 | DI24: ASEQ | DJ24: ISF | DK24: BORDER 14-03-040-28W3 OIL BTY | DL24: 2014-06-06
A25: 66044033 | B25: D | C25: FWKO, | D25: VESS_PRESS | G25: 8 FT X 30 FT | H25: 61811 | J25: WESTFAB INDUSTRIES | K25: CA | N25: WF93275 | O25: 1994 | Q25: 2010 | T25: 413 | U25: B | W25: 400 | X25: D-020-20 | Z25: H1-04-007-00004 | AA25: 66027039 | AB25: B | AC25: 0.99 | AE25: 2932349 | AJ25: 7029375 | AL25: X | AT25: A5619.3 | AX25: X | BJ25: Horizontal | BK25: WF-93-1201-1 R4 | BL25: Unfired Pressure Vessels | BM25: SA 516-70N | BN25: 1.0000 IN | BO25: 0.0000 IN | BP25: 96.000 IN | BQ25: 30.0000 Foot | BR25: SA 516-70N | BS25: 1.1100 IN | BT25: Ellipsoidal | BU25: SA 516-70N | BV25: 1.4900 IN | BW25: Ellipsoidal | BX25: 0.0000 IN | BY25: 275 PSI | BZ25: 300 DEGF | CA25: -14 DEGF | CB25: Saddles | CC25: 0.0000 IN | CD25: EMULSION | CE25: SOUR | CF25: Sour | CG25: NO | CH25: Partial | CI25: Yes | CJ25: YES | CK25: EPOXY COATING | CL25: 300 | CM25: 50 | CN25: 3 EA | CO25: 3 EA | CP25: Portable | CQ25: YES | CR25: 2014.05.27 | CS25: None | CT25: 42.680 M3 | CU25: RT2 | CV25: 15-16-040-28W3-PM-0002-01 | DG25: SK | DH25: 2010 | DI25: ASEQ | DJ25: ISF | DK25: DRAKE 15-16-040-28W3 SATELLITE | DL25: 2014-06-06
A26: 66044059 | B26: D | C26: FWKO, | D26: VESS_PRESS | G26: 12 FT X 50 FT | H26: 61131 | J26: NATCO CANADA | K26: CA | N26: 6918-03 | O26: 1997 | Q26: 2010 | T26: 413 | U26: B | W26: 400 | X26: D-020-20 | Z26: H1-04-007-00001 | AA26: 66027596 | AB26: B | AC26: 0.99 | AJ26: 7011938 | AL26: X | AT26: 6654.23 | AX26: X | BJ26: Horizontal | BK26: RD-6918-03 REV 4 | BL26: Unfired Pressure Vessels | BM26: SA 516-70 | BN26: 0.5000 IN | BO26: 0.0000 IN | BP26: 144.000 IN | BQ26: 50.0000 Foot | BR26: SA 516-70 | BS26: 0.7300 IN | BT26: Ellipsoidal | BU26: SA 516-70 | BV26: 0.6250 IN | BW26: Ellipsoidal | BX26: 0.0000 IN | BY26: 100 PSI | BZ26: 200 DEGF | CA26: 5 DEGF | CB26: Saddles | CC26: 0.0000 IN | CD26: EMULSION | CE26: SOUR | CF26: Sour | CG26: YES | CH26: Partial | CI26: No | CJ26: YES | CK26: EPOXY COATING | CL26: 150 | CN26: 4 EA | CO26: 3 EA | CP26: Portable | CQ26: YES | CR26: 2013.03.19 | CS26: Heat Treated | CT26: 160.050 M3 | CU26: RT2 | CV26: 16-20-040-28W3-PI-0001-20.DWG | DG26: SK | DH26: 2010 | DI26: ASEQ | DJ26: ISF | DK26: NORTHEND 16-20-040-28W3 OIL BATTERY | DL26: 2014-06-06
A27: 66090145 | B27: D | C27: FWKO, 4 FT X 15 FT, 725 PSI | D27: VESS_PRESS | H27: 31-1204 | J27: HANOVER MALONEY | K27: CA | N27: 04-CA0257-1001 | O27: 2004 | Q27: 2007 | R27: MUSKEG | U27: Z | V27: 31-1204 | W27: RBF | X27: D-020-20 | Z27: W1-01-004-00002 | AA27: 64102579 | AB27: B | AC27: 0.99 | AE27: 486068 | AT27: R9794.2 | AX27: X | BJ27: Horizontal | BK27: CA-200257-01-CA-04-001 | BL27: Unfired Pressure Vessels | BM27: SA 516-70N | BN27: 1.3750 IN | BO27: 0.1250 IN | BP27: 51.250 IN | BQ27: 15.0000 Foot | BR27: SA 516-70N | BS27: 1.3750 IN | BT27: Ellipsoidal | BU27: SA 516-70N | BV27: 1.3750 IN | BW27: Ellipsoidal | BX27: 0.1250 IN | BY27: 725 PSI | BZ27: 120 DEGF | CA27: -40 DEGF | CB27: Saddles | CC27: 0.1250 IN | CD27: EMULSION | CE27: SOUR | CF27: Sour | CG27: NO | CH27: Partial | CI27: Partial | CJ27: YES | CK27: EPOXY COATING | CL27: 300 | CM27: 19 | CN27: 1 EA | CO27: 3 EA | CP27: Portable | CQ27: YES | CR27: 2013.08.21 | CS27: Heat Treated | CT27: 6.800 M3 | CU27: RT1 | CV27: RLSATE-0227-M102 | DG27: AB | DH27: 2007 | DI27: ASEQ | DJ27: ISF | DK27: 02-27-108-09W6 SATELLITE | DL27: 2014-06-06
A28: 66128464 | B28: D | C28: FWKO, V-104 | D28: VESS_PRESS | H28: 152124 | J28: UNIVERSAL INDUSTRIES | K28: CA | N28: 83-11-13 | O28: 1983 | Q28: 2010 | T28: 6P1 | U28: Z | V28: V-104 | W28: 610 | X28: D-020-20 | Z28: H1-06-004-00001-000020-000302-000001 | AB28: B | AC28: 0.99 | AE28: 211045 | AJ28: 10155 | AK28: A | AL28: X | AT28: E963.23 | AX28: X | BJ28: Horizontal | BK28: TR04-LH | BL28: Unfired Pressure Vessels | BM28: SA-516-70 | BN28: 9.5000 MM | BO28: 1.6000 MM | BP28: 3,168.000 MM | BQ28: 15.2400 M | BR28: SA-516-70 | BS28: 10.7000 MM | BT28: Ellipsoidal | BU28: SA-516-70 | BV28: 9.1200 MM | BW28: Ellipsoidal | BX28: 1.6000 MM | BY28: 517 KPA | BZ28: 177 CEL | CA28: -29 DEGF | CB28: Saddles | CC28: 1.6000 MM | CD28: EMULSION | CE28: SOUR | CF28: Sour | CG28: YES | CH28: Partial | CI28: Partial | CJ28: Unknown | CK28: UNKNOWN | CL28: 150 | CM28: 26 | CN28: 2 EA | CO28: 3 EA | CP28: Portable | CQ28: NO | CR28: 2015.05.22 | CS28: None | CT28: 118.000 M3 | CU28: RT3 | CV28: PI-2103-02 | DG28: SK | DH28: 2010 | DI28: INST | DJ28: ISF | DK28: FWKO, #2 | DL28: 2014-06-06
A29: 66140397 | B29: D | C29: FWKO, 20-V-5200 | D29: VESS_PRESS | G29: 2438 X 10668 MM | J29: NATCO CANADA | K29: CA | L29: 92000041 | N29: 7741-03 | O29: 2002 | Q29: 2010 | T29: 6R6 | U29: B | V29: 20-V-5200 | W29: 630 | X29: D-020-20 | Z29: H1-06-006-00001-000020 | AB29: B | AC29: 150000 | AE29: 35322 | AJ29: 18427 | AK29: A | AL29: X | AT29: P8369.23 | AX29: X | BJ29: Horizontal | BK29: RD-7741-03 REV 0 | BL29: Unfired Pressure Vessels | BM29: SA51670N | BN29: 9.5000 MM | BO29: 0.1250 IN | BP29: 7.940 Foot | BQ29: 35.0000 Foot | BR29: SA51670N | BS29: 0.3130 IN | BT29: Ellipsoidal | BU29: SA51670N | BV29: 0.3130 IN | BW29: Ellipsoidal | BX29: 0.1250 IN | BY29: 517 KPA | BZ29: 160 CEL | CA29: -29 CEL | CB29: Saddles | CC29: 0.1250 IN | CD29: EMULSION | CE29: SOUR | CF29: Sour | CG29: YES | CH29: Yes | CI29: Partial | CJ29: Unknown | CK29: UNKNOWN | CL29: 150 | CM29: 36 | CN29: 2 EA | CO29: 3 EA | CP29: No | CQ29: NO | CR29: 2014.05.09 | CS29: Heat Treated | CT29: 54.000 M3 | CU29: RT1 | CV29: 12-03-048-21W3-PI-0009-01 | DG29: SK | DH29: 2010 | DI29: INST | DJ29: ISF | DK29: AREA 20 EMULSION TREATING | DL29: 2014-06-06
A30: 66159634 | B30: D | C30: FWKO, V-101 | D30: VESS_PRESS | J30: WELLS-HALL FABRICATION | K30: CA | N30: 97-8978-1 | O30: 1997 | Q30: 2010 | T30: 409 | U30: Z | V30: V-101 | W30: 400 | X30: D-020-20 | Z30: H1-04-003-00002 | AB30: B | AC30: 150000 | AJ30: 7010121 | AK30: A | AL30: X | AT30: A-3435.3 | AX30: X | BJ30: Horizontal | BK30: 47-A-8978-0 | BL30: Unfired Pressure Vessels | BM30: SA-516-70 MT | BN30: 0.3750 IN | BO30: 0.0625 IN | BP30: 96.250 IN | BQ30: 25.0000 Foot | BR30: SA-516-70 MT | BS30: 0.9250 IN | BT30: Torispherical | BU30: SA-516-70 MT | BV30: 0.4680 IN | BW30: Torispherical | BX30: 0.0625 IN | BY30: 517 KPA | BZ30: 66 CEL | CA30: -29 CEL | CB30: Saddles | CC30: 0.0625 IN | CD30: EMULSION | CE30: SOUR | CF30: Sour | CG30: YES | CH30: Partial | CI30: Partial | CJ30: Unknown | CK30: UNKNOWN | CL30: 150 | CM30: 32 | CN30: 1 EA | CO30: 3 EA | CP30: No | CQ30: NO | CR30: 2014.07.23 | CS30: None | CT30: 40.000 M3 | CU30: RT2 | CV30: 47-A-8978-0 | DG30: SK | DH30: 2010 | DI30: INST | DJ30: ISF | DK30: MARSDEN 04-21-044-26W3 BATTERY | DL30: 2014-06-06
A31: 66160151 | B31: D | C31: FWKO, | D31: VESS_PRESS | G31: 36" X 55' | J31: CORLAC INDUSTRIES | K31: CA | N31: FWK-069 | O31: 2000 | Q31: 2010 | T31: 105 | U31: Z | V31: V-100 | W31: 100 | X31: D-020-20 | Z31: H1-01-004-00006 | AB31: B | AC31: 150000 | AE31: 411824 | AT31: L6426.231 | AX31: X | BJ31: Inclined | BK31: 99-COR-LPMFWKO-36-01 R. D | BL31: Unfired Pressure Vessels | BM31: SA516-70N | BN31: 0.2500 IN | BO31: 0.1250 IN | BP31: 36.000 IN | BQ31: 55.0000 Foot | BR31: SA516-70N | BS31: 0.3125 IN | BT31: Ellipsoidal | BU31: SA516-70N | BV31: 0.3125 IN | BW31: Ellipsoidal | BX31: 0.1250 IN | BY31: 100 PSI | BZ31: 212 DEGF | CA31: -20 DEGF | CB31: Legs | CC31: 0.1250 IN | CD31: EMULSION | CE31: SWEET | CF31: Sweet | CG31: YES | CH31: Partial | CI31: Yes | CJ31: NO | CK31: NONE | CL31: 150 | CM31: 32 | CN31: 1 EA | CO31: 3 EA | CP31: No | CQ31: YES | CR31: 2014.07.23 | CS31: None | CT31: 11.000 M3 | CU31: RT1 | CV31: 14-18-050-06W4-PI-0001-01 | DG31: AB | DH31: 2010 | DI31: INST | DJ31: ISF | DK31: HUSKY VERMILION BATTERY 14-18-050-06W4 | DL31: 2014-06-06
A32: 66160902 | B32: D | C32: FWKO | D32: VESS_PRESS | J32: C. E. NATCO | K32: US | N32: EL-1P88605-01 | O32: 1986 | Q32: 2010 | T32: 208 | U32: Z | W32: 200 | X32: D-020-20 | Z32: H1-02-011-00004 | AB32: B | AC32: 120000 | AE32: 418001 | AT32: M8734.2 | AX32: X | BJ32: Horizontal | BK32: A-84669 | BL32: Unfired Pressure Vessels | BM32: SA 516-07 | BN32: 0.3130 IN | BO32: 0.0000 IN | BP32: 8.000 Foot | BQ32: 15.0000 Foot | BR32: SA 516-70 | BS32: 0.4380 IN | BT32: Torispherical | BU32: SA 516-70 | BV32: 0.4380 IN | BW32: Torispherical | BX32: 0.0000 IN | BY32: 75 PSI | BZ32: 250 DEGF | CA32: -20 DEGF | CB32: Saddles | CC32: 0.0000 IN | CD32: EMULSION | CE32: SWEET | CF32: Sweet | CG32: NO | CH32: Partial | CI32: Partial | CJ32: Unknown | CK32: UNKNOWN | CL32: 150 | CM32: 10 | CN32: 1 EA | CO32: 3 EA | CP32: Portable | CQ32: NO | CR32: 2015.04.21 | CS32: None | CT32: 31.000 M3 | CU32: None | CV32: NO HUSKY DRAWING AVAILABLE | DG32: AB | DH32: 2010 | DI32: INST | DJ32: ISF | DK32: CHAUVIN HUSKY PW 11-19-044-01W4 BATTERY | DL32: 2014-06-06
A33: 66178431 | B33: D | C33: FWKO, 20-D-100 | D33: VESS_PRESS | J33: PROPAK SYSTEMS | K33: CA | N33: 097522-411-01 | O33: 2011 | Q33: 2010 | T33: 6S1 | U33: Z | V33: 20-D-100 | W33: 620 | X33: D-020-20 | Z33: H1-06-005-00007-000020 | AB33: B | AC33: 150000 | AE33: 600734 | AJ33: 18830 | AK33: A | AL33: X | AT33: V8415.23 | AX33: X | BJ33: Horizontal | BK33: D-DRM-097522-411-01 | BL33: Unfired Pressure Vessels | BM33: SA-516-70N | BN33: 0.7500 IN | BO33: 0.1250 IN | BP33: 144.000 IN | BQ33: 50.0000 Foot | BR33: SA-516-70N | BS33: 1.4375 IN | BT33: Ellipsoidal | BU33: SA-516-70N | BV33: 0.6875 IN | BW33: Ellipsoidal | BX33: 0.1250 IN | BY33: 150 PSI | BZ33: 362 DEGF | CA33: -20 DEGF | CB33: Saddles | CC33: 0.1250 IN | CD33: EMULSION | CE33: SOUR | CF33: Sour | CG33: NO | CH33: Partial | CI33: Yes | CJ33: Unknown | CK33: UNKNOWN | CL33: 150 | CM33: 66 | CN33: 1 EA | CO33: 3 EA | CP33: No | CQ33: YES | CR33: 2012.01.31 | CS33: Heat Treated | CT33: 175.000 M3 | CU33: RT1 | CV33: 05-07-049-23W3-PI-0007-02 | DG33: SK | DH33: 2010 | DI33: INST | DJ33: ISF | DK33: AREA 20 EMULSION TREATING | DL33: 2014-06-06
A34: 66184574 | B34: D | C34: FWKO, V-103 | D34: VESS_PRESS | J34: WELLS-HALL FABRICATION | K34: CA | L34: 97X25 | N34: 93-6672-0 | O34: 1993 | Q34: 2010 | T34: 409 | U34: Z | V34: V-103 | W34: 400 | X34: D-020-20 | Z34: H1-04-003-00002 | AB34: B | AC34: 100000 | AE34: 2851590 | AJ34: 1066992 | AK34: A | AL34: X | AT34: A-2321.3 | AX34: X | BJ34: Horizontal | BK34: DO NOT EXIST | BL34: Unfired Pressure Vessels | BM34: SA-516-70 MT | BN34: 0.3750 IN | BO34: 0.0625 IN | BP34: 8.000 Foot | BQ34: 25.0000 Foot | BR34: SA-516-70 MT | BS34: 0.4750 IN | BT34: Ellipsoidal | BU34: SA-516-70 MT | BV34: 0.4750 IN | BW34: Ellipsoidal | BX34: 0.0625 IN | BY34: 75 PSI | BZ34: 65 CEL | CA34: -29 CEL | CB34: Saddles | CC34: 0.0625 IN | CD34: EMULSION | CE34: SOUR | CF34: Sour | CG34: YES | CH34: Partial | CI34: Partial | CJ34: Unknown | CK34: UNKNOWN | CL34: 150 | CM34: 25 | CN34: 2 EA | CO34: 3 EA | CP34: No | CQ34: YES | CR34: 2006.04.18 | CS34: None | CT34: 38.000 M3 | CU34: RT1 | CV34: NO HUSKY DRAWING AVAILABLE | DG34: SK | DH34: 2010 | DI34: INST | DJ34: SURP | DK34: MARSDEN 04-21-044-26W3 BATTERY | DL34: 2014-06-06
A35: 66204324 | B35: D | C35: FWKO, (V-230) | D35: VESS_PRESS | E35: 86426 | F35: KG | J35: DACRO INDUSTRIES | K35: CA | N35: 12-849A | O35: 2012 | Q35: 2031 | U35: C | V35: 20-V-230 | W35: SRP | X35: D-020-20 | Z35: S1-01-010-00020-000045 | AB35: B | AC35: 2020034 | AE35: 618433 | AF35: A | AT35: V7221.2 | AX35: X | BJ35: Horizontal | BK35: 12-849A-DN-1 & -V-1/-2/-3/-4 > | BL35: Unfired Pressure Vessels | BM35: SA 516-70N | BN35: 19.0500 MM | BO35: 3.2000 MM | BP35: 4,178.000 MM | BQ35: 30.4800 M | BR35: SA 516-70N | BS35: 20.5000 MM | BT35: Ellipsoidal | BU35: SA 516-70N | BV35: 20.5000 MM | BW35: Ellipsoidal | BX35: 3.2000 MM | BY35: 1,005 KPA | BZ35: 200 CEL | CA35: -29 CEL | CB35: Saddles | CC35: 3.2000 MM | CD35: EMULSION | CE35: SOUR | CF35: Sour | CG35: NO | CH35: No | CI35: Yes | CJ35: NO | CK35: NONE | CL35: 150 | CM35: 97 | CN35: 2 EA | CO35: 3 EA | CP35: No | CQ35: YES | CR35: 2014.11.28 | CS35: Heat Treated | CT35: 438.300 M3 | CU35: RT1 | CV35: SNRS-01-20-M-VP-00069-1 | DG35: AB | DH35: 2031 | DI35: INST | DJ35: ISF | DK35: 20 - FREE WATER KNOCK-OUT | DL35: 2014-06-06
A36: 66204332 | B36: D | C36: FWKO, (V-230) | D36: VESS_PRESS | E36: 86426 | F36: KG | J36: DACRO INDUSTRIES | K36: CA | N36: 12-849B | O36: 2012 | Q36: 2031 | U36: C | V36: 21-V-230 | W36: SRP | X36: D-020-20 | Z36: S1-01-015-00021-000045 | AB36: B | AC36: 0.99 | AE36: 624707 | AF36: A | AT36: V7221.2 | AX36: X | BJ36: Horizontal | BK36: 12-849A-DN-1 & -V-1/-2/-3/-4 > | BL36: Unfired Pressure Vessels | BM36: SA 516-70N | BN36: 19.0500 MM | BO36: 3.2000 MM | BP36: 4,178.000 MM | BQ36: 30.4800 M | BR36: SA 516-70N | BS36: 20.5000 MM | BT36: Ellipsoidal | BU36: SA 516-70N | BV36: 20.5000 MM | BW36: Ellipsoidal | BX36: 3.2000 MM | BY36: 1,005 KPA | BZ36: 200 CEL | CA36: -29 CEL | CB36: Saddles | CC36: 3.2000 MM | CD36: EMULSION | CE36: SOUR | CF36: Sour | CG36: NO | CH36: No | CI36: Yes | CJ36: NO | CK36: NONE | CL36: 150 | CM36: 96 | CN36: 2 EA | CO36: 3 EA | CP36: No | CQ36: YES | CS36: Heat Treated | CT36: 438.300 M3 | CU36: RT1 | CV36: SNRS-01-21-M-VP-00069-1 | DG36: AB | DH36: 2031 | DI36: INST | DJ36: ISF | DK36: 21 - FREE WATER KNOCK-OUT | DL36: 2014-06-06
A37: 66207002 | B37: D | C37: FWKO, | D37: VESS_PRESS | E37: 26925 | F37: KG | J37: PROPAK SYSTEMS | K37: CA | N37: 116757-307-07 | O37: 2013 | Q37: 2010 | T37: 5S1 | U37: Z | V37: 20-D-100 | W37: 520 | X37: D-020-20 | Z37: H1-05-007-00020-000021-000001 | AB37: A | AC37: 0.99 | AE37: 626059 | AJ37: 27216 | AK37: A | AL37: X | AT37: V-9886.23 | AX37: X | BJ37: Horizontal | BK37: D-DRM-116757-307-07 SHT.1-7 | BL37: Unfired Pressure Vessels | BM37: SA-516-70N | BN37: 0.6250 IN | BO37: 3.2000 MM | BP37: 120.000 IN | BQ37: 10,973.0000 MM | BR37: SA-516-70N | BS37: 0.6250 IN | BT37: Ellipsoidal | BU37: SA-516-70N | BV37: 0.1250 IN | BW37: Ellipsoidal | BX37: 3.2000 MM | BY37: 161 PSI | BZ37: 320 DEGF | CA37: -20 DEGF | CB37: Saddles | CC37: 3.2000 MM | CD37: EMULSION | CE37: SOUR | CF37: Sour | CG37: YES | CH37: Partial | CI37: Yes | CJ37: NO | CK37: NONE | CL37: 150 | CM37: 41 | CN37: 0 EA | CO37: 3 EA | CP37: Portable | CQ37: NO | CR37: 2013.09.26 | CS37: None | CT37: 88.200 M3 | CU37: RT1 | CV37: 06-14-051-24W3-PI-20-A-0002-1 | DG37: SK | DH37: 2010 | DI37: INST | DJ37: ISF | DK37: FWKO, | DL37: 2014-06-06
A38: 66220691 | B38: D | C38: FWKO, V-241 | D38: VESS_PRESS | G38: 120 IN X 600 IN | J38: 5BLUE PROCESS EQUIPMENT | K38: CA | L38: 5B1093-08-DR20 | N38: 5B1093-20 | O38: 2013 | Q38: 2010 | T38: 611 | U38: Z | V38: V-241 | W38: 600 | X38: D-020-20 | Z38: H1-06-007-00001 | AA38: 66220694 | AB38: B | AC38: 0.99 | AE38: 627054 | AJ38: 29309 | AK38: A | AL38: X | AT38: W2232.23 | AX38: X | BJ38: Horizontal | BK38: 5B1093-08-DR-20 | BL38: Unfired Pressure Vessels | BM38: SA516-70N | BN38: 0.5000 IN | BO38: 0.0630 IN | BP38: 120.000 IN | BQ38: 50.0000 Foot | BR38: SA-516 70N | BS38: 1.1600 IN | BT38: Ellipsoidal | BU38: SA-516 70N | BV38: 0.4060 IN | BW38: Ellipsoidal | BX38: 0.0630 IN | BY38: 75 PSI | BZ38: 300 DEGF | CA38: -20 DEGF | CB38: Saddles | CC38: 0.0630 IN | CD38: EMULSION | CE38: SWEET | CF38: Sweet | CG38: NO | CH38: Partial | CI38: Partial | CJ38: Unknown | CK38: UNKNOWN | CL38: 150 | CM38: 61 | CN38: 2 EA | CO38: 3 EA | CP38: Portable | CQ38: YES | CR38: 2013.12.19 | CS38: None | CT38: 120.500 M3 | CU38: RT1 | CV38: 14-13-047-23W3-PI-0004-03 | DG38: SK | DH38: 2010 | DI38: ASEQ | DJ38: ISF | DK38: GOLDEN LAKE FACILITY 14-13-047-23W3 | DL38: 2014-06-06
A39: 1000001259 | B39: D | C39: FWKO, V-115 | D39: VESS_PRESS | J39: BARBER INDUSTRIES | K39: CA | N39: 3281-80-1 | O39: 1980 | Q39: 2010 | T39: 5M | U39: Z | V39: V-115 | W39: 500 | X39: D-020-20 | Z39: H1-05-003-00010 | AB39: C | AC39: 150000 | AE39: 92087 | AJ39: 368498 | AK39: A | AL39: X | AT39: 8666.3 | AX39: X | BJ39: Horizontal | BK39: VMO-8D-1-G | BL39: Unfired Pressure Vessels | BM39: SA516-70 | BN39: 9.5000 MM | BO39: 1.6000 MM | BP39: 3,048.000 MM | BQ39: 12.1920 M | BR39: SA516-70 | BS39: 14.3000 MM | BT39: Ellipsoidal | BU39: SA516-70 | BV39: 14.3000 MM | BW39: Ellipsoidal | BX39: 1.6000 MM | BY39: 518 KPA | BZ39: 176 CEL | CA39: -20 DEGF | CB39: Saddles | CC39: 1.6000 MM | CD39: EMULSION | CE39: SWEET | CF39: Sweet | CG39: YES | CH39: Partial | CI39: Partial | CJ39: Unknown | CK39: UNKNOWN | CL39: 150 | CM39: 55 | CN39: 3 EA | CO39: 3 EA | CP39: No | CQ39: YES | CR39: 2014.06.08 | CS39: None | CT39: 89.000 M3 | CU39: RT3 | CV39: 10-10-052-23W3-PI-0023-01 | DG39: SK | DH39: 2010 | DI39: INST | DJ39: SURP | DK39: CELTIC CLEANING PLANT 10-10-052-23W3 | DL39: 2014-08-05
A40: 1000001261 | B40: D | C40: FWKO | D40: VESS_PRESS | J40: C. E. NATCO | K40: CA | N40: L-10-195 | O40: 1983 | Q40: 2010 | T40: 5M | U40: Z | W40: 500 | X40: D-020-20 | Z40: H1-05-003-00010 | AB40: C | AC40: 150000 | AE40: 202716 | AJ40: 445759 | AK40: A | AL40: X | AT40: 9477.3 | AX40: X | BJ40: Horizontal | BK40: AA-4118-03 | BL40: Unfired Pressure Vessels | BM40: SA-516-70 | BN40: 0.5000 IN | BO40: 1.6000 MM | BP40: 10.000 Foot | BQ40: 60.0000 Foot | BR40: SA-516-70 | BS40: 17.5000 MM | BT40: Ellipsoidal | BU40: SA-516-70 | BV40: 14.3000 MM | BW40: Ellipsoidal | BX40: 1.6000 MM | BY40: 517 KPA | BZ40: 150 CEL | CA40: -20 DEGF | CB40: Saddles | CC40: 1.6000 MM | CD40: EMULSION | CE40: SWEET | CF40: Sweet | CG40: YES | CH40: Partial | CI40: Partial | CJ40: Unknown | CK40: UNKNOWN | CL40: 150 | CM40: 10 | CN40: 3 EA | CO40: 3 EA | CP40: No | CQ40: YES | CS40: None | CT40: 141.000 M3 | CU40: RT4 | CV40: AA-4118-03 | DG40: SK | DH40: 2010 | DI40: INST | DJ40: SURP | DK40: CELTIC CLEANING PLANT 10-10-052-23W3 | DL40: 2014-08-05
A41: 1000009984 | B41: D | C41: FWKO, 20-D-101 | D41: VESS_PRESS | G41: 21,336.00 MM | J41: THERMO DESIGN ENGINEERING | K41: CA | L41: HRF-10-ME-DR-0001 | N41: 3225 | O41: 2014 | Q41: 2010 | T41: 6R1 | U41: Z | V41: 20-D-101 | W41: 630 | X41: D-020-20 | Z41: H1-06-006-00020-000023-000001 | AB41: B | AC41: 150000 | AE41: 628933 | AJ41: 661668 | AK41: A | AL41: X | AT41: W4346.23 | AX41: X | BJ41: Horizontal | BK41: HRF-10-ME-DR-0001 REV. 1 | BL41: Unfired Pressure Vessels | BM41: SA-516-70N | BN41: 19.0000 MM | BO41: 3.2000 MM | BP41: 3,658.000 MM | BQ41: 21,336.0000 MM | BR41: SA-516-70N | BS41: 28.6000 MM | BT41: Ellipsoidal | BU41: SA-516-70N | BV41: 17.5000 MM | BW41: Ellipsoidal | BX41: 3.2000 MM | BY41: 1,000 KPA | BZ41: 183 CEL | CA41: -45 CEL | CB41: Saddles | CC41: 3.2000 MM | CD41: EMULSION | CE41: SOUR | CF41: Sour | CG41: YES | CH41: Partial | CI41: Partial | CJ41: Unknown | CK41: UNKNOWN | CL41: 150 | CM41: 12 | CN41: 2 EA | CO41: 3 EA | CP41: No | CQ41: NO | CR41: 2015.02.23 | CS41: Heat Treated | CT41: 238.000 M3 | CU41: RT1 | CV41: 11-03-048-21W3-PI-20-A-0004-1 | DG41: SK | DH41: 2010 | DI41: INST | DJ41: ISF | DK41: KNOCK OUT, FREE WATER | DL41: 2015-02-03
A42: 1000010662 | B42: D | C42: FWKO, 20-D-100 | D42: VESS_PRESS | G42: 21,336.00 MM | J42: THERMO DESIGN ENGINEERING | K42: CA | L42: HRF-10-ME-DR-0001 | N42: 3224 | O42: 2014 | Q42: 2010 | T42: 6R1 | U42: Z | V42: 20-D-100 | W42: 630 | X42: D-020-20 | Z42: H1-06-006-00020-000021-000001 | AB42: B | AC42: 150000 | AE42: 628934 | AJ42: 661667 | AK42: A | AL42: X | AT42: W4346.23 | AX42: X | BJ42: Horizontal | BK42: HRF-10-ME-DR-0001 REV.1 | BL42: Unfired Pressure Vessels | BM42: SA-516-70N | BN42: 19.0000 MM | BO42: 3.2000 MM | BP42: 3,658.000 MM | BQ42: 21.3360 M | BR42: SA-516-70N | BS42: 28.6000 MM | BT42: Ellipsoidal | BU42: SA-516-70N | BV42: 17.5000 MM | BW42: Ellipsoidal | BX42: 3.2000 MM | BY42: 1,000 KPA | BZ42: 183 CEL | CA42: -45 CEL | CB42: Saddles | CC42: 3.2000 MM | CD42: EMULSION | CE42: SOUR | CF42: Sour | CG42: YES | CH42: Partial | CI42: Partial | CJ42: Unknown | CK42: UNKNOWN | CL42: 150 | CM42: 12 | CN42: 2 EA | CO42: 3 EA | CP42: Portable | CQ42: YES | CR42: 2015.02.23 | CS42: Heat Treated | CT42: 238.000 M3 | CU42: RT1 | CV42: 11-03-048-21W3-PI-20-A-0002-1 | DG42: SK | DH42: 2010 | DI42: INST | DJ42: ISF | DK42: KNOCK OUT, FREE WATER | DL42: 2015-03-03
A43: 1000018315 | B43: D | C43: FWKO | D43: VESS_PRESS | J43: THERMO DESIGN ENGINEERING | K43: CA | N43: 3642 | O43: 2014 | Q43: 2010 | T43: 5E1 | U43: Z | V43: 20-D-100 | W43: 540 | X43: D-020-20 | Z43: H1-05-006-00020-000021-000001 | AB43: A | AC43: 0.99 | AE43: 645785 | AJ43: 663436 | AK43: A | AL43: X | AT43: W4346.23 | BJ43: Horizontal | BK43: HUB-411-ME-DR-0001 | BL43: Unfired Pressure Vessels | BM43: SA-516-70N | BN43: 19.0000 MM | BO43: 3.2000 MM | BP43: 3,658.000 MM | BQ43: 21,336.0000 MM | BR43: SA-516-70N | BS43: 17.5000 MM | BT43: Ellipsoidal | BU43: SA-516-70N | BV43: 28.6000 MM | BW43: Ellipsoidal | BX43: 3.2000 MM | BY43: 1,000 KPA | BZ43: 183 CEL | CA43: -45 CEL | CB43: Saddles | CC43: 3.2000 MM | CD43: EMULSION | CE43: SOUR | CF43: Sour | CG43: NO | CH43: Partial | CI43: Yes | CJ43: NO | CK43: NONE | CL43: 150 | CM43: 25 | CN43: 2 EA | CO43: 3 EA | CP43: Portable | CQ43: NO | CR43: 2015.07.15 | CS43: Heat Treated | CT43: 238.000 M3 | CU43: RT1 | CV43: PI-20-A-0002-1 | DG43: SK | DH43: 2010 | DI43: INST | DJ43: ISF | DK43: FWKO | DL43: 2015-09-02
A44: 1000018319 | B44: D | C44: FWKO | D44: VESS_PRESS | J44: THERMO DESIGN ENGINEERING | K44: CA | N44: 3641 | O44: 2014 | Q44: 2010 | T44: 5E1 | U44: Z | V44: 20-D-101 | W44: 540 | X44: D-020-20 | Z44: H1-05-006-00020-000023-000001 | AB44: A | AC44: 0.99 | AE44: 645782 | AJ44: 663434 | AK44: A | AL44: X | AT44: W4346.23 | AX44: X | BJ44: Horizontal | BK44: HRF10-ME-DR-0001 | BL44: Unfired Pressure Vessels | BM44: SA-516-70N | BN44: 19.0000 MM | BO44: 3.2000 MM | BP44: 3,658.000 MM | BQ44: 21,336.0000 MM | BR44: SA-516-70N | BS44: 17.5000 MM | BT44: Ellipsoidal | BU44: SA-516-70N | BV44: 28.6000 MM | BW44: Ellipsoidal | BX44: 3.2000 MM | BY44: 1,000 KPA | BZ44: 183 CEL | CA44: -45 CEL | CB44: Saddles | CC44: 3.2000 MM | CD44: EMULSION | CE44: SOUR | CF44: Sour | CG44: YES | CH44: Partial | CI44: Yes | CJ44: NO | CK44: NONE | CL44: 150 | CM44: 25 | CN44: 2 EA | CO44: 3 EA | CP44: Portable | CQ44: NO | CR44: 2015.10.15 | CS44: Heat Treated | CT44: 238.000 M3 | CU44: RT1 | CV44: PI-20-A-0002-3 | DG44: SK | DH44: 2010 | DI44: INST | DJ44: ISF | DK44: FWKO | DL44: 2015-09-02
A45: 1000026897 | B45: D | C45: FWKO | D45: VESS_PRESS | J45: THERMO DESIGN ENGINEERING | K45: CA | N45: 3652 | O45: 2015 | Q45: 2010 | T45: 5V1 | U45: Z | V45: 20-D-100 | W45: 550 | X45: D-020-20 | Z45: H1-05-008-00020-000021-000001 | AB45: A | AC45: 0.99 | AE45: 644677 | AJ45: 664923 | AK45: A | AL45: X | AT45: W4346.23 | AX45: X | BJ45: Horizontal | BK45: HRF-10-ME-DR-0001/1.1,1.2&2.2 | BL45: Unfired Pressure Vessels | BM45: SA-516-70N | BN45: 19.0000 MM | BO45: 3.2000 MM | BP45: 3,658.000 MM | BQ45: 21,336.0000 MM | BR45: SA-516-70N | BS45: 17.5000 MM | BT45: Ellipsoidal | BU45: SA-516-70N | BV45: 28.6000 MM | BW45: Ellipsoidal | BX45: 3.2000 MM | BY45: 1,000 KPA | BZ45: 183 CEL | CA45: -45 CEL | CB45: Saddles | CC45: 3.2000 MM | CD45: EMULSION | CE45: SOUR | CF45: Sour | CG45: NO | CH45: Partial | CI45: Yes | CJ45: NO | CK45: NONE | CL45: 150 | CM45: 66 | CN45: 2 EA | CO45: 3 EA | CP45: Portable | CQ45: NO | CR45: 2015.12.09 | CS45: Heat Treated | CT45: 238.000 M3 | CU45: RT1 | CV45: PI-20-A-0002-1 | DG45: SK | DH45: 2010 | DI45: INST | DJ45: ISF | DK45: FWKO | DL45: 2016-01-29
A46: 1000026958 | B46: D | C46: FWKO, | D46: VESS_PRESS | J46: THERMO DESIGN ENGINEERING | K46: CA | N46: 3651 | O46: 2015 | Q46: 2010 | T46: 5V1 | U46: Z | V46: 20-D-101 | W46: 550 | X46: D-020-20 | Z46: H1-05-008-00020-000023-000001 | AB46: A | AC46: 0.99 | AE46: 644660 | AJ46: 664922 | AK46: A | AL46: X | AT46: W4346.23 | AX46: X | BJ46: Horizontal | BK46: HRF-10-ME-DR-0001/1.1,1.2&2.2 | BL46: Unfired Pressure Vessels | BM46: SA-516-70N | BN46: 19.0000 MM | BO46: 3.2000 MM | BP46: 3,658.000 MM | BQ46: 21,336.0000 MM | BR46: SA-516-70N | BS46: 17.5000 MM | BT46: Ellipsoidal | BU46: SA-516-70N | BV46: 28.6000 MM | BW46: Ellipsoidal | BX46: 3.2000 MM | BY46: 1,000 KPA | BZ46: 183 CEL | CA46: -45 CEL | CB46: Saddles | CC46: 3.2000 MM | CD46: EMULSION | CE46: SOUR | CF46: Sour | CG46: NO | CH46: Partial | CI46: Yes | CJ46: NO | CK46: NONE | CL46: 150 | CM46: 66 | CN46: 2 EA | CO46: 3 EA | CP46: Portable | CQ46: NO | CR46: 2015.12.09 | CS46: Heat Treated | CT46: 238.000 M3 | CU46: RT1 | CV46: PI-20-A-0002-3 | DG46: SK | DH46: 2010 | DI46: INST | DJ46: ISF | DK46: FWKO | DL46: 2016-02-01
A47: 1000027120 | B47: D | C47: FWKO | D47: VESS_PRESS | J47: PROPAK SYSTEMS | K47: CA | N47: 141104-343-01 | O47: 2015 | Q47: 2010 | T47: 5W1 | U47: Z | V47: 20-D-100 | W47: 545 | X47: D-020-20 | Z47: H1-05-009-00020-000021-000001 | AB47: A | AC47: 0.99 | AE47: 652500 | AJ47: 665851 | AK47: A | AL47: X | AT47: A7828.32 | AX47: X | BJ47: Horizontal | BK47: D-DRM-141104-343-01 | BL47: Unfired Pressure Vessels | BM47: SA-516-70N | BN47: 0.6250 IN | BO47: 0.1250 IN | BP47: 120.000 IN | BQ47: 42.0000 Foot | BR47: SA-516-70N | BS47: 0.6875 IN | BT47: Ellipsoidal | BU47: SA-516-70N | BV47: 0.6875 IN | BW47: Ellipsoidal | BX47: 0.1250 IN | BY47: 161 PSI | BZ47: 356 DEGF | CA47: -20 DEGF | CB47: Saddles | CC47: 0.1250 IN | CD47: EMULSION | CE47: SOUR | CF47: Sour | CG47: YES | CH47: Partial | CI47: Yes | CJ47: NO | CK47: NONE | CL47: 150 | CM47: 40 | CN47: 2 EA | CO47: 3 EA | CP47: Portable | CQ47: NO | CR47: 2016.03.23 | CS47: Heat Treated | CT47: 238.000 M3 | CU47: RT1 | CV47: PI-20-A-0002-1 | DG47: SK | DH47: 2010 | DI47: INST | DJ47: ISF | DK47: FWKO | DL47: 2016-02-03
A48: 1000051967 | B48: D | C48: FWKO, | D48: VESS_PRESS | G48: 12 FT X 80 FT | J48: BROMLEY MECHANICAL SERVICES | K48: CA | N48: 633653 | O48: 2017 | Q48: 2010 | T48: 317 | U48: Z | V48: V-641 | W48: 300 | X48: D-020-20 | Z48: H1-03-001-40012 | AB48: A | AC48: 415795.05 | AE48: 667394 | AJ48: 670852 | AK48: A | AL48: X | AT48: Y3308.23 | AX48: X | BJ48: Horizontal | BK48: 35388-REG REV 1 | BL48: Unfired Pressure Vessels | BM48: SA516-70N | BN48: 0.6250 IN | BO48: 0.6250 IN | BP48: 12.000 Foot | BQ48: 80.0000 Foot | BR48: SA-516-70N | BS48: 0.6875 IN | BT48: Ellipsoidal | BU48: SA-516-70N | BV48: 0.6250 IN | BW48: Ellipsoidal | BX48: 0.6250 IN | BY48: 75 PSI | BZ48: 200 DEGF | CA48: -20 DEGF | CB48: Saddles | CC48: 0.6250 IN | CD48: EMULSION | CE48: SWEET | CF48: Sweet | CG48: YES | CH48: Partial | CI48: No | CJ48: YES | CK48: PAINT | CL48: 150 | CM48: 58 | CN48: 2 EA | CO48: 3 EA | CP48: No | CQ48: NO | CS48: None | CT48: 270.080 M3 | CU48: None | CV48: NO HUSKY DRAWING AVAILABLE | DH48: 2010 | DI48: INST | DJ48: ISF | DK48: 08-01-050-27W3 (G) PAD | DL48: 2017-04-18
A49: 1000080636 | B49: D | C49: FWKO, | D49: VESS_PRESS | E49: 67000 | F49: KG | G49: 21366 MM | J49: TDE | K49: CA | L49: CUSTOM | N49: 3742 | O49: 2017 | Q49: 2010 | U49: Z | V49: 20-D-100 | W49: 634 | X49: D-020-20 | Z49: H1-06-011-00020-000021-000001 | AB49: B | AC49: 0.99 | AE49: 609449 | AJ49: 673501 | AL49: X | AT49: W4346.23 | BJ49: Horizontal | BK49: HUE-411-ME-DR-0001 | BL49: Unfired Pressure Vessels | BM49: SA-516-70N | BN49: 19.0000 MM | BO49: 3.2000 MM | BP49: 3,658.000 MM | BQ49: 21,336.0000 MM | BR49: SA-516-70N | BS49: 17.5000 MM | BT49: Ellipsoidal | BU49: SA-516-70N | BV49: 28.6000 MM | BW49: Ellipsoidal | BX49: 3.2000 MM | BY49: 1,000 KPA | BZ49: 183 CEL | CA49: -45 CEL | CC49: 3.2000 MM | CD49: EMULSION | CT49: 238.000 M3 | CU49: RT1 | CV49: PI-20-A-0002-1 | DG49: SK | DH49: 2010 | DI49: INST | DJ49: ISF | DK49: FWKO | DL49: 2018-02-27
A50: 1000080637 | B50: D | C50: FWKO, | D50: VESS_PRESS | E50: 67000 | F50: KG | J50: TDE | K50: CA | L50: CUSTOM | N50: 3743 | O50: 2017 | Q50: 2010 | U50: Z | V50: 20-D-101 | W50: 634 | X50: D-020-20 | Z50: H1-06-011-00020-000023-000001 | AB50: A | AC50: 0.99 | AE50: 609450 | AJ50: 673497 | AT50: W4346.23 | BJ50: Horizontal | BL50: Unfired Pressure Vessels | BM50: SA-516-70N | BN50: 19.0000 MM | BO50: 3.2000 MM | BP50: 3,658.000 MM | BQ50: 21,336.0000 MM | BR50: SA-516-70N | BS50: 17.5000 MM | BT50: Ellipsoidal | BU50: SA-516-70N | BV50: 28.6000 MM | BW50: Ellipsoidal | BX50: 3.2000 MM | BY50: 1,000 KPA | BZ50: 183 CEL | CA50: -45 CEL | CC50: 3.2000 MM | CD50: EMULSION | CT50: 238.000 M3 | CU50: RT1 | CV50: PI-20-A-0002-3 | DG50: SK | DH50: 2010 | DI50: INST | DJ50: ISF | DK50: FWKO | DL50: 2018-02-27

Sheet Flare
A1: Equipment | B1: Equipment category | C1: Description of technical object | D1: Technical obj. type | E1: Gross Weight | F1: Weight unit | G1: Size/dimension | H1: Inventory number | I1: Start-up date | J1: Manufacturer of asset | K1: Country of manufact. | L1: Model number | M1: Manufacturer part number | N1: ManufactSerialNumber | O1: Construction year | P1: Construction month | Q1: Maintenance plant | R1: Location | S1: Room | T1: Plant section | U1: ABC indicator | V1: Tag Number | W1: Planner group | X1: Catalog profile | Y1: Technical identification no. | Z1: Functional Location | AA1: Superord. Equipment | AB1: Condition Code | AC1: Equipment replacement value | AD1: Owning Cost Center | AE1: Alberta Provincial Registration Number | AF1: AB Regulatory Fee | AG1: British Columbia Provincial Registration | AH1: BC Regulatory Fee | AI1: B.C. PST Indicator | AJ1: Saskatchewan Provincial Registration Nu | AK1: SK Regulatory Fee | AL1: Saskatchewan PST Indicator | AM1: Manitoba Provincial Registration Number | AN1: MB Regulatory Fee | AO1: Manitoba PST Indicator | AP1: Ontario Provincial Registration Number | AQ1: ON Regulatory Fee | AR1: NL REG NO | AS1: NL Regulatory Fee | AT1: CRN | AU1: National Board No. | AV1: CSA Cat. H Fitting | AW1: ASME UM Vessel | AX1: MDR Attached | AY1: Cust. Warranty Start | AZ1: Cust. warranty end | BA1: Cus. master warranty | BB1: Customer | BC1: Customer | BD1: Vendor Wrty Start | BE1: Vendor warranty end | BF1: Ven. master warranty | BG1: Vendor | BH1: Vendor | BI1: Class | BJ1: Assist Gas | BK1: Burner Count | BL1: Current Fluid Service | BM1: Data Validation Completed | BN1: Design Flow Volume | BO1: Design Max Temp | BP1: Flame Arrestors Present | BQ1: Flame Detectors Present | BR1: Igniter Type | BS1: Ladder Attached | BT1: Last Inspection Date | BU1: Length | BV1: Manufacturer Drawing Number | BW1: Maximum Noise Level | BX1: Min. Design Metal Temp - MDMT | BY1: Orientation | BZ1: P&ID Drawing Number | CA1: Painted or Primed | CB1: Part of a Package | CC1: Pilot Fuel Type | CD1: Smokeless | CE1: Stack Diameter | CF1: Stack Height Above Grade | CG1: Stack Material | CH1: Stack Support Type | CI1: Stack Tip Diameter | CJ1: Stack Type | CK1: Utilities Required | DG1: Region | DH1: Planning plant | DI1: System status | DJ1: User Status | DK1: Description of functional location | DL1: Created on
A2: =OFFSET(A2,-1,0,1,1)=OFFSET(A2,3,0,1,1) -> TRUE | B2: =OFFSET(B2,-1,0,1,1)=OFFSET(B2,3,0,1,1) -> TRUE | C2: TRUE | D2: TRUE | E2: TRUE | F2: TRUE | G2: TRUE | H2: TRUE | I2: TRUE | J2: TRUE | K2: TRUE | L2: TRUE | M2: TRUE | N2: TRUE | O2: TRUE | P2: TRUE | Q2: TRUE | R2: TRUE | S2: TRUE | T2: TRUE | U2: TRUE | V2: TRUE | W2: TRUE | X2: TRUE | Y2: TRUE | Z2: TRUE | AA2: TRUE | AB2: TRUE | AC2: TRUE | AD2: TRUE | AE2: TRUE | AF2: TRUE | AG2: TRUE | AH2: TRUE | AI2: TRUE | AJ2: TRUE | AK2: TRUE | AL2: TRUE | AM2: TRUE | AN2: TRUE | AO2: TRUE | AP2: TRUE | AQ2: TRUE | AR2: TRUE | AS2: TRUE | AT2: TRUE | AU2: TRUE | AV2: TRUE | AW2: TRUE | AX2: TRUE | AY2: TRUE | AZ2: TRUE | BA2: TRUE | BB2: TRUE | BC2: TRUE | BD2: TRUE | BE2: TRUE | BF2: TRUE | BG2: TRUE | BH2: TRUE | BI2: FALSE | BJ2: TRUE | BK2: TRUE | BL2: TRUE | BM2: TRUE | BN2: =OFFSET(BN2,-1,0,1,1)=OFFSET(BN2,3,0,1,1) -> TRUE | BO2: TRUE | BP2: TRUE | BQ2: TRUE | BR2: TRUE | BS2: TRUE | BT2: TRUE | BU2: TRUE | BV2: TRUE | BW2: TRUE | BX2: TRUE | BY2: TRUE | BZ2: TRUE | CA2: TRUE | CB2: TRUE | CC2: TRUE | CD2: TRUE | CE2: TRUE | CF2: TRUE | CG2: TRUE | CH2: TRUE | CI2: TRUE | CJ2: TRUE | CK2: TRUE | CL2: TRUE | CM2: TRUE | CN2: TRUE | CO2: TRUE | CP2: TRUE | CQ2: TRUE | CR2: TRUE | CS2: TRUE | CT2: TRUE | CU2: TRUE | CV2: TRUE | CW2: TRUE | CX2: TRUE | CY2: TRUE | CZ2: TRUE | DA2: TRUE | DB2: TRUE | DC2: TRUE | DD2: TRUE | DE2: TRUE | DF2: TRUE | DG2: TRUE | DH2: TRUE | DI2: TRUE | DJ2: TRUE | DK2: TRUE | DL2: TRUE
BI3: Class | BJ3: =MATCH(BJ5,$BJ$1:$DG$1,0) -> 1 | BK3: 2 | BL3: 3 | BM3: 4 | BN3: 5 | BO3: 6 | BP3: 7 | BQ3: 8 | BR3: 9 | BS3: 10 | BT3: 11 | BU3: 12 | BV3: 13 | BW3: 14 | BX3: 15 | BY3: 16 | BZ3: 17 | CA3: 18 | CB3: 19 | CC3: 20 | CD3: 21 | CE3: 22 | CF3: 23 | CG3: 24 | CH3: 25 | CI3: 26 | CJ3: 27 | CK3: 28
A5: Equipment | B5: Equipment category | C5: Description of Technical Object | D5: Technical obj. type | E5: Gross Weight | F5: Weight unit | G5: Size/dimension | H5: Inventory number | I5: Start-up date | J5: Manufacturer of asset | K5: Country of manufact. | L5: Model number | M5: Manufacturer part number | N5: ManufactSerialNumber | O5: Construction year | P5: Construction month | Q5: Maintenance plant | R5: Location | S5: Room | T5: Plant section | U5: ABC indicator | V5: Tag Number | W5: Planner group | X5: Catalog profile | Y5: Technical identification no. | Z5: Functional Location | AA5: Superord. Equipment | AB5: Condition Code | AC5: Equipment replacement value | AD5: Owning Cost Center | AE5: Alberta Provincial Registration Number | AF5: AB Regulatory Fee | AG5: British Columbia Provincial Registration | AH5: BC Regulatory Fee | AI5: B.C. PST Indicator | AJ5: Saskatchewan Provincial Registration Nu | AK5: SK Regulatory Fee | AL5: Saskatchewan PST Indicator | AM5: Manitoba Provincial Registration Number | AN5: MB Regulatory Fee | AO5: Manitoba PST Indicator | AP5: Ontario Provincial Registration Number | AQ5: ON Regulatory Fee | AR5: NL REG NO | AS5: NL Regulatory Fee | AT5: CRN | AU5: National Board No. | AV5: CSA Cat. H Fitting | AW5: ASME UM Vessel | AX5: MDR Attached | AY5: Cust. Warranty Start | AZ5: Cust. warranty end | BA5: Cus. master warranty | BB5: Customer | BC5: Customer | BD5: Vendor Wrty Start | BE5: Vendor warranty end | BF5: Ven. master warranty | BG5: Vendor | BH5: Vendor | BI5: 30 Characters | BJ5: Assist Gas | BK5: Burner count | BL5: Current Fluid Service | BM5: Data Validation Completed | BN5: Design Flow volume | BO5: Design Max Temp | BP5: Flame Arrestors Present | BQ5: Flame Detectors Present | BR5: Igniter Type | BS5: Ladder Attached | BT5: Last Inspection Date | BU5: Length | BV5: Manufacturer Drawing Number | BW5: Maximum noise level | BX5: Min. Design Metal Temp - MDMT | BY5: Orientation | BZ5: P&ID Drawing Number | CA5: Painted or Primed | CB5: Part of a Package | CC5: Pilot Fuel Type | CD5: Smokeless | CE5: Stack Diameter | CF5: Stack Height Above Grade | CG5: Stack Material | CH5: Stack Support Type | CI5: Stack tip diameter | CJ5: Stack Type | CK5: Utilities Required | DG5: Region | DH5: Planning plant | DI5: System status | DJ5: User Status | DK5: Description of functional location | DL5: Created on
A6: 60000672 | B6: D | C6: STACK REFORMER FOR PK-001 | D6: FIRED EQ | F6: KG | J6: KINETICS TECHNOLOGY | Q6: 2032 | U6: E | V6: 30-Z-004 | W6: UTL | X6: D-011-01 | Z6: U1-01-002-10030-SAP003-00Z004 | AB6: B | AC6: 0.99 | AK6: E | AL6: X | DG6: SK | DH6: 2032 | DI6: INST | DJ6: ISF | DK6: 30-Z-004 REFORMER STACK | DL6: 2014-06-06
A7: 60000965 | B7: D | C7: STACK SMOKELESS FLARE | D7: FIRED EQ | F7: KG | J7: JOHN ZINK | Q7: 2032 | S7: SCE_007 | U7: A | V7: 76-Z-004 | W7: UTL | X7: D-011-01 | Z7: U1-01-002-10076-76FLAR-KAP004-0076Z004 | AB7: B | AC7: 0.99 | AK7: E | AL7: X | DG7: SK | DH7: 2032 | DI7: INST | DJ7: ISF | DK7: 76-Z-004 SMOKELESS FLARE STACK | DL7: 2014-06-06
A8: 60000966 | B8: D | C8: STACK NON SMOKELESS FLARE | D8: FIRED EQ | F8: KG | J8: JOHN ZINK | Q8: 2032 | S8: SCE_007 | U8: A | V8: 76-Z-005 | W8: UTL | X8: D-011-01 | Z8: U1-01-002-10076-76FLAR-KAP003-0076Z005 | AB8: B | AC8: 0.99 | AK8: E | AL8: X | DG8: SK | DH8: 2032 | DI8: INST | DJ8: ISF | DK8: 76-Z-005 NON-SMOKELESS FLARE STACK | DL8: 2014-06-06
A9: 60001270 | B9: D | C9: STACK FOR BOILER 1 | D9: FIRED EQ | F9: KG | Q9: 2032 | U9: E | V9: 71-Z-108 | W9: UTL | X9: D-011-01 | Z9: U1-01-002-10071-BOILER-00Z108 | AB9: B | AC9: 0.99 | AK9: E | AL9: X | DG9: SK | DH9: 2032 | DI9: INST | DJ9: ISF | DK9: 71-Z-108 STACK | DL9: 2014-06-06
A10: 60001271 | B10: D | C10: STACK FOR BOILER 2 | D10: FIRED EQ | F10: KG | Q10: 2032 | U10: E | V10: 71-Z-109 | W10: UTL | X10: D-011-01 | Z10: U1-01-002-10071-BOILER-00Z109 | AB10: B | AC10: 0.99 | AK10: E | AL10: X | DG10: SK | DH10: 2032 | DI10: INST | DJ10: ISF | DK10: 71-Z-109 STACK | DL10: 2014-06-06
A11: 60001272 | B11: D | C11: STACK FOR BOILER 3 | D11: FIRED EQ | F11: KG | Q11: 2032 | U11: E | V11: 71-Z-110 | W11: UTL | X11: D-011-01 | Z11: U1-01-002-10071-BOILER-00Z110 | AB11: B | AC11: 0.99 | AK11: E | AL11: X | DG11: SK | DH11: 2032 | DI11: INST | DJ11: ISF | DK11: 71-Z-110 STACK | DL11: 2014-06-06
A12: 60001771 | B12: D | C12: STACK FLARE | D12: FIRED EQ | F12: KG | J12: JOHN ZINK | Q12: 2032 | S12: SCE_007 | U12: A | V12: 50-Z-001 | W12: UTL | X12: D-011-01 | Z12: U1-01-002-10050-MAP005-00Z001 | AB12: B | AC12: 0.99 | AK12: E | AL12: X | BO12: 150 CEL | DG12: SK | DH12: 2032 | DI12: INST | DJ12: ISF | DK12: 50-Z-001 FLARE STACK | DL12: 2014-06-06
A13: 60097603 | B13: D | C13: STACK DRYER DDGS | D13: FIRED EQ | H13: 88-ST-670 | J13: MEC COMPANY | M13: 626-LM-6-D51 | Q13: 2023 | U13: Z | V13: 88-ST-670 | W13: LEP | X13: D-011-01 | Z13: E1-01-001-00600-000001 | AB13: A | AC13: 150000 | AK13: E | DG13: SK | DH13: 2023 | DI13: INST | DJ13: ISF | DK13: DRYERS & COOLERS | DL13: 2014-06-06
A14: 61000186 | B14: D | C14: STACK, FLARE, M-552 | D14: FIRED EQ | F14: KG | H14: R01-M-552 | J14: NATIONAL AIROIL BURNER | K14: CA | O14: 1981 | P14: 12 | Q14: 2025 | R14: R01 | U14: Z | V14: R01-M-552 | W14: REF | X14: D-011-01 | Z14: R2-01-001-00001-XX5013-000001 | AB14: B | AC14: 0.99 | BR14: AUTOMATIC | DG14: AB | DH14: 2025 | DI14: INST | DJ14: ISF | DK14: PID-5013-01 | DL14: 2014-06-06
A15: 61003996 | B15: D | C15: STACK, REGENERATIVE THERMAL OXIDIZER | D15: FIRED EQ | I15: 2010-05-10 | J15: AIR CLEAR | Q15: 2025 | U15: C | V15: R02-M-774 | W15: REF | X15: D-011-01 | Z15: R2-01-002-00004 | AA15: 61003993 | AB15: B | AC15: 0.99 | DG15: AB | DH15: 2025 | DI15: ASEQ | DJ15: ISF | DK15: BULK LOADING & SHIPPING | DL15: 2014-06-06
A16: 62042013 | B16: D | C16: STACK, FLARE TORNADO TEIS-C24 | D16: FIRED EQ | H16: 110758 | J16: TORNADO COMBUSTION TECHNOLOGI> | L16: TEIS-C24 | N16: 0104085 | Q16: 2010 | T16: 3T | U16: Z | W16: 300 | X16: D-011-01 | Z16: H1-03-003-00003 | AB16: B | AC16: 0.99 | AL16: X | BR16: ELECTRIC | DG16: SK | DH16: 2010 | DI16: INST | DJ16: ISF | DK16: TANGLEFLAGS 13-36 BATTERY | DL16: 2014-06-06
A17: 62042168 | B17: D | C17: STACK, FLARE, TORNADO | D17: FIRED EQ | H17: 111022 | J17: TORNADO COMBUSTION TECHNOLOGI> | N17: 990716 | Q17: 2010 | T17: 6L | U17: Z | W17: 600 | X17: D-011-01 | Z17: H1-06-002-00002 | AB17: B | AC17: 0.99 | AL17: X | BR17: TEIS-C110VAC | CE17: 4.0000 IN | CG17: SA106B | CH17: Self Supporting | DG17: SK | DH17: 2010 | DI17: INST | DJ17: ISF | DK17: LASHBURN 02-02 BATTERY | DL17: 2014-06-06
A18: 62042405 | B18: D | C18: STACK, BATTERY FLARE | D18: FIRED EQ | H18: 111826 | Q18: 2010 | T18: 1B | U18: Z | W18: 100 | X18: D-011-01 | Z18: H1-01-001-00002 | AB18: B | AC18: 0.99 | BR18: ELECTRIC | CE18: 8.0000 IN | DG18: AB | DH18: 2010 | DI18: INST | DJ18: ISF | DK18: BLACKFOOT 13-30-050-01W4 BATTERY 2 | DL18: 2014-06-06
A19: 62043505 | B19: D | C19: STACK, BATTERY FLARE STACK TORNADO | D19: FIRED EQ | H19: 111205 | J19: TORNADO COMBUSTION TECHNOLOGI> | N19: 970411 | Q19: 2010 | T19: 5M | U19: Z | W19: 500 | X19: D-011-01 | Z19: H1-05-002-00002 | AB19: B | AC19: 0.99 | AL19: X | BR19: TE1S C110 | CA19: YES | CE19: 10.0000 IN | CG19: SA106-B | CH19: Self Supporting | DG19: SK | DH19: 2010 | DI19: INST | DJ19: ISF | DK19: MERVIN 01-35 BATTERY | DL19: 2014-06-06
A20: 62044103 | B20: D | C20: STACK, FLARE STACK FORNADO FLARE SYST. | D20: FIRED EQ | H20: 111408 | J20: TORNADO COMBUSTION TECHNOLOGI> | N20: 970412 | Q20: 2010 | T20: 1M | U20: Z | W20: 100 | X20: D-011-01 | Z20: H1-01-005-00005 | AB20: B | AC20: 0.99 | BR20: TE1SC110 | CA20: YES | CE20: 10.0000 IN | CG20: SA-106B | CH20: Self Supporting | DH20: 2010 | DI20: INST | DJ20: ISF | DK20: MARWAYNE 01-26 BATTERY | DL20: 2014-06-06
A21: 62060328 | B21: D | C21: STACK, TORNADO | D21: FIRED EQ | H21: 165008 | J21: TORNADO COMBUSTION TECHNOLOGI> | N21: 4479 | Q21: 2010 | T21: 6S1 | U21: Z | W21: 620 | X21: D-011-01 | Z21: H1-06-005-00001 | AB21: B | AC21: 0.99 | AL21: X | BR21: 12V COIL | BU21: 12.0000 M | CA21: YES | CE21: 6.0000 IN | CG21: SA106B | CH21: Self Supporting | DG21: SK | DH21: 2010 | DI21: INST | DJ21: SURP | DK21: PIKES PEAK SOUTH 01-12-049-24W3 BATTERY | DL21: 2014-06-06
A22: 62063418 | B22: D | C22: STACK, FLARE GAS | D22: FIRED EQ | Q22: 2010 | T22: 6P4 | U22: Z | V22: F-105 | W22: 610 | X22: D-011-01 | Z22: H1-06-004-00004 | AB22: B | AC22: 0.99 | AL22: X | BJ22: Yes | BL22: Sour | BP22: Yes | BY22: Vertical | BZ22: 07-06-050-23W3-PI-3363-01 | CB22: No | CC22: FUEL GAS | CD22: No | CJ22: Single | CK22: FUEL GAS | DG22: SK | DH22: 2010 | DI22: INST | DJ22: ISF | DK22: E6 B07-06 TEST FACILITY | DL22: 2014-06-06
A23: 63200011 | B23: D | C23: STACK, FLARE | D23: FIRED EQ | G23: 1 | Q23: 2006 | R23: BRAZEAU | T23: 008 | U23: Z | V23: 08-26BRA-1402 | W23: NBL | X23: D-011-01 | Z23: W3-01-003-00004-000002-000001 | AA23: 63209716 | AB23: C | AC23: 0.99 | BY23: Vertical | CH23: Self Supporting | DG23: AB | DH23: 2006 | DI23: ASEQ | DJ23: SURP | DK23: 100/08-26-046-15W5/00 | DL23: 2014-06-06
A24: 63200048 | B24: D | C24: STACK, FLARE | D24: FIRED EQ | G24: 1 | H24: 110-1414 | Q24: 2006 | R24: BRAZEAU | T24: 008 | U24: Z | V24: 14-31BRA-1402 | W24: NBL | X24: D-011-01 | Z24: W3-01-003-00001-000013-000001 | AB24: B | AC24: 0.99 | CA24: YES | DG24: AB | DH24: 2006 | DI24: INST | DJ24: SURP | DK24: 100/14-31-045-15W5/00 | DL24: 2014-06-06
A25: 63207849 | B25: D | C25: STACK, FLARE | D25: FIRED EQ | G25: 6" X 50' | J25: PYRAMID PROCESS FABRICATORS | L25: NO DATA PLATE | N25: 1486 | Q25: 2006 | R25: BRAZEAU | T25: 008 | U25: Z | V25: 12-02BRA-1402 | W25: NBL | X25: D-011-01 | Z25: W3-01-003-00001-000021-000002 | AA25: 63223711 | AB25: B | AC25: 9150 | BR25: ELECTRIC | BU25: 50.0000 Foot | BY25: Vertical | CA25: YES | CE25: 10.0000 IN | DG25: AB | DH25: 2006 | DI25: ASEQ | DJ25: ISF | DK25: 100/12-02-046-16W5/03 | DL25: 2014-06-06
A26: 63214260 | B26: D | C26: STACK, FLARE | D26: FIRED EQ | G26: 1 | Q26: 2006 | R26: FERRIER | U26: Z | V26: 07-05FER-1401 | W26: FLD | X26: D-011-01 | Z26: W3-01-009-00001-000020-000001 | AA26: 63216096 | AB26: B | AC26: 0.99 | BU26: 50.0000 Foot | CE26: 4.0000 IN | DG26: AB | DH26: 2006 | DI26: ASEQ | DJ26: ISF | DK26: 102/07-05-041-09W5/00 | DL26: 2014-06-06
A27: 63214292 | B27: D | C27: STACK, FLARE | D27: FIRED EQ | G27: 1 | J27: MACTRONIC | L27: u | N27: 6085B600402 | Q27: 2006 | R27: STRACHAN | U27: Z | V27: 10-28STR-1402 | W27: FLD | X27: D-011-01 | Z27: W3-01-007-00003-000002-000001 | AB27: C | AC27: 0.99 | CG27: SA-106-B | CI27: 4.0000 IN | DG27: AB | DH27: 2006 | DI27: INST | DJ27: SURP | DK27: 102/10-28-037-09W5/00 | DL27: 2014-06-06
A28: 63214333 | B28: D | C28: STACK, FLARE | D28: FIRED EQ | G28: 1 | J28: TORNADO COMBUSTION TECHNOLOGI> | L28: SSFS | N28: 98-0667 | Q28: 2006 | R28: BRAZEAU | T28: 008 | U28: Z | V28: 07-32BRA-1402 | W28: NBL | X28: D-011-01 | Z28: W3-01-003-00001-000014-000001 | AA28: 63209742 | AB28: B | AC28: 0.99 | BR28: TE1S CS12VDC | CE28: 4.0000 IN | CG28: SA-106-B | DG28: AB | DH28: 2006 | DI28: ASEQ | DJ28: ISF | DK28: 100/07-32-045-15W5/00 | DL28: 2014-06-06
A29: 63215299 | B29: D | C29: STACK, FLARE | D29: FIRED EQ | G29: 1 | Q29: 2006 | R29: DEANNE | U29: Z | V29: 03-06DEA-18-1401 | W29: FLD | X29: D-011-01 | Z29: W3-01-007-00003-000013-000001 | AB29: B | AC29: 0.99 | DG29: AB | DH29: 2006 | DI29: INST | DJ29: ISF | DK29: 100/03-06-039-11W5/00 WELL | DL29: 2014-06-06
A30: 63216996 | B30: D | C30: STACK, FLARE | D30: FIRED EQ | G30: 1 | Q30: 2006 | R30: DEANNE | U30: Z | V30: 07-06DEA-1404 | W30: FLD | X30: D-011-01 | Z30: W3-01-007-00003-000014-000001 | AA30: 63224861 | AB30: B | AC30: 0.99 | DG30: AB | DH30: 2006 | DI30: ASEQ | DJ30: ISF | DK30: 100/07-06-039-11W5/00 | DL30: 2014-06-06
A31: 64003186 | B31: D | C31: HP SONIC FLARE STACK | D31: FIRED EQ | E31: 11477 | F31: KG | G31: 610MM ODX53340MM H | H31: 081861 | I31: 2001-07-01 | J31: JOHN ZINK | K31: US | N31: 928884 | O31: 2000 | P31: 11 | Q31: 2007 | R31: GEN PLANT | U31: Z | V31: 16-2858 | W31: RBP | X31: D-011-01 | Z31: W1-01-001-00001 | AB31: B | AC31: 0.99 | BU31: 160.0000 Foot | CB31: No | CE31: 24.0000 IN | DG31: AB | DH31: 2007 | DI31: INST | DJ31: ISF | DK31: RAINBOW LAKE GENERAL PLANT 70501 | DL31: 2014-06-06
A32: 64003652 | B32: D | C32: STACK,FLARE | D32: FIRED EQ | H32: 71432 | Q32: 2007 | R32: CENTRAL | U32: Z | V32: 55-2803 | W32: RBF | X32: D-011-01 | Z32: W1-01-003-00004 | AB32: B | AC32: 9200 | BK32: 2 EA | BR32: FLARE | BY32: Vertical | CA32: YES | CB32: Stationary | CE32: 4.0000 IN | CH32: Guy Wires | DG32: AB | DH32: 2007 | DI32: INST | DJ32: ISF | DK32: 07-15-109-08W6 SATELLITE | DL32: 2014-06-06
A33: 64003654 | B33: D | C33: FLARESTACK,DUAL | D33: FIRED EQ | G33: 6IN X 30FT | H33: 72192 | Q33: 2007 | R33: BLUESKY | U33: Z | V33: 44-2803 | W33: RBF | X33: D-011-01 | Z33: W1-01-002-00003 | AB33: C | AC33: 8500 | BR33: ELECTRIC | BU33: 30.0000 Foot | CA33: YES | CE33: 6.0000 IN | CG33: METAL | CH33: Self Supporting | DG33: AB | DH33: 2007 | DI33: INST | DJ33: ISF | DK33: 10-28-108-07W6 SATELLITE | DL33: 2014-06-06
A34: 64003656 | B34: D | C34: STACK, FLARE | D34: FIRED EQ | H34: 72795 | Q34: 2007 | R34: WEST | U34: Z | V34: 21-2803 | W34: RBF | X34: D-011-01 | Z34: W1-01-007-00007 | AB34: B | AC34: 5000 | BJ34: No | BK34: 1 EA | BL34: Sour | BM34: 2016.12.02 | BP34: Yes | BQ34: No | BR34: SHOT TUBE | BS34: No | BU34: 40.0000 Foot | BY34: Vertical | BZ34: RL-SATE-1214-M103 | CA34: YES | CB34: Stationary | CC34: OTHER | CE34: 4.6000 IN | CF34: 40.0000 Foot | CH34: Guy Wires | CI34: 4.0000 IN | CJ34: Single | CK34: Other | DG34: AB | DH34: 2007 | DI34: INST | DJ34: ISF | DK34: 12-14-107-10W6 RAINBOW SATELLITE | DL34: 2014-06-06
A35: 64003657 | B35: D | C35: STACK, FLARE, 09-02 SATT FLARE | D35: FIRED EQ | G35: 40 FT. 8 IN. | H35: 72838 | J35: TORNADO COMBUSTION TECHNOLOGI> | N35: 12909 | Q35: 2007 | R35: WEST | U35: Z | V35: 23-2803 | W35: RBF | X35: D-011-01 | Z35: W1-01-007-00006 | AB35: B | AC35: 12200 | BJ35: Yes | BK35: 1 EA | BL35: Sour | BM35: 2016.12.02 | BP35: Yes | BQ35: No | BR35: ELECTRIC | BS35: No | BU35: 40.0000 Foot | BY35: Vertical | BZ35: RL-SATE-0902-M103 | CA35: YES | CB35: Stationary | CC35: PROPANE | CE35: 8.0000 IN | CF35: 40.0000 Foot | CG35: SA106-B | CH35: Guy Wires | CI35: 4.0000 IN | CJ35: Single | CK35: Power | DG35: AB | DH35: 2007 | DI35: INST | DJ35: ISF | DK35: 09-02-108-10W6 RAINBOW SATELLITE | DL35: 2014-06-06
A36: 64003663 | B36: D | C36: STACK,FLARE | D36: FIRED EQ | G36: 40 FT | H36: 72243 | J36: TORNADO COMBUSTION TECHNOLOGI> | N36: 9712166 | O36: 1997 | Q36: 2007 | R36: BLUESKY | U36: Z | V36: 43-2805 | W36: RBF | X36: D-011-01 | Z36: W1-01-002-00004 | AB36: B | AC36: 0.99 | BK36: 1 EA | BR36: SOLAR | BU36: 40.0000 Foot | CA36: YES | CE36: 3.5000 IN | CG36: METAL | CH36: Guy Wires | DG36: AB | DH36: 2007 | DI36: INST | DJ36: ISF | DK36: 08-32-108-07W6 SATELLITE | DL36: 2014-06-06
A37: 64003664 | B37: D | C37: STACK, FLARE | D37: FIRED EQ | H37: 1365 | J37: TORNADO COMBUSTION TECHNOLOGI> | Q37: 2007 | R37: MUSKEG | U37: Z | V37: 30-2803 | W37: RBF | X37: D-011-01 | Z37: W1-01-004-00010 | AB37: C | AC37: 10000 | BR37: MANUAL | BU37: 40.0000 Foot | BY37: Vertical | CA37: YES | CB37: Portable | CE37: 5.6000 IN | CH37: Guy Wires | DG37: AB | DH37: 2007 | DI37: INST | DJ37: SURP | DK37: 08-10-108-08W6 SATELLITE | DL37: 2014-06-06
A38: 64003665 | B38: D | C38: STACK, 15-06 SATT. DUAL FLARE | D38: FIRED EQ | G38: 4IN X 40FT | J38: TORNADO COMBUSTION TECHNOLOGI> | Q38: 2007 | R38: BLUESKY | U38: Z | V38: 42-2804 | W38: RBF | X38: D-011-01 | Z38: W1-01-002-00002 | AB38: B | AC38: 0.99 | BK38: 1 EA | BR38: ELECTRIC | BU38: 40.0000 Foot | BY38: Vertical | CA38: YES | CE38: 3.0000 IN | CG38: METAL | CH38: Guy Wires | DG38: AB | DH38: 2007 | DI38: INST | DJ38: ISF | DK38: 15-06-109-07W6 SATELLITE | DL38: 2014-06-06
A39: 64003672 | B39: D | C39: STACK, 03-05-108-09 FLARE | D39: FIRED EQ | G39: 4.6X40 FT | H39: 1713 | J39: STICK BUILT | Q39: 2007 | R39: WEST | U39: Z | W39: RBF | X39: D-011-01 | Z39: W1-01-007-00003-000006-000001 | AB39: C | AC39: 10000 | BJ39: No | BK39: 1 EA | BL39: Sour | BM39: 2016.12.01 | BP39: No | BQ39: No | BR39: SHOT TUBE | BS39: No | BU39: 40.0000 Foot | BY39: Vertical | CA39: YES | CB39: Stationary | CD39: No | CE39: 2.0000 IN | CH39: Guy Wires | CI39: 2.0000 IN | CJ39: Single | DG39: AB | DH39: 2007 | DI39: INST | DJ39: SURP | DK39: 100/03-05-108-09W6/00 INJ | DL39: 2014-06-06
A40: 64004538 | B40: D | C40: STACK, 02-32 COMP. STN. FLARE | D40: FIRED EQ | H40: 71211 | Q40: 2007 | R40: NORTH | U40: Z | V40: 51-2810 | W40: RBF | X40: D-011-01 | Z40: W1-01-005-00018 | AB40: B | AC40: 8500 | BK40: 1 EA | BR40: FLARE | BU40: 40.0000 Foot | BY40: Vertical | CA40: YES | CB40: Stationary | CE40: 6.0000 IN | CH40: Guy Wires | DG40: AB | DH40: 2007 | DI40: INST | DJ40: ISF | DK40: 02-32-109-08W6 A-POOL COMPRESSOR STN | DL40: 2014-06-06
A41: 64004539 | B41: D | C41: STACK, 10-01 SATT. FLARE | D41: FIRED EQ | H41: 71635 | Q41: 2007 | R41: NORTH | U41: Z | V41: 63-2803 | W41: RBF | X41: D-011-01 | Z41: W1-01-005-00005 | AB41: B | AC41: 4500 | BU41: 40.0000 Foot | BY41: Vertical | CA41: YES | CB41: Portable | CE41: 3.0000 IN | CG41: STEEL | CH41: Guy Wires | DG41: AB | DH41: 2007 | DI41: INST | DJ41: ISF | DK41: 10-01-110-08W6 SATELLITE | DL41: 2014-06-06
A42: 64004541 | B42: D | C42: STACK,FLARE | D42: FIRED EQ | G42: 4IN X 40FT | H42: 72285 | J42: TORNADO COMBUSTION TECHNOLOGI> | Q42: 2007 | R42: BLUESKY | U42: Z | V42: 45-2802 | W42: RBF | X42: D-011-01 | Z42: W1-01-002-00005 | AB42: B | AC42: 0.99 | BR42: ELECTRIC | BU42: 30.0000 Foot | CE42: 4.5000 IN | CG42: METAL | CH42: Guy Wires | DG42: AB | DH42: 2007 | DI42: INST | DJ42: ISF | DK42: 07-05-109-07W6 SATELLITE | DL42: 2014-06-06
A43: 64004542 | B43: D | C43: STACK,FLARE | D43: FIRED EQ | G43: 40FT | H43: 72614 | J43: TORNADO COMBUSTION TECHNOLOGI> | Q43: 2007 | R43: MUSKEG | U43: Z | V43: 32-2803 | W43: RBF | X43: D-011-01 | Z43: W1-01-004-00004 | AB43: C | AC43: 7500 | BK43: 1 EA | BR43: FLARE | BU43: 40.0000 Foot | BY43: Vertical | CA43: YES | CE43: 3.6000 IN | CH43: Guy Wires | DG43: AB | DH43: 2007 | DI43: INST | DJ43: ISF | DK43: 13-06-109-08W6 SATELLITE | DL43: 2014-06-06
A44: 64004563 | B44: D | C44: STACK, 06-23-108-07 FLARE | D44: FIRED EQ | G44: 3IN X 30FT | H44: 72080 | J44: TORNADO COMBUSTION TECHNOLOGI> | Q44: 2007 | R44: BLUESKY | U44: Z | V44: 40-2808 | W44: RBF | X44: D-011-01 | Z44: W1-01-002-00011-000001-000001 | AB44: C | AC44: 0.99 | BK44: 1 EA | BR44: FLARE | BU44: 40.0000 Foot | BY44: Vertical | CA44: YES | CE44: 4.6000 IN | CH44: Self Supporting | DG44: AB | DH44: 2007 | DI44: INST | DJ44: SURP | DK44: 100/06-23-108-07W6/00 | DL44: 2014-06-06
A45: 64004565 | B45: D | C45: STACK, FLARE 08-02 SATTELITE | D45: FIRED EQ | H45: 72887 | J45: TORNADO COMBUSTION TECHNOLOGI> | N45: 1007 | Q45: 2007 | R45: WEST | U45: Z | V45: 24-2803 | W45: RBF | X45: D-011-01 | Z45: W1-01-007-00005 | AB45: B | AC45: 8500 | BJ45: Yes | BK45: 1 EA | BL45: Sour | BM45: 2016.12.02 | BP45: No | BQ45: No | BR45: FLARE/ELECTRIC | BS45: No | BU45: 40.0000 Foot | BY45: Vertical | BZ45: RL-SATE-0802-M106 | CA45: YES | CB45: Stationary | CC45: NATURAL GAS | CD45: No | CE45: 4.0000 IN | CF45: 40.0000 Foot | CH45: Guy Wires | CI45: 4.0000 IN | CJ45: Single | CK45: FUEL GAS | DG45: AB | DH45: 2007 | DI45: INST | DJ45: ISF | DK45: 08-02-108-10W6 RAINBOW SATELLITE | DL45: 2014-06-06
A46: 64004568 | B46: D | C46: STACK, FLARE | D46: FIRED EQ | H46: 1532 | J46: TORNADO COMBUSTION TECHNOLOGI> | L46: 4.6 X 40 | Q46: 2007 | R46: GEN PLANT | U46: Z | W46: RBP | X46: D-011-01 | Z46: W1-01-001-00020-900000 | AB46: C | AC46: 10000 | BK46: 1 EA | BR46: FLARE | BU46: 40.0000 Foot | BY46: Vertical | CA46: YES | CB46: Portable | CE46: 4.6000 IN | CH46: Guy Wires | DG46: AB | DH46: 2007 | DI46: INST | DJ46: SURP | DK46: RAINBOW DISTRICT - WAREHOUSE YARD | DL46: 2014-06-06
A47: 64004573 | B47: D | C47: STACK, 02-32 COMP. STN. FLARE | D47: FIRED EQ | H47: 71158 | J47: TORNADO COMBUSTION TECHNOLOGI> | O47: 1987 | Q47: 2007 | R47: GEN PLANT | U47: Z | W47: RBP | X47: D-011-01 | Z47: W1-01-001-00020-900000 | AB47: C | AC47: 0.99 | AD47: 80073108 | BK47: 1 EA | BR47: AUTO | BU47: 80.0000 Foot | BY47: Vertical | CA47: YES | CE47: 16.0000 IN | CG47: STEEL | CH47: Guy Wires | DG47: AB | DH47: 2007 | DI47: INST | DJ47: SURP | DK47: RAINBOW DISTRICT - WAREHOUSE YARD | DL47: 2014-06-06
A48: 64005392 | B48: D | C48: FLARE STACK | D48: FIRED EQ | H48: 81378 | Q48: 2007 | R48: GEN PLANT | U48: Z | W48: RBP | X48: D-011-01 | Z48: W1-01-001-00020-900000 | AB48: C | AC48: 10000 | AD48: 80074052 | BR48: ELECTRIC/SOLAR | BU48: 40.0000 M | BY48: Vertical | CA48: NO | CE48: 3.0000 MM | CG48: METAL | CH48: Guy Wires | DG48: AB | DH48: 2007 | DI48: INST | DJ48: SURP | DK48: RAINBOW DISTRICT - WAREHOUSE YARD | DL48: 2014-06-06
A49: 64006085 | B49: D | C49: STACK,FLARE,4INx40FT | D49: FIRED EQ | E49: 1300 | F49: LB | G49: 4INX40FT | J49: SWATECH INDUSTRIES | N49: SWT-0141 | O49: 2002 | Q49: 2007 | R49: BIVOUAC | U49: Z | V49: 75-2801 | W49: RBF | X49: D-011-01 | Z49: W1-01-009-00004-000008-000001 | AB49: A | AC49: 1 | AI49: X | BU49: 40.0000 Foot | BY49: Vertical | CA49: YES | CE49: 4.0000 IN | CG49: SA-106B | CH49: Self Supporting | DG49: BC | DH49: 2007 | DI49: INST | DJ49: ISF | DK49: 200/A-043-G/094-I-08/00 | DL49: 2014-06-06
A50: 64006252 | B50: D | C50: LP FLARE STACK | D50: FIRED EQ | H50: 081872 | Q50: 2007 | R50: GEN PLANT | U50: Z | V50: 16-2883 | W50: RBP | X50: D-011-01 | Z50: W1-01-001-00001 | AA50: 66096475 | AB50: A | AC50: 1 | CB50: Portable | CE50: 26.0000 IN | DG50: AB | DH50: 2007 | DI50: ASEQ | DJ50: ISF | DK50: RAINBOW LAKE GENERAL PLANT 70501 | DL50: 2014-06-06
A51: 64101016 | B51: D | C51: STACK, 10-14-107-10 FLARE | D51: FIRED EQ | H51: 72767 | Q51: 2007 | U51: Z | W51: RBF | X51: D-011-01 | Z51: Y1-01-001-90002 | AB51: C | AC51: 5000 | AD51: 80073017 | BK51: 1 EA | BR51: NONE | BU51: 480.0000 IN | BY51: Vertical | CA51: YES | CE51: 4.5000 IN | CH51: Guy Wires | DG51: AB | DH51: 2007 | DI51: INST | DJ51: SURP | DK51: RAINBOW LAKE MISSING EQUIPMENT | DL51: 2014-06-06
A52: 64101143 | B52: D | C52: FLARESTACK | D52: FIRED EQ | E52: 1300 | F52: LB | G52: 4IN X 40FT | J52: SWATECH INDUSTRIES | K52: CA | N52: SWT-0139 | Q52: 2007 | R52: BIVOUAC | U52: Z | V52: 75-2810 | W52: RBF | X52: D-011-01 | Z52: W1-01-009-00004-000030-000001 | AB52: A | AC52: 3395 | AI52: X | BR52: 2" SHOT TUBE | BU52: 40.0000 Foot | BY52: Vertical | CA52: YES | CE52: 8.0000 IN | CG52: SA-106B | CH52: Self Supporting | CI52: 0.2370 IN | DG52: BC | DH52: 2007 | DI52: INST | DJ52: ISF | DK52: 200/C-036-I/094-I-08/00 | DL52: 2014-06-06
A53: 64101144 | B53: D | C53: STACK,FLARE,6INx50FT | D53: FIRED EQ | E53: 2300 | F53: LB | G53: 6" X 50' | J53: SWATECH INDUSTRIES | K53: CA | N53: SWT-0143 | Q53: 2007 | R53: GEN PLANT | U53: Z | W53: RBP | X53: D-011-01 | Z53: W1-01-001-00020 | AB53: B | AC53: 8821.67 | BR53: ACL 3000-1-24V ELEC | BU53: 50.0000 Foot | BY53: Vertical | CE53: 6.0000 IN | CG53: SA-106B | CH53: Self Supporting | DG53: AB | DH53: 2007 | DI53: INST | DJ53: SURP | DK53: RAINBOW DISTRICT/WAREHOUSE PIPEYARD | DL53: 2014-06-06
A54: 64101145 | B54: D | C54: STACK, 02-32 SATT. FLARE | D54: FIRED EQ | E54: 2300 | F54: LB | G54: 6" X 50' | J54: SWATECH INDUSTRIES | K54: CA | N54: SWT-0144 | O54: 2002 | Q54: 2007 | R54: NORTH | U54: Z | V54: 52-2806 | W54: RBF | X54: D-011-01 | Z54: W1-01-005-00016 | AB54: A | AC54: 8821.67 | BR54: ACL 3000-1-24V ELEC | BU54: 50.0000 Foot | BY54: Vertical | CA54: YES | CE54: 6.0000 IN | CG54: SA-106B | CH54: Self Supporting | DG54: AB | DH54: 2007 | DI54: INST | DJ54: ISF | DK54: 02-32-109-08W6 SATELLITE | DL54: 2014-06-06
A55: 64101146 | B55: D | C55: STACK,FLARE,6INx50FT | D55: FIRED EQ | E55: 2300 | F55: LB | G55: 6" X 50' | J55: SWATECH INDUSTRIES | K55: CA | N55: SWT-0145 | Q55: 2007 | R55: BIVOUAC | U55: Z | V55: 73-2801 | W55: RBF | X55: D-011-01 | Z55: W1-01-009-00003 | AB55: A | AC55: 8821.67 | BR55: ACL 3000-1-24V ELEC | BU55: 50.0000 Foot | BY55: Vertical | CE55: 6.0000 IN | CG55: SA-106B | CH55: Self Supporting | DG55: AB | DH55: 2007 | DI55: INST | DJ55: ISF | DK55: 06-12-109-11W6 SATELLITE | DL55: 2014-06-06
A56: 64101632 | B56: D | C56: STACK,FLARE,4INx40FT | D56: FIRED EQ | E56: 1300 | F56: LB | G56: 4INX40FT | J56: SWATECH INDUSTRIES | Q56: 2007 | R56: BIVOUAC | U56: Z | V56: 75-2821 | W56: RBF | X56: D-011-01 | Z56: W1-01-009-00004-000011-000001 | AB56: A | AC56: 1 | AI56: X | BU56: 40.0000 Foot | BY56: Vertical | CA56: YES | CE56: 4.0000 IN | CG56: SA-106B | CH56: Self Supporting | DG56: BC | DH56: 2007 | DI56: INST | DJ56: ISF | DK56: 200/D-052-G/094-I-08/00 | DL56: 2014-06-06
A57: 64102176 | B57: D | C57: FLARESTACK | D57: FIRED EQ | E57: 1600 | F57: LB | G57: 4IN X 40FT | J57: PYRAMID PROCESS FABRICATORS | Q57: 2007 | R57: BIVOUAC | U57: Z | V57: 75-2808 | W57: RBF | X57: D-011-01 | Z57: W1-01-009-00004-000027-000001 | AB57: B | AC57: 6500 | AI57: X | BR57: SHOT TUBE IGNITER | BU57: 40.0000 Foot | BY57: Vertical | CE57: 8.0000 IN | CG57: SA-333-6 | CH57: Self Supporting | DG57: BC | DH57: 2007 | DI57: INST | DJ57: ISF | DK57: 200/D-099-H/094-I-08/00 | DL57: 2014-06-06
A58: 64102702 | B58: D | C58: STACK, 06-26 SATT. FLARE | D58: FIRED EQ | Q58: 2007 | R58: NORTHEAST | U58: Z | V58: 66-2803 | W58: RBF | X58: D-011-01 | Z58: W1-01-006-00017 | AB58: B | AC58: 4500 | BU58: 40.0000 Foot | BY58: Vertical | CA58: YES | CB58: Portable | CE58: 3.0000 IN | CG58: STEEL | CH58: Guy Wires | DG58: AB | DH58: 2007 | DI58: INST | DJ58: ISF | DK58: RAINBOW 06-26-109-07W6 SATELLITE | DL58: 2014-06-06
A59: 64102775 | B59: D | C59: FLARE STACK, 3" x 40' | D59: FIRED EQ | G59: 3"X40' | J59: TORNADO COMBUSTION TECHNOLOGI> | N59: 7-6182 | O59: 2007 | Q59: 2007 | R59: WEST | U59: Z | V59: 28A-2803 | W59: RBF | X59: D-011-01 | Z59: W1-01-007-00012 | AB59: B | AC59: 11565 | BR59: SPARKING | BU59: 40.0000 Foot | CA59: YES | CE59: 3.0000 IN | CG59: A106 PIPE | CH59: Self Supporting | DG59: AB | DH59: 2007 | DI59: INST | DJ59: ISF | DK59: 13-35-107-09W6 RAINBOW 16IN JUNCTION | DL59: 2014-06-06
A60: 64102812 | B60: D | C60: STACK, DUAL FLARE | D60: FIRED EQ | G60: 6"X 60' | J60: TORNADO COMBUSTION TECHNOLOGI> | N60: 7-6195 | O60: 2007 | Q60: 2007 | R60: CENTRAL | U60: Z | V60: 54-2805 | W60: RBF | X60: D-011-01 | Z60: W1-01-003-00002 | AB60: A | AC60: 22980 | BR60: ELECTRIC | BU60: 60.0000 Foot | CE60: 6.0000 IN | CH60: Self Supporting | DG60: AB | DH60: 2007 | DI60: INST | DJ60: ISF | DK60: 16-03-109-08W6 SATELLITE | DL60: 2014-06-06
